Workbook

Sheet BILL A
D2: Bid No: | E2: RW10404061/23
D3: Description | E3: TENDER FOR THE UPGRADE OF MEYERTON WASTEWATER TREATMENT WORKS BY 15 ML/DAY AT MEYERTON
A7: BillHeader | C7: BILL A | E7: PRELIMINARY AND GENERAL
A8: Item Type | B8: GUID | C8: Item Ref | D8: Payment Refers | E8: Description | F8: Unit | G8: Quantity | H8: Rate | I8: Amount R | J8: Work Group
A9: Section | B9: 9b40006d-16bc-4afb-a7c5-f0866eb94df1 | C9: A1 | E9: PRELIMINARY AND GENERALS | J9: Dflt
A10: Label | B10: 2d78b9e5-9c3c-4838-9943-273fa815799f | D10: SANS 1200 A | E10: SECTION A1 : PRELIMINARY AND GENERALS | J10: Dflt
A11: Header2 | B11: 308226ae-eac3-4b37-b786-45476e9a37b9 | C11: A1.1 | D11: 8.3 PSAB 8.2.1 | E11: FIXED-CHARGE ITEMS | J11: Dflt
A12: Item | B12: c556cb01-9949-487a-89d3-21842e293533 | C12: A1.1.1 | D12: 8.3.1 | E12: Contractual Requirements | F12: Sum | G12: 1 | H12: 0.00 | I12: =ROUND(G12 * H12,2) -> 0.00 | J12: Dflt
A13: Item | B13: 4f1f2569-bc48-48b7-9f83-3370b41cb2c7 | C13: A1.1.2 | D13: Annex C3.6.6 CEMP | E13: Submission of the Environmental Management Plan | F13: Sum | G13: 1 | H13: 0.00 | I13: 0.00 | J13: Dflt
A14: Label | B14: e5c7026f-0543-4b55-abc9-b3abb35df7de | D14: 8.3.2 | E14: Establish Facilities on the Site : | J14: Dflt
A15: Label | B15: 791f8354-70bd-4f8e-a540-ec43d9cd276f | D15: 8.3.2.1 PSAB 8.2 | E15: a) Facilities for Engineer | J15: Dflt
A16: Item | B16: 6926309b-25cf-4d64-a25f-058051f9f052 | C16: A1.1.3 | E16: Furnished Office | F16: Sum | G16: 1 | H16: 0.00 | I16: =ROUND(G16 * H16,2) -> 0.00 | J16: Dflt
A17: Item | B17: 3d54b9cd-a10f-4ff4-a4b3-c8c3680ad915 | C17: A1.1.4 | E17: Carport | F17: Sum | G17: 1 | H17: 0.00 | I17: 0.00 | J17: Dflt
A18: Item | B18: 78d78fc3-be95-43c3-b37c-deb724d52912 | C18: A1.1.5 | E18: Nameboards ( 2 ) | F18: Sum | G18: 1 | H18: 0.00 | I18: 0.00 | J18: Dflt
A19: Item | B19: 8697e419-db8d-4103-bfcd-2a400bbbacb7 | C19: A1.1.6 | E19: Telephone | F19: Sum | G19: 1 | H19: 0.00 | I19: 0.00 | J19: Dflt
A20: Item | B20: d3310daf-a1c3-4676-b05a-52c62eb54403 | C20: A1.1.7 | E20: Survey Assistant & Equipment | F20: Sum | G20: 1 | H20: 0.00 | I20: 0.00 | J20: Dflt
A21: Item | B21: 7828468e-a255-4667-b1e9-8fc4d52ded57 | C21: A1.1.8 | E21: Computer Equipment | F21: Sum | G21: 1 | H21: 0.00 | I21: 0.00 | J21: Dflt
A22: Label | B22: 631b4177-eeef-499f-97cc-ccb4d2877791 | E22: b) Facilities for Contractor | J22: Dflt
A23: Item | B23: 65a5757e-3fde-4741-a215-e8a38990feac | C23: A1.1.9 | D23: PSA 8.3.2.2 (a) | E23: Offices and storage sheds | F23: Sum | G23: 1 | H23: 0.00 | I23: =ROUND(G23 * H23,2) -> 0.00 | J23: Dflt
A24: Item | B24: a4349e4c-6c34-4165-8065-e0ab052b9c4e | C24: A1.1.10 | E24: Ablution and latrine facilities | F24: Sum | G24: 1 | H24: 0.00 | I24: 0.00 | J24: Dflt
A25: Item | B25: 28edfc2b-73e9-429f-9268-bb561445b795 | C25: A1.1.11 | E25: Tools and equipment | F25: Sum | G25: 1 | H25: 0.00 | I25: 0.00 | J25: Dflt
A26: Item | B26: 2734cc57-8b7c-47ae-9709-7be57ee8f8ac | C26: A1.1.12 | E26: Water supplies, electric power and communications | F26: Sum | G26: 1 | H26: 0.00 | I26: 0.00 | J26: Dflt
A27: Item | B27: dc4d3adc-96bd-4ed2-b485-010b3205df75 | C27: A1.1.13 | E27: Access | F27: Sum | G27: 1 | H27: 0.00 | I27: 0.00 | J27: Dflt
A28: Item | B28: e122cdf7-ace1-4d00-a667-49b2f07c3fc8 | C28: A1.1.14 | D28: PSA 8.3.2.2 (h) | E28: Dealing with water | F28: Sum | G28: 1 | H28: 0.00 | I28: 0.00 | J28: Dflt
A29: Item | B29: 6d58d1db-a971-4457-83a6-28fefb0d87db | C29: A1.1.15 | D29: 8.3.4 | E29: Remove Engineer's and Contractor's Site establishment on completion | F29: Sum | G29: 1 | H29: 0.00 | I29: 0.00 | J29: Dflt
A30: Header2 | B30: c678d523-7770-49c5-bc31-75550ce68329 | C30: A1.2 | D30: 8.4 PSA 8.2.2 PSAB 8.2.1 | E30: TIME-RELATED ITEMS | J30: Dflt
A31: Item | B31: db619fd9-4ce3-4bd7-a9d6-c7e0f5e0fae9 | C31: A1.2.1 | D31: 8.4.1 | E31: Contractual Requirements | F31: Sum | G31: 1 | H31: 0.00 | I31: =ROUND(G31 * H31,2) -> 0.00 | J31: Dflt
A32: Label | B32: bd1a8aac-b2a3-4212-aead-78d2903fba31 | D32: 8.4.2 | E32: Operate and maintain facilities on the Site: | J32: Dflt
A33: Label | B33: f387795a-90a3-4610-836b-02f77edc6955 | D33: 8.4.2.1 PSAB 8.2 | E33: a) Facilities for Engineer for duration of construction (SABS 1200 AB) | J33: Dflt
A34: Item | B34: aa466c58-511c-4a2b-80bf-0d13e47c749a | C34: A1.2.2 | E34: Furnished Office | F34: Sum | G34: 1 | H34: 0.00 | I34: =ROUND(G34 * H34,2) -> 0.00 | J34: Dflt
A35: Item | B35: 7ca6a7d9-1816-45b6-9fdd-4a63969d9ad0 | C35: A1.2.3 | E35: Carport | F35: Sum | G35: 1 | H35: 0.00 | I35: 0.00 | J35: Dflt
A36: Item | B36: 6cd7bbd6-b6d7-4508-91f9-decb3a87a45b | C36: A1.2.4 | E36: Telephone | F36: Sum | G36: 1 | H36: 0.00 | I36: 0.00 | J36: Dflt
A37: Item | B37: 44420c3a-e2f3-4d08-98f6-0360cc35dfca | C37: A1.2.5 | E37: Survey Assistant & Equipment | F37: Sum | G37: 1 | H37: 0.00 | I37: 0.00 | J37: Dflt
A38: Item | B38: 75b458b7-b7cd-4f99-8728-7df53c92063a | C38: A1.2.6 | E38: Computer Equipment | F38: Sum | G38: 1 | H38: 0.00 | I38: 0.00 | J38: Dflt
A39: Label | B39: 46af0abd-dcb5-43c2-a202-2910b83110be | D39: 8.4.2.2 | E39: b) Facilities for Contractor for duration of construction, except where otherwise stated | J39: Dflt
A40: Item | B40: ed3b9c82-d81e-493a-98f2-3039048cf023 | C40: A1.2.7 | D40: PSA 8.4.2.2 (a) | E40: Offices and storage sheds | F40: Sum | G40: 1 | H40: 0.00 | I40: =ROUND(G40 * H40,2) -> 0.00 | J40: Dflt
A41: Item | B41: 058389a3-b359-482f-b0ab-e4a32beb31e2 | C41: A1.2.8 | E41: Ablution and latrine facilities | F41: Sum | G41: 1 | H41: 0.00 | I41: 0.00 | J41: Dflt
A42: Item | B42: b816b3eb-ad4c-4c59-a70b-aa65141b36a4 | C42: A1.2.9 | E42: Tools and equipment | F42: Sum | G42: 1 | H42: 0.00 | I42: 0.00 | J42: Dflt
A43: Item | B43: 9c206656-f4e8-46b0-ad75-604d84d48f26 | C43: A1.2.10 | E43: Water supplies, electric power and communications | F43: Sum | G43: 1 | H43: 0.00 | I43: 0.00 | J43: Dflt
A44: Item | B44: 22420a8d-8217-42b4-9ab7-f56d53f8b4c9 | C44: A1.2.11 | D44: PSA 8.4.2.2 (h) | E44: Dealing with water | F44: Sum | G44: 1 | H44: 0.00 | I44: 0.00 | J44: Dflt
A45: Item | B45: b1764cca-b483-46ae-a846-ccbb41eb79d3 | C45: A1.2.12 | E45: Access | F45: Sum | G45: 1 | H45: 0.00 | I45: 0.00 | J45: Dflt
A46: Item | B46: 3fed6a2e-d84c-4d3d-a570-ed105b0ab52e | C46: A1.2.13 | E46: Construction Equipment | F46: Sum | G46: 1 | H46: 0.00 | I46: 0.00 | J46: Dflt
A47: Item | B47: 9758a925-6b2d-4430-8167-0fae1eb20f7a | C47: A1.2.14 | D47: 8.4.3 | E47: Supervision | F47: Sum | G47: 1 | H47: 0.00 | I47: 0.00 | J47: Dflt
A48: Item | B48: 83400b04-f333-4e2e-bd09-f2787d89c1fb | C48: A1.2.15 | D48: 8.4.4 | E48: Company and head office overhead costs | F48: Sum | G48: 1 | H48: 0.00 | I48: 0.00 | J48: Dflt
A49: Item | B49: a1caf69e-f642-4e67-bf40-ae8a5cd952ff | C49: A1.2.16 | D49: 8.4.5 | E49: Other time-related obligations Surveyor | F49: Sum | G49: 1 | H49: 0.00 | I49: 0.00 | J49: Dflt
A50: Item | B50: 8dd70258-7d36-4440-a658-b2d5a96f5e15 | C50: A1.2.17 | E50: Compliance with the specified environmental requirements | F50: Sum | G50: 1 | H50: 0.00 | I50: 0.00 | J50: Dflt
A51: Header2 | B51: 4949630b-edf8-48ba-a175-0fb0e3fa9ff8 | C51: A1.3 | D51: Annex C3.6.5 H&S Spec | E51: Fixed and Time Related Charges associated with complying with the Project Health and Safety Specification: | J51: Dflt
A52: Sum | B52: 0d70e2f6-f371-4003-aab5-f8b05c4176b5 | C52: A1.3.1 | E52: Preparation of principal contractor’s site specific health and safety plan, safety file, risk assessments, fall prevention/protection plan, Annexure 2 notification to Dept of Labour, demolition method statement, other method statements requested to be prepared for safety reasons, permits, amendments to safety plan during course of project, traffic management / accommodation plans, and any other legally required health and safety documentation | F52: Sum | G52: 1 | H52: 0.00 | I52: =ROUND(H52,2) -> 0.00 | J52: Dflt
A53: Sum | B53: 7120d7dd-f9f2-4aa7-8a27-e3f69f044b58 | C53: A1.3.2 | E53: Provision of safety documentation required of the principal contractor for Construction Work Permit application by the safety agent of Dept of Labour, if applicable (note section 2.4 of this safety specification document) | F53: Sum | G53: 1 | H53: 0.00 | I53: 0.00 | J53: Dflt
A54: Sum | B54: 1688b6d2-96dd-4ea8-a728-0878ab1a7043 | C54: A1.3.3 | E54: Provision of current workman’s compensation cover for employees for the project, and ensuring that contractors appointed have such cover too | F54: Sum | G54: 1 | H54: 0.00 | I54: 0.00 | J54: Dflt
A55: Sum | B55: 18cd3a8a-7a6a-48b4-8ef9-ef2ee116df02 | C55: A1.3.4 | E55: Health and safety management of principal contractor’s employees, visitors and contractors’ employees on site. | F55: Sum | G55: 1 | H55: 0.00 | I55: 0.00 | J55: Dflt
A56: Sum | B56: 62931a19-6582-425d-8dd5-c241a335d332 | C56: A1.3.5 | E56: Provision of full time Construction Manager for site, provision of Alternate Construction Manager in absence of Construction Manager and provision of sufficient safety supervision on site | F56: Sum | G56: 1 | H56: 0.00 | I56: 0.00 | J56: Dflt
A57: Sum | B57: 25ec49b5-82d7-4f82-b498-aadfe41ef833 | C57: A1.3.6 | E57: Provision of full time/ part time SACPCMP registered Construction Health & Safety Officer for site (refer to safety specification for full time / part time requirement) and preparation of safety reports after each safety inspection | F57: Sum | G57: 1 | H57: 0.00 | I57: 0.00 | J57: Dflt
A58: Sum | B58: d60b7a39-228c-4c01-8d24-49bbf5f4dfc9 | C58: A1.3.7 | E58: Competence assessment, appointment and required competence and safety training of all principal contractor’s legally required appointments for site | F58: Sum | G58: 1 | H58: 0.00 | I58: 0.00 | J58: Dflt
A59: Sum | B59: 1362cfbd-2238-42c5-9d5a-72274f9cf617 | C59: A1.3.8 | E59: Maintenance of principal contractor’s construction equipment and equipment on site so as to be in safe condition, including inspection registers, inspections by competent persons, thorough examination certificates, hand over certificates and related documentation | F59: Sum | G59: 1 | H59: 0.00 | I59: 0.00 | J59: Dflt
A60: Sum | B60: 08de36b4-16e3-4557-bb06-ae26349d603c | C60: A1.3.9 | E60: Provision of general safety signage (e.g. first aid, firefighting, traffic safety, excavations, PPE, Assembly Point, noise zones, etc.) | F60: Sum | G60: 1 | H60: 0.00 | I60: 0.00 | J60: Dflt
A61: Sum | B61: 8f1a28c5-0f41-41c8-bd00-1af6a345f1ea | C61: A1.3.10 | E61: Provision of medical certificates of fitness for employees on site (Annexure 3) | F61: Sum | G61: 1 | H61: 0.00 | I61: 0.00 | J61: Dflt
A62: Sum | B62: bd512f5b-37f7-41c3-b6c6-21608f4c643b | C62: A1.3.11 | E62: Provision of personal protective equipment (PPE) by principal contractor to employees and, as applicable, visitors to site, incl. • reflective vests • hard hats • protective foot wear • hearing protection • respiratory protection • safety eyewear • gloves • overalls • Safety harnesses and lanyards • Sunblock • UV Protective clothing / hats / eye wear • Protective thermal wear (heat / wind / cold / rain) • Protective firefighting clothing • Arc flash and electrical protective clothing | F62: Sum | G62: 1 | H62: 0.00 | I62: 0.00 | J62: Dflt
A63: Sum | B63: 2b997eaf-76ed-42f4-9dd2-7ee522475f4f | C63: A1.3.12 | E63: Provision of Fall Prevention and Protection Equipment including. • Rope • Lifelines & Self-Retracting Lifelines (SRL) • Anchor Points • Warning Lines & Area demarcation • Fall Arrest Accessories • Fall Rescue Equipment • Passive Fall Protection Equipment • Confined Space Rescue and Retrieval (In elevated work situations) • Etc. | F63: Sum | G63: 1 | H63: 0.00 | I63: 0.00 | J63: Dflt
A64: Sum | B64: 86d90f31-9a26-40e2-af30-7d0b7889386c | C64: A1.3.13 | E64: Provision of Confined Space work equipment & Training • Training • Air Monitoring Equipment • Ventilation Equipment • Entry Equipment • Personal Protective Equipment • Confined Space Rescue and Retrieval Equipment • Communication Equipment • Etc. | F64: Sum | G64: 1 | H64: 0.00 | I64: 0.00 | J64: Dflt
A65: Sum | B65: 24e3254e-c1d7-4c4a-a0ee-2f75325ff0fb | C65: A1.3.14 | E65: Holding of safety meetings with safety representatives and safety officers on site on at least monthly basis | F65: Sum | G65: 1 | H65: 0.00 | I65: 0.00 | J65: Dflt
A66: Sum | B66: cb813b25-70e0-4b86-a6f6-6bbf0d07e198 | C66: A1.3.15 | E66: Principal contractor construction safety management attendance at health and safety meetings called by Employer, professional team or safety agent | F66: Sum | G66: 1 | H66: 0.00 | I66: 0.00 | J66: Dflt
A67: Sum | B67: f64f97b0-7bdf-4073-9cfb-ae882157741b | C67: A1.3.16 | E67: Provision of site specific health and safety induction training for all on site | F67: Sum | G67: 1 | H67: 0.00 | I67: 0.00 | J67: Dflt
A68: Sum | B68: 2c6d6a44-4616-4717-a869-c6835fa13ad0 | C68: A1.3.17 | E68: Conducting of toolbox talks to employees on health and safety issues on a weekly basis | F68: Sum | G68: 1 | H68: 0.00 | I68: 0.00 | J68: Dflt
A69: Sum | B69: 62be4cd6-a4e2-4865-999d-dfe7a6db788f | C69: A1.3.18 | E69: Provision of sufficient First Aiders for site as per legal requirements | F69: Sum | G69: 1 | H69: 0.00 | I69: 0.00 | J69: Dflt
A70: Sum | B70: dbaa89f3-ee41-4bdc-8b44-0abf4d9facc1 | C70: A1.3.19 | E70: Provision of First Aid Boxes for site as per legal requirements | F70: Sum | G70: 1 | H70: 0.00 | I70: 0.00 | J70: Dflt
A71: Sum | B71: 51cfc065-0565-420d-b76e-de8564cf50be | C71: A1.3.20 | E71: Provision of sufficient fire extinguishing equipment for site | F71: Sum | G71: 1 | H71: 0.00 | I71: 0.00 | J71: Dflt
A72: Sum | B72: 03171569-d619-47fe-98ef-543648b43bfb | C72: A1.3.21 | E72: Fire drills on site at least 6 monthly basis for duration of project | F72: Sum | G72: 1 | H72: 0.00 | I72: 0.00 | J72: Dflt
A73: Sum | B73: d599123e-a80d-40e0-86d7-e9145d51988b | C73: A1.3.22 | E73: Provision of welfare facilities for site (drinking water, toilets, soap, means of drying hands, toilets paper, sheltered eating areas, etc.) | F73: Sum | G73: 1 | H73: 0.00 | I73: 0.00 | J73: Dflt
A74: Sum | B74: 0b067483-ca6f-4332-8e5c-d0edb700063e | C74: A1.3.23 | E74: Provision for safe disposal of waste, spill kits, safe housekeeping and storage practices | F74: Sum | G74: 1 | H74: 0.00 | I74: 0.00 | J74: Dflt
A75: Sum | B75: f39ed795-be23-452b-8381-dde42418d201 | C75: A1.3.24 | E75: Provision of leading edge protection, covers to prevent falls | F75: Sum | G75: 1 | H75: 0.00 | I75: 0.00 | J75: Dflt
A76: Sum | B76: 79dd0cce-b47e-45e2-818a-4fc7d1015a92 | C76: A1.3.25 | E76: Provision of fencing at site camp and to protect excavations | F76: Sum | G76: 1 | H76: 0.00 | I76: 0.00 | J76: Dflt
A77: Sum | B77: e58a342f-71b7-4fcf-9442-7fad2ad88cf2 | C77: A1.3.26 | E77: COVID 19 measures – provision of hand sanitiser, respiratory protection (as required), safety signage, formal and informal communication to all on site and any other measures necessary to contain and detect COVID 19 on site (refer to safety specification) | F77: Sum | G77: 1 | H77: 0.00 | I77: 0.00 | J77: Dflt
A78: Sum | B78: 29a82df9-c519-4715-8bf1-7987460557ab | C78: A1.3.27 | E78: Compilation of consolidated Safety File at Close Out stage and handover of file to safety agent in hard copy or digital format | F78: Sum | G78: 1 | H78: 0.00 | I78: 0.00 | J78: Dflt
A79: Sum | B79: 6d4fd38b-55eb-4868-8353-a25ce00003cc | C79: A1.3.28 | E79: Supply of safety caps on all exposed re-bar | F79: Sum | G79: 1 | H79: 0.00 | I79: 0.00 | J79: Dflt
A80: Label | B80: 12c49f85-f898-42f6-a1a1-a82784d9f39a | E80: Any other compliance item in site specific safety specification issued by project Employer/ safety agent with potential cost implication | J80: Dflt
A81: Sum | B81: 6264c6cc-360f-4092-832e-14d1ef807866 | C81: A1.3.29 | E81: · Item 1 | F81: Sum | G81: 1 | H81: 0.00 | I81: =ROUND(H81,2) -> 0.00 | J81: Dflt
A82: Sum | B82: f84063f4-38f8-46c7-9ef6-6dfe910b2808 | C82: A1.3.30 | E82: · Item 2 | F82: Sum | G82: 1 | H82: 0.00 | I82: 0.00 | J82: Dflt
A83: Sum | B83: 36ca950a-5b5f-460b-9486-253ed680a6cc | C83: A1.3.31 | E83: · Item 3 | F83: Sum | G83: 1 | H83: 0.00 | I83: 0.00 | J83: Dflt
A84: Sum | B84: 49b1af25-aafa-448a-8279-5b23b0682676 | C84: A1.3.32 | E84: · Item 4 | F84: Sum | G84: 1 | H84: 0.00 | I84: 0.00 | J84: Dflt
A85: Sum | B85: 2c787983-ba69-4b56-9667-2c3b06b3b8c1 | C85: A1.3.33 | E85: · Item 5 | F85: Sum | G85: 1 | H85: 0.00 | I85: 0.00 | J85: Dflt
A86: Sum | B86: da51381e-cf6a-4de0-a903-f57b2799efa1 | C86: A1.3.34 | E86: Principal contractor’s general compliance with respect to the Occupational Health and Safety Act, Construction and other health and safety Regulations apart from other provisions in this bill. | F86: Sum | G86: 1 | H86: 0.00 | I86: 0.00 | J86: Dflt
A87: Header2 | B87: fce77635-ab13-4ad8-81f4-447d4a5e9695 | C87: A1.4 | D87: 8.5 | E87: SUMS STATED PROVISIONALLY BY ENGINEER | J87: Dflt
A88: Sum | B88: 0930557b-84ae-488a-92b9-ade8a838fbc3 | C88: A1.4.1 | D88: PSA 8.10 | E88: Acceptance testing of material and workmanship called for by the Engineer at a nominated laboratory | F88: Prov.Sum | G88: 1 | H88: 150,000.00 | I88: =ROUND(H88,2) -> 150,000.00 | J88: Dflt
A89: Sum | B89: a68ac6e0-b8b4-4611-b3ba-065df51a23d7 | C89: A1.4.2 | D89: PSA 8.1.2.4 | E89: Payment to the Municipality for lowering, routing and diversion of services | F89: Prov.Sum | G89: 1 | H89: 60,000.00 | I89: 60,000.00 | J89: Dflt
A90: Sum | B90: bfdbc09b-bae5-43ac-8725-d37e2a454a12 | C90: A1.4.3 | E90: A complete As-Built survey including all structures, pipework, etc. by a registered land surveyor on completion of works | F90: Prov.Sum | G90: 1 | H90: 75,000.00 | I90: 75,000.00 | J90: Dflt
A91: Sum | B91: 232ef795-a80c-4d4d-a223-f28795c17ffb | C91: A1.4.4 | E91: Mechanical installation for Meyerton WWTW (Nominated Sub-Contractor) | F91: Prov.Sum | G91: 1 | H91: 30,000,000.00 | I91: 30,000,000.00 | J91: Dflt
A92: % Previous | B92: e14476d7-3f05-4b54-8bae-6912dec87a45 | C92: A1.4.5 | E92: Overheads, charges and profit on item A1.4.4 | F92: % | G92: =I91 -> 30000 000.00 | H92: 0.0% | I92: =ROUND(G92 * H92,2) -> 0.00 | J92: Dflt
A93: Sum | B93: c1855980-c4ec-4d3f-98af-36317495fc70 | C93: A1.4.6 | E93: Electrical installation for Meyerton WWTW (Nominated Sub-Contractor) | F93: Prov.Sum | G93: 1 | H93: 60,000,000.00 | I93: =ROUND(H93,2) -> 60,000,000.00 | J93: Dflt
A94: % Previous | B94: 9ba5073d-6c12-4ea8-a0b8-f3d4743cfcc6 | C94: A1.4.7 | E94: Overheads, charges and profit on item A1.4.6 | F94: % | G94: =I93 -> 60000 000.00 | H94: 0.0% | I94: =ROUND(G94 * H94,2) -> 0.00 | J94: Dflt
A95: Label | B95: 6d3582c4-e685-4519-a122-c736689ab2a8 | E95: Provisional Sums for the provision of access and safety equipment required to gain access to structures for initial inspections and testing by the Structural Engineer / Specialists, including all scaffolding, platforms, safety gear and certification and any other equipment required to safely access all areas of the following structures: | J95: Dflt
A96: Sum | B96: 9d384752-d2cc-4c36-ac52-319b2b25737d | C96: A1.4.8 | E96: Raw Water Pump Station | F96: PSum | G96: 1 | H96: 50,000.00 | I96: =ROUND(H96,2) -> 50,000.00 | J96: Dflt
A97: Sum | B97: 785c54d2-b62d-4f57-ab04-57b740b158ba | C97: A1.4.9 | E97: Biological Reactor | F97: PSum | G97: 1 | H97: 100,000.00 | I97: 100,000.00 | J97: Dflt
A98: Sum | B98: a24897de-788b-4a8a-afec-f7b16615ca99 | C98: A1.4.10 | E98: Secondary Sedimentation Tank | F98: PSum | G98: 1 | H98: 30,000.00 | I98: 30,000.00 | J98: Dflt
A99: Sum | B99: 70fec0c1-58a7-47a0-aceb-7a26eadb1149 | C99: A1.4.11 | E99: Buildings, as required | F99: PSum | G99: 1 | H99: 20,000.00 | I99: 20,000.00 | J99: Dflt
A100: Sum | B100: 14d0c2ba-0e4b-46f8-ac0c-103601bb4075 | C100: A1.4.12 | E100: Other structures not listed above, as required | F100: PSum | G100: 1 | H100: 50,000.00 | I100: 50,000.00 | J100: Dflt
A101: Label | B101: 2f1657a4-e466-4fa6-8824-9dfe8b9c5672 | E101: Tests and Specialist Investigations | J101: Dflt
A102: Sum | B102: 341a77ba-a05d-43c7-a315-2b27b26f90be | C102: A1.4.13 | E102: Tests and specialist investigations deemed necessary by the Contractor as described in PSA 7.5 | F102: PSum | G102: 1 | H102: 1,000,000.00 | I102: =ROUND(H102,2) -> 1,000,000.00 | J102: Dflt
A103: Header2 | B103: 6bc0bf21-0d47-4f4f-89f3-d15400b5a2cb | C103: A1.5 | D103: 8.8 | E103: TEMPORARY WORKS | J103: Dflt
A104: Label | B104: 10ce6ef9-0d6a-4657-bddf-9722e5d4f293 | D104: 8.8.4 PSA 8.8.4 PSDB 8.3.5 | E104: Existing services | J104: Dflt
A105: Item | B105: 16fe078d-ddb6-46af-9a95-775e253576ac | C105: A1.5.1 | D105: SANS 1200D 8.3.8.1(a) | E105: Existing Services: Supply or hire and use of specialist equipment and personnel for the detection of underground services | F105: Sum | G105: 1 | H105: 0.00 | I105: =ROUND(G105 * H105,2) -> 0.00 | J105: Dflt
A106: Item | B106: 18549088-8802-4c09-b432-2facb961c2b4 | C106: A1.5.2 | D106: SANS 1200D 8.3.8.1(c) | E106: Excavate by hand in soft material to expose unknown existing services | F106: m³ | G106: 300 | H106: 0.00 | I106: 0.00 | J106: Dflt
A107: Item | B107: 21c8bf38-a476-47a7-b86e-8c90d595c4a9 | C107: A1.5.3 | D107: PSA 8.8.7 | E107: Clear entire site, including outside and inside of all structures and buildings, of all weeds, builders rubble, dewatering of structures and cut grass on establishment on site by the Contractor on a once off basis, further clearing may be required as instructed by the Engineer. | F107: ha | G107: 12 | H107: 0.00 | I107: 0.00 | J107: Dflt
A108: Header2 | B108: bae9fe9d-8119-4325-a125-d228be8fadd9 | C108: A1.6 | E108: SUNDRIES | J108: Dflt
A109: Label | B109: 08fce572-a236-47d8-aaf0-d47dd5823b4b | E109: CCTV Inspection | J109: Dflt
A110: Item | B110: 4da364be-e449-4a1a-bf3f-5f464af1e8d4 | C110: A1.6.1 | D110: PSLD 8.2.13 | E110: CCTV camera surveys of pipelines upon completion. | F110: m | G110: 900 | H110: 0.00 | I110: =ROUND(G110 * H110,2) -> 0.00 | J110: Dflt

Sheet BILL B.1.
D2: Bid No: | E2: RW10404061/23 | J2: Work Group
D3: Description | E3: TENDER FOR THE UPGRADE OF MEYERTON WASTEWATER TREATMENT WORKS BY 15 ML/DAY AT MEYERTON | J3: Dflt
J4: Dflt
J5: Dflt
J6: Dflt
A7: BillHeader | C7: BILL B.1. | E7: DAYWORKS | J7: Dflt
A8: Item Type | B8: GUID | C8: Item Ref | D8: Payment Refers | E8: Description | F8: Unit | G8: Quantity | H8: Rate | I8: Amount R | J8: Dflt
A9: Section | B9: e9d16f91-07d6-4c71-bb2d-ee9a725b6702 | C9: B.1.1 | D9: SANS 1200 A & AB PSA 8.1.1 | E9: DAYWORKS | J9: Dflt
A10: Label | B10: 680e6759-b6e5-4331-9aad-2b2cfb1e4d46 | D10: SANS 1200 A & AB PSA 8.1.1 | E10: SECTION B.1.1 : DAYWORKS | J10: Dflt
A11: Header2 | B11: 0cccdf89-9cf2-4522-b8f7-88f986df3da0 | C11: B.1.1.1 | D11: 8.7 PSA 8.1.1 | E11: LABOUR | J11: Dflt
A12: Item | B12: 30021c28-bb1c-421f-821d-a42820039fe3 | C12: B.1.1.1.1 | E12: Foreman | F12: hr | G12: 135 | H12: 0.00 | I12: =ROUND(G12 * H12,2) -> 0.00 | J12: Dflt
A13: Item | B13: ce39a469-d6df-453e-b7dc-0620dab9e539 | C13: B.1.1.1.2 | E13: Steel Fixer | F13: hr | G13: 90 | H13: 0.00 | I13: 0.00 | J13: Dflt
A14: Item | B14: 4d25ae07-567e-4a5e-a890-bc78af42085c | C14: B.1.1.1.3 | E14: Concreter | F14: hr | G14: 90 | H14: 0.00 | I14: 0.00 | J14: Dflt
A15: Item | B15: d2da1f41-63d6-462a-8543-2aa3b4ecf642 | C15: B.1.1.1.4 | E15: Chargehand | F15: hr | G15: 45 | H15: 0.00 | I15: 0.00 | J15: Dflt
A16: Item | B16: 834b22c0-de51-4173-9a4f-5e62a6c78a32 | C16: B.1.1.1.5 | E16: Artisan (Welder, Plumber, etc) | F16: hr | G16: 90 | H16: 0.00 | I16: 0.00 | J16: Dflt
A17: Item | B17: 973091f4-c447-4c66-a94f-bffcef8633d2 | C17: B.1.1.1.6 | E17: Pipe layer | F17: hr | G17: 90 | H17: 0.00 | I17: 0.00 | J17: Dflt
A18: Item | B18: 056b534b-6bdb-482e-b17f-6cad1d9eb317 | C18: B.1.1.1.7 | E18: Semi Skilled Labourer | F18: hr | G18: 270 | H18: 0.00 | I18: 0.00 | J18: Dflt
A19: Item | B19: c280eba9-16e0-4a29-8acd-a5554174bfc4 | C19: B.1.1.1.8 | E19: Unskilled Labour | F19: hr | G19: 540 | H19: 0.00 | I19: 0.00 | J19: Dflt
A20: Item | B20: 441ec389-e3d1-46b1-bc01-19df9bf6c8ff | C20: B.1.1.1.9 | E20: Security guard | F20: hr | G20: 180 | H20: 0.00 | I20: 0.00 | J20: Dflt
A21: Header2 | B21: 80decebd-a609-46d1-a7cb-8513df0347f8 | C21: B.1.1.2 | E21: MATERIALS | J21: Dflt
A22: Sum | B22: eb276cf6-4919-403b-a914-16ae86460624 | C22: B.1.1.2.1 | E22: Allow for Materials | F22: Prov.Sum | G22: 1 | H22: 105,000.00 | I22: =ROUND(H22,2) -> 105,000.00 | J22: Dflt
A23: % Previous | B23: de4837af-af98-41c4-8597-5bc6cae0a710 | C23: B.1.1.2.2 | E23: Overheads, charges and profit on item B.1.1.2.1 | F23: % | G23: =I22 -> 105 000.00 | H23: 0.0% | I23: =ROUND(G23 * H23,2) -> 0.00 | J23: Dflt
A24: Header2 | B24: 16122280-086c-430d-8293-3d0928346ff1 | C24: B.1.1.3 | D24: PSA 8.1.1 | E24: CONSTRUCTION EQUIPMENT | J24: Dflt
A25: Item | B25: 4e08feb6-7d8b-4188-8fc6-a5e5a547d7ac | C25: B.1.1.3.1 | E25: Front-end Loader, approx. flywheel power 145 kW | F25: hr | G25: 45 | H25: 0.00 | I25: =ROUND(G25 * H25,2) -> 0.00 | J25: Dflt
A26: Item | B26: 72b82574-0e26-4eb0-98d0-4cdbf710c33c | C26: B.1.1.3.2 | E26: Back acting excavator, approx. flywheel power 100 kW | F26: hr | G26: 90 | H26: 0.00 | I26: 0.00 | J26: Dflt
A27: Item | B27: e0f191b9-95c1-412c-8e26-902ff3e1bd6c | C27: B.1.1.3.3 | E27: Hand vibrating compactor, static mass | F27: hr | G27: 45 | H27: 0.00 | I27: 0.00 | J27: Dflt
A28: Item | B28: f9006655-2fa7-4558-a00e-72ebffaf3824 | C28: B.1.1.3.4 | E28: Mobile Crane, 5 tonne at 3m radius | F28: hr | G28: 27 | H28: 0.00 | I28: 0.00 | J28: Dflt
A29: Item | B29: e3f10acb-4db5-4494-9ed3-16ac4f4e96b0 | C29: B.1.1.3.5 | E29: Compressor, 10.3 m3/min including tools and hoses | F29: hr | G29: 90 | H29: 0.00 | I29: 0.00 | J29: Dflt
A30: Item | B30: 61759c1a-2d63-415b-9cef-6e4e19f9dbd4 | C30: B.1.1.3.6 | E30: Poker vibrator | F30: hr | G30: 54 | H30: 0.00 | I30: 0.00 | J30: Dflt
A31: Item | B31: bce8188f-9bde-4d1c-833a-dd874ade28f1 | C31: B.1.1.3.7 | E31: Concrete Mixer 0.3 m3 dry mix capacity | F31: hr | G31: 54 | H31: 0.00 | I31: 0.00 | J31: Dflt
A32: Item | B32: 8c8312f8-496e-40b6-9409-e363cb660243 | C32: B.1.1.3.8 | E32: 50 mm Water Pump including hoses | F32: hr | G32: 180 | H32: 0.00 | I32: 0.00
A33: Item | B33: aaf4d8d9-18d6-4e4c-a444-00266827d371 | C33: B.1.1.3.9 | E33: Tipper, 10m3 capacity | F33: hr | G33: 45 | H33: 0.00 | I33: 0.00
A34: Item | B34: ac431c08-4f0d-4c1e-83f9-7816e6403647 | C34: B.1.1.3.10 | E34: Tipper, 5m3 capacity | F34: hr | G34: 45 | H34: 0.00 | I34: 0.00
A35: Item | B35: 2ee1d443-6bd2-4295-b55d-c7362ba195f3 | C35: B.1.1.3.11 | E35: Flat bed, 7 tonne capacity | F35: hr | G35: 27 | H35: 0.00 | I35: 0.00
A36: Item | B36: a081a94a-1f63-4ea2-a849-7fa8d06295c2 | C36: B.1.1.3.12 | E36: Flat bed, 5 tonne capacity | F36: hr | G36: 27 | H36: 0.00 | I36: 0.00
A37: Item | B37: 25447814-1f8d-4376-a472-37f51b8c20b3 | C37: B.1.1.3.13 | E37: 1 tonne LDV | F37: hr | G37: 90 | H37: 0.00 | I37: 0.00

Sheet BILL B.2.
D2: Bid No: | E2: RW10404061/23 | J2: Work Group
D3: Description | E3: TENDER FOR THE UPGRADE OF MEYERTON WASTEWATER TREATMENT WORKS BY 15 ML/DAY AT MEYERTON | J3: Dflt
J4: Dflt
J5: Dflt
J6: Dflt
A7: BillHeader | C7: BILL B.2. | E7: PIPELINES | J7: Dflt
A8: Item Type | B8: GUID | C8: Item Ref | D8: Payment Refers | E8: Description | F8: Unit | G8: Quantity | H8: Rate | I8: Amount R | J8: Dflt
A9: Section | B9: 0254b0ee-15b8-4ce0-94df-dea72177844e | C9: B.2.1 | E9: MEDIUM PRESSURE PIPELINES, WATER RETICULATION AND SEWER RETICULATION | J9: Dflt
A10: Label | B10: fd628a2f-5a5a-43a6-a27e-6d3b12fcc1a3 | D10: SANS 1200L | E10: SECTION B.2.1 : MEDIUM PRESSURE PIPELINES, WATER RETICULATION AND SEWER RETICULATION | J10: Dflt
A11: Header2 | B11: 35fb4397-8bfd-4a13-8167-2d19ac1215cd | C11: B.2.1.1 | D11: SANS 1200L | E11: MEDIUM PRESSURE PIPELINES | J11: Dflt
A12: Header3 | B12: e6f52d58-360b-43c0-9882-90bf46cec28d | C12: B.2.1.1.1 | D12: SANS 1200DB PSC 8.2 | E12: SITE CLEARANCE | J12: Dflt
A13: Item | B13: 82b1955f-9f5d-4df1-8a5c-ea5af95cfe2f | C13: B.2.1.1.1.1 | D13: 8.3.1(a) | E13: Clear vegetation and trees of girth up to 1 m | F13: m | G13: 540 | H13: 0.00 | I13: =ROUND(G13 * H13,2) -> 0.00 | J13: Dflt
A14: Item | B14: 089064cf-68c1-4d08-a05c-21ceda6837f8 | C14: B.2.1.1.1.2 | D14: 8.3.1(c) PSC 8.2.10 | E14: Remove topsoil to depth of 150mm | F14: m² | G14: 730 | H14: 0.00 | I14: 0.00 | J14: Dflt
A15: Item | B15: 59294f9f-ac35-4b2c-90e6-dd04b0c85fde | C15: B.2.1.1.1.3 | D15: SANS 1200C 8.2.4 | E15: Reclear surfaces (provisional) (where ordered by Engineer) | F15: m² | G15: 100 | H15: 0.00 | I15: 0.00 | J15: Dflt
A16: Header3 | B16: 04254307-0a43-4ae9-b25a-c819b400983c | C16: B.2.1.1.2 | D16: SANS 1200DB | E16: REMOVAL OF EXISTING PIPE | J16: Dflt
A17: Label | B17: ab0d3284-01c7-43f5-a424-f63003861f60 | D17: 8.3.2(a) PSDB 8.1.4 PSDB 8.3.2 | E17: Excavate in all materials for trenches backfill, compact, and dispose of surplus material, for pipes: | J17: Dflt
A18: Label | B18: d2417f00-1b1f-4c34-9aa8-2ffe1ff94752 | E18: Over 900 mm up to 1100 mm diam. for total trench depth: Exceeding but not exceeding | J18: Dflt
A19: Rate Only | B19: e08f7da6-c04d-483f-9077-41ee780ebf45 | C19: B.2.1.1.2.1 | E19: 2,0 m 3,0 m | F19: m | G19: 0 | H19: 0.00 | I19: Rate Only | J19: Dflt
A20: Item | B20: a6be0ad8-7660-444d-a08c-add801722265 | C20: B.2.1.1.2.2 | E20: 3,0 m 4,0 m | F20: m | G20: 110 | H20: 0.00 | I20: =ROUND(G20 * H20,2) -> 0.00 | J20: Dflt
A21: Rate Only | B21: 5d89bd80-3416-4147-b04d-541aa773859e | C21: B.2.1.1.2.3 | E21: 4,0 m 5,0 m | F21: m | G21: 0 | H21: 0.00 | I21: Rate Only | J21: Dflt
A22: Header3 | B22: 53203344-de5e-445d-81f2-f6703b7c5b1e | C22: B.2.1.1.3 | D22: SANS 1200DB | E22: EXCAVATION AND BACKFILLING | J22: Dflt
A23: Item | B23: 68b1f28c-f1af-462e-ab64-5df3d1e7138e | C23: B.2.1.1.3.1 | E23: 1000mm NB HDPE | F23: m | G23: 110 | H23: 0.00 | I23: =ROUND(G23 * H23,2) -> 0.00 | J23: Dflt
A24: Label | B24: 28ad1cae-221d-4256-82a7-b47bb3a46da3 | D24: 8.3.2(a) PSDB 8.1.4 PSDB 8.3.2 | E24: Excavate in all materials for trenches backfill, compact, and dispose of surplus material, for pipes: | J24: Dflt
A25: Label | B25: cbb67c5c-ab0b-49cc-ab72-0e11a90ccfb2 | E25: Over 100 mm up to 200 mm diam. for total trench depth: Exceeding but not exceeding | J25: Dflt
A26: Item | B26: e9261ec6-8976-4f8b-a44b-603cdc284222 | C26: B.2.1.1.3.2 | E26: 0,0 m 1,0 m | F26: m | G26: 60 | H26: 0.00 | I26: =ROUND(G26 * H26,2) -> 0.00 | J26: Dflt
A27: Item | B27: f4e5bff1-232c-4bc3-ae99-9e1b9b7259ae | C27: B.2.1.1.3.3 | E27: 1,0 m 2,0 m | F27: m | G27: 150 | H27: 0.00 | I27: 0.00 | J27: Dflt
A28: Rate Only | B28: 95b763ed-9f14-461d-85ee-7b19b3a1e5ac | C28: B.2.1.1.3.4 | E28: 2,0 m 3,0 m | F28: m | G28: 0 | H28: 0.00 | I28: Rate Only | J28: Dflt
A29: Label | B29: c9b96047-2121-4cda-9807-e5d39b518d95 | E29: Over 400 mm up to 600 mm diam. for total trench depth: Exceeding but not exceeding | J29: Dflt
A30: Rate Only | B30: bb235e43-ef4d-4d02-90c6-58f74f3b4f31 | C30: B.2.1.1.3.5 | E30: 0,0 m 1,0 m | F30: m | G30: 0 | H30: 0.00 | I30: Rate Only | J30: Dflt
A31: Item | B31: 2120ac11-c7bc-4c54-b81b-1a747a2b9aaa | C31: B.2.1.1.3.6 | E31: 1,0 m 2,0 m | F31: m | G31: 50 | H31: 0.00 | I31: =ROUND(G31 * H31,2) -> 0.00 | J31: Dflt
A32: Item | B32: b6e750d8-ac2f-4466-8fbd-915b15d3c084 | C32: B.2.1.1.3.7 | E32: 2,0 m 3,0 m | F32: m | G32: 1 | H32: 0.00 | I32: 0.00 | J32: Dflt
A33: Item | B33: e3bb62e9-eddf-49f2-9de6-5125266117b9 | C33: B.2.1.1.3.8 | E33: 3,0 m 4,0 m | F33: m | G33: 5 | H33: 0.00 | I33: 0.00 | J33: Dflt
A34: Item | B34: f1999323-7911-4c56-a553-231f3587bb31 | C34: B.2.1.1.3.9 | E34: 4,0 m 5,0 m | F34: m | G34: 5 | H34: 0.00 | I34: 0.00 | J34: Dflt
A35: Item | B35: 34ae5e7d-13fd-40a7-98b5-960f32a23888 | C35: B.2.1.1.3.10 | E35: 5,0 m 6,0 m | F35: m | G35: 5 | H35: 0.00 | I35: 0.00 | J35: Dflt
A36: Item | B36: 0f76c723-2a10-4744-a6f3-441ec1bb1c3a | C36: B.2.1.1.3.11 | E36: 6,0 m 7,0 m | F36: m | G36: 4 | H36: 0.00 | I36: 0.00 | J36: Dflt
A37: Label | B37: 6d230cd2-2c1f-4d22-9afa-49a958916737 | E37: Over 600 mm up to 1000 mm diam. for total trench depth: Exceeding but not exceeding | J37: Dflt
A38: Item | B38: e723218a-a448-4f28-9e93-18a158a55ee7 | C38: B.2.1.1.3.12 | E38: 0,0 m 1,0 m | F38: m | G38: 1 | H38: 0.00 | I38: =ROUND(G38 * H38,2) -> 0.00 | J38: Dflt
A39: Item | B39: f745446e-e3a8-4414-b6c0-d1a8c376ee7e | C39: B.2.1.1.3.13 | E39: 1,0 m 2,0 m | F39: m | G39: 34 | H39: 0.00 | I39: 0.00 | J39: Dflt
A40: Item | B40: 3fb7734b-93f4-41b8-af95-92219497330a | C40: B.2.1.1.3.14 | E40: 2,0 m 3,0 m | F40: m | G40: 3 | H40: 0.00 | I40: 0.00 | J40: Dflt
A41: Item | B41: 695bb4d0-dbb5-49d5-89ca-7827dc013669 | C41: B.2.1.1.3.15 | E41: 3,0 m 4,0 m | F41: m | G41: 3 | H41: 0.00 | I41: 0.00 | J41: Dflt
A42: Item | B42: 5aa90e47-c22d-4e14-a36e-0533cbd6f03a | C42: B.2.1.1.3.16 | E42: 4,0 m 5,0 m | F42: m | G42: 3 | H42: 0.00 | I42: 0.00 | J42: Dflt
A43: Item | B43: 25d6d2d2-565e-4f7b-8269-4ec4a6b385c1 | C43: B.2.1.1.3.17 | E43: 5,0 m 6,0 m | F43: m | G43: 3 | H43: 0.00 | I43: 0.00 | J43: Dflt
A44: Item | B44: 7fcbb6ba-c347-4550-bc36-154ef0d9dea8 | C44: B.2.1.1.3.18 | E44: 6,0 m 7,0 m | F44: m | G44: 4 | H44: 0.00 | I44: 0.00 | J44: Dflt
A45: Label | B45: 0d5d9066-4299-40cd-a507-83e74821b2a3 | E45: Over 1000 mm up to 1200 mm diam. for total trench depth: Exceeding but not exceeding | J45: Dflt
A46: Item | B46: 4a23b2b8-2561-43b9-9dcf-0c14cf502cb5 | C46: B.2.1.1.3.19 | E46: 1,0 m 2,0 m | F46: m | G46: 20 | H46: 0.00 | I46: =ROUND(G46 * H46,2) -> 0.00 | J46: Dflt
A47: Item | B47: 3708fcd5-5aa9-42c7-ae63-a4b956faaefa | C47: B.2.1.1.3.20 | E47: 2,0 m 3,0 m | F47: m | G47: 25 | H47: 0.00 | I47: 0.00 | J47: Dflt
A48: Item | B48: 2fb6eb70-ba2f-402c-9d83-cfb59017a86a | C48: B.2.1.1.3.21 | E48: 3,0 m 4,0 m | F48: m | G48: 150 | H48: 0.00 | I48: 0.00 | J48: Dflt
A49: Item | B49: eafbdc98-c4a5-4c6b-af09-39d29b3d564f | C49: B.2.1.1.3.22 | E49: 4,0 m 5,0 m | F49: m | G49: 15 | H49: 0.00 | I49: 0.00 | J49: Dflt
A50: Rate Only | B50: d58f01e0-c184-48d4-a5ed-65ec275c51e0 | C50: B.2.1.1.3.23 | E50: 5,0 m 6,0 m | F50: m | G50: 0 | H50: 0.00 | I50: Rate Only | J50: Dflt
A51: Label | B51: 88fce282-07bd-4dce-938d-75b7fcf3e20c | D51: 8.3.2(b) PSD 8.3.2(b) | E51: Extra-over items B.2.1.1.3.2 to B.2.1.1.3.23 incl. for (provisional): | J51: Dflt
A52: Item | B52: c3fd4cbf-04cd-4fb6-b5f8-cc83b4b13d36 | C52: B.2.1.1.3.24 | D52: 8.3.2(b) PSD 8.3.2(b) | E52: Hard rock excavation | F52: m³ | G52: 93 | H52: 0.00 | I52: =ROUND(G52 * H52,2) -> 0.00 | J52: Dflt
A53: Item | B53: 5ffe9d48-b062-4642-aefd-d9b72625ced4 | C53: B.2.1.1.3.25 | D53: 8.3.2(c) | E53: Excavate and dispose of unsuitable material from trench bottom (Provisional) | F53: m³ | G53: 35 | H53: 0.00 | I53: 0.00 | J53: Dflt
A54: Header3 | B54: 3acb28b9-d2d7-4961-9cd9-a41e8fbda860 | C54: B.2.1.1.4 | D54: SANS 1200DB | E54: EXCAVATION ANCILLARIES | J54: Dflt
A55: Label | B55: 4c4292d7-d117-4cce-b038-5f5db9c58169 | D55: 8.3.3.1 | E55: Make up deficiency in backfill material (Provisional) | J55: Dflt
A56: Item | B56: e5b66dfd-53b0-48b8-b64b-1a1a3d24579d | C56: B.2.1.1.4.1 | D56: 8.3.3.1(a) | E56: from other necessary excavations on site | F56: m³ | G56: 60 | H56: 0.00 | I56: =ROUND(G56 * H56,2) -> 0.00 | J56: Dflt
A57: Item | B57: 485be4fb-0339-4870-91fe-676a38e085d1 | C57: B.2.1.1.4.2 | D57: 8.3.3.1(c) | E57: by importation from commercial sources selected by the Contractor | F57: m³ | G57: 60 | H57: 0.00 | I57: 0.00 | J57: Dflt
A58: Header3 | B58: f5eefcc1-1e3f-438e-b1a4-432c03f19d4a | C58: B.2.1.1.5 | D58: SANS 1200DB | E58: PARTICULAR ITEMS | J58: Dflt
A59: Label | B59: 1138641f-76e4-4877-a7a2-2818df92723b | D59: 8.3.4(a) PSD 8.3.15 | E59: Shore trench opposite structure or service or in unsuitable excavated materials for depths (Provisional) Exceeding but not exceeding | J59: Dflt
A60: Item | B60: 991fe3cd-f1b3-4cf0-9e4e-9434e644bdaf | C60: B.2.1.1.5.1 | E60: 1,0 m 2,0 m | F60: m | G60: 103 | H60: 0.00 | I60: =ROUND(G60 * H60,2) -> 0.00 | J60: Dflt
A61: Item | B61: 08a558f0-a86d-4c7a-84a3-9b983663701a | C61: B.2.1.1.5.2 | E61: 2,0 m 3,0 m | F61: m | G61: 29 | H61: 0.00 | I61: 0.00 | J61: Dflt
A62: Item | B62: 8bafad76-6ac5-499b-9544-d3e7ec9a78e9 | C62: B.2.1.1.5.3 | E62: 3,0 m 4,0 m | F62: m | G62: 158 | H62: 0.00 | I62: 0.00 | J62: Dflt
A63: Item | B63: 58d5e156-8ec8-4ab6-af66-f0f1ffe54e80 | C63: B.2.1.1.5.4 | E63: 4,0 m 5,0 m | F63: m | G63: 23 | H63: 0.00 | I63: 0.00 | J63: Dflt
A64: Item | B64: c13db995-0ee1-4d04-8194-bf5b0192b1e1 | C64: B.2.1.1.5.5 | E64: 5,0 m 6,0 m | F64: m | G64: 8 | H64: 0.00 | I64: 0.00 | J64: Dflt
A65: Item | B65: 92505fce-8423-4daa-8b00-d9476a9fcd1d | C65: B.2.1.1.5.6 | E65: 6,0 m 7,0 m | F65: m | G65: 8 | H65: 0.00 | I65: 0.00 | J65: Dflt
A66: Header3 | B66: 1f2829cf-4583-4ae1-9893-274d11354c9d | C66: B.2.1.1.6 | D66: SANS 1200L | E66: PIPEWORK | J66: Dflt
A67: Label | B67: 1c38152a-eaa9-4db6-ade8-2b04288ebfb4 | D67: 8.2.1 PSL 8.2.1 | E67: uPVC pipes Class 9: Supply, handle, lay, and bed, complete with approved spigot and socket joints to suit, test, and disinfect: | J67: Dflt
A68: Item | B68: 672c3851-0ac1-4c93-8ac5-c6b253995221 | C68: B.2.1.1.6.1 | E68: 110mm NB | F68: m | G68: 60 | H68: 0.00 | I68: =ROUND(G68 * H68,2) -> 0.00 | J68: Dflt
A69: Item | B69: d5e3cee2-26bb-418e-89fb-26b550a5ae3f | C69: B.2.1.1.6.2 | E69: 160mm NB | F69: m | G69: 150 | H69: 0.00 | I69: 0.00 | J69: Dflt
A70: Label | B70: 99a6ca45-6fd3-43f8-82c4-e3e35bd390c5 | D70: 8.2.1 PSL 8.2.1 | E70: oPVC pipes Class 9: Supply, handle, lay, and bed, complete with approved spigot and socket joints to suit, test, and disinfect: | J70: Dflt
A71: Rate Only | B71: d87e5eba-2e81-42ed-9122-57e244ecb82c | C71: B.2.1.1.6.3 | E71: 600 mm NB | F71: m | G71: 0 | H71: 0.00 | I71: Rate Only | J71: Dflt
A72: Label | B72: 8506bbba-a5d2-433a-b9da-fc72f9b420bd | D72: PSLD 3.1.2 PSLD 8.2.1 | E72: Reinforced concrete pipe Class 100D with cast in HDPE liner : Supply, handle, lay, and bed, complete with approved spigot and socket joints to suit, test, and disinfect (potable water pipelines) | J72: Dflt
A73: Item | B73: af3c1582-3527-4ec6-8fb1-3eb1d661b0f9 | C73: B.2.1.1.6.4 | E73: 1050 mm NB | F73: m | G73: 125 | H73: 0.00 | I73: =ROUND(G73 * H73,2) -> 0.00 | J73: Dflt
A74: Label | B74: 5be08aca-4e44-4674-8913-c901fa021ef4 | D74: 8.2.1 PSL 8.2.1 | E74: Steel pipes with lining & coating: Supply, handle, lay, and bed, complete with approved flexible coupling type joint to suit, test, and disinfect: | J74: Dflt
A75: Item | B75: 6a7c417a-6fad-4e87-95eb-6e5c920d4438 | C75: B.2.1.1.6.5 | E75: 400 mm NB x 4.5 mm wall thickness | F75: m | G75: 20 | H75: 0.00 | I75: =ROUND(G75 * H75,2) -> 0.00 | J75: Dflt
A76: Item | B76: ed4b156b-8764-47f8-bf66-95f82eeed50c | C76: B.2.1.1.6.6 | E76: 500 mm NB x 6 mm wall thickness | F76: m | G76: 50 | H76: 0.00 | I76: 0.00 | J76: Dflt
A77: Item | B77: 24393a5d-3b2f-43ec-9ce9-e2095fe5e9ad | C77: B.2.1.1.6.7 | E77: 600 mm NB x 4.5 mm wall thickness | F77: m | G77: 50 | H77: 0.00 | I77: 0.00 | J77: Dflt
A78: Label | B78: 1c01d225-8b4a-4c16-a689-99db09ae1db1 | D78: 8.2.1 PSL 8.2.1 | E78: Steel pipes with lining/coating: Handle, lay, and bed, complete with approved flexible coupling type joint to suit, test, and disinfect: | J78: Dflt
A79: Item | B79: 54031833-5369-42cd-9513-5791a8a60a56 | C79: B.2.1.1.6.8 | E79: 1200 mm NB x 6.0 mm wall thickness | F79: m | G79: 85 | H79: 0.00 | I79: =ROUND(G79 * H79,2) -> 0.00 | J79: Dflt
A80: Label | B80: ae2918f9-9868-43f1-a4ff-42616ed9b432 | D80: PSL 8.2.1 | E80: Inspection of pipes: | J80: Dflt
A81: Sum | B81: 2fc2889a-1347-4e2a-89f2-f9916856f944 | C81: B.2.1.1.6.9 | E81: Inspect pipes, documenting defects, acceptance of pipes etc. (Provisional) | F81: P Sum | G81: 1 | H81: 100,000.00 | I81: =ROUND(H81,2) -> 100,000.00 | J81: Dflt
A82: Label | B82: c8327820-8afc-42c1-b57d-c175e8a97e4c | D82: 8.2.15 PSL 8.2.15 | E82: Special wrapping in corrosive soil as per Project Specification PSL3.9.3.8 (Provisional): | J82: Dflt
A83: Item | B83: 37fd67d1-6123-4f94-95dc-0f7a020f842d | C83: B.2.1.1.6.10 | E83: 160 mm NB | F83: No | G83: 4 | H83: 0.00 | I83: =ROUND(G83 * H83,2) -> 0.00 | J83: Dflt
A84: Item | B84: 52f9f082-b6cc-4fc9-8c09-4f7cbfa7dabf | C84: B.2.1.1.6.11 | E84: 400 mm NB | F84: No | G84: 4 | H84: 0.00 | I84: 0.00 | J84: Dflt
A85: Item | B85: b16575c7-5451-41f9-bb9d-e3d244f0de78 | C85: B.2.1.1.6.12 | E85: 500 mm NB | F85: No | G85: 4 | H85: 0.00 | I85: 0.00 | J85: Dflt
A86: Item | B86: a25e0c1a-4c4f-4294-8aea-679d4b05ba17 | C86: B.2.1.1.6.13 | E86: 600 mm NB | F86: No | G86: 6 | H86: 0.00 | I86: 0.00 | J86: Dflt
A87: Rate Only | B87: b9aa786d-3917-44f7-b52e-4f355b53ab5c | C87: B.2.1.1.6.14 | E87: 1000 mm NB | F87: No | G87: 0 | H87: 0.00 | I87: Rate Only | J87: Dflt
A88: Item | B88: 5e4e3e0c-2d35-471d-b2cd-76a3d0030350 | C88: B.2.1.1.6.15 | E88: 1200 mm NB | F88: No | G88: 8 | H88: 0.00 | I88: =ROUND(G88 * H88,2) -> 0.00 | J88: Dflt
A89: Header3 | B89: f253a062-7030-4826-9bb5-ca01161bc7ff | C89: B.2.1.1.7 | D89: SANS 1200L | E89: SPECIALS AND FITTINGS | J89: Dflt
A90: Label | B90: 4fd43687-3536-44b1-8eb6-3f76b3623188 | D90: 8.2.2 | E90: Extra over items B.2.1.1.6.2 for the supplying, laying and bedding of specials complete with spigot and socket joint couplings to suit uPVC pipe | J90: Dflt
A91: Label | B91: 35567ff0-80b8-44a5-ad4a-74d81470777b | E91: Bends uPVC Class 9, of deflection: | J91: Dflt
A92: Item | B92: 13d4f3b0-88b7-44cd-b417-025debe61467 | C92: B.2.1.1.7.1 | E92: 160 mm, 90 deg. | F92: No | G92: 2 | H92: 0.00 | I92: =ROUND(G92 * H92,2) -> 0.00 | J92: Dflt
A93: Item | B93: 17e668c1-192e-47c9-a30c-d2f1b5a7960a | C93: B.2.1.1.7.2 | E93: 160 mm, 45 deg. | F93: No | G93: 2 | H93: 0.00 | I93: 0.00 | J93: Dflt
A94: Item | B94: e588c6f6-3cca-4da1-a6c4-78bddc779120 | C94: B.2.1.1.7.3 | E94: 160 mm, 22.5 deg. | F94: No | G94: 2 | H94: 0.00 | I94: 0.00 | J94: Dflt
A95: Label | B95: 9af03f41-58c5-4a75-a4d2-75adee47d5f2 | E95: Tees uPVC Class 9: | J95: Dflt
A96: Rate Only | B96: c0f55163-50e2-414e-ada3-0462255742d1 | C96: B.2.1.1.7.4 | E96: 160 mm x 160 mm | F96: No | G96: 0 | H96: 0.00 | I96: Rate Only | J96: Dflt
A97: Label | B97: a26e122d-78e6-4a90-8161-8ac6d3f98e3c | E97: Flange Adaptors, Steel to uPVC: | J97: Dflt
A98: Item | B98: 22ced47e-0ce6-400b-be05-3a3f4d61752a | C98: B.2.1.1.7.5 | E98: 150 mm NB | F98: No | G98: 1 | H98: 0.00 | I98: =ROUND(G98 * H98,2) -> 0.00 | J98: Dflt
A99: Label | B99: dd64ae94-f33f-4172-a6b4-78b90e0201e0 | D99: 8.2.2 | E99: Extra over item B.2.1.1.6.4 for the relaying and rebedding of a HDPE pipe specials, complete with approved flexible couplings to suit HDPE pipe as approved by the Engineer. | J99: Dflt
A100: Label | B100: 524fe2ca-d383-4f97-89b7-b3d3b5e34f93 | E100: HDPE bends, of deflection: | J100: Dflt
A101: Rate Only | B101: d778ffae-7f2e-459a-9f9a-d009424e6101 | C101: B.2.1.1.7.6 | E101: 1000 mm, 90 degrees | F101: No | G101: 0 | H101: 0.00 | I101: Rate Only | J101: Dflt
A102: Rate Only | B102: 0d360259-f88e-4bc3-9941-fb66908090e0 | C102: B.2.1.1.7.7 | E102: 1000 mm, 45 degrees | F102: No | G102: 0 | H102: 0.00 | I102: Rate Only | J102: Dflt
A103: Rate Only | B103: b0dfe80e-c19b-4d41-bf4b-3a2202c6f945 | C103: B.2.1.1.7.8 | E103: 1000 mm, 22.5 degrees | F103: No | G103: 0 | H103: 0.00 | I103: Rate Only | J103: Dflt
A104: Label | B104: 13bd2cf7-83b5-442d-8dae-87bc3721609d | E104: Flange Adaptors, Steel to HDPE: | J104: Dflt
A105: Rate Only | B105: 900dd42c-7f26-4a25-95b3-000583b6c32c | C105: B.2.1.1.7.9 | E105: 1000 mm NB | F105: No | G105: 0 | H105: 0.00 | I105: Rate Only | J105: Dflt
A106: Label | B106: 2ca99060-a6c0-44ed-b875-15732027c0aa | D106: 8.2.2 | E106: Extra over item B.2.1.1.6.4 for the supplying, laying and bedding of steel pipe specials with lining & coating cast into concrete where necessary, complete with approved flexible couplings to suit pipes as per Dwg. Nos. J40073/010-201, J40073/010-203 and J40073/010-208: | J106: Dflt
A107: Rate Only | B107: 042f9616-66a2-401b-bb93-b7cd5aec9ed9 | C107: B.2.1.1.7.10 | E107: 1000 mm NB (J40073/010-201) | F107: No | G107: 0 | H107: 0.00 | I107: Rate Only | J107: Dflt
A108: Rate Only | B108: 9e9a85af-0c1b-4ee7-82ad-0c47fbcb5041 | C108: B.2.1.1.7.11 | E108: 1000 mm NB (J40073/010-203) | F108: No | G108: 0 | H108: 0.00 | I108: Rate Only | J108: Dflt
A109: Label | B109: 5ee3db84-e296-4cde-a8c7-2e7f6eb1595c | D109: 8.2.5 | E109: Supply and fit, incl. bed, test and disinfect (if for potable water) pipes and specials as per Dwg. No. J40073/010-208 (Short pipe runs only): | J109: Dflt
A110: Item | B110: d2870f56-858b-4a6f-aa25-922c548d76c1 | C110: B.2.1.1.7.12 | E110: Item No. P12-B/1 - 500 mm NB mild steel pipe 90 deg. elbow, 6 mm wall thickness | F110: No | G110: 2 | H110: 0.00 | I110: =ROUND(G110 * H110,2) -> 0.00 | J110: Dflt
A111: Item | B111: cd7650dd-6252-428d-b7b0-b7f5c411606d | C111: B.2.1.1.7.13 | E111: Item No. P12-B/2 - 500 mm NB mild steel straight pipe, 6 mm wall thickness | F111: No | G111: 1 | H111: 0.00 | I111: 0.00 | J111: Dflt
A112: Item | B112: ee612b2d-d33e-40dd-9918-f85b242dd689 | C112: B.2.1.1.7.14 | E112: Item No. P12-B/3 - 500 mm NB mild steel pipe 90 deg. medium radius bend, 6 mm wall thickness, flanged on end | F112: No | G112: 1 | H112: 0.00 | I112: 0.00 | J112: Dflt
A113: Item | B113: f83a4e19-a753-4085-a9bd-4c5748e2cad0 | C113: B.2.1.1.7.15 | E113: Item No. P12-B/4 - 500 mm NB steel VJ dismantling coupling flanged both end | F113: No | G113: 1 | H113: 0.00 | I113: 0.00 | J113: Dflt
A114: Label | B114: e6f7059b-3b6c-4c2d-81ef-45986115c619 | D114: 8.2.5 | E114: Supply and fit, incl. bed, test and disinfect (if for potable water) pipes and specials as per Dwg. No. J40073/010-224 (Short pipe runs only): | J114: Dflt
A115: Item | B115: e60a50ff-6730-4c6a-969e-14d3887a9b14 | C115: B.2.1.1.7.16 | E115: Item No. P7-B/1 - 600 mm NB mild steel pipe 90 deg. elbow, 4.5 mm wall thickness | F115: No | G115: 2 | H115: 0.00 | I115: =ROUND(G115 * H115,2) -> 0.00 | J115: Dflt
A116: Item | B116: 0e6a3b67-c857-4259-abcf-7c447ed19d81 | C116: B.2.1.1.7.17 | E116: Item No. P7-B/2 - 600 mm NB mild steel straight pipe, 4.5 mm wall thickness | F116: No | G116: 1 | H116: 0.00 | I116: 0.00 | J116: Dflt
A117: Item | B117: e7bfce66-27bc-462c-baa7-7dc0ca56ddfd | C117: B.2.1.1.7.18 | E117: Item No. P7-B/3 - 600 mm NB mild steel pipe 90 deg. medium radius bend, 4.5 mm wall thickness | F117: No | G117: 1 | H117: 0.00 | I117: 0.00 | J117: Dflt
A118: Item | B118: 4f670b0b-180b-410f-aca8-0c2b1b624552 | C118: B.2.1.1.7.19 | E118: Item No. P7-B/4 - 600 mm NB mild steel straight pipe flanged one end, 4.5 mm wall thickness, flanges to be drilled to accommodate oPVC Class 9 stub flange | F118: No | G118: 1 | H118: 0.00 | I118: 0.00 | J118: Dflt
A119: Item | B119: cc75ee3f-f032-44b5-a712-a4072da599f3 | C119: B.2.1.1.7.20 | E119: Item No. P7-B/5 - 600 mm NB mild steel backing ring drilled to accommodate oPVC Class 9 stub flange | F119: No | G119: 1 | H119: 0.00 | I119: 0.00 | J119: Dflt
A120: Item | B120: 86c0ba29-32d6-4532-a1a9-0fd652f72ea0 | C120: B.2.1.1.7.21 | E120: Item No. P7-B/6 - 600 mm NB oPVC Class 9 straight pipe, stub flange on one end | F120: No | G120: 1 | H120: 0.00 | I120: 0.00 | J120: Dflt
A121: Label | B121: 81badd09-3f54-4ea2-b6f5-3db4f2607d6e | D121: 8.2.5 | E121: Supply and fit, incl. bed, test and disinfect (if for potable water) pipes and specials as per Dwg. No. J40073/010-224 (Short pipe runs only): | J121: Dflt
A122: Item | B122: 380e396c-996d-4245-83a0-5051a9cc055e | C122: B.2.1.1.7.22 | E122: Item P8-B/1 - 1200 mm Steel VJ dismantling coupling flanged both ends | F122: No | G122: 2 | H122: 0.00 | I122: =ROUND(G122 * H122,2) -> 0.00 | J122: Dflt
A123: Label | B123: 944d1931-a86b-48c9-afc9-81c4221f6159 | D123: 8.2.5 | E123: Fit, incl. bed, test and disinfect (if for potable water) pipes and specials as per Dwg. No. J40073/010-224 (Short pipe runs only): | J123: Dflt
A124: Item | B124: 6dac2eb8-4bd6-4758-a1cb-d2b65a135a58 | C124: B.2.1.1.7.23 | E124: Item P8-B/3,6&8 - 1200 mm, 45 degrees | F124: No | G124: 3 | H124: 0.00 | I124: =ROUND(G124 * H124,2) -> 0.00 | J124: Dflt
A125: Label | B125: 2ba7c517-0095-47f3-9ed7-9c214d5c3c8b | D125: 8.2.2 | E125: Extra over items B.2.1.1.6.5 to B.2.1.1.6.7 for the supplying, laying and bedding of steel pipe specials, complete with approved flexible couplings to suit steel pipe | J125: Dflt
A126: Label | B126: 8d37e14c-f9a9-4f3a-b598-657499d8b6a8 | E126: Steel bends, of deflection: | J126: Dflt
A127: Item | B127: 1edebef8-42ca-43a9-ae0d-29027800f594 | C127: B.2.1.1.7.24 | E127: 400 mm, 90 degrees | F127: No | G127: 1 | H127: 0.00 | I127: =ROUND(G127 * H127,2) -> 0.00 | J127: Dflt
A128: Item | B128: efd848e0-d6c8-4989-ac8e-4c39e64c93bf | C128: B.2.1.1.7.25 | E128: 400 mm, 45 degrees | F128: No | G128: 2 | H128: 0.00 | I128: 0.00 | J128: Dflt
A129: Item | B129: 5e97ac54-06ce-4a4a-8dcb-6c603f5b784b | C129: B.2.1.1.7.26 | E129: 400 mm, 22.5 degrees | F129: No | G129: 1 | H129: 0.00 | I129: 0.00 | J129: Dflt
A130: Rate Only | B130: c11be63d-e5cd-4528-8d29-3accdf0505f0 | C130: B.2.1.1.7.27 | E130: 600 mm, 90 degrees | F130: No | G130: 0 | H130: 0.00 | I130: Rate Only | J130: Dflt
A131: Item | B131: 566e53d1-32ee-4580-a777-e9eac766b409 | C131: B.2.1.1.7.28 | E131: 600 mm, 45 degrees | F131: No | G131: 2 | H131: 0.00 | I131: =ROUND(G131 * H131,2) -> 0.00 | J131: Dflt
A132: Item | B132: 812c2ded-bc76-4496-8eee-819d46cf76ed | C132: B.2.1.1.7.29 | E132: 600 mm, 22.5 degrees | F132: No | G132: 2 | H132: 0.00 | I132: 0.00 | J132: Dflt
A133: Label | B133: 2bbefde7-fadc-40ae-9064-0d40b1691f5e | E133: Flange Adaptors, Steel to oPVC: | J133: Dflt
A134: Rate Only | B134: a8cadf2a-860c-4ad9-afc6-2d05a26ed15d | C134: B.2.1.1.7.30 | E134: 600 mm NB | F134: No | G134: 0 | H134: 0.00 | I134: Rate Only | J134: Dflt
A135: Label | B135: 3a846ee3-7876-4dd9-9d85-66228249fa19 | E135: Dismantling Joints, Steel to Steel: | J135: Dflt
A136: Item | B136: 27bd409b-fa86-44de-9814-ebbbcf2450ba | C136: B.2.1.1.7.31 | E136: 600 mm NB | F136: No | G136: 4 | H136: 0.00 | I136: =ROUND(G136 * H136,2) -> 0.00 | J136: Dflt
A137: Label | B137: e316b154-1038-4a8e-9900-33e63b4e55bc | E137: Dismantling Joints, Steel to Steel: | J137: Dflt
A138: Item | B138: 5b3715a8-4663-4f8d-a99e-54f9e402e4c3 | C138: B.2.1.1.7.32 | E138: 1200 mm NB | F138: No | G138: 2 | H138: 0.00 | I138: =ROUND(G138 * H138,2) -> 0.00 | J138: Dflt
A139: Header3 | B139: 0946f23d-0e49-4d2b-85ae-47be24794126 | C139: B.2.1.1.8 | D139: SANS 1200LB | E139: PROVISION OF BEDDING | J139: Dflt
A140: Label | B140: 488149bc-778b-444b-82ec-d0f0a2972e46 | D140: 8.2.2 PSLB 8.2.2 | E140: Provision of bedding from commercial sources (Provisional): | J140: Dflt
A141: Item | B141: e5171363-992d-4aaf-9376-b4b841d8f9f7 | C141: B.2.1.1.8.1 | D141: 8.2.2.3(a) | E141: Selected granular material (cradle) | F141: m³ | G141: 265 | H141: 0.00 | I141: =ROUND(G141 * H141,2) -> 0.00 | J141: Dflt
A142: Item | B142: 4a13e27a-c3b3-434d-bac1-72e0d2cd164f | C142: B.2.1.1.8.2 | D142: 8.2.2.3(b) | E142: Selected fill material (blanket) | F142: m³ | G142: 375 | H142: 0.00 | I142: 0.00 | J142: Dflt
A143: Item | B143: 5d3c3571-319b-44f4-a09d-89ff79776ceb | C143: B.2.1.1.8.3 | D143: PSLB 8.2.6 | E143: 19mm stone bedding where instructed (Provisional) | F143: m³ | G143: 55 | H143: 0.00 | I143: 0.00 | J143: Dflt
A144: Item | B144: e75b3a01-57ca-4542-aea8-e7bbfbe5336d | C144: B.2.1.1.8.4 | D144: PSLB 8.2.6 | E144: Geotextile fabric (Bidim A4) where instructed (Provisional) | F144: m² | G144: 185 | H144: 0.00 | I144: 0.00 | J144: Dflt
A145: Label | B145: 19c297a9-7bb1-4986-9bed-04cd077f36d4 | E145: Concrete bedding (Provisional): | J145: Dflt
A146: Item | B146: 4e2e4b07-122b-433f-8fa2-c9823b0ffcf1 | C146: B.2.1.1.8.5 | D146: 8.2.3 | E146: Strength Concrete: 15 MPa/19 mm | F146: m³ | G146: 5 | H146: 0.00 | I146: =ROUND(G146 * H146,2) -> 0.00 | J146: Dflt
A147: Header3 | B147: 2ea26ae6-5eb9-4802-bcec-3ea485d22165 | C147: B.2.1.1.9 | E147: ANCILLARIES | J147: Dflt
A148: Label | B148: 088a23fc-ef83-4055-ac01-a1cec49c1288 | D148: SANS 1200L 8.2.11 | E148: Anchor/Thrust blocks and pedestals: | J148: Dflt
A149: Item | B149: d8d59e83-d909-427e-98d2-a7285a987567 | C149: B.2.1.1.9.1 | E149: Strength Concrete: 15 Mpa/19 mm | F149: m³ | G149: 20 | H149: 0.00 | I149: =ROUND(G149 * H149,2) -> 0.00 | J149: Dflt
A150: Item | B150: 3058fd6f-ad52-48e7-866a-75f43ddb0264 | C150: B.2.1.1.9.2 | E150: Formwork: rough, vertical plane | F150: m² | G150: 80 | H150: 0.00 | I150: 0.00 | J150: Dflt
A151: Item | B151: 77ae9c1f-11f6-4c39-8a72-c3068170a3de | C151: B.2.1.1.9.3 | D151: SANS 1200LD 8.2.9 PSL 8.2.19 | E151: Pipeline marker posts | F151: No | G151: 15 | H151: 0.00 | I151: 0.00 | J151: Dflt
A152: Label | B152: 5ca07349-9e0d-4df1-bc9c-6390a1edcbe3 | D152: SANS 1200LB | E152: Encasing of pipes: | J152: Dflt
A153: Item | B153: c8a5ced1-785a-4c04-949e-e7eba621c9d6 | C153: B.2.1.1.9.4 | D153: 8.2.4 PSLB 8.2.4 | E153: Strength Concrete: 15 MPa/19 mm | F153: m³ | G153: 5 | H153: 0.00 | I153: =ROUND(G153 * H153,2) -> 0.00 | J153: Dflt
A154: Header3 | B154: 176b9e40-a9b2-4412-8d92-aca71ea5ca85 | C154: B.2.1.1.10 | D154: SANS 1200D | E154: EXISTING SERVICES | J154: Dflt
A155: Label | B155: fc7ced5d-6312-4b55-ae4e-cd9afbe31352 | E155: Services across and in trenches: | J155: Dflt
A156: Item | B156: d698ed03-9ce6-4945-bd0e-b8d531ab3123 | C156: B.2.1.1.10.1 | D156: 8.3.8.1(c) | E156: Excavate by hand in soft material to expose existing services | F156: m³ | G156: 5 | H156: 0.00 | I156: =ROUND(G156 * H156,2) -> 0.00 | J156: Dflt
A157: Label | B157: 29685b10-a652-42d7-8151-cb168be038fd | E157: Dealing with services: | J157: Dflt
A158: Sum | B158: 6f6f7697-b0df-41b2-b46d-ed5eedc9f8c8 | C158: B.2.1.1.10.2 | D158: 8.3.8.2(b) | E158: Permanent protection of Existing service (Provisional) | F158: P Sum | G158: 1 | H158: 10,000.00 | I158: =ROUND(H158,2) -> 10,000.00 | J158: Dflt
A159: Sum | B159: f96d3816-0469-4d5e-8d78-e691aeb9b4db | C159: B.2.1.1.10.3 | D159: 8.3.8.2(c) | E159: Temporary protection of Existing service (Provisional) | F159: P Sum | G159: 1 | H159: 10,000.00 | I159: 10,000.00 | J159: Dflt
A160: Label | B160: 21d6b17d-d817-4c8c-ba8d-fbff0fb2655e | D160: SANS 1200DB 8.3.5(a) PSDB 8.3.5 | E160: Services that intersect a trench: | J160: Dflt
A161: Item | B161: a08e1ca9-ac02-41da-91ec-950f2a1778c5 | C161: B.2.1.1.10.4 | E161: Cables | F161: No. | G161: 10 | H161: 0.00 | I161: =ROUND(G161 * H161,2) -> 0.00 | J161: Dflt
A162: Item | B162: 4c02f43d-fa79-4e31-89a1-38cf6e5aaa65 | C162: B.2.1.1.10.5 | E162: Sewer Rising mains up to 400 mm diam. | F162: No. | G162: 5 | H162: 0.00 | I162: 0.00 | J162: Dflt
A163: Label | B163: fee21b6b-c743-4030-ac84-7ef81c65a229 | D163: SANS 1200DB 8.3.5(b) PSDB 8.3.5 | E163: Services that adjoin a trench: | J163: Dflt
A164: Item | B164: 6a68261a-ba9b-4097-95ad-470cdab47132 | C164: B.2.1.1.10.6 | E164: Cables | F164: m | G164: 45 | H164: 0.00 | I164: =ROUND(G164 * H164,2) -> 0.00 | J164: Dflt
A165: Item | B165: 770cb41a-5bdb-4397-b65e-24808087ff66 | C165: B.2.1.1.10.7 | E165: Sewer Rising mains up to 400 mm diam. | F165: m | G165: 100 | H165: 0.00 | I165: 0.00 | J165: Dflt
A166: Header3 | B166: 6fa3ceb5-c69b-4c1f-871b-5f6c185fefc1 | C166: B.2.1.1.11 | D166: 1200 LD 8.2.3 | E166: MANHOLES, ETC. | J166: Dflt
A167: Label | B167: 988788a9-14ce-423e-a739-ae00ee24e3fe | D167: 8.2.3 PSLD 8.2.3 PSG 3.5.4 | E167: Cast in-situ concrete manholes, with heavy duty concrete lockable lid and frame, as per Dwg. No. J40073/010-600, for depths over and up to | J167: Dflt
A168: Rate Only | B168: fd16ad48-1e70-401f-815a-73070a725251 | C168: B.2.1.1.11.1 | E168: - 1.0 m | F168: No. | G168: 0 | H168: 0.00 | I168: Rate Only | J168: Dflt
A169: Rate Only | B169: 39bedd36-081c-4e9a-a860-c611d71ae389 | C169: B.2.1.1.11.2 | E169: 1,0 m 2,0 m | F169: No. | G169: 0 | H169: 0.00 | I169: Rate Only | J169: Dflt
A170: Rate Only | B170: 5e35e5c2-de3b-4be5-a7ca-78374f2c442e | C170: B.2.1.1.11.3 | E170: 2,0 m 3,0 m | F170: No. | G170: 0 | H170: 0.00 | I170: Rate Only | J170: Dflt
A171: Item | B171: 1f9bdbcf-4397-4fef-b4b7-0ed0799f0652 | C171: B.2.1.1.11.4 | E171: 3,0 m 4,0 m | F171: No. | G171: 2 | H171: 0.00 | I171: =ROUND(G171 * H171,2) -> 0.00 | J171: Dflt
A172: Rate Only | B172: a5a8bd78-2ccd-403b-ba7d-248f58553c36 | C172: B.2.1.1.11.5 | E172: 4,0 m 5,0 m | F172: No. | G172: 0 | H172: 0.00 | I172: Rate Only | J172: Dflt
A173: Header3 | B173: 8d258f6f-faa9-4669-a265-61bbd0cb120e | C173: B.2.1.1.12 | D173: SANS 1200LD | E173: SUNDRIES | J173: Dflt
A174: Sum | B174: 9a445ea6-4a8e-4542-867c-fa1b8ac5b97b | C174: B.2.1.1.12.1 | D174: 8.2.11 PSLD 8.2.11 | E174: Connect to existing splitter box (from BNR) including excavation, backfilling and all necessary specials and fittings etc. inclusive all work to complete connection. | F174: Sum | G174: 1 | H174: 0.00 | I174: =ROUND(H174,2) -> 0.00 | J174: Dflt
A175: Item | B175: 223c193d-7bfb-4218-b4d6-e79281438f3e | C175: B.2.1.1.12.2 | D175: PSL 8.2.17 PSL 8.2.20 | E175: Connect to existing live (from RAS pump station), 400mm to 500mm dia uPVC pipeline, inclusive all work to complete connection. | F175: Sum | G175: 1 | H175: 0.00 | I175: =ROUND(G175 * H175,2) -> 0.00 | J175: Dflt
A176: Sum | B176: 056cee46-1f02-4073-8da5-27c2c0515207 | C176: B.2.1.1.12.3 | D176: 8.2.11 PSLD 8.2.11 | E176: Connect to existing splitter box (from SST) including excavation, backfilling and all necessary specials and fittings etc. inclusive all work to complete connection. | F176: Sum | G176: 1 | H176: 0.00 | I176: =ROUND(H176,2) -> 0.00 | J176: Dflt
A177: Item | B177: 98309788-a13b-45fc-9a59-9c5999cf4d15 | C177: B.2.1.1.12.4 | D177: PSL 8.2.17 PSL 8.2.20 | E177: Connect to existing RAS pump station live (from SST), inclusive all work to complete connection. | F177: Sum | G177: 1 | H177: 0.00 | I177: =ROUND(G177 * H177,2) -> 0.00 | J177: Dflt
A178: Section | B178: 33a29211-81b1-449d-bb96-b31f3508e579 | C178: B.2.2 | E178: MEDIUM PRESSURE PIPELINES (IRRIGATION PUMP STATION RISING MAIN. | J178: Dflt
A179: Label | B179: 0948484f-9368-4b1c-8fd8-8458111be68c | D179: SANS 1200L | E179: SECTION B.2.2 : MEDIUM PRESSURE PIPELINES (IRRIGATION PUMP STATION RISING MAIN. | J179: Dflt
A180: Header3 | B180: 692f5d97-8f5a-4b62-9942-0814dba2a4c6 | C180: B.2.2.1 | D180: SANS 1200DB PSC 8.2 | E180: SITE CLEARANCE | J180: Dflt
A181: Item | B181: 754bf4fc-e39c-46cb-a342-91797b7df7d8 | C181: B.2.2.1.1 | D181: 8.3.1(a) | E181: Clear vegetation and trees of girth up to 1 m | F181: m | G181: 295 | H181: 0.00 | I181: =ROUND(G181 * H181,2) -> 0.00 | J181: Dflt
A182: Item | B182: cfd3bde9-0af3-42d2-8259-8cead912121f | C182: B.2.2.1.2 | D182: 8.3.1(c) | E182: Remove topsoil to depth of 150mm | F182: m² | G182: 210 | H182: 0.00 | I182: 0.00 | J182: Dflt
A183: Item | B183: 8a13fdd6-314c-43fd-869b-26eb58c1ee56 | C183: B.2.2.1.3 | D183: SANS 1200C 8.2.4 | E183: Reclear surfaces (provisional) (where ordered by Engineer) | F183: m² | G183: 100 | H183: 0.00 | I183: 0.00 | J183: Dflt
A184: Header3 | B184: 86a50562-5d61-47e2-868a-afd262c82b15 | C184: B.2.2.2 | D184: SANS 1200DB | E184: EXCAVATION AND BACKFILLING | J184: Dflt
A185: Label | B185: 1121163b-9e18-43ce-a8b6-416e5c3a4404 | D185: 8.3.2(a) PSDB 8.1.4 PSDB 8.3.2 | E185: Excavate in all materials for trenches, backfill, compact, and dispose of surplus material, for pipes: | J185: Dflt
A186: Label | B186: d16584d2-791e-4292-80f6-5f0d54b4d51b | E186: Over 100 mm up to 200 mm diam. for total trench depth: Exceeding but not exceeding | J186: Dflt
A187: Item | B187: fe03f313-8f68-43ab-afbe-31c421c33ae6 | C187: B.2.2.2.1 | E187: 0,0 m 1,0 m | F187: m | G187: 30 | H187: 0.00 | I187: =ROUND(G187 * H187,2) -> 0.00 | J187: Dflt
A188: Item | B188: 9ae37a0e-7adb-4421-9055-17d7a604311f | C188: B.2.2.2.2 | E188: 1,0 m 2,0 m | F188: m | G188: 265 | H188: 0.00 | I188: 0.00 | J188: Dflt
A189: Label | B189: d92b5df4-2312-4bfb-ae02-e878bb82cc77 | D189: 8.3.2(b) PSD 8.3.2(b) | E189: Extra-over items B.2.2.2.1 to B.2.2.2.2 incl. for (Provisional): | J189: Dflt
A190: Item | B190: ea8eabc3-9526-4171-9e67-740db70f5948 | C190: B.2.2.2.3 | D190: 8.3.2(b) PSD 8.3.2(b) | E190: Hard rock excavation | F190: m³ | G190: 15 | H190: 0.00 | I190: =ROUND(G190 * H190,2) -> 0.00 | J190: Dflt
A191: Item | B191: 49e14f3f-1410-4f89-b089-685eca70c7c3 | C191: B.2.2.2.4 | D191: 8.3.2(c) | E191: Excavate and dispose of unsuitable material from trench bottom (Provisional) | F191: m³ | G191: 10 | H191: 0.00 | I191: 0.00 | J191: Dflt
A192: Header3 | B192: 0637360f-47a3-42a3-bced-4a9741c43e24 | C192: B.2.2.3 | D192: SANS 1200DB | E192: EXCAVATION ANCILLARIES | J192: Dflt
A193: Label | B193: f7e3e266-a37a-4929-a706-938c02a5909d | D193: 8.3.3.1 | E193: Make up deficiency in backfill material (Provisional): | J193: Dflt
A194: Item | B194: 73aeb516-e9ec-42c2-aa7c-45f70173543b | C194: B.2.2.3.1 | D194: 8.3.3.1(a) | E194: from other necessary excavations on site | F194: m³ | G194: 16 | H194: 0.00 | I194: =ROUND(G194 * H194,2) -> 0.00 | J194: Dflt
A195: Item | B195: 4c27433d-41e3-41ff-9773-8a30ab86bf77 | C195: B.2.2.3.2 | D195: 8.3.3.1(c) | E195: by importation from commercial sources selected by the Contractor | F195: m³ | G195: 12 | H195: 0.00 | I195: 0.00 | J195: Dflt
A196: Header3 | B196: aea5abde-7a96-453a-8a19-7a4954ef1225 | C196: B.2.2.4 | D196: SANS 1200L | E196: PIPEWORK | J196: Dflt
A197: Label | B197: 901d4d15-764d-4c02-94e7-4a2325c24c49 | D197: 8.2.1 PSL 8.2.1 | E197: uPVC pipes Class 9: Supply, handle, lay, and bed, complete with approved spigot and socket joints to suit, test, and disinfect: | J197: Dflt
A198: Item | B198: 1e01747d-52c0-4da1-a295-522453d46713 | C198: B.2.2.4.1 | E198: 110mm NB | F198: m | G198: 295 | H198: 0.00 | I198: =ROUND(G198 * H198,2) -> 0.00 | J198: Dflt
A199: Label | B199: 8772f7e0-6662-4291-beab-1042898efd4a | D199: 8.2.15 PSL 8.2.15 | E199: Special wrapping in corrosive soil as per Project Specification PSL3.9.3.8 (Provisional): | J199: Dflt
A200: Item | B200: aca9678b-ad5b-4971-b90e-f2c54fe6bb38 | C200: B.2.2.4.2 | E200: 110 mm NB | F200: No | G200: 2 | H200: 0.00 | I200: =ROUND(G200 * H200,2) -> 0.00 | J200: Dflt
A201: Header3 | B201: 8c610b78-3179-4135-8b52-7d5c065f3133 | C201: B.2.2.5 | D201: SANS 1200L | E201: SPECIALS AND FITTINGS | J201: Dflt
... 248 more rows

Sheet BILL B.3.
D2: Bid No: | E2: RW10404061/23 | J2: Work Group
D3: Description | E3: TENDER FOR THE UPGRADE OF MEYERTON WASTEWATER TREATMENT WORKS BY 15 ML/DAY AT MEYERTON | J3: Dflt
J4: Dflt
J5: Dflt
J6: Dflt
A7: BillHeader | C7: BILL B.3. | E7: HEAD OF WORKS | J7: Dflt
A8: Item Type | B8: GUID | C8: Item Ref | D8: Payment Refers | E8: Description | F8: Unit | G8: Quantity | H8: Rate | I8: Amount R | J8: Dflt
A9: Section | B9: e0d41a26-dc3f-4381-952e-ac715f0f603e | C9: B.3.1 | E9: HEAD OF WORKS | J9: Dflt
A10: Label | B10: f8fcb650-6783-40cc-b07b-14d5c549436e | E10: SECTION B.3.1 : HEAD OF WORKS | J10: Dflt
A11: Header2 | B11: 34842afa-17a9-43dd-8b6d-e39446d04919 | C11: B.3.1.1 | D11: SANS 1200C PSC 8.2 | E11: SITE CLEARANCE | J11: Dflt
A12: Item | B12: 6edc5e14-191b-4f3b-9e48-6147a1eb1ab3 | C12: B.3.1.1.1 | D12: 8.2.4 | E12: Reclear surfaces (provisional) (where ordered byEngineer) | F12: m² | G12: 1200 | H12: 0.00 | I12: =ROUND(G12 * H12,2) -> 0.00 | J12: Dflt
A13: Item | B13: 28a9d824-81fb-44ce-92e2-86133bc5b7fd | C13: B.3.1.1.2 | D13: 8.2.9 | E13: Cart materials and debris to unspecified sites and dump (provisional) | F13: t.km | G13: 320 | H13: 0.00 | I13: 0.00 | J13: Dflt
A14: Header2 | B14: 83bc95d1-62bb-4009-b544-6d69d4daba3b | C14: B.3.1.2 | D14: SANS 1200D 8.3.2 | E14: EARTHWORKS | J14: Dflt
A15: Item | B15: 7a89dbd3-a03f-41df-a768-dd179b666505 | C15: B.3.1.2.1 | D15: 8.3.1.2 PSC 8.2.10 | E15: Remove topsoil to nominal depth 150mm, stockpile, and maintain | F15: m² | G15: 1.5 | H15: 0.00 | I15: =ROUND(G15 * H15,2) -> 0.00 | J15: Dflt
A16: Label | B16: d0ce64b3-7ecc-442b-9120-53059dbef693 | D16: 8.3.2(a) PSD 8.3.6 | E16: Excavate for structures in all materials and dispose of surplus/unsuitable material as ordered within the free haul distance for : | J16: Dflt
A17: Item | B17: 88527ea8-a50f-4df7-94c1-cd1c7fca19e5 | C17: B.3.1.2.2 | E17: Head of Works | F17: m³ | G17: 10 | H17: 0.00 | I17: =ROUND(G17 * H17,2) -> 0.00 | J17: Dflt
A18: Label | B18: 74c362cc-6c53-4e85-8955-af7d16911538 | D18: 8.3.9 | E18: Extra-over for backfill to 95% MOD AASHTO behind structures for : | J18: Dflt
A19: Item | B19: e12be120-c0c0-4363-91cf-64a17e4f7af7 | C19: B.3.1.2.3 | E19: Head of Works | F19: m³ | G19: 1360 | H19: 0.00 | I19: =ROUND(G19 * H19,2) -> 0.00 | J19: Dflt
A20: Label | B20: 70720877-9640-485c-8abd-d784418cf5db | E20: Chloradane Heptacor' or 'Aldrin' or similar approved soil insecticide | J20: Dflt
A21: Item | B21: 49127732-e106-45a9-8042-ac8aeee1efcb | C21: B.3.1.2.4 | E21: Head of Works | F21: Prov.Sum | G21: 1 | H21: 5,000.00 | I21: =ROUND(G21 * H21,2) -> 5,000.00 | J21: Dflt
A22: Header2 | B22: d0054782-8c0d-44ab-8368-b4fba1655425 | C22: B.3.1.3 | D22: SANS 1200D 8.3.4 / 8.3.9 | E22: IMPORTING OF MATERIALS | J22: Dflt
A23: Item | B23: e1f59dd9-571a-45be-8278-eb959ed56db0 | C23: B.3.1.3.1 | E23: Extra-over item B.3.1.2.3 for importation of material to complete embankment for the head of Works from commercial sources where necessary: G7 material | F23: m³ | G23: 1360 | H23: 0.00 | I23: =ROUND(G23 * H23,2) -> 0.00 | J23: Dflt
A24: Label | B24: be255fb2-e14b-4d88-87ed-8039c9389fb8 | D24: SANS 1200D 8.3.7 | E24: Additional lateral support (Provisional) for ensuring the stability of the excavation | J24: Dflt
A25: Item | B25: 115bf3c3-9624-44af-8522-1bc36ad30ac6 | C25: B.3.1.3.2 | E25: Head of Works | F25: m² | G25: 25 | H25: 0.00 | I25: =ROUND(G25 * H25,2) -> 0.00 | J25: Dflt
A26: Header2 | B26: 436bfeec-0149-4bd6-ad35-cc9241ba5ffd | C26: B.3.1.4 | D26: SANS 1200D | E26: FINISHINGS | J26: Dflt
A27: Item | B27: b48d6195-63a7-412b-a664-dfb1e2974f93 | C27: B.3.1.4.1 | D27: 8.3.10 | E27: Topsoiling | F27: m² | G27: 1020 | H27: 0.00 | I27: =ROUND(G27 * H27,2) -> 0.00 | J27: Dflt
A28: Item | B28: c2bfa711-cf18-4ebc-8c92-2e63ab7f8a56 | C28: B.3.1.4.2 | D28: 8.3.11 | E28: Grassing with instant kikuyu lawn grass. Rate to be inclusive of transport and delivery and offloading costs including for temporary stockpile and double handling etc. as necessary and wetting | F28: m² | G28: 1020 | H28: 0.00 | I28: 0.00 | J28: Dflt
A29: Header2 | B29: f4ee65b6-2377-4cc5-9515-3a7c994971d4 | C29: B.3.1.5 | D29: SANS 1200G 8.1.3 PSG 8.1.3 | E29: CONCRETE (STRUCTURAL) | J29: Dflt
A30: Label | B30: eb6b3480-75e6-4034-8ac5-7145f1848025 | D30: 8.4.2 | E30: Blinding layer: 15 MPa/19 mm concrete: | J30: Dflt
A31: Item | B31: 533ad9e2-77cc-40e7-9a74-c44a8e1c17ab | C31: B.3.1.5.1 | E31: 50 mm minimum thickness (Channel and Retaining Wall) | F31: m² | G31: 30 | H31: 0.00 | I31: =ROUND(G31 * H31,2) -> 0.00 | J31: Dflt
A32: Item | B32: 248db2c3-ccde-4577-814e-e0aaa67f77ad | C32: B.3.1.5.2 | E32: 50 mm minimum thickness (Ground Slab) | F32: m² | G32: 186 | H32: 0.00 | I32: 0.00 | J32: Dflt
A33: Item | B33: 8db5a00e-723a-4c12-bafb-d86f82e8b387 | C33: B.3.1.5.3 | E33: 50 mm minimum thickness (Ground Slab Grit traps) | F33: m² | G33: 65 | H33: 0.00 | I33: 0.00 | J33: Dflt
A34: Item | B34: 2e5d9275-7005-48b9-b8e3-c6d9c295c36a | C34: B.3.1.5.4 | E34: 75 mm minimum thickness (Inlet) | F34: m² | G34: 5 | H34: 0.00 | I34: 0.00 | J34: Dflt
A35: Label | B35: 372336f9-512b-4738-a4d2-e756cc2ee813 | D35: 8.4.3 PSG 3.5.4 | E35: Strength concrete: 20 MPa/19 mm: | J35: Dflt
A36: Item | B36: 99ddd0e8-c96e-43b6-a216-dbfadef8cdd3 | C36: B.3.1.5.5 | E36: Benching including any necessary formwork or unformed surfaces to different slopes (In Grit Traps, Flume and Stilling Box) | F36: m³ | G36: 30 | H36: 0.00 | I36: =ROUND(G36 * H36,2) -> 0.00 | J36: Dflt
A37: Label | B37: 24f16752-68ae-4be9-972d-b5adfd787de4 | D37: 8.4.3 PSG 3.5.4 | E37: Strength concrete (Inclusive of Crystalline Water Proofing additive): 15 MPa/19 mm | J37: Dflt
A38: Item | B38: 8a3a30c4-264c-436b-87dd-e5c233f84939 | C38: B.3.1.5.6 | E38: Mass concrete fill in channel | F38: m³ | G38: 8 | H38: 0.00 | I38: =ROUND(G38 * H38,2) -> 0.00 | J38: Dflt
A39: Label | B39: 8442845c-5ae2-41fe-998f-10292178d23f | D39: 8.4.3 PSG 3.5.4 | E39: Strength concrete (Inclusive of Crystalline Water Proofing additive): 35 MPa/19 mm | J39: Dflt
A40: Item | B40: 511791f4-b322-4361-854c-ef663c575e45 | C40: B.3.1.5.7 | E40: Channel and Retaining Wall | F40: m³ | G40: 17 | H40: 0.00 | I40: =ROUND(G40 * H40,2) -> 0.00 | J40: Dflt
A41: Item | B41: 2e729fc7-f2c7-44a2-a9e0-3b24ed1e5f4f | C41: B.3.1.5.8 | E41: Ground Slab | F41: m³ | G41: 36 | H41: 0.00 | I41: 0.00 | J41: Dflt
A42: Item | B42: 302bbc57-79e9-40b8-88e3-b407b4e79cc6 | C42: B.3.1.5.9 | E42: Ground Slab (Grit Traps) | F42: m³ | G42: 10 | H42: 0.00 | I42: 0.00 | J42: Dflt
A43: Item | B43: ca5501d8-0fdc-4311-aa12-9f5f6104375c | C43: B.3.1.5.10 | E43: Elevated Slab (Grit Traps) | F43: m³ | G43: 3 | H43: 0.00 | I43: 0.00 | J43: Dflt
A44: Item | B44: b1223075-cdce-4fbe-a581-5958e4ccac77 | C44: B.3.1.5.11 | E44: Floor slab (Inlet) | F44: m³ | G44: 2 | H44: 0.00 | I44: 0.00 | J44: Dflt
A45: Item | B45: 8df023e1-dcaf-4d69-92a3-acfcbd2eb9aa | C45: B.3.1.5.12 | E45: Walls (Super structure) | F45: m³ | G45: 32 | H45: 0.00 | I45: 0.00 | J45: Dflt
A46: Item | B46: 7181c340-e733-46f8-96e3-8ffafbd33de7 | C46: B.3.1.5.13 | E46: Flume | F46: m³ | G46: 14 | H46: 0.00 | I46: 0.00 | J46: Dflt
A47: Item | B47: 3d8f3c7d-1bca-439a-adb2-8fc34d4ce005 | C47: B.3.1.5.14 | E47: Stairs | F47: m³ | G47: 2 | H47: 0.00 | I47: 0.00 | J47: Dflt
A48: Item | B48: a7f28d0c-48c9-4dcd-8e8a-d3e99654be24 | C48: B.3.1.5.15 | E48: Corner fillet 100mm x 100mm (Along walls) | F48: m | G48: 660 | H48: 0.00 | I48: 0.00 | J48: Dflt
A49: Item | B49: 78610450-ec9c-417f-b508-a80ce2423a70 | C49: B.3.1.5.16 | E49: For Stilling Box (Slab) | F49: m³ | G49: 2 | H49: 0.00 | I49: 0.00 | J49: Dflt
A50: Item | B50: 691852e6-e31a-4a10-b41c-054422702ce1 | C50: B.3.1.5.17 | E50: For Stilling Box (Walls) | F50: m³ | G50: 5 | H50: 0.00 | I50: 0.00 | J50: Dflt
A51: Item | B51: 738a3ba0-4f62-45e7-8ce7-abc37c60171e | C51: B.3.1.5.18 | E51: For Stilling Box (Roof Slab) | F51: m³ | G51: 5 | H51: 0.00 | I51: 0.00 | J51: Dflt
A52: Header2 | B52: a1bb2fd7-369c-4deb-ab9c-ed2c21f6f3ee | C52: B.3.1.6 | D52: SANS 1200G 8.1.1 PSG 8.2 | E52: FORMWORK | J52: Dflt
A53: Label | B53: fb9f61aa-1a48-4055-bd18-a7cde94955f3 | D53: 8.2.2 | E53: Smooth vertical plane to: | J53: Dflt
A54: Item | B54: a6c156ca-40bf-4d8d-b3d6-a57cdb2fe6e5 | C54: B.3.1.6.1 | E54: Walls (Channel and Retaining) | F54: m² | G54: 220 | H54: 0.00 | I54: =ROUND(G54 * H54,2) -> 0.00 | J54: Dflt
A55: Item | B55: a25d01ce-c141-40c5-91db-bd0e7468ba6f | C55: B.3.1.6.2 | E55: Walls (Super structure) | F55: m² | G55: 90 | H55: 0.00 | I55: 0.00 | J55: Dflt
A56: Item | B56: b236806c-a092-4ba6-ab5b-aba3a1849c93 | C56: B.3.1.6.3 | E56: Inside of the Parshall flumes to special tolerances | F56: m² | G56: 28 | H56: 0.00 | I56: 0.00 | J56: Dflt
A57: Rate Only | B57: 73b95b49-dfec-4a02-a7d5-2e77e8cbb4db | C57: B.3.1.6.4 | E57: Stairs | F57: m² | G57: 0 | H57: 0.00 | I57: Rate Only | J57: Dflt
A58: Label | B58: 61f5c295-a615-4480-b23d-6192a8da30fa | D58: 8.2.2 | E58: Smooth horizontal plane to: | J58: Dflt
A59: Item | B59: 805e27f5-1139-4c9a-aa5e-89b6b749e12a | C59: B.3.1.6.5 | E59: Elevated slab soffit (Grit traps) | F59: m² | G59: 14 | H59: 0.00 | I59: =ROUND(G59 * H59,2) -> 0.00 | J59: Dflt
A60: Label | B60: 838178a8-169d-4cc7-8ccd-4bfca59f3589 | D60: 8.2.5 | E60: Vertical narrow widths up to 300mm wide: | J60: Dflt
A61: Item | B61: b5397675-3103-457c-acd9-43692d3a72de | C61: B.3.1.6.6 | E61: Channel and Retaining Wall | F61: m | G61: 95 | H61: 0.00 | I61: =ROUND(G61 * H61,2) -> 0.00 | J61: Dflt
A62: Item | B62: 224a93ef-c10e-438e-80ea-77ef0f80a92f | C62: B.3.1.6.7 | E62: Ground Slab | F62: m | G62: 40 | H62: 0.00 | I62: 0.00 | J62: Dflt
A63: Item | B63: ab39456e-a2a0-4f60-8e7a-ce64915c00d2 | C63: B.3.1.6.8 | E63: Elevated Slab (Grit traps) | F63: m | G63: 31 | H63: 0.00 | I63: 0.00 | J63: Dflt
A64: Rate Only | B64: 36a97cdf-465f-4f15-a69e-9ab6ec75d697 | C64: B.3.1.6.9 | E64: Floor Slab (Inlet) | F64: m | G64: 0 | H64: 0.00 | I64: Rate Only | J64: Dflt
A65: Item | B65: 9d654573-2d89-4b57-b926-ec76a33b3be7 | C65: B.3.1.6.10 | E65: Stair risers | F65: m | G65: 10 | H65: 0.00 | I65: =ROUND(G65 * H65,2) -> 0.00 | J65: Dflt
A66: Label | B66: 5e2fef08-a59b-4c40-b7a5-3ddd5b32dd06 | D66: 8.1.1.2 PSG 8.1.1.8 | E66: Chamfers exceeding 20mm x 20mm and grooves: | J66: Dflt
A67: Item | B67: 7c4c1e54-3e11-4a8d-af47-7b6cda1e18a0 | C67: B.3.1.6.11 | E67: Chamfer 25mm x 25mm (Ground Slab) | F67: m | G67: 39 | H67: 0.00 | I67: =ROUND(G67 * H67,2) -> 0.00 | J67: Dflt
A68: Label | B68: b4b28d88-7560-4ff5-92fd-28f33f0fed64 | E68: Weepholes: | J68: Dflt
A69: Item | B69: 65ce1c67-5d68-4293-ac69-f767aa6e8e2a | C69: B.3.1.6.12 | E69: 75mm Weephole at 2m c/c with Bidim wrapped at one end | F69: No | G69: 18 | H69: 0.00 | I69: =ROUND(G69 * H69,2) -> 0.00 | J69: Dflt
A70: Label | B70: 5439a6ee-7e19-4f31-a87c-2b36e56f07d0 | D70: 8.2.6 | E70: Box out holes/form voids | J70: Dflt
A71: Label | B71: 8a0ba9ea-c9cf-4508-afa3-3a25ee455588 | E71: Large, other than circular, of area over 0.1m² and up and including to 0.5m² (de-gritter pump head plinth), up to 0,35 m diam.: depths over and up to | J71: Dflt
A72: Item | B72: 71f472df-89e1-43a8-b684-64f13d31fd50 | C72: B.3.1.6.13 | E72: 0 m 0,5 m | F72: No. | G72: 5 | H72: 0.00 | I72: =ROUND(G72 * H72,2) -> 0.00 | J72: Dflt
A73: Label | B73: cc460c8c-cea4-4465-a01d-aa6a2db36d2e | C73: B.3.1.6.14 | E73: Large, circular, of diameter over 0.7m up to and incl. 1.3m | J73: Dflt
A74: Item | B74: 133ae67c-c04e-4132-a776-856b9391c333 | C74: B.3.1.6.15 | E74: 0 m 0,5 m | F74: No | G74: 1 | H74: 0.00 | I74: =ROUND(G74 * H74,2) -> 0.00 | J74: Dflt
A75: Label | B75: 5194e386-9743-4977-85c7-b52d86bebc37 | D75: PSG 8.10 | E75: Cast pipe with puddle flanges into concrete for Pipes up to and including 1000mm NB through walls and slabs of thickness: over and up to | J75: Dflt
A76: Rate Only | B76: 3634e1ed-237d-4ea1-9ca5-5909d13550d6 | C76: B.3.1.6.16 | E76: 0,0 m 0,25 m | F76: No. | G76: 0 | H76: 0.00 | I76: Rate Only | J76: Dflt
A77: Item | B77: be3ad879-e46f-4db7-9563-1dc1296e893d | C77: B.3.1.6.17 | E77: 0,25 m 0,30 m | F77: No. | G77: 6 | H77: 0.00 | I77: =ROUND(G77 * H77,2) -> 0.00 | J77: Dflt
A78: Rate Only | B78: 62c41bc6-f9ce-4535-9f1b-70edc89d721c | C78: B.3.1.6.18 | E78: 0,30 m 0,45 m | F78: No. | G78: 0 | H78: 0.00 | I78: Rate Only | J78: Dflt
A79: Label | B79: 520f09fb-33ff-4636-a83f-169ce0e4d2ca | J79: Dflt
A80: Rate Only | B80: 5346ae0d-16cf-4cbe-b2c9-6cc95fe45bfc | C80: B.3.1.6.19 | E80: 90mm deep x 250mm wide rebate for sluice gates | F80: m | G80: 0 | H80: 0.00 | I80: Rate Only | J80: Dflt
A81: Header2 | B81: 5621175a-42bb-47ff-86dd-aee8e02068e6 | C81: B.3.1.7 | D81: SANS 1200G 8.1.2 PSG 8.1.2 | E81: REINFORCEMENT | J81: Dflt
A82: Label | B82: 6303864e-cead-4960-80ba-cfc7e764c8e4 | D82: 8.1.2.3(a) | E82: Mild steel bars: | J82: Dflt
A83: Item | B83: 70c8174e-e989-499c-b84a-61287e42329b | C83: B.3.1.7.1 | E83: 25 mm diameter: Basic price | F83: t | G83: 0.55 | H83: 0.00 | I83: =ROUND(G83 * H83,2) -> 0.00 | J83: Dflt
A84: Label | B84: 823a8158-95d7-43a1-8bf6-def7f2c9587b | D84: 8.1.2.3(b) | E84: Extra-over item B.3.1.7.1 for bars of diameter (Provisional): | J84: Dflt
A85: Item | B85: 077c771c-5089-4b89-85f1-db995b03f029 | C85: B.3.1.7.2 | E85: 8 mm | F85: t | G85: 0.4 | H85: 0.00 | I85: =ROUND(G85 * H85,2) -> 0.00 | J85: Dflt
A86: Label | B86: aa8cc6bf-f9b2-4181-b4a5-761c3dc43cd7 | D86: 8.1.2.3(a) | E86: High tensile steel bars: | J86: Dflt
A87: Item | B87: a309fbde-8317-4ba0-b77b-5dd682a013e7 | C87: B.3.1.7.3 | E87: 25 mm diameter: Basic price | F87: t | G87: 7.35 | H87: 0.00 | I87: =ROUND(G87 * H87,2) -> 0.00 | J87: Dflt
A88: Label | B88: fb7b60ce-2993-40c9-ac91-2bc4cc3cbcf7 | D88: 8.1.2.3(b) | E88: Extra-over item B.3.1.7.3 for bars of diameter (Provisional): | J88: Dflt
A89: Item | B89: c287b98d-07c8-41c3-b943-3644a1b54fd5 | C89: B.3.1.7.4 | E89: 10 mm | F89: t | G89: 1.4 | H89: 0.00 | I89: =ROUND(G89 * H89,2) -> 0.00 | J89: Dflt
A90: Item | B90: 73c1a341-c081-4f36-874f-1f0dc1ac5f80 | C90: B.3.1.7.5 | E90: 12 mm | F90: t | G90: 5.8 | H90: 0.00 | I90: 0.00 | J90: Dflt
A91: Label | B91: a677a16f-0d6b-4e91-8bbb-60cb19ac17f3 | D91: 8.1.2.3(c) | E91: High-tensile welded mesh reinforcement: | J91: Dflt
A92: Item | B92: 59ad4f00-b23f-464f-b30e-3e2603f500d8 | C92: B.3.1.7.6 | E92: High-tensile welded mesh ref 617 | F92: m² | G92: 245 | H92: 0.00 | I92: =ROUND(G92 * H92,2) -> 0.00 | J92: Dflt
A93: Header2 | B93: 5c7d2ee4-0860-44a8-ba7e-83160a32a242 | C93: B.3.1.8 | D93: SANS 1200G 8.4.4 PSG 8.4 | E93: UNFORMED SURFACE FINISHES | J93: Dflt
A94: Label | B94: afce3a9d-c61a-420e-845a-ee4992e4a125 | D94: PSG 8.4 | E94: Wood-floated finish | J94: Dflt
A95: Item | B95: bea4b799-19a4-4ddd-a7a9-cc21c7038902 | C95: B.3.1.8.1 | E95: Top ground slab | F95: m² | G95: 180 | H95: 0.00 | I95: =ROUND(G95 * H95,2) -> 0.00 | J95: Dflt
A96: Item | B96: 47ec7141-fda5-4e5b-b979-fae935bf9f31 | C96: B.3.1.8.2 | E96: Top ground slab (Grit Traps) | F96: m² | G96: 60 | H96: 0.00 | I96: 0.00 | J96: Dflt
A97: Item | B97: 27ce1d18-babd-4f03-b023-67ae368e70f3 | C97: B.3.1.8.3 | E97: Top retaining wall footing | F97: m² | G97: 25 | H97: 0.00 | I97: 0.00 | J97: Dflt
A98: Label | B98: df5386e4-3a1b-494e-9ce0-0279d7a39647 | D98: 8.1.1.5 PSG 8.4 | E98: Steel-floated finish | J98: Dflt
A99: Item | B99: c10bfa63-7bc5-4e53-bd41-5d5fa3c6a115 | C99: B.3.1.8.4 | E99: Benching (Grit Traps) | F99: m² | G99: 41 | H99: 0.00 | I99: =ROUND(G99 * H99,2) -> 0.00 | J99: Dflt
A100: Item | B100: 69a62b39-e78a-4775-98d9-7d2c18dd79da | C100: B.3.1.8.5 | E100: Top of Mass Concrete | F100: m² | G100: 11 | H100: 0.00 | I100: 0.00 | J100: Dflt
A101: Rate Only | B101: 81225641-b610-47fc-81c2-8e73306648ca | C101: B.3.1.8.6 | E101: Top of Channel Floor | F101: m² | G101: 0 | H101: 0.00 | I101: Rate Only | J101: Dflt
A102: Item | B102: e8dac9b9-41d1-49be-b92d-3bf8921f6e76 | C102: B.3.1.8.7 | E102: Top of Floor Slab (Inlet) | F102: m² | G102: 4 | H102: 0.00 | I102: =ROUND(G102 * H102,2) -> 0.00 | J102: Dflt
A103: Item | B103: 6403ff91-c853-4539-987b-a2c4e2989ddf | C103: B.3.1.8.8 | E103: Top of Walls (Channel and Retain) | F103: m² | G103: 15 | H103: 0.00 | I103: 0.00 | J103: Dflt
A104: Item | B104: 567603fb-8f65-4588-b0b9-b0fd20770120 | C104: B.3.1.8.9 | E104: Top of Walls (Super Structure) | F104: m² | G104: 14 | H104: 0.00 | I104: 0.00 | J104: Dflt
A105: Item | B105: 64d686f2-7604-46af-8927-327e92e65eb4 | C105: B.3.1.8.10 | E105: Top of Flume Walls | F105: m² | G105: 5 | H105: 0.00 | I105: 0.00 | J105: Dflt
A106: Item | B106: df01611a-3a24-402b-88b7-2454bc75536d | C106: B.3.1.8.11 | E106: Top of flume bottoms to special finishing tolerances | F106: m² | G106: 8 | H106: 0.00 | I106: 0.00 | J106: Dflt
A107: Item | B107: e73782da-fd99-40eb-b763-5149d28667ec | C107: B.3.1.8.12 | E107: Corner chamfer 270mm x 270mm (Along walls) | F107: m² | G107: 107 | H107: 0.00 | I107: 0.00 | J107: Dflt
A108: Label | B108: 024ad2dc-2bec-4fa9-aa3a-f3d3ef143e80 | D108: 8.1.1.5 PSG 8.4 | E108: Non-skid finish | J108: Dflt
A109: Item | B109: be760ccb-8f48-4516-8548-2ba304bbd2c5 | C109: B.3.1.8.13 | E109: Top Elevated Slab (Grit Traps) | F109: m² | G109: 16 | H109: 0.00 | I109: =ROUND(G109 * H109,2) -> 0.00 | J109: Dflt
A110: Item | B110: 75acc669-5b42-4744-b61a-3f9cee43a274 | C110: B.3.1.8.14 | E110: Concrete stairs | F110: m² | G110: 3 | H110: 0.00 | I110: 0.00 | J110: Dflt
A111: Rate Only | B111: 76bf131f-b818-40b6-bda1-97fef271f108 | C111: B.3.1.8.15 | E111: Conveyor Belt Slab | F111: m² | G111: 0 | H111: 0.00 | I111: Rate Only | J111: Dflt
A112: Item | B112: 609d52e2-3e22-4dd1-a32c-370686aa6027 | C112: B.3.1.8.16 | E112: Stilling Box Roof Slab | F112: m² | G112: 5.5 | H112: 0.00 | I112: =ROUND(G112 * H112,2) -> 0.00 | J112: Dflt
A113: Header2 | B113: 8ba1c916-c0bf-49fe-81ad-62a3e0f948af | C113: B.3.1.9 | D113: SANS 1200G 8.5 PSG 8.5 | E113: JOINTS | J113: Dflt
A114: Label | B114: af117233-9929-4f95-91d6-bbae05d9e00a | E114: Joints in floor slabs complete as shown on Dwg. No. J40073/010-201: | J114: Dflt
A115: Item | B115: 5971cf9d-a286-4f58-be5f-45f606838ffb | C115: B.3.1.9.1 | E115: Jointex (Ground Slab) | F115: m | G115: 28 | H115: 0.00 | I115: =ROUND(G115 * H115,2) -> 0.00 | J115: Dflt
A116: Item | B116: bc02858c-acaa-446c-bfa3-ea1c45d786ee | C116: B.3.1.9.2 | E116: Jointex (Ground Slab Between walls and ground slabs at Grit Traps) | F116: m | G116: 95 | H116: 0.00 | I116: 0.00 | J116: Dflt
A117: Item | B117: 63cb9bfd-b979-408f-a142-29ea4c431d4b | C117: B.3.1.9.3 | E117: Joints in the channel floors compete with PVC water stop, 12 mm joint filler and polyurethane sealant | F117: m | G117: 22 | H117: 0.00 | I117: 0.00 | J117: Dflt
A118: Label | B118: b103ff89-129e-4eac-a877-c9dbd4e8c08a | E118: Wall joints complete as shown on Dwg. No. J40073/010-201: | J118: Dflt
A119: Item | B119: fa7debbe-6b1e-4ccf-a9a7-f2d49d294628 | C119: B.3.1.9.4 | E119: Joints in channel wall complete with PVC water stop, 12mm joint filler and polyurethane sealant both sides | F119: m | G119: 29 | H119: 0.00 | I119: =ROUND(G119 * H119,2) -> 0.00 | J119: Dflt
A120: Item | B120: 98691bae-b709-4a08-87af-43ac3bcf88c1 | C120: B.3.1.9.5 | E120: Corner chamfer | F120: m | G120: 560 | H120: 0.00 | I120: 0.00 | J120: Dflt
A121: Label | B121: 1b1ab6ca-5f69-4b39-b51d-5aca81f9eb4c | E121: Contraction joints: | J121: Dflt
A122: Item | B122: 989d95d2-e472-4724-8e90-79ac9f03d30b | C122: B.3.1.9.6 | E122: Vertical contraction joint in wall complete with waterproofing bandage, bond breaker cord, sealant, drilling for dowels, dowels, and epoxy to set dowels to Detail X of Dwg. No. J40073-010-230 | F122: m | G122: 10 | H122: 0.00 | I122: =ROUND(G122 * H122,2) -> 0.00 | J122: Dflt
A123: Header2 | B123: 8b539c5b-a70d-4bf2-bf16-f14a262978ac | C123: B.3.1.10 | D123: SANS 1200G 8.7 | E123: GROUTING | J123: Dflt
A124: Item | B124: 81af2e4f-38e4-4da9-a42b-938b5faf8497 | C124: B.3.1.10.1 | E124: Grouting of grooves for channel gates | F124: m³ | G124: 2 | H124: 0.00 | I124: =ROUND(G124 * H124,2) -> 0.00 | J124: Dflt
A125: Header2 | B125: b98794cb-7785-4672-80f3-d7a5fadc12bd | C125: B.3.1.11 | D125: SANS 1200H and HA | E125: STRUCTURAL STEELWORK | J125: Dflt
A126: Header3 | B126: a89ca4ce-cb4c-4d28-bca6-a4b83cbbc037 | C126: B.3.1.11.1 | D126: 1200H 8.3.1, 8.3.2, 8.3.3, 8.3.4 and 8.3.5 | E126: HANDRAILS | J126: Dflt
A127: Item | B127: 179ebe51-c78e-4960-bbc2-c489411abf74 | C127: B.3.1.11.1.1 | D127: 8.3.7(b) | E127: Supply and Assemble the handrails as per the Dwg. No. J40073/010-105. The rate shall cover the fabrication, corrosion protection and installation of galvanised steel handrails complete with all the necessary cleats, brackets, gussets, packs, etc. complete as shown on Dwg. No. J40073/010-201 | F127: m | G127: 175 | H127: 0.00 | I127: =ROUND(G127 * H127,2) -> 0.00 | J127: Dflt
A128: Item | B128: ebed051c-fb11-4511-937e-11ff5a323ba9 | C128: B.3.1.11.1.2 | E128: Handrail at slope (stairs) | F128: m | G128: 8 | H128: 0.00 | I128: 0.00 | J128: Dflt
A129: Header2 | B129: 0b2b23da-2bf1-4736-a5c5-be0842d853e9 | C129: B.3.1.12 | E129: SUNDRIES | J129: Dflt
A130: Label | B130: 5b3c342b-1050-4cfb-9ce3-f9bb89e50253 | E130: Water Tightness Testing | J130: Dflt
A131: Item | B131: 58680e51-7f60-40d9-b053-4326585e50b8 | C131: B.3.1.12.1 | D131: PSG 8.12 | E131: Testing for Water Tightness, all inclusive to PSG 7.2.5 | F131: Sum | G131: 1 | H131: 0.00 | I131: =ROUND(G131 * H131,2) -> 0.00 | J131: Dflt
A132: Item | B132: 70e50d70-0098-4e12-86e1-29a7c94eac46 | C132: B.3.1.12.2 | E132: Break through existing inlet works wall, smooth and seal exposed concrete and reinforcing for rectangular void 1750mm x 1360mm dimension | F132: No | G132: 1 | H132: 0.00 | I132: 0.00 | J132: Dflt
A133: Label | B133: 09eb51f8-988d-4474-b62b-fa3df1f2d86c | E133: Corrective work to Head of Works | J133: Dflt
A134: Sum | B134: 797a3440-289c-4796-8993-fd57bae37589 | C134: B.3.1.12.3 | E134: Corrective works as directed by the Specialist investigations/tests conducted by the Contractor | F134: PSum | G134: 1 | H134: 1,800,000.00 | I134: =ROUND(H134,2) -> 1,800,000.00 | J134: Dflt
A135: Header2 | B135: 10ebfe10-dd54-4fca-a94a-309237f458f7 | C135: B.3.1.13 | E135: MEDIUM PRESSURE PIPELINES | J135: Dflt
A136: Header3 | B136: 268bb012-0690-4b2a-b99f-79df893c3aed | C136: B.3.1.13.1 | D136: SANS 1200C PSC 8.2 | E136: SITE CLEARANCE | J136: Dflt
A137: Item | B137: 1577e4f9-e04e-40c3-b4d1-e0dd9570ae42 | C137: B.3.1.13.1.1 | D137: 8.2.1 | E137: Clear and grub Site | F137: m² | G137: 100 | H137: 0.00 | I137: =ROUND(G137 * H137,2) -> 0.00 | J137: Dflt
A138: Item | B138: ebdccdc1-1216-42dc-9c2a-886d23e9be0c | C138: B.3.1.13.1.2 | D138: 8.2.10 PSC 8.2.10 | E138: Remove topsoil to nominal depth 150mm, stockpile, and maintain | F138: m² | G138: 100 | H138: 0.00 | I138: 0.00 | J138: Dflt
A139: Header3 | B139: ab5d50b5-215f-4bf5-93f8-720295debfc3 | C139: B.3.1.13.2 | D139: SANS 1200DB | E139: EXCAVATION | J139: Dflt
A140: Label | B140: 6d1e7697-37d8-4704-b78f-b15c3f5feeac | D140: 8.3.2(a) PSDB 8.1.4 PSDB 8.3.2(b) | E140: Excavate in all materials for trenches backfill, compact, and dispose of surplus material, for pipes: over 250 mm up to 450 mm in diameter for total trench depth: Exceeding but not exceeding | J140: Dflt
A141: Item | B141: 0a9c8179-0943-41b9-ac8d-b31e6febf770 | C141: B.3.1.13.2.1 | E141: 0,0 m 1,0 m | F141: m | G141: 5 | H141: 0.00 | I141: =ROUND(G141 * H141,2) -> 0.00 | J141: Dflt
A142: Item | B142: 386306c8-c361-40d7-86e5-faef7ca452d7 | C142: B.3.1.13.2.2 | E142: 1,0 m 2,0 m | F142: m | G142: 15 | H142: 0.00 | I142: 0.00 | J142: Dflt
A143: Item | B143: 527b9d59-de47-4b4f-a9ef-8ad611c1d0cf | C143: B.3.1.13.2.3 | E143: 2,0 m 3,0 m | F143: m | G143: 25 | H143: 0.00 | I143: 0.00 | J143: Dflt
A144: Label | B144: 90d05372-2c5e-483d-99de-66530f1cf157 | D144: 8.3.2(b) PSD 8.3.2(b) | E144: Extra-over items B.3.1.13.2.1 to B.3.1.13.2.3 incl. for (Provisional): | J144: Dflt
A145: Item | B145: 9c6cbd07-f500-4b4f-9bce-b2ce96e07631 | C145: B.3.1.13.2.4 | D145: 8.3.2(b) | E145: Hard rock excavation | F145: m³ | G145: 5 | H145: 0.00 | I145: =ROUND(G145 * H145,2) -> 0.00 | J145: Dflt
A146: Item | B146: 6b33593e-7cbc-445a-9b01-03e2577cd0ff | C146: B.3.1.13.2.5 | D146: 8.3.2(c) | E146: Excavate and dispose of unsuitable material from trench bottom (Provisional) | F146: m³ | G146: 5 | H146: 0.00 | I146: 0.00 | J146: Dflt
A147: Header3 | B147: 611a4212-25d2-483e-94e4-47bd06359914 | C147: B.3.1.13.3 | D147: SANS 1200DB | E147: EXCAVATION ANCILLARIES | J147: Dflt
A148: Label | B148: 78bc6374-a7da-4f90-9332-fccee2136fe7 | D148: 8.3.3.1 | E148: Make up deficiency in backfill material (Provisional) | J148: Dflt
A149: Item | B149: 3c964315-84af-4b2c-8f2f-9d1abf02823b | C149: B.3.1.13.3.1 | D149: 8.3.3.1(a) | E149: from other necessary excavations on site | F149: m³ | G149: 5 | H149: 0.00 | I149: =ROUND(G149 * H149,2) -> 0.00 | J149: Dflt
A150: Item | B150: b9f83fa1-e803-4380-bc86-d5b25c086984 | C150: B.3.1.13.3.2 | D150: 8.3.3.1(c) | E150: by importation from commercial sources selected by the Contractor | F150: m³ | G150: 5 | H150: 0.00 | I150: 0.00 | J150: Dflt
A151: Header3 | B151: cecfb771-52b6-4bcc-95e5-6f9f85f2bbe5 | C151: B.3.1.13.4 | D151: SANS 1200DB | E151: PARTICULAR ITEMS | J151: Dflt
A152: Label | B152: dd96ed36-e528-4a2d-815f-b25f237bccdb | D152: 8.3.4(a) PSD 8.3.15 | E152: Shore trench opposite structure or service or in unsuitable excavated materials for depths (Provisional) Exceeding but not exceeding | J152: Dflt
A153: Item | B153: d70edc1e-3c48-4ccc-ad00-91836a33c8dd | C153: B.3.1.13.4.1 | E153: 1,0 m 2,0 m | F153: m | G153: 15 | H153: 0.00 | I153: =ROUND(G153 * H153,2) -> 0.00 | J153: Dflt
A154: Item | B154: f7e1ea85-2a7d-493f-993d-c6a3edfcfa57 | C154: B.3.1.13.4.2 | E154: 2,0 m 3,0 m | F154: m | G154: 25 | H154: 0.00 | I154: 0.00 | J154: Dflt
A155: Header3 | B155: 1a4f9682-b8ed-4f9d-9c44-728b812d6905 | C155: B.3.1.13.5 | D155: SANS 1200L | E155: PIPEWORK | J155: Dflt
A156: Label | B156: ba80f562-03e5-4864-bc51-9ff4ebb096c2 | D156: 8.2.1 PSL8.2.1 | E156: uPVC pipes Class 9: Supply, handle, lay and bed uPVC pipes complete with approved flexible coupling type to suit: | J156: Dflt
A157: Item | B157: d1e50c22-9fe7-4f73-bac4-d99b88962c98 | C157: B.3.1.13.5.1 | E157: 315 mm NB | F157: m | G157: 20 | H157: 0.00 | I157: =ROUND(G157 * H157,2) -> 0.00 | J157: Dflt
A158: Item | B158: 4c1330eb-8403-4a3b-94ba-5e6dc7a7d041 | C158: B.3.1.13.5.2 | E158: 400 mm NB (Mark 5 and 6) | F158: m | G158: 25 | H158: 0.00 | I158: 0.00 | J158: Dflt
A159: Label | B159: 8678a18f-a2fb-4cab-bbe9-45d2af09994e | D159: 8.2.15 PSL 8.2.15 | E159: Special wrapping in corrosive soil as per Project Specification PSL3.9.3.8 (Provisional) | J159: Dflt
A160: Item | B160: d4963145-a1dd-48ea-8cce-dd4d3b4764b7 | C160: B.3.1.13.5.3 | E160: 300 mm NB | F160: No | G160: 1 | H160: 0.00 | I160: =ROUND(G160 * H160,2) -> 0.00 | J160: Dflt
A161: Item | B161: 4a992e0b-323d-4a2f-baaf-8a7c4ff36d3b | C161: B.3.1.13.5.4 | E161: 400 mm NB | F161: No | G161: 2 | H161: 0.00 | I161: 0.00 | J161: Dflt
A162: Label | B162: b68e334f-18a9-4a64-b45c-355eaf5b8ecd | D162: 8.2.1 PSL 8.2.1 | E162: Steel pipes with lining & coating: Supply, handle, lay, and bed, complete with approved flexible coupling type joint to suit, test, and disinfect: | J162: Dflt
A163: Item | B163: 5decc1a3-fd3a-4b79-9fec-ec56a2bfe355 | C163: B.3.1.13.5.5 | E163: Stilling Box: Pipe Item 3: 800NB steel straight puddle pipes, flanged one end only, to SANS 1123 Table 1000/3. Puddle flange 150mm from plain end | F163: No. | G163: 1 | H163: 0.00 | I163: =ROUND(G163 * H163,2) -> 0.00 | J163: Dflt
A164: Label | B164: ba6b28ca-ba57-4eaf-98d2-c54da5098381 | E164: Flange Adaptors Steel to HDPE: | J164: Dflt
A165: Item | B165: 00e5fb7a-d19e-46a3-9ccc-4aff6005ebf2 | C165: B.3.1.13.5.6 | E165: 900NB HDPE to 800NB steel PN10 | F165: No | G165: 1 | H165: 0.00 | I165: =ROUND(G165 * H165,2) -> 0.00 | J165: Dflt
A166: Header3 | B166: e1938293-d791-4fe9-bb73-56ddbd111c69 | C166: B.3.1.13.6 | D166: SANS 1200L | E166: SPECIALS AND FITTINGS | J166: Dflt
A167: Label | B167: bb7e93c1-c2f6-4f31-9a1f-d574458399b5 | D167: 8.2.2 | E167: Extra over item B.3.1.13.5.1 for the supplying, laying and bedding of specials complete with approved spigot to socket type joint to suit uPVC pipe | J167: Dflt
A168: Label | B168: ce7e54cd-a5b0-413c-9c0c-0c5232af0d13 | E168: uPVC bends, of deflection: | J168: Dflt
A169: Item | B169: 7518a38d-d1eb-4674-b7be-7ae985fd1d4e | C169: B.3.1.13.6.1 | E169: 315 mm NB, 90 degrees | F169: No | G169: 1 | H169: 0.00 | I169: =ROUND(G169 * H169,2) -> 0.00 | J169: Dflt
A170: Item | B170: c0d16755-549c-43e4-a175-c2b6f844d28d | C170: B.3.1.13.6.2 | E170: 315 mm NB, 45 degrees | F170: No | G170: 2 | H170: 0.00 | I170: 0.00 | J170: Dflt
A171: Item | B171: f9f44342-a3e2-4a22-b348-6277e1bdd150 | C171: B.3.1.13.6.3 | E171: 315 mm NB, 22.5 degrees | F171: No | G171: 1 | H171: 0.00 | I171: 0.00 | J171: Dflt
A172: Label | B172: ecb8d555-1f57-495e-b6bc-6602c4907aa4 | D172: 8.2.2 | E172: Extra over item B.3.1.13.5.1 and B.3.1.13.5.2 for the supplying, laying and bedding of steel pipe specials cast into concrete where necessary, complete with approved flexible couplings to suit uPVC pipe as per Dwg. No. J40073/010-201: | J172: Dflt
A173: Item | B173: b1addb5a-9980-441b-8f53-8ffc3dce76a3 | C173: B.3.1.13.6.4 | E173: Item No. P14-B/1 - 300 mm NB | F173: No | G173: 1 | H173: 0.00 | I173: =ROUND(G173 * H173,2) -> 0.00 | J173: Dflt
A174: Item | B174: 52c13219-1cc1-4741-bf20-ff10be6e2508 | C174: B.3.1.13.6.5 | E174: Item No. P14-B/2 - 300 mm NB | F174: No | G174: 1 | H174: 0.00 | I174: 0.00 | J174: Dflt
A175: Item | B175: 4926e1e0-a3b5-4503-a621-d46ad751b244 | C175: B.3.1.13.6.6 | E175: Item No. P14-B/3 - 400 mm NB | F175: No | G175: 2 | H175: 0.00 | I175: 0.00 | J175: Dflt
A176: Item | B176: 5b875108-d5e8-43b3-af12-042fc76b2824 | C176: B.3.1.13.6.7 | E176: Item No. P14-B/4 - 400 mm NB | F176: No | G176: 1 | H176: 0.00 | I176: 0.00 | J176: Dflt
A177: Label | B177: 33198663-cb72-4ecb-90b1-0e9172e5d25f | E177: Flange Adaptors Steel to uPVC: | J177: Dflt
A178: Item | B178: 2f0b22f5-e6f9-4149-ae5b-2aa566461e41 | C178: B.3.1.13.6.8 | E178: 300 mm NB | F178: No | G178: 1 | H178: 0.00 | I178: =ROUND(G178 * H178,2) -> 0.00 | J178: Dflt
A179: Item | B179: 3d04f559-943b-4dd7-bfd8-10c1096867ca | C179: B.3.1.13.6.9 | E179: 400 mm NB | F179: No | G179: 1 | H179: 0.00 | I179: 0.00 | J179: Dflt
A180: Label | B180: f63b31c6-2b60-4e44-840a-9a11ba97e726 | E180: Blank Flanges: | J180: Dflt
A181: Item | B181: 62a9aa07-8098-4c27-99cd-831d09203961 | C181: B.3.1.13.6.10 | E181: 300 mm NB | F181: No | G181: 1 | H181: 0.00 | I181: =ROUND(G181 * H181,2) -> 0.00 | J181: Dflt
A182: Item | B182: 652156cd-d1ca-4e00-9708-eb95c623b6cf | C182: B.3.1.13.6.11 | E182: 400 mm NB | F182: No | G182: 1 | H182: 0.00 | I182: 0.00 | J182: Dflt
A183: Header3 | B183: 5772f6e2-2810-44c9-92e2-5fc91f86b406 | C183: B.3.1.13.7 | D183: SANS 1200LB | E183: PROVISION OF BEDDING | J183: Dflt
A184: Label | B184: c7fb8a38-70b5-494a-b425-1d27f3afae26 | D184: 8.2.2 PSLB 8.2.2 | E184: Provision of bedding from commercial sources (Provisional) | J184: Dflt
A185: Item | B185: 05bf989d-6ced-45c9-b311-9e123e26388a | C185: B.3.1.13.7.1 | D185: 8.2.2.3(a) | E185: Selected granular material (cradle) | F185: m³ | G185: 25 | H185: 0.00 | I185: =ROUND(G185 * H185,2) -> 0.00 | J185: Dflt
A186: Item | B186: de4420e0-297f-496f-ad36-88297a9bfc99 | C186: B.3.1.13.7.2 | D186: 8.2.2.3(b) | E186: Selected fill material (blanket) | F186: m³ | G186: 10 | H186: 0.00 | I186: 0.00 | J186: Dflt
A187: Item | B187: bade5f0a-7d8d-480b-bfdc-367eab3785d4 | C187: B.3.1.13.7.3 | D187: PSLB 8.2.6 | E187: 19mm stone bedding where instructed (Provisional) | F187: m³ | G187: 4 | H187: 0.00 | I187: 0.00 | J187: Dflt
A188: Item | B188: 2e66fca8-d46e-45e7-8187-5a36cbc53366 | C188: B.3.1.13.7.4 | D188: PSLB 8.2.6 | E188: Geotextile fabric (Bidim A4) where instructed (Provisional) | F188: m² | G188: 40 | H188: 0.00 | I188: 0.00 | J188: Dflt
A189: Header3 | B189: e3a86021-a4c6-47b6-8b88-f001513431cb | C189: B.3.1.13.8 | E189: ANCILLARIES | J189: Dflt
A190: Label | B190: 4aa8a136-f246-4f1c-9ccb-048764655d14 | D190: SANS 1200L 8.2.11 | E190: Anchor/Thrust Blocks, Pedestals | J190: Dflt
A191: Item | B191: a2973b5c-b0be-4d30-8234-b7e2c8b6138e | C191: B.3.1.13.8.1 | E191: Strength Concrete: 15 Mpa/19 mm | F191: m³ | G191: 2 | H191: 0.00 | I191: =ROUND(G191 * H191,2) -> 0.00 | J191: Dflt
A192: Item | B192: 1846bf64-763b-4963-8b81-0f0287e8a57b | C192: B.3.1.13.8.2 | E192: Formwork: rough, vertical plane | F192: m² | G192: 5 | H192: 0.00 | I192: 0.00 | J192: Dflt
A193: Item | B193: d3544ee0-cf51-42b7-bf08-b8374064772a | C193: B.3.1.13.8.3 | D193: SANS 1200LD 8.2.9 PSL 8.2.19 | E193: Pipeline marker posts | F193: No | G193: 2 | H193: 0.00 | I193: 0.00 | J193: Dflt
A194: Header3 | B194: e1d5c46f-c2e9-406d-b1f9-ca4b1c7cfc39 | C194: B.3.1.13.9 | D194: SANS 1200LD | E194: MANHOLES | J194: Dflt
A195: Label | B195: 4f7a1178-3f97-4503-a3f5-72e55d101f3c | D195: 8.2.3 PSLD 8.2.3 PSG 3.5.4 | E195: Precast concrete manholes, with Type 1A Heavy Duty polyprop lockable manhole covers and frames, as per Dwg. No. J40073/010-102/0: over and up to | J195: Dflt
A196: Item | B196: 29f4eb31-05ad-4f36-b7a6-819d8dd649ce | C196: B.3.1.13.9.1 | E196: 0,0 m 1,0 m | F196: No | G196: 1 | H196: 0.00 | I196: =ROUND(G196 * H196,2) -> 0.00 | J196: Dflt
A197: Item | B197: cbcd0b4d-10a0-4099-bc54-833e982df725 | C197: B.3.1.13.9.2 | E197: 1,0 m 2,0 m | F197: No | G197: 1 | H197: 0.00 | I197: 0.00 | J197: Dflt
A198: Item | B198: 3e0f8377-a5a0-405f-bdef-f68968d41425 | C198: B.3.1.13.9.3 | E198: 2,0 m 3,0 m | F198: No | G198: 2 | H198: 0.00 | I198: 0.00 | J198: Dflt
A199: Item | B199: 085d19ca-6848-4628-b9b4-06c7bc03aad1 | C199: B.3.1.13.9.4 | E199: 3,0 m 4,0 m | F199: No | G199: 1 | H199: 0.00 | I199: 0.00 | J199: Dflt
A200: Header3 | B200: 9f09656a-8f16-421e-8c55-df18d5279e0a | C200: B.3.1.13.10 | E200: EXISTING SERVICES
A201: Label | B201: 50dacdbb-48cd-4e05-889e-99bde72d891b | D201: SANS 1200DB 8.3.5(a) PSDB 8.3.5 | E201: Services that intersect a trench
... 4 more rows

Sheet BILL B.4.
D2: Bid No: | E2: RW10404061/23 | J2: Work Group
D3: Description | E3: TENDER FOR THE UPGRADE OF MEYERTON WASTEWATER TREATMENT WORKS BY 15 ML/DAY AT MEYERTON | J3: Dflt
J4: Dflt
J5: Dflt
J6: Dflt
A7: BillHeader | C7: BILL B.4. | E7: BIOLOGICAL REACTOR | J7: Dflt
A8: Item Type | B8: GUID | C8: Item Ref | D8: Payment Refers | E8: Description | F8: Unit | G8: Quantity | H8: Rate | I8: Amount R | J8: Dflt
A9: Section | B9: a16f73c4-e98b-42c3-b05e-7dbd44259934 | C9: B.4.1 | E9: BIOLOGICAL REACTOR | J9: Dflt
A10: Label | B10: 482ac830-6d12-4a1f-b461-61f6eeaee9af | E10: SECTION B.4.1 : BIOLOGICAL REACTOR | J10: Dflt
A11: Header2 | B11: e79c6f80-6c64-46f5-a315-cfd388f9ff5c | C11: B.4.1.1 | D11: SANS 1200C PSC 8.2 | E11: SITE CLEARANCE | J11: Dflt
A12: Item | B12: 4e34dc1e-3743-4dfa-b9d9-bce81d909113 | C12: B.4.1.1.1 | D12: 8.2.4 | E12: Reclear surfaces (provisional) (where ordered by Engineer) | F12: m² | G12: 1500 | H12: 0.00 | I12: =ROUND(G12 * H12,2) -> 0.00 | J12: Dflt
A13: Item | B13: 965a1dfb-cd7a-4b37-a5ea-ce6861b70c78 | C13: B.4.1.1.2 | D13: 8.2.9 | E13: Cart materials and debris to unspecified sites and dump (provisional) | F13: t.km | G13: 240 | H13: 0.00 | I13: 0.00 | J13: Dflt
A14: Header2 | B14: f8ede2a4-a7a6-4731-b96d-0e4a28ebde0d | C14: B.4.1.2 | D14: SANS 1200D 8.3.2 | E14: EARTHWORKS | J14: Dflt
A15: Item | B15: d6e9aba6-74fa-444b-a5ad-5bf9f402790b | C15: B.4.1.2.1 | D15: 8.3.1.2 PSC 8.2.10 | E15: Remove topsoil to nominal depth 150mm, stockpile, and maintain | F15: m² | G15: 50 | H15: 0.00 | I15: =ROUND(G15 * H15,2) -> 0.00 | J15: Dflt
A16: Label | B16: fdf21ee7-c6c3-46ec-8e6e-bd0971c47ab0 | D16: 8.3.2(a) PSD 8.3.6 | E16: Excavate for structures in all materials and dispose of surplus/unsuitable material as ordered within the free haul distance for : | J16: Dflt
A17: Item | B17: f18bc7db-80ee-44b2-b674-7390b54dd1d4 | C17: B.4.1.2.2 | E17: Biological Reactor | F17: m³ | G17: 50 | H17: 0.00 | I17: =ROUND(G17 * H17,2) -> 0.00 | J17: Dflt
A18: Label | B18: 00a7a053-d9cf-4b90-9c33-4df3fe187e6c | D18: 8.3.2(a) | E18: Backfill to 95% MOD AASHTO behind structures for : | J18: Dflt
A19: Item | B19: 5e9ed153-4afb-442f-ad84-2c2da9874ac5 | C19: B.4.1.2.3 | E19: Biological Reactor | F19: m³ | G19: 2200 | H19: 0.00 | I19: =ROUND(G19 * H19,2) -> 0.00 | J19: Dflt
A20: Label | B20: f947e622-fbeb-4bc5-b2bb-425ba6cfdf64 | E20: Chloradane Heptacor' or 'Aldrin' or similar approved soil insecticide | J20: Dflt
A21: Item | B21: 15e335a7-0904-4a7e-b113-1cc673adadd5 | C21: B.4.1.2.4 | E21: Biological Reactor | F21: Prov.Sum | G21: 1 | H21: 5,000.00 | I21: =ROUND(G21 * H21,2) -> 5,000.00 | J21: Dflt
A22: Header2 | B22: 94d8e805-3aeb-4e90-b995-4ba3bd03ea46 | C22: B.4.1.3 | D22: SANS 1200D 8.3.4 | E22: IMPORTING OF MATERIALS | J22: Dflt
A23: Item | B23: d85ae2e5-dab7-4ee6-9c9f-ee6e3a15d7c9 | C23: B.4.1.3.1 | E23: Extra-over item B.4.1.2.3 for importation of material to complete embankment for the Biological Reactor from commercial sources where necessary: G7 material | F23: m³ | G23: 2200 | H23: 0.00 | I23: =ROUND(G23 * H23,2) -> 0.00 | J23: Dflt
A24: Label | B24: b88abb15-39a6-4193-8c4a-e9cdc8970a4a | D24: SANS 1200D 8.3.7 | E24: Additional lateral support (Provisional) for ensuring the stability of the excavation | J24: Dflt
A25: Item | B25: 4b415882-1c59-47cc-adcb-1dbd43fe7add | C25: B.4.1.3.2 | E25: Biological Reactor | F25: m² | G25: 50 | H25: 0.00 | I25: =ROUND(G25 * H25,2) -> 0.00 | J25: Dflt
A26: Header2 | B26: 5731e092-ee0c-432f-ad27-5d4a1ba0cfc2 | C26: B.4.1.4 | D26: SANS 1200D | E26: FINISHINGS | J26: Dflt
A27: Item | B27: 5e4e3c07-6438-4dea-b6dd-12358c5e125e | C27: B.4.1.4.1 | D27: 8.3.10 | E27: Topsoiling | F27: m² | G27: 1500 | H27: 0.00 | I27: =ROUND(G27 * H27,2) -> 0.00 | J27: Dflt
A28: Item | B28: c4400eb4-90b0-46bc-90a5-8735856b2b4b | C28: B.4.1.4.2 | D28: 8.3.11 | E28: Grassing with instant kikuyu lawn grass. Rate to be inclusive of transport and delivery and offloading costs including for temporary stockpile and double handling etc. as necessary and wetting | F28: m² | G28: 1500 | H28: 0.00 | I28: 0.00 | J28: Dflt
A29: Header2 | B29: ddbe8e89-35b1-49ce-8a1e-bd3f4cabc534 | C29: B.4.1.5 | D29: SANS 1200G 8.1.3 PSG 8.1.3 | E29: CONCRETE (STRUCTURAL) | J29: Dflt
A30: Label | B30: 0cacb69a-6ac5-4cfa-ac89-abfd0d35389f | D30: 8.4.2 | E30: Blinding layer: 15 MPa/19 mm concrete: | J30: Dflt
A31: Item | B31: 452b2289-05a8-4c73-bff6-33cb63e0e950 | C31: B.4.1.5.1 | E31: 50 mm minimum thickness (stairs) | F31: m² | G31: 20 | H31: 0.00 | I31: =ROUND(G31 * H31,2) -> 0.00 | J31: Dflt
A32: Label | B32: dc63cd49-7383-4a7a-9a0c-306d226465f1 | D32: 8.4.3 PSG 3.5.4 | E32: Strength concrete: 20 MPa/19 mm: | J32: Dflt
A33: Item | B33: 6bd35163-5a9e-45fe-aedd-07c7bcc6ebfa | C33: B.4.1.5.2 | E33: Benching to outlet | F33: m³ | G33: 4 | H33: 0.00 | I33: =ROUND(G33 * H33,2) -> 0.00 | J33: Dflt
A34: Label | B34: f85a91d0-1764-41f9-ad53-6391a1c155e9 | D34: 8.4.3 PSG 3.5.4 | E34: Strength concrete (Inclusive of Crystalline Water Proofing additive): 35 MPa/19 mm: | J34: Dflt
A35: Item | B35: 6fc8352a-fb0f-4cae-a362-f6dc7e2613fc | C35: B.4.1.5.3 | E35: WAS flow collector pipe chamber wall | F35: m³ | G35: 3 | H35: 0.00 | I35: =ROUND(G35 * H35,2) -> 0.00 | J35: Dflt
A36: Item | B36: 5f6fc084-3337-468d-8d0e-f115327c3608 | C36: B.4.1.5.4 | E36: Stair Plinths | F36: m³ | G36: 5 | H36: 0.00 | I36: 0.00 | J36: Dflt
A37: Header2 | B37: 00381d28-edff-4cfb-b83f-5e475646c2ba | C37: B.4.1.6 | D37: PSG 8.11 | E37: Structural floor screeds | J37: Dflt
A38: Label | B38: 49346d73-aa2e-4870-aee3-a390726ea610 | E38: 35 MPa/19mm concrete: | J38: Dflt
A39: Item | B39: 24f0d099-b79e-4735-922b-f2ab729d9aaf | C39: B.4.1.6.1 | E39: 50 mm thick to conical floor slabs | F39: m² | G39: 4755 | H39: 0.00 | I39: =ROUND(G39 * H39,2) -> 0.00 | J39: Dflt
A40: Item | B40: 3e41c6c1-eb76-45e1-949e-a8b95f6d1999 | C40: B.4.1.6.2 | E40: Fosroc Nitobond EP slowset or equal approved epoxy based bonding agent and primer to prepared concrete floors to receive screeding | F40: m² | G40: 4755 | H40: 0.00 | I40: 0.00 | J40: Dflt
A41: Header2 | B41: 74622898-4690-4e76-9923-ccea19d70126 | C41: B.4.1.7 | D41: SANS 1200G 8.1.1 PSG 8.2 | E41: FORMWORK | J41: Dflt
A42: Label | B42: fc7b56c4-3201-4599-a46f-ce38094779ce | D42: 8.2.2 | E42: Smooth vertical plane to: | J42: Dflt
A43: Item | B43: 146bb8c9-d2fd-401f-bd24-772133303a75 | C43: B.4.1.7.1 | E43: WAS flow collector pipe chamber walls | F43: m² | G43: 20 | H43: 0.00 | I43: =ROUND(G43 * H43,2) -> 0.00 | J43: Dflt
A44: Label | B44: 77b2cebf-b1af-4a7b-ba48-c9e0fef0aba3 | D44: 8.2.5 | E44: Narrow widths (over 50 mm up to 300 mm wide): | J44: Dflt
A45: Label | B45: 0b340ab6-86c0-4917-ac32-5ffea402de01 | D45: 8.2.2 | E45: Smooth vertical to footings: | J45: Dflt
A46: Item | B46: 935fab08-ff53-499f-ab49-c308defb7c87 | C46: B.4.1.7.2 | E46: Outlet weir upstand | F46: m | G46: 1 | H46: 0.00 | I46: =ROUND(G46 * H46,2) -> 0.00 | J46: Dflt
A47: Item | B47: 160924d5-5447-4eee-ba97-11dc37b4f2cf | C47: B.4.1.7.3 | E47: Stair Plinths | F47: m² | G47: 20 | H47: 0.00 | I47: 0.00 | J47: Dflt
A48: Label | B48: 92e2950a-41ec-4218-a3c3-8e077e7c8d2b | D48: 8.1.1.2 PSG 8.1.1.8 | E48: Chamfers exceeding 20mm x 20mm and grooves: | J48: Dflt
A49: Item | B49: 841b9cfa-b3a1-4c03-aea6-d4ec44097bb2 | C49: B.4.1.7.4 | E49: Chamfer 25mm x 25mm (stairs) | F49: m | G49: 25 | H49: 0.00 | I49: =ROUND(G49 * H49,2) -> 0.00 | J49: Dflt
A50: Label | B50: c310a63d-1e8b-4f2d-8c58-8631d000d82c | D50: 8.2.6 | E50: Box out holes/form voids: | J50: Dflt
A51: Label | B51: bb5a3099-5ec1-4b4b-9123-f1cc93e87399 | E51: Small, circular (openings for sludge and water pressure relief valves etc) up to and including 0,35 m diameter.: depths over and up to | J51: Dflt
A52: Item | B52: 9998cabe-c96c-467c-986d-58bf482d9c7a | C52: B.4.1.7.5 | E52: 0 m 0,25 m | F52: No. | G52: 1 | H52: 0.00 | I52: =ROUND(G52 * H52,2) -> 0.00 | J52: Dflt
A53: Rate Only | B53: 897cc531-57db-4602-9e2f-4065bd443c1e | C53: B.4.1.7.6 | E53: 0,25 m 0,50 m | F53: No. | G53: 0 | H53: 0.00 | I53: Rate Only | J53: Dflt
A54: Label | B54: 05deac0d-1235-46c1-90db-50811a84e294 | D54: 8.2.6 | E54: Small, other shapes up to 0,1 m² in area (opening for sluice gate): depths: over and up to | J54: Dflt
A55: Rate Only | B55: 499ab6a8-7663-433a-bf04-5f32ad49fdba | C55: B.4.1.7.7 | E55: 0 m 0,5 m | F55: No. | G55: 0 | H55: 0.00 | I55: Rate Only | J55: Dflt
A56: Rate Only | B56: b1002b3d-d1fb-4822-b797-528a5b85a074 | C56: B.4.1.7.8 | E56: 0,5 m 1,0 m | F56: No. | G56: 0 | H56: 0.00 | I56: Rate Only | J56: Dflt
A57: Label | B57: 86e36d98-6dba-49f0-a183-99a505c862ad | D57: 8.2.6 | E57: Large, other shapes, area over 0,1m² up to and including 1,2 m² in wall thickness: over and up to | J57: Dflt
A58: Rate Only | B58: 9a0e4f37-9a99-4c64-9e0a-0d41c03d784d | C58: B.4.1.7.9 | E58: 0 m 0,5 m | F58: No. | G58: 0 | H58: 0.00 | I58: Rate Only | J58: Dflt
A59: Label | B59: ebc9a851-614f-4262-ac86-28d9b4a5b645 | D59: PSG 8.10 | E59: Cast pipes with or without puddle flange into concrete for: | J59: Dflt
A60: Label | B60: 33848cd2-76a1-4dfe-aded-a1dee6e8f61e | E60: Pipes up to and including 200mm NB through walls and Slabs of thickness: over and up to | J60: Dflt
A61: Rate Only | B61: f140bc1a-5be0-4a14-aac6-ba2c7d50a874 | C61: B.4.1.7.10 | E61: 0 m 0,25 m | F61: No | G61: 0 | H61: 0.00 | I61: Rate Only | J61: Dflt
A62: Item | B62: 0037ad31-26d9-4573-97d3-a298b965aef1 | C62: B.4.1.7.11 | E62: 0,25 m 0,5 m | F62: No | G62: 1 | H62: 0.00 | I62: =ROUND(G62 * H62,2) -> 0.00 | J62: Dflt
A63: Label | B63: 858c3f61-32eb-41bf-b01b-393fc1b18562 | E63: Pipes up to and including 1200mm NB through walls and slabs of thickness: over and up to | J63: Dflt
A64: Item | B64: 795cb1c3-b4c2-4ec9-951e-ab60da35e52e | C64: B.4.1.7.12 | E64: 0 m 0,25 m | F64: No | G64: 1 | H64: 0.00 | I64: =ROUND(G64 * H64,2) -> 0.00 | J64: Dflt
A65: Rate Only | B65: 8cc72401-b603-4f33-81aa-465be1aabe46 | C65: B.4.1.7.13 | E65: 0,25 m 0,5 m | F65: No | G65: 0 | H65: 0.00 | I65: Rate Only | J65: Dflt
A66: Header2 | B66: f1c70d23-4d9e-48ac-99ea-e4a2250820e3 | C66: B.4.1.8 | D66: SANS 1200G 8.1.2 PSG 8.1.2 | E66: REINFORCEMENT | J66: Dflt
A67: Label | B67: cc9a6ef0-4198-431f-8686-488a2d8b0916 | D67: 8.1.2.3(a) | E67: Mild steel bars: | J67: Dflt
A68: Item | B68: 2a59c429-61f6-4f30-b35a-4e331c7d016a | C68: B.4.1.8.1 | E68: 25 mm diameter: Basic price | F68: t | G68: 0.06 | H68: 0.00 | I68: =ROUND(G68 * H68,2) -> 0.00 | J68: Dflt
A69: Label | B69: 5cc199a7-30d1-4a37-8003-f7a206210b8e | D69: 8.1.2.3(b) | E69: Extra-over item B.4.1.8.1 for bars of diameter (Provisional): | J69: Dflt
A70: Item | B70: a08f3f44-0f3c-426e-9953-fa74af6496ce | C70: B.4.1.8.2 | E70: 8 mm | F70: t | G70: 0.06 | H70: 0.00 | I70: =ROUND(G70 * H70,2) -> 0.00 | J70: Dflt
A71: Label | B71: 62153f75-7976-4384-b6dd-eeae42ebf5cb | D71: 8.1.2.3(a) | E71: High tensile steel bars: | J71: Dflt
A72: Item | B72: 07f0a750-4da1-4227-a96d-875d420e28ba | C72: B.4.1.8.3 | E72: 25 mm diameter: Basic price | F72: t | G72: 1.14 | H72: 0.00 | I72: =ROUND(G72 * H72,2) -> 0.00 | J72: Dflt
A73: Label | B73: 7f327824-9b6e-4f7c-acb3-3032c613790c | D73: 8.1.2.3(b) | E73: Extra-over item B.4.1.8.3 for bars of diameter (Provisional): | J73: Dflt
A74: Item | B74: 22a7adad-c31b-4869-8893-29ef5c303619 | C74: B.4.1.8.4 | E74: 10 mm | F74: t | G74: 0.35 | H74: 0.00 | I74: =ROUND(G74 * H74,2) -> 0.00 | J74: Dflt
A75: Item | B75: 87791498-b417-45dc-af8d-42f75a0b35e0 | C75: B.4.1.8.5 | E75: 12 mm | F75: t | G75: 0.35 | H75: 0.00 | I75: 0.00 | J75: Dflt
A76: Item | B76: 7d4f41a2-765f-417e-a9af-cfa3160f2b35 | C76: B.4.1.8.6 | E76: 16 mm | F76: t | G76: 0.44 | H76: 0.00 | I76: 0.00 | J76: Dflt
A77: Header2 | B77: 6f335d29-5d21-410a-b74a-f50e0b2d8182 | C77: B.4.1.9 | D77: SANS 1200G 8.4.4 PSG 8.4 | E77: UNFORMED SURFACE FINISHES | J77: Dflt
A78: Label | B78: bfeadbf8-6041-458b-a147-c933c131ff9b | D78: 8.1.1.5 PSG 8.4 | E78: Steel-float finish: | J78: Dflt
A79: Item | B79: ab9e5dd6-9a15-479e-b5d1-fddc07976034 | C79: B.4.1.9.1 | E79: Benching of WAS outlet | F79: m² | G79: 3 | H79: 0.00 | I79: =ROUND(G79 * H79,2) -> 0.00 | J79: Dflt
A80: Item | B80: 071dd683-049c-492f-82d4-cd74e8f53db7 | C80: B.4.1.9.2 | E80: Top of WAS outlet walls | F80: m² | G80: 2 | H80: 0.00 | I80: 0.00 | J80: Dflt
A81: Label | B81: 51bb7c40-3204-408e-a0d7-da14cf0ff335 | D81: 8.1.1.5 PSG 8.4 | E81: Non-skid surface finish: | J81: Dflt
A82: Item | B82: 41f48fd4-15e8-4954-b39b-bb51638c7a7b | C82: B.4.1.9.3 | E82: Stair Plinths | F82: m² | G82: 5 | H82: 0.00 | I82: =ROUND(G82 * H82,2) -> 0.00 | J82: Dflt
A83: Label | B83: 8332149e-ef3b-47a0-b62a-0fbad92748ca | D83: 8.1.1.5 PSG 8.4 | E83: Power-floated finish: | J83: Dflt
A84: Item | B84: 02eaf513-c6a6-49d0-a182-208e9e94666f | C84: B.4.1.9.4 | E84: Mortar screed to floor slabs | F84: m² | G84: 4755 | H84: 0.00 | I84: =ROUND(G84 * H84,2) -> 0.00 | J84: Dflt
A85: Header2 | B85: 31b9bc88-96c5-4d96-9ef8-b9feb384ca60 | C85: B.4.1.10 | D85: SANS 1200 8.5 PSG 8.5 | E85: JOINTS | J85: Dflt
A86: Label | B86: edd421db-23d0-4462-ba24-9482aead9f7f | E86: Contraction joint in floor slab complete as shown on Dwg. No. J40073/010-207 and detail on Dwg. No. J40073/010-103: | J86: Dflt
A87: Item | B87: 7c7d63f8-c7b0-4e65-bb79-caf91049ed73 | C87: B.4.1.10.1 | E87: Joint in Floor: Including forming of joint, supply and installation (all inclusive) of 2mm Recess, Stainless steel strip and 250mm x 2mm Hypelon bandage | F87: m | G87: 300 | H87: 0.00 | I87: =ROUND(G87 * H87,2) -> 0.00 | J87: Dflt
A88: Item | B88: b636806e-4cff-409f-bfc1-d10feab92f20 | C88: B.4.1.10.2 | E88: Joint in Screed: Including forming of joint, supply and installation (all inclusive) of 8mm diameter Polycord and Polyurethane sealant | F88: m | G88: 300 | H88: 0.00 | I88: 0.00 | J88: Dflt
A89: Label | B89: 38284820-9abe-4957-b58c-21dc811db3b4 | E89: Wall joints complete as shown on Dwg. No. J40073/010-207 and detail shown on Dwg. No. J40073/010-103: | J89: Dflt
A90: Item | B90: 51b5889c-75f4-4f84-b6d9-42aadb105a66 | C90: B.4.1.10.3 | E90: Joint in Wall (Internal Walls): Including forming of joint, supply and installation (all inclusive) of 2mm Recess, Stainless steel strip and 250mm x 2mm Hypelon bandage on inside | F90: m | G90: 12 | H90: 0.00 | I90: =ROUND(G90 * H90,2) -> 0.00 | J90: Dflt
A91: Item | B91: 85945bfa-31cc-4075-ad6c-25e6e6a8ca20 | C91: B.4.1.10.4 | E91: Joint in Wall (External Walls): Including forming of joint, supply and installation (all inclusive) of 2mm Recess, Stainless steel strip and 250mm x 2mm Hypelon bandage on inside and 8mm diameter Polycord and Polyurethane sealant on outside | F91: m | G91: 600 | H91: 0.00 | I91: 0.00 | J91: Dflt
A92: Header2 | B92: 6aa83f0e-bc38-4724-8ce6-4e3685d6d437 | C92: B.4.1.11 | D92: SANS 1200H and HA | E92: STRUCTURAL STEELWORK | J92: Dflt
A93: Label | B93: 907106a5-14ad-49ef-8610-672ae0dda462 | D93: PSG 8.10 | E93: Supply, install, corrosion protection, testing, etc angles: | J93: Dflt
A94: Item | B94: 599a7d66-743a-4bc4-8ece-ce9902c13b17 | C94: B.4.1.11.1 | E94: 50 x 50 mm galvanised angles cast into concrete | F94: m | G94: 20 | H94: 0.00 | I94: =ROUND(G94 * H94,2) -> 0.00 | J94: Dflt
A95: Label | B95: 6110ffcc-351e-4913-827d-695b70f62c3f | E95: Installation of galvanized steel staircases: | J95: Dflt
A96: Sum | B96: 15225138-af11-4b70-ac23-2f0c90b5e923 | C96: B.4.1.11.2 | E96: Complete Installation of staircases, material provided by others | F96: Prov.Sum | G96: 1 | H96: 50,000.00 | I96: =ROUND(H96,2) -> 50,000.00 | J96: Dflt
A97: Header2 | B97: 8f31de69-8c36-4719-a268-97b0c61292f4 | C97: B.4.1.12 | E97: SUNDRIES | J97: Dflt
A98: Label | B98: 56bdcf42-ffd7-48d3-843f-2d22af643825 | E98: Water Tightness Testing: | J98: Dflt
A99: Item | B99: e7067a58-31f6-4667-814a-d478db98d63a | C99: B.4.1.12.1 | D99: PSG 8.12 | E99: Testing for Water Tightness, all inclusive to PSG 7.2.5 | F99: Sum | G99: 1 | H99: 0.00 | I99: =ROUND(G99 * H99,2) -> 0.00 | J99: Dflt
A100: Label | B100: cf84e280-922b-4333-b547-84968e9e08a9 | E100: Lowering of BNR Weirs:
A101: Sum | B101: 96a1e783-9948-40ca-9421-f2e46df11d3c | C101: B.4.1.12.2 | E101: Lowering of BNR weirs complete and all inclusive as shown on Dwg. No. J40073/010-207 & J40073/010-208 | F101: PSum | G101: 1 | H101: 120,000.00 | I101: =ROUND(H101,2) -> 120,000.00
A102: Label | B102: df8d86e5-0da7-453b-9885-fb8d06df3227 | E102: Corrective work to BNR
A103: Sum | B103: 0a97ff39-8dfa-4444-b7c5-0f6680bb85a3 | C103: B.4.1.12.3 | E103: Corrective works as directed by the Specialist investigations/tests conducted by the Contractor | F103: PSum | G103: 1 | H103: 5,000,000.00 | I103: =ROUND(H103,2) -> 5,000,000.00
A104: Label | B104: 6c49c555-f897-4684-97bc-b155db36b1b4 | E104: Supply of Lime
A105: Sum | B105: e0f68357-96fc-44f1-8552-8f3d945c1102 | C105: B.4.1.12.4 | E105: Provide hydrated lime for disinfecting overflowed sludge | F105: PSum | G105: 1 | H105: 50,000.00 | I105: =ROUND(H105,2) -> 50,000.00

Sheet BILL B.5.
D2: Bid No: | E2: RW10404061/23 | J2: Work Group
D3: Description | E3: TENDER FOR THE UPGRADE OF MEYERTON WASTEWATER TREATMENT WORKS BY 15 ML/DAY AT MEYERTON | J3: Dflt
J4: Dflt
J5: Dflt
J6: Dflt
A7: BillHeader | C7: BILL B.5. | E7: SECONDARY SEDIMENTATION TANK | J7: Dflt
A8: Item Type | B8: GUID | C8: Item Ref | D8: Payment Refers | E8: Description | F8: Unit | G8: Quantity | H8: Rate | I8: Amount R | J8: Dflt
A9: Section | B9: f3f40298-8c7b-421c-a61b-732bac7975b7 | C9: B.5.1 | E9: SECONDARY SEDIMENTATION TANK | J9: Dflt
A10: Label | B10: b4292b73-9672-40a2-9309-13eab2bc625c | E10: SECTION B.5.1 : SECONDARY SEDIMENTATION TANK | J10: Dflt
A11: Header2 | B11: e4a2e39b-e3b2-4c6f-bec2-8c5845f2683a | C11: B.5.1.1 | D11: SANS 1200C & PSC 8.2 | E11: SITE CLEARANCE | J11: Dflt
A12: Item | B12: 028f0ed4-3591-46a6-924e-ac995d7f5316 | C12: B.5.1.1.1 | D12: 8.2.4 | E12: Reclear surfaces (provisional) (where ordered by Engineer) | F12: m² | G12: 200 | H12: 0.00 | I12: =ROUND(G12 * H12,2) -> 0.00 | J12: Dflt
A13: Sum | B13: f54f4401-1629-4246-98b1-ac772af1e668 | C13: B.5.1.1.2 | D13: 8.2.8 | E13: Demolish and remove existing concrete flooring on conical surface | F13: Sum | G13: 1 | H13: 0.00 | I13: =ROUND(H13,2) -> 0.00 | J13: Dflt
A14: Sum | B14: cf6ea9ab-146c-45d1-a97d-81cefbcbd408 | C14: B.5.1.1.3 | D14: 8.2.8 | E14: Dismantle and remove existing wall footing reinforcing | F14: Sum | G14: 1 | H14: 0.00 | I14: 0.00 | J14: Dflt
A15: Item | B15: f1bc0121-0577-4b29-8597-b1159314d878 | C15: B.5.1.1.4 | D15: 8.2.9 | E15: Cart materials and debris to unspecified sites and dump (provisional) | F15: t.km | G15: 100 | H15: 0.00 | I15: =ROUND(G15 * H15,2) -> 0.00 | J15: Dflt
A16: Header2 | B16: 85c11371-8f0e-4633-ac68-d9e0bb0b1382 | C16: B.5.1.2 | D16: SANS 1200D 8.3.2 | E16: EARTHWORKS | J16: Dflt
A17: Rate Only | B17: e4cb973d-2c6e-40b2-b178-6cec2822c411 | C17: B.5.1.2.1 | D17: 8.3.1.2 PSC 8.2.10 | E17: Remove topsoil to nominal depth 150mm, stockpile, and maintain | F17: m² | G17: 0 | H17: 0.00 | I17: Rate Only | J17: Dflt
A18: Label | B18: ec235039-fe40-4274-a375-4cdd5d7a9dbc | D18: 8.3.2(a) PSD 8.3.6 | E18: Excavate for structures in all materials and dispose of surplus/unsuitable material as ordered within the free haul distance for : | J18: Dflt
A19: Rate Only | B19: ac39b235-8db9-4eaf-9b41-f181ac667802 | C19: B.5.1.2.2 | E19: Secondary Sedimentation Tank | F19: m³ | G19: 0 | H19: 0.00 | I19: Rate Only | J19: Dflt
A20: Label | B20: b87639e2-d1d9-4915-91f0-dd7d00bbc1a5 | D20: 8.3.2(a) | E20: Backfill to 95% MOD AASHTO behind structures for : | J20: Dflt
A21: Item | B21: 4e5d69e0-a3f3-4480-a4a9-cb0ea4e01743 | C21: B.5.1.2.3 | E21: Secondary Sedimentation Tank | F21: m³ | G21: 1325 | H21: 0.00 | I21: =ROUND(G21 * H21,2) -> 0.00 | J21: Dflt
A22: Label | B22: cd3ecd1a-d6c5-4255-8637-c113728c8e92 | E22: Chloradane Heptacor' or 'Aldrin' or similar approved soil insecticide | J22: Dflt
A23: Item | B23: 7d64cb64-4473-4b7c-8907-1531dce675ee | C23: B.5.1.2.4 | E23: SST | F23: Prov.Sum | G23: 1 | H23: 5,000.00 | I23: =ROUND(G23 * H23,2) -> 5,000.00 | J23: Dflt
A24: Header2 | B24: d7aea17b-efeb-428b-9389-133999d7d67e | C24: B.5.1.3 | D24: SANS 1200D 8.3.2(b) PSD 8.3.2(b) | E24: Extra-over items B.5.1.2.2 for excavation in: | J24: Dflt
A25: Rate Only | B25: aaf5bd18-003d-44d4-af11-6fc79d1eded2 | C25: B.5.1.3.1 | D25: 8.3.2(b) | E25: Hard rock material | F25: m³ | G25: 0 | H25: 0.00 | I25: Rate Only | J25: Dflt
A26: Header2 | B26: 43aeaa4a-ae8d-464e-92d0-f9add8f2e67b | C26: B.5.1.4 | D26: SANS 1200D 8.3.4 | E26: IMPORTING OF MATERIALS | J26: Dflt
A27: Item | B27: 956b21bc-dfda-47b0-bd22-584538af37fe | C27: B.5.1.4.1 | E27: Extra-over item B.5.1.2.3 for importation of material to complete embankment for the Secondary Sedimentation Tank from commercial sources where necessary: G7 material | F27: m³ | G27: 550 | H27: 0.00 | I27: =ROUND(G27 * H27,2) -> 0.00 | J27: Dflt
A28: Label | B28: 33556867-e60c-4a07-8c92-83aba5d5c2df | D28: 8.3.7 | E28: Additional lateral support (Provisional) for ensuring the stability of the excavation | J28: Dflt
A29: Item | B29: a0657a80-3aa3-4953-9d69-380335edba85 | C29: B.5.1.4.2 | E29: Secondary Sedimentation Tank | F29: Sum | G29: 1 | H29: 0.00 | I29: =ROUND(G29 * H29,2) -> 0.00 | J29: Dflt
A30: Header2 | B30: b0065dae-a05d-4716-8304-8bbeaf3572a5 | C30: B.5.1.5 | D30: SANS 1200D | E30: FINISHINGS | J30: Dflt
A31: Item | B31: 2c4af831-253e-4575-8781-cef752878f81 | C31: B.5.1.5.1 | D31: 8.3.10 | E31: Topsoiling | F31: m² | G31: 1300 | H31: 0.00 | I31: =ROUND(G31 * H31,2) -> 0.00 | J31: Dflt
A32: Item | B32: 1244900e-a035-4f4d-ba09-fb8a4216abe6 | C32: B.5.1.5.2 | D32: 8.3.11 | E32: Grassing with instant kikuyu lawn grass. Rate to be inclusive of transport and delivery and offloading costs including for temporary stockpile and double handling etc as necessary and wetting | F32: m² | G32: 1300 | H32: 0.00 | I32: 0.00 | J32: Dflt
A33: Header2 | B33: bf7f0be1-0387-482e-a9d7-ead461ef04c9 | C33: B.5.1.6 | D33: SANS 1200G 8.1.3 PSG 8.1.3 | E33: CONCRETE (STRUCTURAL) | J33: Dflt
A34: Label | B34: ec022311-2fe9-49a8-b972-1fd99ba619f6 | D34: 8.4.2 | E34: Blinding layer: 15 MPa/19 mm concrete: | J34: Dflt
A35: Item | B35: 6fd4f971-194e-4976-b853-eb7230e1ebaf | C35: B.5.1.6.1 | E35: 75 mm minimum thickness (Footing) | F35: m² | G35: 140 | H35: 0.00 | I35: =ROUND(G35 * H35,2) -> 0.00 | J35: Dflt
A36: Item | B36: fde6ef89-a8c1-4df8-974e-5e4584063df8 | C36: B.5.1.6.2 | E36: 50 mm minimum thickness (Channel) | F36: m² | G36: 15 | H36: 0.00 | I36: 0.00 | J36: Dflt
A37: Label | B37: e44e0251-a980-40b1-bcac-2f67a4132731 | D37: 8.4.3 | E37: Strength Concrete: 15 MPa/19 mm: | J37: Dflt
A38: Item | B38: a672c29d-e649-447a-b71a-b9c76f723840 | C38: B.5.1.6.3 | E38: Thrust blocks | F38: m³ | G38: 5 | H38: 0.00 | I38: =ROUND(G38 * H38,2) -> 0.00 | J38: Dflt
A39: Label | B39: 5fafd766-4f7e-4371-a4ec-25b7b7ff7e1c | D39: 8.4.3 PSG 3.5.4 | E39: Strength Concrete (Inclusive of Crystalline Water Proofing additive): 35 MPa/19 mm: | J39: Dflt
A40: Item | B40: ace955aa-f700-426a-aa38-0c5f6053cb63 | C40: B.5.1.6.4 | E40: Conical floor slab | F40: m³ | G40: 120 | H40: 0.00 | I40: =ROUND(G40 * H40,2) -> 0.00 | J40: Dflt
A41: Item | B41: ee380e00-27c7-4193-99d8-c45852fe26c3 | C41: B.5.1.6.5 | E41: Footing slab (Walls) | F41: m³ | G41: 45 | H41: 0.00 | I41: 0.00 | J41: Dflt
A42: Item | B42: f1f0b568-95b2-42a5-b49f-99fdd5e93302 | C42: B.5.1.6.6 | E42: Rotating bridge platform beams, slab and plinth | F42: m³ | G42: 4 | H42: 0.00 | I42: 0.00 | J42: Dflt
A43: Item | B43: 3d47f60e-c360-414e-bc83-9ff7c1359e4e | C43: B.5.1.6.7 | E43: Launder slab | F43: m³ | G43: 28 | H43: 0.00 | I43: 0.00 | J43: Dflt
A44: Item | B44: ab98768d-0d63-4c87-9efa-fc67722742ed | C44: B.5.1.6.8 | E44: Outlet channel slab | F44: m³ | G44: 3 | H44: 0.00 | I44: 0.00 | J44: Dflt
A45: Item | B45: eab3a4a0-12bf-4938-af7e-12b31471e607 | C45: B.5.1.6.9 | E45: Vertical circular walls | F45: m³ | G45: 54 | H45: 0.00 | I45: 0.00 | J45: Dflt
A46: Item | B46: 00309cdd-879b-49a4-9b53-0ed2844ad51a | C46: B.5.1.6.10 | E46: Launder walls | F46: m³ | G46: 29 | H46: 0.00 | I46: 0.00 | J46: Dflt
A47: Item | B47: c1eeb506-3ae5-47dd-94c3-bb38abcf1f17 | C47: B.5.1.6.11 | E47: Outlet channel walls | F47: m³ | G47: 2 | H47: 0.00 | I47: 0.00 | J47: Dflt
A48: Item | B48: b2879389-47ce-4d29-b1c2-c7a839ad4130 | C48: B.5.1.6.12 | E48: Columns | F48: m³ | G48: 4 | H48: 0.00 | I48: 0.00 | J48: Dflt
A49: Label | B49: 853c736e-0768-44ea-8b3b-ed1da33a1a5d | E49: Soilcrete: 3 MPa: | J49: Dflt
A50: Item | B50: 9b495a97-2f95-47cd-bccc-2a0851ba7c68 | C50: B.5.1.6.13 | E50: Mass soilcrete under the SST | F50: m³ | G50: 25 | H50: 0.00 | I50: =ROUND(G50 * H50,2) -> 0.00 | J50: Dflt
A51: Label | B51: 3f1ad6d3-e9ab-49d8-aefe-b810e397e627 | D51: 8.4.3 PSG 3.5.4 | E51: Strength Concrete: 20 MPa/19 mm: | J51: Dflt
A52: Item | B52: e8269119-7e9f-4b73-8248-951ac60be368 | C52: B.5.1.6.14 | E52: Circular benching | F52: m³ | G52: 25 | H52: 0.00 | I52: =ROUND(G52 * H52,2) -> 0.00 | J52: Dflt
A53: Label | B53: 40563ab3-6323-4a69-9b1d-dfd8f092902e | D53: PSG 8.9 | E53: No-fines in NF 19 mm: | J53: Dflt
A54: Item | B54: 36bfee7e-0bb1-4905-832c-f97083653372 | C54: B.5.1.6.15 | E54: To underside of floor slab, 75 mm nominal thickness | F54: m³ | G54: 55 | H54: 0.00 | I54: =ROUND(G54 * H54,2) -> 0.00 | J54: Dflt
A55: Header2 | B55: f53ef4bd-c0b8-425f-9a6a-2c20e00abbb1 | C55: B.5.1.7 | D55: PSG 8.11 | E55: Structural floor screeds | J55: Dflt
A56: Label | B56: 3150a005-fb34-47f7-8bfe-0fb0b68ee881 | E56: 35 MPa/19mm concrete: | J56: Dflt
A57: Item | B57: b9a529fb-0b02-4d75-9dbb-5c48adee6f7f | C57: B.5.1.7.1 | D57: PSG 8.11 | E57: 50 mm thick to conical floor slabs | F57: m² | G57: 685 | H57: 0.00 | I57: =ROUND(G57 * H57,2) -> 0.00 | J57: Dflt
A58: Item | B58: 3f3e7c7d-1ad2-457d-b94e-18dc94c94a2a | C58: B.5.1.7.2 | E58: Fosroc Nitobond EP slowset or equal approved epoxy based bonding agent and primer to prepared concrete floors to receive screeding | F58: m² | G58: 685 | H58: 0.00 | I58: 0.00 | J58: Dflt
A59: Item | B59: 1c465c4d-6315-49c5-80cd-1f9f01291927 | C59: B.5.1.7.3 | E59: Average 35 mm thick to launder slabs | F59: m² | G59: 40 | H59: 0.00 | I59: 0.00 | J59: Dflt
A60: Header2 | B60: 4f6f057a-bb7a-4d87-89fc-0975c1604a15 | C60: B.5.1.8 | D60: SANS 1200G 8.2 PSG 8.2 | E60: FORMWORK | J60: Dflt
A61: Label | B61: 478c9e46-929e-4321-baf9-430e177a0cf7 | D61: 8.2.2 | E61: Smooth vertical circular to walls: | J61: Dflt
A62: Item | B62: 66c804f4-fde9-439e-990f-18f640ee1803 | C62: B.5.1.8.1 | E62: 15250 mm radius | F62: m² | G62: 310 | H62: 0.00 | I62: =ROUND(G62 * H62,2) -> 0.00 | J62: Dflt
A63: Item | B63: 5ea71f43-8bbe-4898-b95f-21a20f7c42ad | C63: B.5.1.8.2 | E63: 15000 mm radius | F63: m² | G63: 360 | H63: 0.00 | I63: 0.00 | J63: Dflt
A64: Item | B64: 6790ff59-8254-45a1-894e-630f857866cb | C64: B.5.1.8.3 | E64: 14600 mm radius | F64: m² | G64: 50 | H64: 0.00 | I64: 0.00 | J64: Dflt
A65: Item | B65: ecf28828-0418-4ad8-915f-73b31022256d | C65: B.5.1.8.4 | E65: 14400 mm radius | F65: m² | G65: 50 | H65: 0.00 | I65: 0.00 | J65: Dflt
A66: Label | B66: 28b2051b-aa8a-4387-ae9c-09ce9c3c9801 | D66: 8.2.2 | E66: Smooth vertical plane to: | J66: Dflt
A67: Item | B67: 17393e46-de02-4f35-beba-6cb9cd7b565b | C67: B.5.1.8.5 | E67: Rotating bridge platform beams and slab | F67: m² | G67: 15 | H67: 0.00 | I67: =ROUND(G67 * H67,2) -> 0.00 | J67: Dflt
A68: Item | B68: db2fdc26-e1da-4fc1-b631-29cd4fafb455 | C68: B.5.1.8.6 | E68: Columns | F68: m² | G68: 35 | H68: 0.00 | I68: 0.00 | J68: Dflt
A69: Item | B69: 849ec4e1-12db-4afe-83cc-e43b0a2786f9 | C69: B.5.1.8.7 | E69: Outlet | F69: m² | G69: 1 | H69: 0.00 | I69: 0.00 | J69: Dflt
A70: Item | B70: b343b6ed-61d0-4d60-bfa4-993ecda93576 | C70: B.5.1.8.8 | E70: Channel | F70: m² | G70: 30 | H70: 0.00 | I70: 0.00 | J70: Dflt
A71: Label | B71: 2b4a2e30-362e-44d6-9d2c-68cd050513df | D71: 8.2.2 | E71: Smooth sloping circular to: | J71: Dflt
A72: Item | B72: d76828ad-a10f-4303-a47b-d20601898e1a | C72: B.5.1.8.9 | E72: Launder soffit | F72: m² | G72: 62 | H72: 0.00 | I72: =ROUND(G72 * H72,2) -> 0.00 | J72: Dflt
A73: Item | B73: 7b68da6f-3cea-4bad-916c-0e6cb54ba7ce | C73: B.5.1.8.10 | D73: 8.2.2 | E73: Smooth, sloping, plane to fillet soffits of rotating bridge platform | F73: m² | G73: 1 | H73: 0.00 | I73: 0.00 | J73: Dflt
A74: Label | B74: f78a93b1-06f0-475e-960c-2d84d979e38a | D74: 8.2.2 | E74: Smooth horizontal plane to: | J74: Dflt
A75: Item | B75: cc6bd2cb-114a-43ae-9148-fc183b41a052 | C75: B.5.1.8.11 | E75: Rotating bridge platform beam and slab soffits | F75: m² | G75: 6 | H75: 0.00 | I75: =ROUND(G75 * H75,2) -> 0.00 | J75: Dflt
A76: Item | B76: 4b64fb28-4a1e-4fc7-bace-caf6e39ba028 | C76: B.5.1.8.12 | E76: Launder outlet soffit | F76: m² | G76: 1 | H76: 0.00 | I76: 0.00 | J76: Dflt
A77: Label | B77: 44576bb7-df3e-4e87-8b9a-b1e7d045e68e | D77: 8.2.5 | E77: Narrow widths (over 50 mm up to 300 mm wide): | J77: Dflt
A78: Label | B78: c3f4fcdf-bd12-406c-acad-ad44d38a8f07 | D78: 8.2.1 | E78: Rough vertical circular to footings: | J78: Dflt
A79: Item | B79: 0392c7d1-a7b8-47c0-a387-c1d2bfe64c79 | C79: B.5.1.8.13 | E79: 15850 mm radius (outside) | F79: m | G79: 100 | H79: 0.00 | I79: =ROUND(G79 * H79,2) -> 0.00 | J79: Dflt
A80: Label | B80: 447c812f-e9b6-4639-9a05-bea695c2b3b7 | D80: 8.2.2 | E80: Smooth vertical circular to footings: | J80: Dflt
A81: Item | B81: 89aceb29-266f-49b2-b1b5-cfba239914f3 | C81: B.5.1.8.14 | E81: 14100 mm radius (inside) | F81: m | G81: 90 | H81: 0.00 | I81: =ROUND(G81 * H81,2) -> 0.00 | J81: Dflt
A82: Item | B82: 674b3ea1-373e-43b3-a803-ee16608cdf41 | C82: B.5.1.8.15 | E82: 4050 mm radius (centre outside) | F82: m | G82: 26 | H82: 0.00 | I82: 0.00 | J82: Dflt
A83: Item | B83: 3040183d-d4c6-4554-8e0e-b4d42c86e2f6 | C83: B.5.1.8.16 | E83: 3350 mm radius (centre inside) | F83: m | G83: 21 | H83: 0.00 | I83: 0.00 | J83: Dflt
A84: Label | B84: 1bfcaa2c-0828-479b-85f4-cc732c22b5f7 | D84: 8.2.2 | E84: Smooth vertical circular to: | J84: Dflt
A85: Item | B85: 60766252-0d22-4fc1-8d3d-3f08abbbaf87 | C85: B.5.1.8.17 | E85: 15300 mm radius (mushroom head) | F85: m | G85: 100 | H85: 0.00 | I85: =ROUND(G85 * H85,2) -> 0.00 | J85: Dflt
A86: Item | B86: 5e29284b-a28e-4fab-b09e-8fc2aaf19649 | C86: B.5.1.8.18 | E86: 14950 mm radius (mushroom head) | F86: m | G86: 95 | H86: 0.00 | I86: 0.00 | J86: Dflt
A87: Item | B87: 7fab63c4-8d74-4509-a0be-6b914496cb73 | C87: B.5.1.8.19 | E87: 300 mm radius (platform plinth) | F87: m | G87: 2 | H87: 0.00 | I87: 0.00 | J87: Dflt
A88: Rate Only | B88: 01a37477-001f-4e0a-bcbf-99896274063b | C88: B.5.1.8.20 | E88: 400 mm radius (platform plinth) | F88: m | G88: 0 | H88: 0.00 | I88: Rate Only | J88: Dflt
A89: Label | B89: fe6b3683-5946-46da-96fb-344550ff22b7 | D89: 8.1.1.2 PSG 8.1.1.8 | E89: Chamfers exceeding 20mm x 20mm and grooves: | J89: Dflt
A90: Rate Only | B90: e818c1d2-e65c-41ac-a1af-c9e9db67fb5f | C90: B.5.1.8.21 | E90: Chamfer 25mm x 25mm | F90: m | G90: 0 | H90: 0.00 | I90: Rate Only | J90: Dflt
A91: Item | B91: bc6ef079-5bcf-40b0-ab95-de207f771ea7 | C91: B.5.1.8.22 | E91: Chamfer 50mm x 50mm | F91: m | G91: 385 | H91: 0.00 | I91: =ROUND(G91 * H91,2) -> 0.00 | J91: Dflt
A92: Item | B92: 1a01fa9b-2164-48a0-9d92-62ac3fad0ef6 | C92: B.5.1.8.23 | E92: Chamfer 100mm x 100mm | F92: m | G92: 95 | H92: 0.00 | I92: 0.00 | J92: Dflt
A93: Label | B93: 44e6fa02-085f-46f7-b524-49911d2e1f47 | D93: 8.2.6 | E93: Box Out Holes/Form Voids: | J93: Dflt
A94: Label | B94: e918cdf9-5a58-43e4-9066-c046826af663 | D94: a) | E94: Small, other than circular, of area up to and including 0.1 m² through slabs of thickness: | J94: Dflt
A95: Label | B95: b4484bbe-4bb3-4d24-91bb-e2177ff232db | E95: Over (m) Up to and incl. (m) | J95: Dflt
A96: Item | B96: 20d48c74-de62-4b78-80a1-f03d7ba0e78c | C96: B.5.1.8.24 | E96: 0.0 0.25 | F96: No | G96: 9 | H96: 0.00 | I96: =ROUND(G96 * H96,2) -> 0.00 | J96: Dflt
A97: Label | B97: 83af585a-a443-409a-bb24-c0bd01bafd16 | D97: 8.7(b) | E97: Pockets for holding down bolts of diameter: | J97: Dflt
A98: Label | B98: b63b47cc-cd47-4d28-9543-1daefcc62208 | E98: Over (mm) Up to and incl. (mm) | J98: Dflt
A99: Rate Only | B99: 73624faf-2ac7-4743-97b2-533b7bc2c55d | C99: B.5.1.8.25 | E99: 8 mm 16 mm | F99: No | G99: 0 | H99: 0.00 | I99: Rate Only | J99: Dflt
A100: Rate Only | B100: 8ca0138e-8895-42da-9b83-78d91a4a9c73 | C100: B.5.1.8.26 | E100: 16 mm 24 mm | F100: No | G100: 0 | H100: 0.00 | I100: Rate Only | J100: Dflt
A101: Label | B101: 707411bb-d471-474e-b105-7cb9212643ec | D101: PSG 8.10 | E101: Casting of pipes/specials into concrete for: | J101: Dflt
A102: Label | B102: 76cc2eb6-440b-4b80-9d51-ecd52be222ce | E102: Pipes up to and including 200 mm NB, through walls and slabs of depth: | J102: Dflt
A103: Label | B103: c4a0c2c4-0665-41fd-b472-cc8ce3158839 | E103: Over (m) Up to and incl. (m) | J103: Dflt
A104: Item | B104: decb8097-6994-4b76-ad97-e3eaa1d957ef | C104: B.5.1.8.27 | E104: 0.00 0.40 | F104: No | G104: 1 | H104: 0.00 | I104: =ROUND(G104 * H104,2) -> 0.00 | J104: Dflt
A105: Label | B105: 84283595-9b8a-4402-bae5-201f008cbf3c | E105: Pipes over 200 mm NB up to and including 600 mm NB, through walls and slabs of depth: | J105: Dflt
A106: Label | B106: d932879e-bbe8-4464-a8b5-41c1e8570091 | E106: Over (m) Up to and incl. (m) | J106: Dflt
A107: Rate Only | B107: a43a9933-e581-489b-b05e-252c2974e99a | C107: B.5.1.8.28 | E107: 0.00 0.40 | F107: No | G107: 0 | H107: 0.00 | I107: Rate Only | J107: Dflt
A108: Label | B108: 9c9967e1-7f8f-4b8b-8ecc-9a7d9b97fdc8 | E108: HDPE electrical cable sleeve: | J108: Dflt
A109: Item | B109: ef988ab1-2875-464d-af48-7eed010f3722 | C109: B.5.1.8.29 | E109: 63 mm diameter type 4 class 6 | F109: m | G109: 20 | H109: 0.00 | I109: =ROUND(G109 * H109,2) -> 0.00 | J109: Dflt
A110: Header2 | B110: 55f72e1c-db52-423a-a3a1-e59adbda9aab | C110: B.5.1.9 | D110: SANS 1200G 8.1.2 PSG 8.1.2 | E110: REINFORCEMENT | J110: Dflt
A111: Label | B111: 6e15518e-5ab3-4a37-bc4b-2ddf782ec172 | D111: 8.1.2.3(a) | E111: Mild steel bars: | J111: Dflt
A112: Item | B112: 8402e7bf-5adf-4303-ae11-797157c4d381 | C112: B.5.1.9.1 | E112: 25 mm diameter: Basic price | F112: t | G112: 2.13 | H112: 0.00 | I112: =ROUND(G112 * H112,2) -> 0.00 | J112: Dflt
A113: Label | B113: b16e59cd-53cc-468a-ab53-84626b103f7c | D113: 8.1.2.3(b) | E113: Extra-over item B.5.1.9.1 for bars of diameter (Provisional): | J113: Dflt
A114: Item | B114: 72a2c4e2-0035-4351-b13f-c665abe47293 | C114: B.5.1.9.2 | E114: 8 mm | F114: t | G114: 0.64 | H114: 0.00 | I114: =ROUND(G114 * H114,2) -> 0.00 | J114: Dflt
A115: Item | B115: b6796741-61c4-4006-9c72-6a501a637f98 | C115: B.5.1.9.3 | E115: 10 mm | F115: t | G115: 1.49 | H115: 0.00 | I115: 0.00 | J115: Dflt
A116: Label | B116: 190a4c19-6687-4a58-943e-cb2e5eed22c2 | D116: 8.1.2.3(a) | E116: High tensile steel bars: | J116: Dflt
A117: Item | B117: 1d2edcc8-d527-4d2e-8def-c88b59d5300d | C117: B.5.1.9.4 | E117: 25 mm diameter: Basic price | F117: t | G117: 40.37 | H117: 0.00 | I117: =ROUND(G117 * H117,2) -> 0.00 | J117: Dflt
A118: Label | B118: de2831a0-76c0-47b6-bf1d-819708bcccbf | D118: 8.1.2.3(b) | E118: Extra-over item B.5.1.9.4 for bars of diameter (Provisional): | J118: Dflt
A119: Item | B119: a6507acc-2612-4656-8c35-ed81975fa0f4 | C119: B.5.1.9.5 | E119: 10 mm | F119: t | G119: 14.13 | H119: 0.00 | I119: =ROUND(G119 * H119,2) -> 0.00 | J119: Dflt
A120: Item | B120: bb64c532-1f19-4ced-a21c-e8f843983c41 | C120: B.5.1.9.6 | E120: 12 mm | F120: t | G120: 16.15 | H120: 0.00 | I120: 0.00 | J120: Dflt
A121: Item | B121: 17009844-3b19-4b8c-b6f5-f326cbd06f0e | C121: B.5.1.9.7 | E121: 16 mm | F121: t | G121: 8.07 | H121: 0.00 | I121: 0.00 | J121: Dflt
A122: Item | B122: 61b42083-677e-4e58-8ee6-bcb0ab1aea59 | C122: B.5.1.9.8 | E122: 20 mm | F122: t | G122: 2.02 | H122: 0.00 | I122: 0.00 | J122: Dflt
A123: Label | B123: 6dfe9b07-7899-4648-9e65-3a678575dd83 | D123: 8.1.2.3(c) | E123: High-tensile welded mesh reinforcement: | J123: Dflt
A124: Item | B124: cacbcaf9-de2c-4274-81e9-be4b0a7f3170 | C124: B.5.1.9.9 | E124: High-tensile welded mesh ref 617 | F124: m² | G124: 10 | H124: 0.00 | I124: =ROUND(G124 * H124,2) -> 0.00 | J124: Dflt
A125: Header2 | B125: bbf5be7c-a3e3-4e36-8062-7c143545aaf4 | C125: B.5.1.10 | D125: SANS 1200G 8.4.4 PSG 8.4 | E125: UNFORMED SURFACE FINISHES | J125: Dflt
A126: Label | B126: 39252e1f-cbc3-4470-9bdf-0ef7d9c4be2d | D126: PSG 8.4 | E126: Wood-floated finish: | J126: Dflt
A127: Item | B127: 0b237189-61a7-4c88-81b9-18ffb20cfd5f | C127: B.5.1.10.1 | E127: Floor slabs | F127: m² | G127: 685 | H127: 0.00 | I127: =ROUND(G127 * H127,2) -> 0.00 | J127: Dflt
A128: Item | B128: 1e2b4342-7751-4142-8ea8-e7ac054f328a | C128: B.5.1.10.2 | E128: Launder slabs | F128: m² | G128: 40 | H128: 0.00 | I128: 0.00 | J128: Dflt
A129: Item | B129: 831fea9e-65e8-4783-907d-b32284fa8dd2 | C129: B.5.1.10.3 | E129: Benching | F129: m² | G129: 50 | H129: 0.00 | I129: 0.00 | J129: Dflt
A130: Label | B130: d7b570cb-3a3c-464a-992c-6d58267099e7 | D130: 8.1.1.5 PSG 8.4 | E130: Steel-floated finish: | J130: Dflt
A131: Item | B131: 7308c8ed-8b44-478d-8e24-d1a5a256e498 | C131: B.5.1.10.4 | E131: Top of walls including for vertical tolerance (SST) | F131: m² | G131: 35 | H131: 0.00 | I131: =ROUND(G131 * H131,2) -> 0.00 | J131: Dflt
A132: Item | B132: 8658946d-dc38-4bed-bc8c-d0b16f58d270 | C132: B.5.1.10.5 | E132: Top of beams, slab and plinth | F132: m² | G132: 8 | H132: 0.00 | I132: 0.00 | J132: Dflt
A133: Item | B133: 2aa6cdc1-1bdf-49ae-8120-900342df64f7 | C133: B.5.1.10.6 | E133: Channel Floor | F133: m² | G133: 10 | H133: 0.00 | I133: 0.00 | J133: Dflt
A134: Item | B134: ccbd6d1b-3f48-420b-8a2c-8ba84795e838 | C134: B.5.1.10.7 | E134: Channel Walls | F134: m² | G134: 5 | H134: 0.00 | I134: 0.00 | J134: Dflt
A135: Label | B135: 222eb6de-c2bc-4e0b-ac08-882b890769b5 | D135: 8.1.1.5 PSG 8.4 | E135: Power-floated finish: | J135: Dflt
A136: Item | B136: 6a1c0f66-7819-4f4d-a8ce-d44ecfaa6eef | C136: B.5.1.10.8 | E136: Mortar screed to conical floor slabs | F136: m² | G136: 685 | H136: 0.00 | I136: =ROUND(G136 * H136,2) -> 0.00 | J136: Dflt
A137: Header2 | B137: f6c986f9-0148-4ba4-893e-09dd12ebca99 | C137: B.5.1.11 | D137: SANS 1200G 8.5 PSG 8.5 | E137: JOINTS | J137: Dflt
A138: Label | B138: 941885c5-b43a-4e5a-85c8-ccd170b2dfa2 | E138: Expansion joint type B complete as shown on Dwg. No. J40073/010-213: | J138: Dflt
A139: Item | B139: d543d030-04c4-4508-835d-8b711dd8017d | C139: B.5.1.11.1 | E139: Joint in Floor: Including forming of joint, supply and installation (all inclusive) of 250mm Rearguard centre bulb waterstop, 10mm Closed cell high density void former, 2mm Recess, Stainless steel strip and 200mm x 2mm Hypelon bandage | F139: m | G139: 210 | H139: 0.00 | I139: =ROUND(G139 * H139,2) -> 0.00 | J139: Dflt
A140: Item | B140: 19ce93e0-a554-4384-9c7b-c68317936faa | C140: B.5.1.11.2 | E140: Joint in Screed: Including forming of joint, supply and installation (all inclusive) of 8mm diameter Polycord and Polyurethane sealant | F140: m | G140: 210 | H140: 0.00 | I140: 0.00 | J140: Dflt
A141: Label | B141: f771ef9c-9f81-4d01-8e5f-8baeb46eb268 | E141: Contraction joint in conical floor slab complete as shown on Dwg. No. J40073/010-213: | J141: Dflt
A142: Item | B142: 22db0c31-fc22-49ff-945c-c8f981b81543 | C142: B.5.1.11.3 | E142: Joint in Floor: Including forming of joint, supply and installation (all inclusive) of 250mm Rearguard waterstop, 2mm Recess, Stainless steel strip and 200mm x 2mm Hypelon bandage | F142: m | G142: 50 | H142: 0.00 | I142: =ROUND(G142 * H142,2) -> 0.00 | J142: Dflt
A143: Item | B143: 64753a61-ebb6-40d2-bc08-f28b9539f701 | C143: B.5.1.11.4 | E143: Joint in Screed: Including forming of joint, supply and installation (all inclusive) of 8mm diameter Polycord and Polyurethane sealant | F143: m | G143: 50 | H143: 0.00 | I143: 0.00 | J143: Dflt
A144: Label | B144: 756f32c5-01fd-464f-a7bc-403dd9d96591 | E144: Wall joints complete as shown on Dwg. No. J40073/010-213: | J144: Dflt
A145: Item | B145: d3b04188-b8b3-4e05-8a4a-84befacf7668 | C145: B.5.1.11.5 | E145: Construction Joint in Wall: Including forming of joint, supply and installation (all inclusive) of 2mm Galvanised water stop | F145: m | G145: 95 | H145: 0.00 | I145: =ROUND(G145 * H145,2) -> 0.00 | J145: Dflt
A146: Item | B146: bf9eedec-a8f2-4887-aaf1-9c62b19435e6 | C146: B.5.1.11.6 | E146: Isolation Joint in Wall (between wall and launder channel): Including forming of joint, supply and installation (all inclusive) of 10mm Jointex | F146: m | G146: 2 | H146: 0.00 | I146: 0.00 | J146: Dflt
A147: Label | B147: 432dd38c-1e1a-4d6b-a960-9bda8d475fff | E147: Channel Floor and Wall joints complete as shown on Dwg. No. J40073/010-216: | J147: Dflt
A148: Item | B148: 44163eaa-a2b1-4a31-acc0-93698c4857c8 | C148: B.5.1.11.7 | E148: Construction and Contractions Joints in Channel: Including forming of joint, supply and installation (all inclusive) of Centre bulb waterstop | F148: m | G148: 4 | H148: 0.00 | I148: =ROUND(G148 * H148,2) -> 0.00 | J148: Dflt
A149: Item | B149: ec943d15-250f-4679-a030-68e80bcb6035 | C149: B.5.1.11.8 | E149: Construction Joint in Wall: Including forming of joint, supply and installation (all inclusive) of 2mm Galvanised water stop | F149: m | G149: 2 | H149: 0.00 | I149: 0.00 | J149: Dflt
A150: Header2 | B150: 04b25b3b-4e99-4489-9dd0-ecf13c45675f | C150: B.5.1.12 | D150: SANS 1200G 8.7 | E150: GROUTING | J150: Dflt
A151: Label | B151: 5b4adeb7-362c-4186-ba58-a015a0535a70 | E151: Grout column bases and HD bolts as specified: | J151: Dflt
A152: Item | B152: debe2845-78f9-4350-b9f8-8c2d5901a085 | C152: B.5.1.12.1 | D152: 8.7(a) and (b) | E152: Under bases or beds, nominal thickness not exceeding 50 mm | F152: m³ | G152: 0.5 | H152: 0.00 | I152: =ROUND(G152 * H152,2) -> 0.00 | J152: Dflt
A153: Item | B153: 18e5c3ea-7675-44d7-b8b7-eefa38384f0e | C153: B.5.1.12.2 | E153: Drilling hole for dowels into existing channels | F153: No | G153: 20 | H153: 0.00 | I153: 0.00 | J153: Dflt
A154: Item | B154: 50a0e002-df47-4f1b-a06c-8b1ac53ea8ad | C154: B.5.1.12.3 | E154: Apply wet and dry epoxy | F154: m² | G154: 10 | H154: 0.00 | I154: 0.00 | J154: Dflt
A155: Header2 | B155: 5f860b71-dbd5-424b-be32-ad69bcaca605 | C155: B.5.1.13 | D155: SANS 1200G 8.8 | E155: HD bolts etc: | J155: Dflt
A156: Label | B156: 464e2b52-9684-4d94-a25e-cb40814024cc | E156: Provide and install HD bolts to details given on Dwg. No. J40073/010-214: | J156: Dflt
A157: Item | B157: b6d30312-02aa-49e6-a889-4a4e3d954170 | C157: B.5.1.13.1 | E157: HD bolts in pockets, void exceeding 0.5 litres but less than 1.0 litres | F157: No | G157: 4 | H157: 0.00 | I157: =ROUND(G157 * H157,2) -> 0.00 | J157: Dflt
A158: Item | B158: 7392b0c2-807f-404d-8090-c31fd2362ac4 | C158: B.5.1.13.2 | E158: HD bolts in pockets, void less than 0.5 litres | F158: No | G158: 4 | H158: 0.00 | I158: 0.00 | J158: Dflt
A159: Header2 | B159: 47106106-93a8-4a09-8b41-b15793d0ef2c | C159: B.5.1.14 | D159: (Refer SANS 1200 L, LB and LD) | E159: MEDIUM PRESSURE PIPELINES | J159: Dflt
A160: Header3 | B160: be55ccdb-2aad-4e86-9d98-4a9111a8dad0 | C160: B.5.1.14.1 | E160: PIPEWORK | J160: Dflt
A161: Label | B161: eed00ac3-ffe8-4d17-a6b5-a10ca3b77f30 | D161: L8.2.5 | E161: Supply and install pipes, valves and specials (short pipe runs): | J161: Dflt
A162: Label | B162: d5d809ed-6499-4e4a-b26d-4a33e4b11f8f | E162: Inlet pipework: | J162: Dflt
A163: Rate Only | B163: 131d8415-7e0c-4dd4-b1cd-6038f7e95fec | C163: B.5.1.14.1.1 | E163: 600 mm, 90 deg. bend duckfoot ms | F163: No | G163: 0 | H163: 0.00 | I163: Rate Only | J163: Dflt
A164: Item | B164: a67e5278-336f-4df1-acb8-e75d0cdcba66 | C164: B.5.1.14.1.2 | E164: 600 mm x 915 mm NB bellmouth, pe/fl, 4.5 mm wt, ms, 5010 mm f/f | F164: No | G164: 1 | H164: 0.00 | I164: =ROUND(G164 * H164,2) -> 0.00 | J164: Dflt
A165: Label | B165: 64823b86-00ac-4393-a448-4061ebaf69ac | E165: Scum withdrawal pipework: | J165: Dflt
A166: Item | B166: 87e1e785-7ea1-4efb-971f-c1e07ae680e7 | C166: B.5.1.14.1.3 | E166: 200 mm NB wall pipe, pe/fl, medium duty, s/s, with thr-fl, 800 mm f/f | F166: No | G166: 1 | H166: 0.00 | I166: =ROUND(G166 * H166,2) -> 0.00 | J166: Dflt
A167: Header3 | B167: 8ab31623-dde1-4fb6-9cb2-65fdfaa11e62 | C167: B.5.1.14.2 | E167: VALVES | J167: Dflt
A168: Label | B168: a5c6a325-64eb-43cf-8270-ac9bf26f2b6a | E168: Pressure relief supply and installed in floor of SST: | J168: Dflt
A169: Item | B169: a71f4747-1289-411a-83d9-bfd12d0fc6dd | C169: B.5.1.14.2.1 | E169: Pressure relief valves complete as shown on Dwg. No. J40073/010-214 | F169: No | G169: 9 | H169: 0.00 | I169: =ROUND(G169 * H169,2) -> 0.00 | J169: Dflt
A170: Header2 | B170: a3766fd1-b1b0-47bf-b828-64e109ccbd25 | C170: B.5.1.15 | E170: MISCELLANEOUS | J170: Dflt
A171: Item | B171: 38371f21-5975-4db0-bf51-aec87af0ba08 | C171: B.5.1.15.1 | D171: PSG 8.13 | E171: Supply and fix in place 250 µm PVC damp-proof course layer between no-fines concrete layer and floor slabs | F171: m² | G171: 755 | H171: 0.00 | I171: =ROUND(G171 * H171,2) -> 0.00 | J171: Dflt
A172: Header2 | B172: c0e73ef4-0b37-41ce-ac6b-f7cf5b3e2cf0 | C172: B.5.1.16 | E172: SUNDRIES | J172: Dflt
A173: Label | B173: cd68b451-9936-4638-8298-bf72a57797ed | E173: Water Tightness Testing:
A174: Item | B174: d3675a25-f5b7-41d2-af16-edf1e06b6977 | C174: B.5.1.16.1 | D174: PSG 8.12 | E174: Testing for Water Tightness, all inclusive to PSG 7.2.5 | F174: Sum | G174: 1 | H174: 0.00 | I174: =ROUND(G174 * H174,2) -> 0.00
A175: Label | B175: 48b034ea-abc6-4ed7-a913-05e771f88b29 | E175: Corrective work to SST:
A176: Sum | B176: c2bf274a-bd1f-4d1c-8c29-6d80188203b9 | C176: B.5.1.16.2 | E176: Corrective works as directed by the Specialist investigations/tests conducted by the Contractor | F176: PSum | G176: 1 | H176: 100,000.00 | I176: =ROUND(H176,2) -> 100,000.00
A177: Header2 | B177: 7d9573d8-5c46-4f3a-9236-e12cbbba2d59 | C177: B.5.1.17 | E177: SCUM MANHOLES (AT SST)
A178: Item | B178: bbf77f4f-df60-415e-8137-3158009e01e6 | C178: B.5.1.17.1 | E178: Scum Manholes at SST: Complete partially completed manholes including excavation, backfilling, watertightness testing etc. complete with all pipework, testing all inclusive as shown on Dwg. No. J40073/010-225 | F178: Sum | G178: 1 | H178: 0.00 | I178: =ROUND(G178 * H178,2) -> 0.00

Sheet BILL B.6.
D2: Bid No: | E2: RW10404061/23 | J2: Work Group
D3: Description | E3: TENDER FOR THE UPGRADE OF MEYERTON WASTEWATER TREATMENT WORKS BY 15 ML/DAY AT MEYERTON | J3: Dflt
J4: Dflt
J5: Dflt
J6: Dflt
A7: BillHeader | C7: BILL B.6. | E7: SLUDGE DRYING BEDS | J7: Dflt
A8: Item Type | B8: GUID | C8: Item Ref | D8: Payment Refers | E8: Description | F8: Unit | G8: Quantity | H8: Rate | I8: Amount R | J8: Dflt
A9: Section | B9: a561e081-4b91-452a-80f1-00a40c95f2f2 | C9: B.6.1 | E9: SLUDGE DRYING BEDS | J9: Dflt
A10: Label | B10: d7ef6b23-f3d3-46e4-bd9d-6820ace4deb1 | E10: SECTION B.6.1 : SLUDGE DRYING BEDS | J10: Dflt
A11: Header2 | B11: ec9a1182-a8d2-4323-9a58-5d3880c7ad16 | C11: B.6.1.1 | D11: SANS 1200C PSC 8.2 | E11: SITE CLEARANCE | J11: Dflt
A12: Item | B12: 8bdb05ee-edea-4c7f-9a44-f81f57e65f89 | C12: B.6.1.1.1 | D12: 8.2.4 | E12: Reclear surfaces (provisional) (where ordered by Engineer) | F12: m² | G12: 200 | H12: 0.00 | I12: =ROUND(G12 * H12,2) -> 0.00 | J12: Dflt
A13: Item | B13: a4e9ed0b-1338-44ed-9fbb-cd6b08c3f449 | C13: B.6.1.1.2 | D13: 8.2.9 | E13: Cart materials and debris to unspecified sites and dump (provisional) | F13: t.km | G13: 10 | H13: 0.00 | I13: 0.00 | J13: Dflt
A14: Header2 | B14: 50a0387e-2172-4063-87ce-b3ae0e323849 | C14: B.6.1.2 | D14: SANS 1200D 8.3.2 | E14: EARTHWORKS | J14: Dflt
A15: Label | B15: 29647f0d-ad8d-4906-a9c8-bdc461c9a105 | D15: 8.3.2(a) PSD 8.3.6 | E15: Excavate for structures in all materials and dispose of surplus/unsuitable material as ordered within the free haul distance for : | J15: Dflt
A16: Rate Only | B16: 58ad3d41-a975-4c5b-9567-c9e8e6948c5b | C16: B.6.1.2.1 | E16: Sludge Drying Beds | F16: m³ | G16: 0 | H16: 0.00 | I16: Rate Only | J16: Dflt
A17: Label | B17: 8d1b57f2-0650-4691-a282-5e4570205473 | D17: 8.3.2(a) | E17: Backfill to 95% MOD AASHTO behind structure for : | J17: Dflt
A18: Item | B18: 6c64f2a0-eca9-4732-8708-958c60f8b5f0 | C18: B.6.1.2.2 | E18: Sludge Drying Beds | F18: m³ | G18: 1260 | H18: 0.00 | I18: =ROUND(G18 * H18,2) -> 0.00 | J18: Dflt
A19: Label | B19: b787e2c9-e53c-48d5-83d6-74f7a68e31af | E19: Chloradane Heptacor' or 'Aldrin' or similar approved soil insecticide | J19: Dflt
A20: Item | B20: 44fcc901-a5c1-41c9-9fa7-132be5f2a81e | C20: B.6.1.2.3 | E20: Sludge Drying Beds | F20: Prov.Sum | G20: 1 | H20: 5,000.00 | I20: =ROUND(G20 * H20,2) -> 5,000.00 | J20: Dflt
A21: Header2 | B21: 81c86a06-dc0b-4933-a418-9b46f506820a | C21: B.6.1.3 | D21: SANS 1200D 8.3.4 | E21: IMPORTING OF MATERIALS | J21: Dflt
A22: Item | B22: d2109466-d24d-4e59-8655-16f2f6afc881 | C22: B.6.1.3.1 | D22: 8.3.4(a) | E22: Extra-over item B.6.1.2.2 for importation of material to complete embankment for the Sludge Drying Beds from commercial sources where necessary: G7 material | F22: m³ | G22: 1260 | H22: 0.00 | I22: =ROUND(G22 * H22,2) -> 0.00 | J22: Dflt
A23: Header2 | B23: 280d8d36-2f9e-4187-83be-4963a811ad82 | C23: B.6.1.4 | D23: SANS 1200D | E23: FINISHINGS | J23: Dflt
A24: Item | B24: 46ea3a6e-bb5b-43c2-b28e-02e64465ca2b | C24: B.6.1.4.1 | D24: 8.3.10 | E24: Topsoiling | F24: m² | G24: 2840 | H24: 0.00 | I24: =ROUND(G24 * H24,2) -> 0.00 | J24: Dflt
A25: Item | B25: ed1ca70d-5d6a-40c6-acc4-80272c2581be | C25: B.6.1.4.2 | D25: 8.3.11 | E25: Grassing with instant kikuyu lawn grass. Rate to be inclusive of transport and delivery and offloading costs including for temporary stockpile and double handling etc as necessary and wetting | F25: m² | G25: 2840 | H25: 0.00 | I25: 0.00 | J25: Dflt
A26: Header2 | B26: c6d5b1cc-54dd-4da9-bd46-7b07214bcf91 | C26: B.6.1.5 | D26: SANS 1200G 8.1.3 PSG 8.1.3 | E26: CONCRETE (STRUCTURAL) | J26: Dflt
A27: Label | B27: b86e2fdf-4f18-4593-a83f-92cbf8fef2ef | D27: 8.4.2 | E27: Blinding layer in 15 MPa/19 mm concrete | J27: Dflt
A28: Item | B28: 4dcf634b-969a-4de9-8cd4-5cf31a0bdfa5 | C28: B.6.1.5.1 | E28: 50 mm minimum thickness | F28: m² | G28: 95 | H28: 0.00 | I28: =ROUND(G28 * H28,2) -> 0.00 | J28: Dflt
A29: Label | B29: de496827-1255-4579-a1f8-604efdb7ef20 | D29: 8.4.3 | E29: Strength concrete: 25 MPa/19mm | J29: Dflt
A30: Item | B30: 951e3b67-44e5-4b91-b5a9-178f7f4697c5 | C30: B.6.1.5.2 | E30: Ramps | F30: m³ | G30: 35 | H30: 0.00 | I30: =ROUND(G30 * H30,2) -> 0.00 | J30: Dflt
A31: Label | B31: b839fd89-f868-4f2b-bd71-98c4a947f793 | D31: 8.4.3 | E31: Strength concrete: 35 MPa/19mm to: | J31: Dflt
A32: Item | B32: 609b9958-0ae8-43d2-a596-17ad62f00635 | C32: B.6.1.5.3 | E32: Inlet structure | F32: m³ | G32: 2 | H32: 0.00 | I32: =ROUND(G32 * H32,2) -> 0.00 | J32: Dflt
A33: Header2 | B33: f804d485-2cd1-4aed-b1a6-b155d9d69969 | C33: B.6.1.6 | D33: SANS 1200G 8.1.1 PSG 8.2 | E33: FORMWORK | J33: Dflt
A34: Label | B34: b01b85e4-7749-4648-80b3-8dbc17f16cb8 | D34: 8.2.1 | E34: Rough formwork | J34: Dflt
A35: Item | B35: 53be510a-b9b2-4246-9f64-c52975106e43 | C35: B.6.1.6.1 | E35: Where ordered by the Engineer | F35: m² | G35: 10 | H35: 0.00 | I35: =ROUND(G35 * H35,2) -> 0.00 | J35: Dflt
A36: Label | B36: 6145b1f0-bc9b-40e7-9a76-a561e45e5d60 | D36: 8.2.2 | E36: Smooth formwork (measured to 150 mm below finished ground level) | J36: Dflt
A37: Label | B37: 51145273-f50d-4df6-925f-5238c81b040f | E37: Plane vertical | J37: Dflt
A38: Item | B38: 123e612d-838c-48a6-9e62-618780d5d440 | C38: B.6.1.6.2 | E38: Ramps | F38: m² | G38: 15 | H38: 0.00 | I38: =ROUND(G38 * H38,2) -> 0.00 | J38: Dflt
A39: Label | B39: 7e403854-1b08-44e1-be9d-7a00e6f8887d | D39: 8.2.5 | E39: Vertical narrow widths up to 300mm wide | J39: Dflt
A40: Item | B40: 5c436a8f-d00f-4e30-8e50-117a4d88cbce | C40: B.6.1.6.3 | E40: Inlet Structure (Stand-up walls) | F40: m | G40: 40 | H40: 0.00 | I40: =ROUND(G40 * H40,2) -> 0.00 | J40: Dflt
A41: Label | B41: 0fee4a7b-8ad8-4fbd-bcb4-04bf25ad7952 | D41: 8.1.1.2 PSG 8.1.1.8 | E41: Chamfers exceeding 20mm x 20mm and grooves | J41: Dflt
A42: Item | B42: e0a8521f-e63b-4eec-937c-dd7afd033d95 | C42: B.6.1.6.4 | E42: Chamfer 25mm x 25mm | F42: m | G42: 35 | H42: 0.00 | I42: =ROUND(G42 * H42,2) -> 0.00 | J42: Dflt
A43: Header2 | B43: 699814eb-2328-48b3-a402-7242a80d2dce | C43: B.6.1.7 | D43: SANS 1200G 8.1.2 | E43: REINFORCEMENT | J43: Dflt
A44: Label | B44: 7eca58a7-2bfa-45ae-b77e-043999c5a6f9 | D44: 8.3.1 | E44: Mild Steel Bars: | J44: Dflt
A45: Item | B45: 623e00fa-5ad9-41eb-be54-707a88361175 | C45: B.6.1.7.1 | D45: 8.1.2.1 | E45: All diameter bars | F45: t | G45: 0.1 | H45: 0.00 | I45: =ROUND(G45 * H45,2) -> 0.00 | J45: Dflt
A46: Label | B46: 6ad93d36-e8ba-4973-96b9-ec3dbc8cc311 | D46: 8.3.1 | E46: High-tensile steel bars: | J46: Dflt
A47: Item | B47: 14e8ea0b-3ce4-42f9-a8f2-d76eeed79bad | C47: B.6.1.7.2 | D47: 8.1.2.1 | E47: All diameter bars | F47: t | G47: 0.2 | H47: 0.00 | I47: =ROUND(G47 * H47,2) -> 0.00 | J47: Dflt
A48: Label | B48: 32a92a8d-9a15-46e5-8ecc-cbceaf196e28 | D48: 8.3.2 | E48: High-tensile welded mesh reinforcement: | J48: Dflt
A49: Item | B49: 6fb747a8-3ead-46b4-b730-3935fbe19b94 | C49: B.6.1.7.3 | D49: 8.1.2.1 | E49: High-tensile welded mesh ref 395 | F49: m² | G49: 95 | H49: 0.00 | I49: =ROUND(G49 * H49,2) -> 0.00 | J49: Dflt
A50: Header2 | B50: e101afec-c32f-491d-9198-a11f24769435 | C50: B.6.1.8 | D50: SANS 1200G 8.4.4 PSG 8.4 | E50: UNFORMED SURFACE FINISHES | J50: Dflt
A51: Label | B51: 0c62b7fa-ab7b-4b0f-8489-8f6e776a98f6 | D51: PSG 8.4 | E51: Wood-floated finish: | J51: Dflt
A52: Item | B52: dbd10d76-4d74-49c9-9c1b-f7be3174f0bd | C52: B.6.1.8.1 | E52: Ramps | F52: m² | G52: 100 | H52: 0.00 | I52: =ROUND(G52 * H52,2) -> 0.00 | J52: Dflt
A53: Label | B53: bd79b42c-6152-4bb4-ac43-2b6062aeee14 | D53: 8.1.1.5 PSG 8.4 | E53: Steel-floated finish | J53: Dflt
A54: Item | B54: cb541cb5-552f-4f95-b1a3-ac9be163c582 | C54: B.6.1.8.2 | E54: Inlet structure (Top of Walls) | F54: m² | G54: 7 | H54: 0.00 | I54: =ROUND(G54 * H54,2) -> 0.00 | J54: Dflt
A55: Header2 | B55: 8ded815c-d648-44e4-ada7-16505404e98e | C55: B.6.1.9 | D55: SANS 1200G 8.5 PSG 8.5 | E55: JOINTS | J55: Dflt
A56: Item | B56: afee573f-62af-4988-96d4-a959af10565d | C56: B.6.1.9.1 | E56: Finishing of joints in 300mm thick external walls complete, including preparation, 20mm joint filler and polyurethane sealant both sides, etc. | F56: m | G56: 100 | H56: 0.00 | I56: =ROUND(G56 * H56,2) -> 0.00 | J56: Dflt
A57: Header2 | B57: 69f7b5df-03af-4ebe-ac4e-e2f6b3f8f7a1 | C57: B.6.1.10 | D57: SANS 1200L | E57: MEDIUM PRESSURE PIPELINES | J57: Dflt
A58: Header3 | B58: 843029cd-0a32-4b2a-ab80-db94b7468fb8 | C58: B.6.1.10.1 | D58: SANS 1200DB | E58: EXCAVATION AND BACKFILLING | J58: Dflt
A59: Label | B59: e50023eb-2cdf-41aa-9bf8-42f813b5b167 | D59: 8.3.2 (a) PSDB 8.1.4 PSDB 8.3.2 | E59: Excavate in all materials for trenches, backfill and compact, including disposal of surplus unsuitable material for pipes up to 200 mm diameter for depths over and up to | J59: Dflt
A60: Item | B60: 02ac0f23-c9c8-497a-b9f0-44c0ac99b216 | C60: B.6.1.10.1.1 | E60: 0.0 m 1.0 m | F60: m | G60: 460 | H60: 0.00 | I60: =ROUND(G60 * H60,2) -> 0.00 | J60: Dflt
A61: Header3 | B61: f4bd9786-5aef-4b8e-8847-89fdb6d86206 | C61: B.6.1.10.2 | D61: SANS 1200DB | E61: EXCAVATION ANCILLARIES | J61: Dflt
A62: Label | B62: 1045f15a-6519-406a-8708-ab4d1b37e610 | E62: Make up deficiency in backfill material (Provisional) | J62: Dflt
A63: Item | B63: 04d2b266-1a10-4e19-8f06-5143d2813101 | C63: B.6.1.10.2.1 | D63: 8.3.3.1(a) | E63: from other necessary excavations on site | F63: m³ | G63: 13 | H63: 0.00 | I63: =ROUND(G63 * H63,2) -> 0.00 | J63: Dflt
A64: Item | B64: 1d112193-55d1-47ba-b5cc-48906ef12038 | C64: B.6.1.10.2.2 | D64: 8.3.3.1(c) | E64: by importation from commercial sources selected by the Contractor | F64: m³ | G64: 13 | H64: 0.00 | I64: 0.00 | J64: Dflt
A65: Header3 | B65: eae7814a-e9cd-415a-aa43-8660f45216aa | C65: B.6.1.10.3 | D65: SANS 1200L | E65: PIPEWORK | J65: Dflt
A66: Label | B66: a2e1d4a8-2058-4d62-a7ea-3d11723a62a4 | D66: 8.2.1 | E66: HDPE pipes, supply, handle, lay, join by butt welding, bed as for flexible pipe, test. | J66: Dflt
A67: Item | B67: 3240d52e-b7a6-4bc1-8a8f-0883161d077c | C67: B.6.1.10.3.1 | E67: 200mm diameter HDPE PE100 PN8 | F67: m | G67: 460 | H67: 0.00 | I67: =ROUND(G67 * H67,2) -> 0.00 | J67: Dflt
A68: Label | B68: a9290254-db4d-4e43-9c9e-c1b907aaebc5 | D68: 8.2.15 PSL 8.2.15 | E68: Special wrapping in corrosive soil as per Project Specification PSL3.9.3.8 (Provisional) | J68: Dflt
A69: Item | B69: 53bc6ced-70c1-4ade-8094-f1b5db9a3f99 | C69: B.6.1.10.3.2 | E69: 200 mm NB | F69: No | G69: 80 | H69: 0.00 | I69: =ROUND(G69 * H69,2) -> 0.00 | J69: Dflt
A70: Header3 | B70: a7d504e6-3151-45de-9032-6a1cc4da1526 | C70: B.6.1.10.4 | D70: SANS 1200L | E70: SPECIALS AND FITTINGS | J70: Dflt
A71: Label | B71: 35368fe2-871b-4c98-87e1-b3416a4c2425 | D71: 8.2.5 | E71: Supply and fit, incl. bed, test and disinfect (if for potable water) pipes and specials: (Short pipe runs only) | J71: Dflt
A72: Item | B72: f420e0e3-ae40-47d6-8789-f6c521063771 | C72: B.6.1.10.4.1 | E72: 200mm diameter dismantling adaptor | F72: No | G72: 20 | H72: 0.00 | I72: =ROUND(G72 * H72,2) -> 0.00 | J72: Dflt
A73: Item | B73: c702057f-c372-40a5-93e6-4226e41d3af6 | C73: B.6.1.10.4.2 | E73: 200mm diameter, mild steel extension pipe, plain ended. 350mm long. | F73: No | G73: 20 | H73: 0.00 | I73: 0.00 | J73: Dflt
A74: Item | B74: 975d9859-f309-4838-84b0-cbd95f46af83 | C74: B.6.1.10.4.3 | E74: 200mm diameter flange adaptor: Steel/Steel | F74: No | G74: 20 | H74: 0.00 | I74: 0.00 | J74: Dflt
A75: Item | B75: 5d5e9535-f804-4126-983e-3a6079a4b98b | C75: B.6.1.10.4.4 | E75: 200mm diameter, mild steel extension pipe, both ends flanged. 615mm long. | F75: No | G75: 20 | H75: 0.00 | I75: 0.00 | J75: Dflt
A76: Item | B76: c0478ae8-d2b6-4ea7-bc59-efa2fecfef98 | C76: B.6.1.10.4.5 | E76: 200 mm diameter, 90 degree short radius bend, both ends flanged. | F76: No | G76: 20 | H76: 0.00 | I76: 0.00 | J76: Dflt
A77: Item | B77: dc35f70f-8318-43a0-baab-7b6901d7a946 | C77: B.6.1.10.4.6 | E77: 200mm diameter, mild steel extension pipe, both ends flanged. 285mm long. | F77: No | G77: 20 | H77: 0.00 | I77: 0.00 | J77: Dflt
A78: Item | B78: 69c137c7-ccd6-49b5-83a9-4f58a717f9db | C78: B.6.1.10.4.7 | E78: 200 mm diameter, 90 degree short radius bend, one end flanged. | F78: No | G78: 20 | H78: 0.00 | I78: 0.00 | J78: Dflt
A79: Label | B79: 69d9c216-bee8-4cb2-9b8e-fd8601636e5b | D79: 8.2.2 | E79: Supply and place pipes for and all the necessary fittings for clear effluent collection | J79: Dflt
A80: Item | B80: d932ec53-23eb-4303-9c65-856b84882a8d | C80: B.6.1.10.4.8 | E80: 200 mm diameter, 90 degree bend (Electrofusion) | F80: No | G80: 4 | H80: 0.00 | I80: =ROUND(G80 * H80,2) -> 0.00 | J80: Dflt
A81: Item | B81: b317f3db-35ff-4906-b657-c1e6450258ac | C81: B.6.1.10.4.9 | E81: 200 mm diameter, Equal Tee (Electrofusion) | F81: No | G81: 2 | H81: 0.00 | I81: 0.00 | J81: Dflt
A82: Item | B82: 71a4da37-0d57-41ba-8974-3feba1de93d7 | C82: B.6.1.10.4.10 | E82: 200 mm diameter, Flange adaptor: Steel/HDPE | F82: No | G82: 40 | H82: 0.00 | I82: 0.00 | J82: Dflt
A83: Item | B83: 27e58918-39fd-4116-b161-91d57ce90e3e | C83: B.6.1.10.4.11 | E83: 200 mm diameter, Equal Tee, Flanged on main ends and plain ended on take-off | F83: No | G83: 2 | H83: 0.00 | I83: 0.00 | J83: Dflt
A84: Item | B84: 28d3ec9b-ffa7-43b2-b675-78bf9c48a873 | C84: B.6.1.10.4.12 | E84: 200 mm diameter, End cap (Electrofusion) | F84: No | G84: 2 | H84: 0.00 | I84: 0.00 | J84: Dflt
A85: Header3 | B85: c4a30e5b-0cbf-4cbb-abc0-b33d5cb56de7 | C85: B.6.1.10.5 | D85: SANS 1200L | E85: VALVES | J85: Dflt
A86: Label | B86: 100632d1-3463-4bac-9648-a1d10a3be318 | D86: 8.2.3 | E86: Supply, install on concrete support, joint, include cut pipes where necessary, test etc. | J86: Dflt
A87: Label | B87: 7a4adeda-a28d-4c9a-a043-025eedc14f58 | E87: Flanged valves | J87: Dflt
A88: Item | B88: 410857fe-1657-4ad6-8434-477c478d40c2 | C88: B.6.1.10.5.1 | E88: 200mm NB diam. | F88: No | G88: 20 | H88: 0.00 | I88: =ROUND(G88 * H88,2) -> 0.00 | J88: Dflt
A89: Header3 | B89: 5e2fac68-a0d4-4c7e-81dc-f58629600a9b | C89: B.6.1.10.6 | D89: SANS 1200LB | E89: PROVISION OF BEDDING | J89: Dflt
A90: Label | B90: 4cb8cc5b-3511-4f64-aa97-93eaef790aee | D90: 8.2.2 PSLB 8.2.2 | E90: Provision of bedding from commercial sources (Provisional) | J90: Dflt
A91: Item | B91: 969c031d-b690-4e34-a235-b88b55b61550 | C91: B.6.1.10.6.1 | D91: 8.2.2.3(a) | E91: Selected granular material (cradle) | F91: m³ | G91: 155 | H91: 0.00 | I91: =ROUND(G91 * H91,2) -> 0.00 | J91: Dflt
A92: Item | B92: e93fb1ce-ded6-41a5-a458-0a404e59de21 | C92: B.6.1.10.6.2 | D92: 8.2.2.3(b) | E92: Selected fill material (blanket) | F92: m³ | G92: 75 | H92: 0.00 | I92: 0.00 | J92: Dflt
A93: Item | B93: 29f1ca2c-98ef-49a8-82de-5570092a652c | C93: B.6.1.10.6.3 | D93: PSLB 8.2.6 | E93: 19mm stone bedding where instructed (Provisional) | F93: m³ | G93: 4 | H93: 0.00 | I93: 0.00 | J93: Dflt
A94: Item | B94: 3c37377c-2a07-4215-bfd5-daef500259e7 | C94: B.6.1.10.6.4 | D94: PSLB 8.2.6 | E94: Geotextile fabric (Bidim A4) where instructed (Provisional) | F94: m² | G94: 70 | H94: 0.00 | I94: 0.00 | J94: Dflt
A95: Header3 | B95: 29e9e45a-9196-4492-bb20-0216da7805e6 | C95: B.6.1.10.7 | E95: ANCILLARIES | J95: Dflt
A96: Label | B96: 092ca5e3-54d7-4fc0-9892-01b70284fa93 | D96: SANS 1200L 8.2.11 | E96: Anchor/Thrust blocks and pedestals | J96: Dflt
A97: Item | B97: e29d5cbb-5e15-43a5-8644-0c3eb76ffed0 | C97: B.6.1.10.7.1 | E97: Strength Concrete: 15 Mpa/19 mm | F97: m³ | G97: 5 | H97: 0.00 | I97: =ROUND(G97 * H97,2) -> 0.00 | J97: Dflt
A98: Item | B98: 76deb4e1-d02e-4fd2-9e1f-cc1b27dd2442 | C98: B.6.1.10.7.2 | E98: Formwork: rough, vertical plane | F98: m² | G98: 30 | H98: 0.00 | I98: 0.00 | J98: Dflt
A99: Item | B99: 42ae0f2a-6f0f-48cd-a917-7f3a94281eba | C99: B.6.1.10.7.3 | D99: SANS 1200LD 8.2.9 PSL 8.2.19 | E99: Pipeline marker posts | F99: No | G99: 14 | H99: 0.00 | I99: 0.00 | J99: Dflt
A100: Header2 | B100: e8b7daea-79d3-46ce-afd6-5acb8bb7401c | C100: B.6.1.11 | D100: SANS 1200LD | E100: SEWERS | J100: Dflt
A101: Header3 | B101: 2df26139-3117-47cd-89d6-ea4e28ac11b9 | C101: B.6.1.11.1 | D101: SANS 1200DB | E101: EXCAVATION | J101: Dflt
A102: Label | B102: 3439e233-5f47-4a03-a852-dcc99e5f40e8 | D102: 8.3.2(a) PSDB 8.1.4 PSDB 8.3.2 | E102: Excavate in all materials for trenches, backfill, compact, and dispose of surplus/unsuitable material for pipes: 160mm diam. for total trench depth: Exceeding but not Exceeding | J102: Dflt
A103: Item | B103: 4d04be17-b609-4a5c-ba20-d95c9d1e2621 | C103: B.6.1.11.1.1 | E103: 0,0 m 1,0 m | F103: m | G103: 30 | H103: 0.00 | I103: =ROUND(G103 * H103,2) -> 0.00 | J103: Dflt
A104: Item | B104: 0079323b-1d26-4e7b-8988-5f0bd217878c | C104: B.6.1.11.1.2 | E104: 1,0 m 2,0 m | F104: m | G104: 235 | H104: 0.00 | I104: 0.00 | J104: Dflt
A105: Header3 | B105: ff4af70e-5411-42de-a08c-e408593b839c | C105: B.6.1.11.2 | D105: SANS 1200DB | E105: EXCAVATION ANCILLARIES | J105: Dflt
A106: Label | B106: 67524187-0817-4c7d-9158-7742415aa46b | E106: Make up deficiency in backfill material (Provisional) | J106: Dflt
A107: Item | B107: 7fd902d6-c599-419d-9778-6da2a885abb8 | C107: B.6.1.11.2.1 | D107: 8.3.3.1(a) | E107: from other necessary excavations on site | F107: m³ | G107: 13 | H107: 0.00 | I107: =ROUND(G107 * H107,2) -> 0.00 | J107: Dflt
A108: Item | B108: f5d33356-d4ea-4739-a330-b0f52f8a0e6d | C108: B.6.1.11.2.2 | D108: 8.3.3.1(c) | E108: by importation from commercial sources selected by the Contractor | F108: m³ | G108: 13 | H108: 0.00 | I108: 0.00 | J108: Dflt
A109: Header3 | B109: 866e2d7a-ef4a-44db-8a87-9b37623b0492 | C109: B.6.1.11.3 | D109: SANS 1200LD | E109: PIPEWORK | J109: Dflt
A110: Label | B110: 07aaeb60-f0ed-4b6d-a925-2d8a334d36fc | D110: 8.2.1 | E110: Supply, lay, complete with spigot and socket joint to suit PVC pipe, bed class B and test PVC sewer pipes with couplings | J110: Dflt
A111: Item | B111: 06e14f2c-f90e-49f0-a3d0-767ece5747cf | C111: B.6.1.11.3.1 | E111: 160mm diameter class 34 | F111: m | G111: 265 | H111: 0.00 | I111: =ROUND(G111 * H111,2) -> 0.00 | J111: Dflt
A112: Label | B112: eae527cb-613f-45e8-96be-b66c4bc3e44d | D112: 8.2.2 | E112: Extra-over Item B.6.1.11.3.1 for cutting ends of PVC sewer pipes to form closure pieces in pipeline including extra coupling (measured per cut end) | J112: Dflt
A113: Item | B113: f01c164f-2aea-476f-9343-48834685fa78 | C113: B.6.1.11.3.2 | E113: 160mm diameter class 34 | F113: No | G113: 10 | H113: 0.00 | I113: =ROUND(G113 * H113,2) -> 0.00 | J113: Dflt
A114: Header3 | B114: e87d6e6c-bb42-4c10-87ea-2df9d3288b8b | C114: B.6.1.11.4 | D114: SANS 1200LB | E114: PROVISION OF BEDDING | J114: Dflt
A115: Label | B115: 0eb2f741-4f14-4ca2-bda9-eaa6b581871f | D115: 8.2.2 PSLB 8.2.2 | E115: Provision of bedding from commercial sources (Provisional) | J115: Dflt
A116: Item | B116: 5c9ea0bd-e460-446b-866b-14111d6235c5 | C116: B.6.1.11.4.1 | D116: 8.2.2.3(a) | E116: Selected granular material (cradle) | F116: m³ | G116: 45 | H116: 0.00 | I116: =ROUND(G116 * H116,2) -> 0.00 | J116: Dflt
A117: Item | B117: c94bc229-5203-4c3b-bb55-08b098628f82 | C117: B.6.1.11.4.2 | D117: 8.2.2.3(b) | E117: Selected fill material (blanket) | F117: m³ | G117: 75 | H117: 0.00 | I117: 0.00 | J117: Dflt
A118: Item | B118: d51cfb2b-81f3-42ab-8e0a-661e1f13d717 | C118: B.6.1.11.4.3 | D118: PSLB 8.2.6 | E118: 19mm stone bedding where instructed (Provisional) | F118: m³ | G118: 4 | H118: 0.00 | I118: 0.00 | J118: Dflt
A119: Item | B119: d6044855-2440-4ead-a234-485fb851e4fc | C119: B.6.1.11.4.4 | D119: PSLB 8.2.6 | E119: Geotextile fabric (Bidim A4) where instructed (Provisional) | F119: m² | G119: 70 | H119: 0.00 | I119: 0.00 | J119: Dflt
A120: Header3 | B120: c97e173d-d3c8-48f5-9450-59184995f298 | C120: B.6.1.11.5 | D120: SANS 1200LD | E120: MANHOLES, ETC. | J120: Dflt
A121: Label | B121: 71c5a29a-f12f-4244-ae6e-1926ad38ecb8 | D121: 8.2.3 PSLD 8.2.3 | E121: Precast concrete manholes, with Type 1A Heavy Duty polyprop lockable manhole cover and frame, as per Dwg. No. J40073/010-219: over and up to
A122: Item | B122: 641eff4f-9b21-4abe-ace6-2439ad2c417f | C122: B.6.1.11.5.1 | E122: 0,0 m 1,0 m | F122: No | G122: 2 | H122: 0.00 | I122: =ROUND(G122 * H122,2) -> 0.00
A123: Item | B123: 6568dc60-e4ff-43de-8bde-23cd84a26ce3 | C123: B.6.1.11.5.2 | E123: 1,0 m 2,0 m | F123: No | G123: 20 | H123: 0.00 | I123: 0.00
A124: Header3 | B124: 3cf2e2b9-63d7-418c-8ce6-a1bf8cfcf4dd | C124: B.6.1.11.6 | D124: SANS 1200LD | E124: SUNDRIES
A125: Item | B125: ec8c9c1c-46bd-47fb-81f8-448331f9496f | C125: B.6.1.11.6.1 | D125: SANS 1200LD 8.2.11 PSLD 8.2.11 | E125: Break into and connect to existing manhole at SDB-02 including flexible joints as Dwg. No. J40073/010-219 and make good all benching. | F125: No | G125: 1 | H125: 0.00 | I125: =ROUND(G125 * H125,2) -> 0.00
A126: Item | B126: f23df048-bee5-4555-b8d0-539701b004d5 | C126: B.6.1.11.6.2 | E126: Supply, install precast manhole slabs complete with Type 1A Heavy Duty polyprop lockable manhole cover and frame to fit existing pre-cast concrete manhole rings as per Dwg. No. J40073/010-219 | F126: No | G126: 10 | H126: 0.00 | I126: 0.00

Sheet BILL B.7.
D2: Bid No: | E2: RW10404061/23 | J2: Work Group
D3: Description | E3: TENDER FOR THE UPGRADE OF MEYERTON WASTEWATER TREATMENT WORKS BY 15 ML/DAY AT MEYERTON | J3: Dflt
J4: Dflt
J5: Dflt
J6: Dflt
A7: BillHeader | C7: BILL B.7. | E7: PUMP STATIONS | J7: Dflt
A8: Item Type | B8: GUID | C8: Item Ref | D8: Payment Refers | E8: Description | F8: Unit | G8: Quantity | H8: Rate | I8: Amount R | J8: Dflt
A9: Section | B9: e3f3f83a-455e-4eb0-bedd-f0227493d4f5 | C9: B.7.1 | E9: RAW WATER AND IRRIGATION PUMP STATION EARTHWORKS | J9: Dflt
A10: Label | B10: 4af7bb42-40c3-4e49-9a8f-1b14af39ba75 | E10: SECTION B.7.1 : RAW WATER AND IRRIGATION PUMP STATION EARTHWORKS | J10: Dflt
A11: Header2 | B11: c31f9abc-745e-4f0a-a728-d9a81ad44561 | C11: B.7.1.1 | E11: EARTHWORKS | J11: Dflt
A12: Header3 | B12: 321c414c-afe7-4272-bd10-0ef37962a8ad | C12: B.7.1.1.1 | D12: SANS 1200C PSC 8.2 | E12: SITE CLEARANCE | J12: Dflt
A13: Item | B13: 49d55ae2-f5d1-4f29-87ea-f1ffb9e2215c | C13: B.7.1.1.1.1 | D13: 8.2.4 | E13: Reclear surfaces (provisional) (where ordered by Engineer) | F13: m² | G13: 200 | H13: 0.00 | I13: =ROUND(G13 * H13,2) -> 0.00 | J13: Dflt
A14: Item | B14: abb51ee8-0546-4f85-afd3-9cb1b55bc3a0 | C14: B.7.1.1.1.2 | D14: 8.2.9 | E14: Cart materials and debris to unspecified sites and dump (provisional) | F14: t.km | G14: 10 | H14: 0.00 | I14: 0.00 | J14: Dflt
A15: Header3 | B15: 376e8924-9458-44ec-a70f-9401be3461d4 | C15: B.7.1.1.2 | D15: SANS 1200D 8.3.2 | E15: EARTHWORKS | J15: Dflt
A16: Item | B16: 74fc788e-3d0e-4a77-b59c-febc7097cfdb | C16: B.7.1.1.2.1 | D16: 8.3.1.2 PSC 8.2.10 | E16: Remove topsoil to nominal depth 150mm, stockpile, and maintain | F16: m² | G16: 407 | H16: 0.00 | I16: =ROUND(G16 * H16,2) -> 0.00 | J16: Dflt
A17: Label | B17: bf8be4dd-aefe-4928-aaa8-4ac7e5c84f6a | D17: 8.3.2(a) PSD 8.3.6 | E17: Excavate for structures in all materials and dispose of surplus/unsuitable material as ordered within the free haul distance for : | J17: Dflt
A18: Item | B18: 06452aa4-c682-45ae-9a19-33b3be0cabcb | C18: B.7.1.1.2.2 | E18: Raw Water Pump Station | F18: m³ | G18: 50 | H18: 0.00 | I18: =ROUND(G18 * H18,2) -> 0.00 | J18: Dflt
A19: Item | B19: 616fd378-ddbb-40b1-a177-70d6613cda32 | C19: B.7.1.1.2.3 | E19: Irrigation Pump Station | F19: m³ | G19: 30 | H19: 0.00 | I19: 0.00 | J19: Dflt
A20: Item | B20: a773544a-f64f-40bc-99ef-fdd239db2126 | C20: B.7.1.1.2.4 | D20: 8.3.3 PSD 8.1.3 | E20: Restricted excavation for foundations and footing in all material and dispose of surplus/unsuitable material as ordered within the free haul distance | F20: m³ | G20: 60 | H20: 0.00 | I20: 0.00 | J20: Dflt
A21: Label | B21: 978f625c-023c-4e41-b3af-2c3c8ab3948c | D21: 8.3.2(a) | E21: Backfill (min G7 classified material)to 95% MOD AASHTO behind structures for: | J21: Dflt
A22: Item | B22: 41c78228-ae47-460d-a149-5c53b5e161d1 | C22: B.7.1.1.2.5 | E22: Raw Water Pump Station | F22: m³ | G22: 700 | H22: 0.00 | I22: =ROUND(G22 * H22,2) -> 0.00 | J22: Dflt
A23: Item | B23: 30ba779e-11b8-4f85-8d5e-e90e9555868f | C23: B.7.1.1.2.6 | E23: Irrigation Pump Station | F23: m³ | G23: 90 | H23: 0.00 | I23: 0.00 | J23: Dflt
A24: Label | B24: 7010ddff-5312-4bd6-a680-8f99750991b6 | E24: Chloradane Heptacor' or 'Aldrin' or similar approved soil insecticide | J24: Dflt
A25: Item | B25: 22afd3bc-1aa8-45b6-b6fa-3b55ffd58d08 | C25: B.7.1.1.2.7 | E25: Raw Water Pump Station | F25: Prov.Sum | G25: 1 | H25: 5,000.00 | I25: =ROUND(G25 * H25,2) -> 5,000.00 | J25: Dflt
A26: Item | B26: a8e12c6a-aafc-4312-87e9-9bf68e776148 | C26: B.7.1.1.2.8 | E26: Irrigation Pump Station | F26: Prov.Sum | G26: 0 | H26: 5,000.00 | I26: 0.00 | J26: Dflt
A27: Header3 | B27: a7bc92f4-157c-482d-b187-489aea7dd686 | C27: B.7.1.1.3 | D27: SANS 1200D 8.3.2(b) PSD 8.3.2(b) | E27: Extra-over items B.7.1.1.2.2 to B.7.1.1.2.4 for excavation in: | J27: Dflt
A28: Item | B28: e1a3f923-b754-4780-8258-f567bc09b3fe | C28: B.7.1.1.3.1 | D28: 8.3.2(b) | E28: Hard rock material | F28: m³ | G28: 5 | H28: 0.00 | I28: =ROUND(G28 * H28,2) -> 0.00 | J28: Dflt
A29: Header3 | B29: 3a1a4482-2d7c-4127-bc35-26daee162852 | C29: B.7.1.1.4 | D29: SANS 1200D 8.3.4 | E29: IMPORTING OF MATERIALS | J29: Dflt
A30: Item | B30: 07a63343-f0fa-48c6-b257-80222574b17d | C30: B.7.1.1.4.1 | E30: Extra-over items B.7.1.1.2.5 to B.7.1.1.2.6 for importation of material to complete embankment for the Raw Water Pump Station and Irrigation Pump Station from commercial sources where necessary: G7 material (Prov.) | F30: m³ | G30: 975 | H30: 0.00 | I30: =ROUND(G30 * H30,2) -> 0.00 | J30: Dflt
A31: Header3 | B31: 6ab2cc9a-9d00-45cc-bfce-bc442a702f55 | C31: B.7.1.1.5 | D31: SANS 1200D 8.3.7 | E31: ADDITIONAL LATERAL SUPPORT | J31: Dflt
A32: Label | B32: 80a1f484-bd95-41a9-845b-d143f9517273 | D32: 8.3.7 | E32: Additional lateral support (Provisional) for ensuring the stability of the excavation: | J32: Dflt
A33: Item | B33: eae1579d-e1c2-4118-805c-7934c8331da4 | C33: B.7.1.1.5.1 | E33: Raw Sewage Pump Station | F33: m² | G33: 20 | H33: 0.00 | I33: =ROUND(G33 * H33,2) -> 0.00 | J33: Dflt
A34: Item | B34: ae285c24-8d16-42f0-9b14-98c6765f2e68 | C34: B.7.1.1.5.2 | E34: Irrigation Pump Station | F34: m² | G34: 20 | H34: 0.00 | I34: 0.00 | J34: Dflt
A35: Header3 | B35: 83072b13-b1a1-4d39-9a58-c01b548ed863 | C35: B.7.1.1.6 | D35: SANS 1200D | E35: FINISHINGS | J35: Dflt
A36: Item | B36: 6c3aae75-16d5-4493-ba0c-b264553120c0 | C36: B.7.1.1.6.1 | D36: 8.3.10 | E36: Topsoiling | F36: m² | G36: 407 | H36: 0.00 | I36: =ROUND(G36 * H36,2) -> 0.00 | J36: Dflt
A37: Item | B37: f27b4283-3bd1-4235-9fe0-12e6e981227b | C37: B.7.1.1.6.2 | D37: 8.3.11 | E37: Grassing with instant kikuyu lawn grass. Rate to be inclusive of transport and delivery and offloading costs including for temporary stockpile and double handling etc as necessary and wetting | F37: m² | G37: 402 | H37: 0.00 | I37: 0.00 | J37: Dflt
A38: Section | B38: e500fdbe-00cc-481b-a2c2-6c18e60e3841 | C38: B.7.2 | E38: RAW WATER PUMP STATION | J38: Dflt
A39: Label | B39: c4c191f6-0832-410f-b446-6cb1596e9c21 | E39: SECTION B.7.2 : RAW WATER PUMP STATION | J39: Dflt
A40: Header2 | B40: 71fc7429-702e-493c-acd5-b70b80d667c7 | C40: B.7.2.1 | D40: SANS 1200G 8.1.3 PSG 8.1.3 | E40: CONCRETE (STRUCTURAL) | J40: Dflt
A41: Label | B41: de1c7e97-7d1b-428d-85cf-77594e1ecf41 | D41: 8.4.3 | E41: Strength concrete: 20 MPa/19mm: | J41: Dflt
A42: Item | B42: e8febb57-874f-47a0-8060-e4d3c5d536d7 | C42: B.7.2.1.1 | E42: Benching | F42: m³ | G42: 21 | H42: 0.00 | I42: =ROUND(G42 * H42,2) -> 0.00 | J42: Dflt
A43: Label | B43: 6e60a6ed-4cb0-4190-aa55-fd5c835af772 | D43: 8.4.3 | E43: Strength concrete: 15 MPa/19mm: | J43: Dflt
A44: Item | B44: d15993dc-d0e8-404d-8767-a216cb9d303c | C44: B.7.2.1.2 | E44: Thrust blocks and pump plinths | F44: m³ | G44: 5 | H44: 0.00 | I44: =ROUND(G44 * H44,2) -> 0.00 | J44: Dflt
A45: Label | B45: 69c0c634-8c40-429e-921d-dc9649ae1001 | D45: 8.4.3 | E45: Strength concrete: 35 MPa/19mm: | J45: Dflt
A46: Item | B46: 93ea1154-a0f0-43d7-9c04-e03b7e4eec14 | C46: B.7.2.1.3 | E46: Roof slabs and upstand beams | F46: m³ | G46: 10 | H46: 0.00 | I46: =ROUND(G46 * H46,2) -> 0.00 | J46: Dflt
A47: Item | B47: 589bcd49-fbea-4059-b0fc-4e57fbf0ba3f | C47: B.7.2.1.4 | E47: Access Ramps | F47: m³ | G47: 4 | H47: 0.00 | I47: 0.00 | J47: Dflt
A48: Item | B48: 59436ee4-3b7c-4290-95b6-a3b6fa2d9caf | C48: B.7.2.1.5 | E48: Columns | F48: m³ | G48: 8 | H48: 0.00 | I48: 0.00 | J48: Dflt
A49: Label | B49: b3099828-4b03-4504-9877-83488ae391ca | E49: Screeds: | J49: Dflt
A50: Item | B50: 4abbfa5d-50e4-4ed7-92fb-dc45201070ab | C50: B.7.2.1.6 | D50: PSG 8.11 | E50: Mortar floor screed (1:3 cement:sand), average 35 mm thick | F50: m² | G50: 190 | H50: 0.00 | I50: =ROUND(G50 * H50,2) -> 0.00 | J50: Dflt
A51: Header2 | B51: 11aeba4c-259c-4ff9-9fcf-aec527263da5 | C51: B.7.2.2 | D51: SANS 1200G 8.2 PSG 8.2 | E51: FORMWORK | J51: Dflt
A52: Label | B52: 6dcb6f10-1652-40e2-bf78-fffaccab4994 | D52: 8.2.2 | E52: Smooth horizontal plane: | J52: Dflt
A53: Item | B53: 2dd30a87-8b85-430a-ada1-c3167e69cc8e | C53: B.7.2.2.1 | E53: Upstand Beam | F53: m² | G53: 33 | H53: 0.00 | I53: =ROUND(G53 * H53,2) -> 0.00 | J53: Dflt
A54: Item | B54: f03e31fe-8dc0-4758-9582-bbe47e906bd7 | C54: B.7.2.2.2 | E54: Column | F54: m² | G54: 3 | H54: 0.00 | I54: 0.00 | J54: Dflt
A55: Item | B55: 41faff59-29a3-4b0e-a430-66ce1d709c92 | C55: B.7.2.2.3 | E55: Sides and beams | F55: m² | G55: 39 | H55: 0.00 | I55: 0.00 | J55: Dflt
A56: Label | B56: 7ec9cbba-f6b7-449a-9a07-81ee790488e6 | D56: 8.1.1.2 PSG 8.1.1.8 | E56: Chamfers exceeding 20mm x 20mm and grooves: | J56: Dflt
A57: Item | B57: 27e7f154-3ec0-4f39-96b6-502838f87315 | C57: B.7.2.2.4 | E57: Chamfer 25mm x 25mm | F57: m | G57: 47 | H57: 0.00 | I57: =ROUND(G57 * H57,2) -> 0.00 | J57: Dflt
A58: Item | B58: c738ab83-c50e-4e04-8c73-d3329a0ee20c | C58: B.7.2.2.5 | E58: Sides of access ramps | F58: m | G58: 11 | H58: 0.00 | I58: 0.00 | J58: Dflt
A59: Label | B59: b51750c7-792d-4f33-8be6-39be4c93b935 | D59: 8.2.6 | E59: Box Out Holes/Form Voids: | J59: Dflt
A60: Label | B60: 959fd39d-35af-40ee-a427-a52ad5f00bcd | D60: PSG 8.10 | E60: Casting of pipes/specials into concrete for: | J60: Dflt
A61: Label | B61: 7c771bf2-1845-47ea-85b9-68a127402189 | E61: Pipes up to and including 450 mm NB through walls of thickness: | J61: Dflt
A62: Label | B62: b3ea93b6-f154-401c-a910-3585be88cbab | E62: Over (m) Up to and incl (m) | J62: Dflt
A63: Item | B63: 792f8eb8-f222-4461-b15d-78f1b6f1b1b6 | C63: B.7.2.2.6 | E63: 0.00 0.45 | F63: No | G63: 6 | H63: 0.00 | I63: =ROUND(G63 * H63,2) -> 0.00 | J63: Dflt
A64: Label | B64: f6740af9-50e4-47a9-981c-f64d05fc8629 | E64: Pipes over 300 mm NB up to and including 600 mm NB through walls and slabs of thickness: | J64: Dflt
A65: Label | B65: ed5a9485-a8f6-4c4e-91fc-bc8df6fe01dc | E65: Over (m) Up to and incl (m) | J65: Dflt
A66: Item | B66: 2f09fdda-b182-460e-b2d9-6f5a97d01974 | C66: B.7.2.2.7 | E66: 0.00 0.45 | F66: No | G66: 3 | H66: 0.00 | I66: =ROUND(G66 * H66,2) -> 0.00 | J66: Dflt
A67: Label | B67: 517f5b9a-93e4-458c-928e-4b50511a2ede | E67: Pipes over 600 mm NB up to and including 800 mm NB through walls and slabs of thickness: | J67: Dflt
A68: Label | B68: 35e6f4ff-7a17-4895-8f67-f3b0c2e6f4f3 | E68: Over (m) Up to and incl (m) | J68: Dflt
A69: Item | B69: 1d008af3-7c69-4216-a0a8-a21483b1b868 | C69: B.7.2.2.8 | E69: 0.00 0.45 | F69: No | G69: 2 | H69: 0.00 | I69: =ROUND(G69 * H69,2) -> 0.00 | J69: Dflt
A70: Label | B70: 572a872c-9af2-429d-8e2c-a2b04de5971e | E70: Pipes over 800 mm NB up to and including 1000 mm NB through walls and slabs of thickness: | J70: Dflt
A71: Label | B71: 1144cbd5-a2a6-41ab-a9b8-e9b892eef7e9 | E71: Over (m) Up to and incl (m) | J71: Dflt
A72: Item | B72: ddd8c60a-85cb-4ca0-b22e-d3acd1671c4a | C72: B.7.2.2.9 | E72: 0.00 0.50 | F72: No | G72: 1 | H72: 0.00 | I72: =ROUND(G72 * H72,2) -> 0.00 | J72: Dflt
A73: Header2 | B73: 5ba36439-685f-4aab-a5e6-4d7fa9f3e88d | C73: B.7.2.3 | D73: SANS 1200G 8.1.2 PSG 8.1.2 | E73: REINFORCEMENT | J73: Dflt
A74: Label | B74: 58a13fbc-448a-4f26-8312-8b1f049314d9 | D74: 8.1.2.3(a) | E74: High tensile steel bars: | J74: Dflt
A75: Item | B75: 43fe4064-05a7-4e85-8705-a64f9df732b1 | C75: B.7.2.3.1 | E75: 25 mm diameter: Basic price | F75: t | G75: 2.7 | H75: 0.00 | I75: =ROUND(G75 * H75,2) -> 0.00 | J75: Dflt
A76: Label | B76: 5490ec83-c583-4339-b999-e2607e225e11 | D76: 8.1.2.3(b) | E76: Extra-over item B.7.2.3.1 for bars of diameter (Provisional): | J76: Dflt
A77: Item | B77: 449d9884-e47d-430e-a9ec-0e1307c3b3e9 | C77: B.7.2.3.2 | E77: 10 mm | F77: t | G77: 0.26 | H77: 0.00 | I77: =ROUND(G77 * H77,2) -> 0.00 | J77: Dflt
A78: Item | B78: 010fa81b-f91d-4972-8e41-8c2883b31455 | C78: B.7.2.3.3 | E78: 12 mm | F78: t | G78: 0.07 | H78: 0.00 | I78: 0.00 | J78: Dflt
A79: Item | B79: 55afddbb-21e8-44a3-9bb7-041911f00959 | C79: B.7.2.3.4 | E79: 16 mm | F79: t | G79: 0.6 | H79: 0.00 | I79: 0.00 | J79: Dflt
A80: Item | B80: ac977919-b313-4b93-9cbb-a056c50d98df | C80: B.7.2.3.5 | E80: 20 mm | F80: t | G80: 0.4 | H80: 0.00 | I80: 0.00 | J80: Dflt
A81: Header2 | B81: e08cdc64-5d08-4b76-a53b-a4918228e342 | C81: B.7.2.4 | D81: SANS 1200G 8.4.4 PSG 8.4 | E81: UNFORMED SURFACE FINISHES | J81: Dflt
A82: Label | B82: 4f8f3c96-0d9c-4857-a4a3-d4ba7b41bcca | D82: 8.1.1.5 PSG 8.4 | E82: Steel-floated finish: | J82: Dflt
A83: Item | B83: 193c03dd-b89a-4ebc-a923-54d91fc1a755 | C83: B.7.2.4.1 | E83: Top of upstand beam | F83: m² | G83: 43 | H83: 0.00 | I83: =ROUND(G83 * H83,2) -> 0.00 | J83: Dflt
A84: Header2 | B84: 795c6c89-2331-42f8-95ef-e283bd727d2f | C84: B.7.2.5 | D84: SANS 1200 8.5 PSG 8.5 | E84: JOINTS | J84: Dflt
A85: Label | B85: 1b64fad5-42b8-430f-8e99-5290b6bd4a8b | E85: Expansion joints: | J85: Dflt
A86: Item | B86: 37238dfc-03c0-4753-b994-a8f5eabf357e | C86: B.7.2.5.1 | E86: Joints in screed not exceeding 250mm (at expansion joints in the floor slabs) with 10mm thick any approved filler | F86: m | G86: 30 | H86: 0.00 | I86: =ROUND(G86 * H86,2) -> 0.00 | J86: Dflt
A87: Item | B87: 0eaf16b0-aa97-4920-9cd8-f15e5d042005 | C87: B.7.2.5.2 | E87: Corner fillet | F87: m | G87: 50 | H87: 0.00 | I87: 0.00 | J87: Dflt
A88: Item | B88: d0a57cb3-2917-4baa-aa34-6db54192b457 | C88: B.7.2.5.3 | E88: Brickwork Control joint at the Column interface | F88: m | G88: 95 | H88: 0.00 | I88: 0.00 | J88: Dflt
A89: Item | B89: 3d142094-5aae-4368-857f-0ff0ee380a16 | C89: B.7.2.5.4 | E89: Slip joint between brickwork and the roof | F89: m | G89: 21 | H89: 0.00 | I89: 0.00 | J89: Dflt
A90: Header2 | B90: 15eca808-ec65-470d-9fd1-5fde4bd23366 | C90: B.7.2.6 | E90: STRUCTURAL STEELWORK (SUNDRY ITEMS) (Refer SANS 1200 HA) | J90: Dflt
A91: Label | B91: fc9a9121-987d-4365-9835-3c9315f8b41c | E91: Supply and install crawl beam in raw water pump station complete, including supply, fitting, corrosion protection, testing, certification, etc. as shown on Dwg. No. J40073/010-204: | J91: Dflt
A92: Item | B92: c2926825-769b-4b0d-a181-cb24f2b740ef | C92: B.7.2.6.1 | E92: Crawl Beam | F92: Sum | G92: 1 | H92: 0.00 | I92: =ROUND(G92 * H92,2) -> 0.00 | J92: Dflt
A93: Header2 | B93: 0a1017d1-e5df-4e9b-ad97-e07807505635 | C93: B.7.2.7 | E93: MISCELLANEOUS | J93: Dflt
A94: Item | B94: 4229eb84-a1d5-4202-b376-aedf78330799 | C94: B.7.2.7.1 | E94: Calcamite type step irons, staggered at 300 mm c/c | F94: No | G94: 60 | H94: 0.00 | I94: =ROUND(G94 * H94,2) -> 0.00 | J94: Dflt
A95: Header2 | B95: 4d284ab6-9c87-456a-bb0c-b7a585f605cf | C95: B.7.2.8 | E95: SUNDRIES | J95: Dflt
A96: Label | B96: 0e7aebb5-904f-4472-8cc1-a3d9614b8b15 | E96: Water Tightness Testing: | J96: Dflt
A97: Sum | B97: ab97d4c3-c421-4081-a412-d51f21396a74 | C97: B.7.2.8.1 | D97: PSG 8.12 | E97: Testing for Water Tightness, all inclusive to PSG 7.2.5 | F97: Sum | G97: 1 | H97: 0.00 | I97: =ROUND(H97,2) -> 0.00 | J97: Dflt
A98: Label | B98: 6d46880b-8102-4ec8-a81b-d3d14ae36104 | E98: Corrective work to Raw Water Pump Station | J98: Dflt
A99: Sum | B99: 3e92e0e2-64d1-4e85-9ee3-558f39e4fddb | C99: B.7.2.8.2 | E99: Corrective works as directed by the Specialist investigations/tests conducted by the Contractor | F99: PSum | G99: 1 | H99: 1,000,000.00 | I99: =ROUND(H99,2) -> 1,000,000.00 | J99: Dflt
A100: Header2 | B100: d242d36d-b679-48e7-aa50-ab333266cc4a | C100: B.7.2.9 | E100: BUILDING WORKS FOR THE RAW WATER PUMP STATION | J100: Dflt
A101: Label | B101: 59e08530-b65a-42b1-8636-d31fa44fee88 | E101: Surface preparation: | J101: Dflt
A102: Item | B102: cf0ceecf-0c4f-47aa-a752-88d6beb9a1c2 | C102: B.7.2.9.1 | E102: Brickwork in face (outside face) and stock bricks (inside face) to 230 mm external walls | F102: m² | G102: 63 | H102: 0.00 | I102: =ROUND(G102 * H102,2) -> 0.00 | J102: Dflt
A103: Item | B103: ec6c3043-6cbb-4f73-91cc-dc74211bacc5 | C103: B.7.2.9.2 | E103: Brickforce | F103: m | G103: 343 | H103: 0.00 | I103: 0.00 | J103: Dflt
A104: Item | B104: 170c5179-230e-4050-a1e1-447a52458dc2 | C104: B.7.2.9.3 | E104: Hoop iron ties shot onto concrete | F104: No | G104: 50 | H104: 0.00 | I104: 0.00 | J104: Dflt
A105: Label | B105: 54040bce-91c3-42fc-b158-d73c3e203611 | E105: Brickwork in stock bricks to: | J105: Dflt
A106: Item | B106: aec07306-4b24-497b-a57a-10689f8e95f1 | C106: B.7.2.9.4 | E106: 500 mm wide by 500 mm high louvered vent | F106: No | G106: 6 | H106: 0.00 | I106: =ROUND(G106 * H106,2) -> 0.00 | J106: Dflt
A107: Item | B107: 6df55e53-67aa-4c08-ba5b-82989fc1691c | C107: B.7.2.9.5 | E107: Slate internal window sills (180 mm x 25 mm) | F107: m | G107: 10 | H107: 0.00 | I107: 0.00 | J107: Dflt
A108: Item | B108: 1483e441-176a-479f-af48-9ab7e2c79f87 | C108: B.7.2.9.6 | E108: Brick-on-edge external window sills | F108: m | G108: 1 | H108: 0.00 | I108: 0.00 | J108: Dflt
A109: Label | B109: 129e54ea-c3d9-4202-880f-9518e0bdf60f | E109: Damp proof courses and membranes: | J109: Dflt
A110: Item | B110: cdf1827c-a865-4815-a637-ce12913633b9 | C110: B.7.2.9.7 | E110: 375 micron embossed black polyethelene to brickwork 230 mm wide | F110: m | G110: 50 | H110: 0.00 | I110: =ROUND(G110 * H110,2) -> 0.00 | J110: Dflt
A111: Item | B111: 783d5d15-c226-452e-afe2-336556cb2097 | C111: B.7.2.9.8 | E111: Plastering, 12 mm thick to internal brick walls | F111: m² | G111: 130 | H111: 0.00 | I111: 0.00 | J111: Dflt
A112: Label | B112: 12bf13cd-5bbe-4f4a-8369-5fec5edddab4 | E112: Painting: | J112: Dflt
A113: Item | B113: 46467334-39c3-4122-9e44-2d6b3300ea15 | C113: B.7.2.9.9 | E113: Internal plastered surfaces (acrylic emulsion) | F113: m² | G113: 225 | H113: 0.00 | I113: =ROUND(G113 * H113,2) -> 0.00 | J113: Dflt
A114: Item | B114: 22175121-aacb-4e0f-b53a-ac2450cc2da8 | C114: B.7.2.9.10 | E114: Fascias and barge boards (acrylic emulsion | F114: m | G114: 90 | H114: 0.00 | I114: 0.00 | J114: Dflt
A115: Label | B115: 701ef929-0cba-4e9f-a7aa-88c1812b61cb | E115: Doors and windows (including frames and glass): | J115: Dflt
A116: Item | B116: f9e7fa26-967e-46a7-82b8-fe60880de70a | C116: B.7.2.9.11 | E116: Doors complete including supply, fitting, corrosion protection and painting as per Dwg. No. J40073/010-204 | F116: No | G116: 2 | H116: 0.00 | I116: =ROUND(G116 * H116,2) -> 0.00 | J116: Dflt
A117: Item | B117: c6a2a672-e2b7-4411-a5eb-fa9b1099778e | C117: B.7.2.9.12 | E117: 1200 mm wide x 900 mm high Anodized Aluminium sliding window CAT. No 129 and fitted with obscure glass, flyscreen and burglar bars (similar to installation in Admin Building) to be approved by the Engineer prior to arrival on site. | F117: No | G117: 6 | H117: 0.00 | I117: 0.00 | J117: Dflt
A118: Item | B118: de62cd3e-dd07-4c0b-9ba8-089792a7dfef | C118: B.7.2.9.13 | E118: Ceiling boards and insulation | F118: m² | G118: 175 | H118: 0.00 | I118: 0.00 | J118: Dflt
A119: Label | B119: 790309b2-fc5b-4c28-8451-7f8cebd83749 | E119: Corrugated Iron Sheeting with Timber trusses roofing to: | J119: Dflt
A120: Item | B120: 2fd8db53-11d6-496f-a6af-e9366d862e13 | C120: B.7.2.9.14 | E120: Raw Water Sewage Pump station | F120: Sum | G120: 1 | H120: 0.00 | I120: =ROUND(G120 * H120,2) -> 0.00 | J120: Dflt
A121: Label | B121: 34874d00-269b-40d8-890d-9a003d1a7015 | E121: Whirly Bird Roof ventilators or similar product for: | J121: Dflt
A122: Item | B122: bffcb676-e12c-4701-aa41-f73e0500eced | C122: B.7.2.9.15 | E122: Pump station | F122: No | G122: 6 | H122: 0.00 | I122: =ROUND(G122 * H122,2) -> 0.00 | J122: Dflt
A123: Section | B123: 43e8f79d-f79f-4007-a418-905ad0637a0c | C123: B.7.3 | E123: PUMP STATION (IRRIGATION) | J123: Dflt
A124: Label | B124: c9e29578-b1e5-48bc-9c82-a3579f20770b | E124: SECTION B.7.3 : PUMP STATION (IRRIGATION) | J124: Dflt
A125: Header2 | B125: 37865c80-5be1-4d6d-a3ba-b6dd8e86aa6d | C125: B.7.3.1 | D125: SANS 1200G 8.1.3 PSG 8.1.3 | E125: CONCRETE (STRUCTURAL) | J125: Dflt
A126: Label | B126: 72d59f4d-3cfb-4d45-8c28-43b0ba73a8ea | D126: 8.4.2 | E126: Blinding layer: 15 MPa/19 mm concrete: | J126: Dflt
A127: Item | B127: 25e03b14-f6c2-417a-a34a-a76eac81a317 | C127: B.7.3.1.1 | E127: 50 mm minimum thickness | F127: m² | G127: 15 | H127: 0.00 | I127: =ROUND(G127 * H127,2) -> 0.00 | J127: Dflt
A128: Label | B128: 9d55a11a-1991-4664-afeb-6b837f78a2e2 | D128: 8.4.3 | E128: Strength concrete: 15 MPa/19 mm: | J128: Dflt
A129: Item | B129: a9e9c7dd-7393-4ebc-8f0d-47c7ec1765a1 | C129: B.7.3.1.2 | E129: Thrust blocks and pump plinths | F129: m³ | G129: 2 | H129: 0.00 | I129: =ROUND(G129 * H129,2) -> 0.00 | J129: Dflt
A130: Label | B130: 8ce08289-bfb4-4361-8309-a814b0b13bb6 | D130: 8.4.3 PSG 3.5.4 | E130: Strength concrete (Inclusive of Crystalline Water Proofing additive): 35 MPa/ 19mm: | J130: Dflt
A131: Item | B131: 2e6eb868-0718-49b3-ac85-3bcf1e3101b6 | C131: B.7.3.1.3 | E131: Floor slabs | F131: m³ | G131: 14 | H131: 0.00 | I131: =ROUND(G131 * H131,2) -> 0.00 | J131: Dflt
A132: Item | B132: 451e1e95-986d-47ae-b2eb-2965f237e8c0 | C132: B.7.3.1.4 | E132: Walls | F132: m³ | G132: 23 | H132: 0.00 | I132: 0.00 | J132: Dflt
A133: Item | B133: 2e3d5a38-4863-4441-b318-981b1d0b114e | C133: B.7.3.1.5 | E133: Roof slabs | F133: m³ | G133: 5 | H133: 0.00 | I133: 0.00 | J133: Dflt
A134: Label | B134: 6f2ffee5-df9c-46ee-a508-ecc08c767000 | D134: 8.4.3 | E134: Soilcrete: 3 MPa: | J134: Dflt
A135: Item | B135: b53faf40-3d01-4b18-9a85-c35bafeebaba | C135: B.7.3.1.6 | E135: Mass soilcrete as shown on Dwg. No. J40073/010-220 | F135: m³ | G135: 10 | H135: 0.00 | I135: =ROUND(G135 * H135,2) -> 0.00 | J135: Dflt
A136: Label | B136: 6ded1b9b-d4e3-4533-b53d-521c7fd843f0 | D136: 8.4.3 | E136: Strength concrete: 20 MPa/19 mm: | J136: Dflt
A137: Item | B137: 92f472a0-8e3f-4977-9927-beff83682f37 | C137: B.7.3.1.7 | E137: Benching | F137: m³ | G137: 5 | H137: 0.00 | I137: =ROUND(G137 * H137,2) -> 0.00 | J137: Dflt
A138: Label | B138: 951f66d4-df5b-4ef3-a04e-35fea86b04a2 | E138: Screeds: | J138: Dflt
A139: Item | B139: 5d2b2495-88ad-4f75-922d-4fa8134504d7 | C139: B.7.3.1.8 | D139: PSG 8.11 | E139: Mortar floor screed (1:3 cement:sand), average 35 mm thick | F139: m² | G139: 9 | H139: 0.00 | I139: =ROUND(G139 * H139,2) -> 0.00 | J139: Dflt
A140: Header2 | B140: e7b04cf0-f084-46c2-a91d-9f299ea72e0b | C140: B.7.3.2 | D140: SANS 1200G 8.2 PSG 8.2 | E140: FORMWORK | J140: Dflt
A141: Label | B141: 0fc164c3-8c6e-4de6-9306-6a7b42cf5874 | D141: 8.2.2 | E141: Smooth vertical plane: | J141: Dflt
A142: Item | B142: 48c235bd-b1bf-4a09-82fe-62ad3b16c012 | C142: B.7.3.2.1 | E142: Walls | F142: m² | G142: 169 | H142: 0.00 | I142: =ROUND(G142 * H142,2) -> 0.00 | J142: Dflt
A143: Item | B143: 65c1d1f6-f43a-406e-9f2f-5a4a541e295e | C143: B.7.3.2.2 | E143: Columns | F143: m² | G143: 2 | H143: 0.00 | I143: 0.00 | J143: Dflt
A144: Label | B144: 953be329-afb9-4cfb-af88-d085b943c037 | D144: 8.2.2 | E144: Smooth horizontal plane: | J144: Dflt
A145: Item | B145: 98df6ad2-be44-4497-892a-c98e8625f189 | C145: B.7.3.2.3 | E145: Soffit of roof slab | F145: m² | G145: 15 | H145: 0.00 | I145: =ROUND(G145 * H145,2) -> 0.00 | J145: Dflt
A146: Label | B146: 40220ed3-6e6a-4503-8cf0-061834998767 | D146: 8.2.5 | E146: Vertical narrow widths up to 300 mm wide: | J146: Dflt
A147: Item | B147: dbfb4976-68f1-412f-9719-3c8f9b871cdb | C147: B.7.3.2.4 | E147: Edge of footings | F147: m | G147: 39 | H147: 0.00 | I147: =ROUND(G147 * H147,2) -> 0.00 | J147: Dflt
A148: Item | B148: c706a431-62e0-4cae-9a74-d228986b9bb3 | C148: B.7.3.2.5 | E148: Smooth, vertical, plane to roof slabs | F148: m | G148: 64 | H148: 0.00 | I148: 0.00 | J148: Dflt
A149: Label | B149: c3c7fb5c-751e-4f8a-ae8d-b91c5818b3c9 | D149: 8.1.1.2 PSG 8.1.1.8 | E149: Chamfers exceeding 20mm x 20mm and grooves: | J149: Dflt
A150: Item | B150: 796a18a8-440c-407e-9c63-72dade52dd38 | C150: B.7.3.2.6 | E150: Chamfer 25 mm x 25 mm | F150: m | G150: 30 | H150: 0.00 | I150: =ROUND(G150 * H150,2) -> 0.00 | J150: Dflt
A151: Label | B151: fba947e7-f2d7-4fd8-8879-922ec6faf333 | D151: 8.2.6 | E151: Box Out Holes/Form Voids: | J151: Dflt
A152: Label | B152: 41ed53d1-b12b-4fc5-96cf-7c98cfe23b72 | E152: Small, circular up to 0,35 m diam.: depths over and up to | J152: Dflt
A153: Item | B153: 6f575b3e-9149-4680-886b-91774b436cc1 | C153: B.7.3.2.7 | E153: 0 m 0,5 m | F153: No | G153: 3 | H153: 0.00 | I153: =ROUND(G153 * H153,2) -> 0.00 | J153: Dflt
A154: Label | B154: 278ecec3-27ef-425a-8765-f34ebf54cd84 | E154: Large, other shapes, area 1,0 m² - 1,5 m²: depths over and up to | J154: Dflt
A155: Item | B155: 2e1364f3-a5f0-4716-adba-b6985ad939f2 | C155: B.7.3.2.8 | E155: 0 m 0,5 m | F155: No | G155: 1 | H155: 0.00 | I155: =ROUND(G155 * H155,2) -> 0.00 | J155: Dflt
A156: Label | B156: 315fa57b-0f72-4772-a85b-03e0d8bf47b4 | D156: PSG 8.10 | E156: Casting of pipes/specials into concrete for: | J156: Dflt
A157: Label | B157: 088ab359-d7f7-4299-bb7b-c58137d50e63 | E157: Pipes up to and including 450 mm NB through walls: depths over and up to | J157: Dflt
A158: Item | B158: 935eef5a-f15e-4d3c-94ea-a2a82cd9946e | C158: B.7.3.2.9 | E158: 0 m 0,5 m | F158: No | G158: 3 | H158: 0.00 | I158: =ROUND(G158 * H158,2) -> 0.00 | J158: Dflt
A159: Header2 | B159: b50ffe68-fe02-478c-887c-b024ecd740e6 | C159: B.7.3.3 | D159: SANS 1200G 8.1.2 PSG 8.1.2 | E159: REINFORCEMENT | J159: Dflt
A160: Label | B160: 68dde8a7-d9de-49ae-8f82-b0962c018d91 | D160: 8.1.2.3(a) | E160: Mild steel bars: | J160: Dflt
A161: Item | B161: b4047174-013b-49e3-b464-d94c1718439f | C161: B.7.3.3.1 | E161: 25 mm diameter: Basic price | F161: t | G161: 0.062 | H161: 0.00 | I161: =ROUND(G161 * H161,2) -> 0.00 | J161: Dflt
A162: Label | B162: 4e654828-da78-4110-8c37-aa8c7c7cd98b | D162: 8.1.2.3(b) | E162: Extra-over item B.7.3.3.1 for bars of diameter (Provisional): | J162: Dflt
A163: Item | B163: b4fcf40a-d3d5-414a-be4f-ff675c964399 | C163: B.7.3.3.2 | E163: 8 mm | F163: t | G163: 0.039 | H163: 0.00 | I163: =ROUND(G163 * H163,2) -> 0.00 | J163: Dflt
A164: Item | B164: 090a4f77-ebeb-4857-ba07-2d98245bcc95 | C164: B.7.3.3.3 | E164: 10 mm | F164: t | G164: 0.023 | H164: 0.00 | I164: 0.00 | J164: Dflt
A165: Label | B165: e97ef532-c7e6-4ae5-b73e-b2344effb5d2 | D165: 8.1.2.3(a) | E165: High tensile steel bars: | J165: Dflt
A166: Item | B166: 44ed974d-587a-45a5-a06b-f18e0622177b | C166: B.7.3.3.4 | E166: 25 mm diameter: Basic price | F166: t | G166: 7.31 | H166: 0.00 | I166: =ROUND(G166 * H166,2) -> 0.00 | J166: Dflt
A167: Label | B167: ec2ff005-47da-4472-9172-b98e7bd2c7a3 | D167: 8.1.2.3(b) | E167: Extra-over item B.7.3.3.4 for bars of diameter (Provisional): | J167: Dflt
A168: Item | B168: 1b16ee79-6a95-4d92-88a9-188f95423f84 | C168: B.7.3.3.5 | E168: 10 mm | F168: t | G168: 0.29 | H168: 0.00 | I168: =ROUND(G168 * H168,2) -> 0.00 | J168: Dflt
A169: Item | B169: ef0f6cb3-40f0-4c2c-a6fd-6ab89522656a | C169: B.7.3.3.6 | E169: 12 mm | F169: t | G169: 3.83 | H169: 0.00 | I169: 0.00 | J169: Dflt
A170: Item | B170: a60f5c0d-3cef-4672-a9db-2b9c45cb45fb | C170: B.7.3.3.7 | E170: 16 mm | F170: t | G170: 3.15 | H170: 0.00 | I170: 0.00 | J170: Dflt
A171: Header2 | B171: 1da59957-bca0-4e98-ae42-afdf5d419ed7 | C171: B.7.3.4 | D171: SANS 1200G 8.4.4 PSG 8.4 | E171: UNFORMED SURFACE FINISHES | J171: Dflt
A172: Label | B172: 9ff1fecb-ef03-4b0a-8aa3-027e337f0112 | D172: PSG 8.4 | E172: Wood-floated finish: | J172: Dflt
A173: Item | B173: ded34921-bd7c-4930-a7dc-a57c42122f7e | C173: B.7.3.4.1 | E173: Top of floor slabs | F173: m² | G173: 29 | H173: 0.00 | I173: =ROUND(G173 * H173,2) -> 0.00 | J173: Dflt
A174: Label | B174: 38f97d89-035d-47d2-a0b1-c4ab2e58a32f | D174: 8.1.1.5 PSG 8.4 | E174: Steel-floated finish: | J174: Dflt
A175: Item | B175: fa83c8e2-9276-449e-89f7-edda68fe5e6b | C175: B.7.3.4.2 | E175: Top of roof slabs | F175: m² | G175: 23 | H175: 0.00 | I175: =ROUND(G175 * H175,2) -> 0.00 | J175: Dflt
A176: Header2 | B176: e10ba2a7-e20b-40f6-8220-0ecea3128e27 | C176: B.7.3.5 | D176: SANS 1200G 8.5 PSG 8.5 | E176: JOINTS | J176: Dflt
A177: Item | B177: e9344096-d7d7-4cfe-ac74-430da6ac5715 | C177: B.7.3.5.1 | E177: 2 mm thick X 200 mm wide galvanised water stop in walls (overlapping length at least 300 mm) | F177: m | G177: 51 | H177: 0.00 | I177: =ROUND(G177 * H177,2) -> 0.00 | J177: Dflt
A178: Label | B178: 7f595c22-9597-4c23-b449-e728b11806f8 | E178: Expansion joints: | J178: Dflt
A179: Item | B179: e7c9fd05-2a49-4bb8-98e7-1061e467d3a2 | C179: B.7.3.5.2 | E179: Joints in channel wall complete with PVC water stop, 12mm joint filler and polyurethane sealant both sides | F179: m | G179: 15 | H179: 0.00 | I179: =ROUND(G179 * H179,2) -> 0.00 | J179: Dflt
A180: Header2 | B180: 07fb7d1d-ff59-44de-a5e4-849a035eec65 | C180: B.7.3.6 | D180: SANS 1200H | E180: STRUCTURAL STEELWORK: SUNDRY ITEMS | J180: Dflt
A181: Label | B181: 0fe11959-642f-434f-b621-884e086c754f | D181: 8.3.9 | E181: Open grid floors: | J181: Dflt
A182: Label | B182: d2785e07-2c7b-4b5d-bd60-ead4ce67c10a | E182: a) Steel floors and steps complete and installed with frames and wall fixings to Dwg. Nos. J40073/010-105 and J40073/010-220: | J182: Dflt
A183: Item | B183: 03936547-c578-44d7-bfae-5461a1a78dff | C183: B.7.3.6.1 | E183: 50 x 50 x 5 mm thick galvanised angles cast into slabs (Grating by others) | F183: m | G183: 40 | H183: 0.00 | I183: =ROUND(G183 * H183,2) -> 0.00 | J183: Dflt
A184: Header2 | B184: 850c19a9-aec5-4f44-b1d6-1f85d518028a | C184: B.7.3.7 | E184: MISCELLANEOUS | J184: Dflt
A185: Item | B185: 029b13ee-435f-4d58-825a-b909c9d69c68 | C185: B.7.3.7.1 | E185: Calcamite type step irons, staggered at 300 mm c/c | F185: No | G185: 20 | H185: 0.00 | I185: =ROUND(G185 * H185,2) -> 0.00 | J185: Dflt
A186: Header2 | B186: a6767386-0415-4325-a24f-50399798b77c | C186: B.7.3.8 | E186: SUNDRIES | J186: Dflt
A187: Label | B187: c7c65622-19ba-416d-8b5b-616ac3ccfd42 | E187: Water Tightness Testing: | J187: Dflt
A188: Item | B188: ed7dd8f3-bc77-49d9-b1f6-f7b7c3af1dca | C188: B.7.3.8.1 | D188: PSG 8.12 | E188: Testing for Water Tightness, all inclusive to PSG 7.2.5 | F188: Sum | G188: 1 | H188: 0.00 | I188: =ROUND(G188 * H188,2) -> 0.00 | J188: Dflt
A189: Section | B189: 3d680f8b-31bb-4264-ba3f-b9c60b13e64f | C189: B.7.4 | E189: WASTE ACTIVATED SLUDGE (WAS) PUMP STATION | J189: Dflt
A190: Label | B190: 48f469d2-11f7-4c10-9128-7e016a733099 | E190: SECTION B.7.4 : WASTE ACTIVATED SLUDGE (WAS) PUMP STATION | J190: Dflt
A191: Header2 | B191: d5963828-a6f2-42e5-a861-52ff02fc825b | C191: B.7.4.1 | D191: SANS 1200D | E191: EARTHWORKS | J191: Dflt
A192: Item | B192: 3c1f2e0a-58b1-45ec-a4b9-43dfecb24480 | C192: B.7.4.1.1 | D192: 8.3.1.2 PSC8.2.10 | E192: Remove topsoil to nominal depth 150mm, stockpile, and maintain | F192: m² | G192: 185 | H192: 0.00 | I192: =ROUND(G192 * H192,2) -> 0.00 | J192: Dflt
A193: Header3 | B193: 41d788e8-2c56-4762-b0bf-a550e21bb496 | C193: B.7.4.1.2 | D193: 8.3.2 | E193: Bulk Excavation | J193: Dflt
A194: Item | B194: 812c2e04-5243-4371-8635-8fb188607a17 | C194: B.7.4.1.2.1 | D194: 8.3.2 (a) | E194: Excavate in all materials and use for backfill or dispose as ordered | F194: m³ | G194: 180 | H194: 0.00 | I194: =ROUND(G194 * H194,2) -> 0.00 | J194: Dflt
A195: Item | B195: c6444f19-22f0-422f-8253-a74191f7717c | C195: B.7.4.1.2.2 | D195: 8.3.2 (b) PSD8.3.2 (b) | E195: Extra-over items B.7.4.1.2.1 for excavation in hard rock material | F195: m³ | G195: 5 | H195: 0.00 | I195: 0.00 | J195: Dflt
A196: Header3 | B196: c39749b4-bd2a-4cdb-a4aa-1997fca255a6 | C196: B.7.4.1.3 | D196: 8.3.3 | E196: Restricted Excavation | J196: Dflt
A197: Item | B197: bb4e333e-9ca1-47ac-942e-774b489b913b | C197: B.7.4.1.3.1 | D197: 8.3.3 (a) | E197: Excavate for restricted foundations and footings in all materials and use for backfill or dispose | F197: m³ | G197: 30 | H197: 0.00 | I197: =ROUND(G197 * H197,2) -> 0.00 | J197: Dflt
A198: Item | B198: a5737ada-bab9-4b21-a481-ec16ce4aefa4 | C198: B.7.4.1.3.2 | D198: 8.3.3 (b) | E198: Extra-over items B.7.4.1.3.1 for excavation in hard rock material | F198: m³ | G198: 1 | H198: 0.00 | I198: 0.00 | J198: Dflt
A199: Header3 | B199: a549a00f-7841-4eac-89db-734577cb2a07 | C199: B.7.4.1.4 | D199: 8.3.4 | E199: Importing of Materials | J199: Dflt
A200: Item | B200: 7859d9fe-818f-49da-b143-416042555cc2 | C200: B.7.4.1.4.1 | E200: a) Extra-over for importation from commercial sources of G7 subgrade quality material placed in 150 mm layers and compacted to 95% MOD AASHTO density | F200: m³ | G200: 10 | H200: 0.00 | I200: =ROUND(G200 * H200,2) -> 0.00 | J200: Dflt
A201: Item | B201: c593a0ed-1db7-4d9a-9e96-65cfb95c3c70 | C201: B.7.4.1.4.2 | E201: a) Extra-over for importation from commercial sources of G5 quality material placed in 150 mm layers and compacted to 98% MOD AASHTO density | F201: m³ | G201: 10 | H201: 0.00 | I201: 0.00 | J201: Dflt
... 154 more rows

Sheet BILL B.8.
D2: Bid No: | E2: RW10404061/23 | J2: Work Group
D3: Description | E3: TENDER FOR THE UPGRADE OF MEYERTON WASTEWATER TREATMENT WORKS BY 15 ML/DAY AT MEYERTON | J3: Dflt
J4: Dflt
J5: Dflt
J6: Dflt
A7: BillHeader | C7: BILL B.8. | E7: CHLORINE CONTACT CHANNELS | J7: Dflt
A8: Item Type | B8: GUID | C8: Item Ref | D8: Payment Refers | E8: Description | F8: Unit | G8: Quantity | H8: Rate | I8: Amount R | J8: Dflt
A9: Section | B9: 81064ffb-8d20-4c1f-9930-978d2de516f0 | C9: B.8.1 | E9: CHLORINE CONTACT CHANNEL | J9: Dflt
A10: Label | B10: f7f082e3-297c-4e86-afbf-6ae6bd42b476 | E10: SECTION B.8.1 : CHLORINE CONTACT CHANNEL | J10: Dflt
A11: Header2 | B11: 7691380c-1b01-45e3-bc42-e7f92b581ad1 | C11: B.8.1.1 | E11: JOINTS | J11: Dflt
A12: Item | B12: 4157a82e-ae24-43f4-ade5-8eae06fdc9b3 | C12: B.8.1.1.1 | D12: SANS 1200G 8.5 PSG 8.5 | E12: Form Joints in floors complete, including preparation, 10 mm wide x 10 mm deep polyurethane sealant, etc. | F12: m | G12: 2000 | H12: 0.00 | I12: =ROUND(G12 * H12,2) -> 0.00 | J12: Dflt
A13: Header2 | B13: 2979b656-aee3-452d-bf15-5fcd9fb343ec | C13: B.8.1.2 | E13: SUNDRIES | J13: Dflt
A14: Label | B14: 5bc6a2f9-fab7-4f2a-9666-f29f408c2539 | E14: Removal of broken concrete dividers and dispose off-site to a registered landfill site(Provisional): | J14: Dflt
A15: Item | B15: 6b16d9e1-6cb6-4129-a926-cd9bc27dee67 | C15: B.8.1.2.1 | E15: Concrete dividers (Typical fibro-crete concrete panels) | F15: m | G15: 10 | H15: 0.00 | I15: =ROUND(G15 * H15,2) -> 0.00 | J15: Dflt
A16: Label | B16: bb365ee5-3e24-4804-8f41-e70316016b5b | E16: Supply, install, etc. concrete dividers: | J16: Dflt
A17: Item | B17: 39af872f-45e3-4d3b-afb3-1f7ff04256f6 | C17: B.8.1.2.2 | E17: Concrete dividers (Typical fibro-crete concrete panels) | F17: m | G17: 10 | H17: 0.00 | I17: =ROUND(G17 * H17,2) -> 0.00 | J17: Dflt
A18: Section | B18: c352ce74-cb1d-4a94-99bd-80ff5bffbb16 | C18: B.8.2 | E18: CHLORINE CONTACT TANK INFLOW CHANNEL | J18: Dflt
A19: Label | B19: ddcf31bd-25ee-4e3c-89d4-da440b81a3e1 | E19: SECTION B.8.2 : CHLORINE CONTACT TANK INFLOW CHANNEL | J19: Dflt
A20: Header2 | B20: 2dd25e44-615e-49bc-b726-e1335c19f988 | C20: B.8.2.1 | D20: SANS 1200C & PSC 8.2 | E20: SITE CLEARANCE | J20: Dflt
A21: Item | B21: b69fdcec-d3dc-4b8e-989c-f148ca7c69f7 | C21: B.8.2.1.1 | D21: 8.2.1 | E21: Clear and grub Site | F21: m² | G21: 85 | H21: 0.00 | I21: =ROUND(G21 * H21,2) -> 0.00 | J21: Dflt
A22: Item | B22: 98809d5f-c547-4cde-8aef-5f910c373d2e | C22: B.8.2.1.2 | D22: 8.2.4 | E22: Reclear surfaces (provisional) (where ordered by Engineer) | F22: m² | G22: 20 | H22: 0.00 | I22: 0.00 | J22: Dflt
A23: Item | B23: 1a84c2f1-2454-4a5b-ae0f-1cbc0aae5aa9 | C23: B.8.2.1.3 | D23: 8.2.9 | E23: Cart materials and debris to unspecified sites and dump (provisional) | F23: t.km | G23: 5 | H23: 0.00 | I23: 0.00 | J23: Dflt
A24: Header2 | B24: 97ff5113-ff1b-4c2a-8e99-333a3f837a1c | C24: B.8.2.2 | D24: SANS 1200D 8.3.2 | E24: EARTHWORKS | J24: Dflt
A25: Item | B25: 741d743b-7678-47a0-8e22-67f7e297ce2b | C25: B.8.2.2.1 | D25: 8.3.1.2 PSC 8.2.10 | E25: Remove topsoil to nominal depth 150mm, stockpile, and maintain | F25: m² | G25: 85 | H25: 0.00 | I25: =ROUND(G25 * H25,2) -> 0.00 | J25: Dflt
A26: Label | B26: 978dbc60-e9cb-424d-947a-25ec27acb7a3 | D26: 8.3.2(a) PSD 8.3.6 | E26: Excavate for structures in all materials and dispose of surplus/unsuitable material as ordered within the free haul distance for : | J26: Dflt
A27: Item | B27: c5129097-ae0c-4da2-b7a7-6d09ebfd2db4 | C27: B.8.2.2.2 | E27: Channel | F27: m³ | G27: 75 | H27: 0.00 | I27: =ROUND(G27 * H27,2) -> 0.00 | J27: Dflt
A28: Label | B28: 4b9099cd-55fe-40f5-a21e-1d8a9236ef44 | D28: 8.3.2(a) | E28: Backfill to 95% MOD AASHTO behind structures for : | J28: Dflt
A29: Item | B29: a5b00e3c-08a0-4243-8b46-e71fb440fab1 | C29: B.8.2.2.3 | E29: Channel | F29: m³ | G29: 30 | H29: 0.00 | I29: =ROUND(G29 * H29,2) -> 0.00 | J29: Dflt
A30: Item | B30: ddb80835-dfbc-48a9-b4e4-54fc9de94774 | C30: B.8.2.2.4 | E30: Rip subgrade to 150mm deep and compact to min 93% MOD AASHTO density. | F30: m³ | G30: 13 | H30: 0.00 | I30: 0.00 | J30: Dflt
A31: Header2 | B31: a4061438-bddf-4a26-970d-7192fa96057f | C31: B.8.2.3 | D31: SANS 1200D 8.3.2(b) PSD 8.3.2(b) | E31: Extra-over items B.8.2.2.2 for excavation in: | J31: Dflt
A32: Item | B32: 93058cc7-1aec-479d-8613-8600e5e95b37 | C32: B.8.2.3.1 | D32: 8.3.2(b) | E32: Hard rock material | F32: m³ | G32: 1 | H32: 0.00 | I32: =ROUND(G32 * H32,2) -> 0.00 | J32: Dflt
A33: Header3 | B33: 7ed22192-4270-4452-a583-161e3a7a4c3d | C33: B.8.2.3.2 | D33: SANS 1200D 8.3.4 | E33: IMPORTING OF MATERIALS | J33: Dflt
A34: Item | B34: 02476f61-5daa-4cc8-9b22-f8ef6abd1c5c | C34: B.8.2.3.2.1 | E34: Extra-over items B.8.2.2.2 for importation of material from commercial sources: G7 material compacted to 95% MOD AASHTO density | F34: m³ | G34: 13 | H34: 0.00 | I34: =ROUND(G34 * H34,2) -> 0.00 | J34: Dflt
A35: Header2 | B35: 5339f438-4e60-4ad1-9d7f-9ac9f52e7c15 | C35: B.8.2.4 | D35: SANS 1200D | E35: FINISHINGS | J35: Dflt
A36: Item | B36: 29b7b0de-41db-4c1a-b990-8a06d1250d7c | C36: B.8.2.4.1 | D36: 8.3.10 | E36: Topsoiling | F36: m² | G36: 140 | H36: 0.00 | I36: =ROUND(G36 * H36,2) -> 0.00 | J36: Dflt
A37: Item | B37: f586c21a-c556-49a3-a6a7-48cc8e57464e | C37: B.8.2.4.2 | D37: 8.3.11 | E37: Grassing with instant kikuyu lawn grass. Rate to be inclusive of transport and delivery and offloading costs including for temporary stockpile and double handling etc as necessary and wetting | F37: m² | G37: 140 | H37: 0.00 | I37: 0.00 | J37: Dflt
A38: Header2 | B38: c8be42d7-29e3-44d5-ac46-633f1539e746 | C38: B.8.2.5 | D38: SANS 1200G 8.1.3 PSG 8.1.3 | E38: CONCRETE (STRUCTURAL) | J38: Dflt
A39: Label | B39: 10b8acd6-cf94-4169-bfd6-0ee6752eba76 | D39: 8.4.2 | E39: Blinding layer: 15 MPa/19 mm concrete: | J39: Dflt
A40: Item | B40: 39e56501-1502-4ed0-83bf-f6b14523419e | C40: B.8.2.5.1 | E40: 50 mm minimum thickness (Channel) | F40: m² | G40: 85 | H40: 0.00 | I40: =ROUND(G40 * H40,2) -> 0.00 | J40: Dflt
A41: Label | B41: dec7ba27-4acc-4f69-b32f-2c3fc2c69163 | D41: 8.4.3 PSG 3.5.4 | E41: Strength Concrete (Inclusive of Crystalline Water Proofing additive): 35 MPa/19 mm: | J41: Dflt
A42: Item | B42: 76b837a4-0160-4957-b7d1-2ee754245862 | C42: B.8.2.5.2 | E42: Channel slab | F42: m³ | G42: 13 | H42: 0.00 | I42: =ROUND(G42 * H42,2) -> 0.00 | J42: Dflt
A43: Item | B43: fbfeed58-32dd-4fa5-83f9-996c71a65040 | C43: B.8.2.5.3 | E43: Channel walls | F43: m³ | G43: 7 | H43: 0.00 | I43: 0.00 | J43: Dflt
A44: Header2 | B44: 96cbf36f-503e-4b80-ac25-afd35c6ad4e6 | C44: B.8.2.6 | D44: SANS 1200G 8.2 PSG 8.2 | E44: FORMWORK | J44: Dflt
A45: Label | B45: 62cb438d-164f-4481-a89a-863af1de6066 | D45: 8.2.2 | E45: Smooth vertical circular to walls: | J45: Dflt
A46: Item | B46: 1572f2ff-75f4-4358-b678-39d284346519 | C46: B.8.2.6.1 | E46: Channel walls to match radii of existing channel (Approx. 9m radius) | F46: m² | G46: 30 | H46: 0.00 | I46: =ROUND(G46 * H46,2) -> 0.00 | J46: Dflt
A47: Label | B47: 9c7017e9-cc7d-448b-934a-f4d2ba1f42f2 | E47: Smooth vertical plane to: | J47: Dflt
A48: Item | B48: bb342c55-b7e4-451e-bf58-713fb266e25e | C48: B.8.2.6.2 | E48: Channel walls | F48: m | G48: 70 | H48: 0.00 | I48: =ROUND(G48 * H48,2) -> 0.00 | J48: Dflt
A49: Header2 | B49: 1cda77ce-e72e-43e7-880f-853f0d72b8d9 | C49: B.8.2.7 | D49: SANS 1200G 8.1.2 PSG 8.1.2 | E49: REINFORCEMENT | J49: Dflt
A50: Label | B50: 1905bd3a-a10a-490c-8b6c-ce1c070d6ad7 | D50: 8.1.2.3(a) | E50: Mild steel bars: | J50: Dflt
A51: Item | B51: 84a2b548-7f3b-4b9c-a63e-6671ffcd9f58 | C51: B.8.2.7.1 | E51: 25 mm diameter: Basic price | F51: t | G51: 0.15 | H51: 0.00 | I51: =ROUND(G51 * H51,2) -> 0.00 | J51: Dflt
A52: Label | B52: 2edb469a-364d-4800-9cd4-61251feea1dd | D52: 8.1.2.3(b) | E52: Extra-over item B.8.2.7.1 for bars of diameter (Provisional): | J52: Dflt
A53: Item | B53: 36e9b176-4c57-4c5b-85d7-87e6d73a9ed9 | C53: B.8.2.7.2 | E53: 8 mm | F53: t | G53: 0.1 | H53: 0.00 | I53: =ROUND(G53 * H53,2) -> 0.00 | J53: Dflt
A54: Item | B54: df0b2225-8843-4211-b60e-a91392737915 | C54: B.8.2.7.3 | E54: 10 mm | F54: t | G54: 0.05 | H54: 0.00 | I54: 0.00 | J54: Dflt
A55: Label | B55: 258d9df8-7fb6-4f53-b88a-95b1682453d4 | D55: 8.1.2.3(a) | E55: High tensile steel bars: | J55: Dflt
A56: Item | B56: 46a085fd-957f-45eb-b6f3-1864b00e2f13 | C56: B.8.2.7.4 | E56: 25 mm diameter: Basic price | F56: t | G56: 2.85 | H56: 0.00 | I56: =ROUND(G56 * H56,2) -> 0.00 | J56: Dflt
A57: Label | B57: 3e89de4a-5cc5-4c62-a16b-079040ce5031 | D57: 8.1.2.3(b) | E57: Extra-over item B.8.2.7.4 for bars of diameter (Provisional): | J57: Dflt
A58: Item | B58: f9642a27-02db-4db7-a2a3-a45fb5b24de1 | C58: B.8.2.7.5 | E58: 10 mm | F58: t | G58: 1.4 | H58: 0.00 | I58: =ROUND(G58 * H58,2) -> 0.00 | J58: Dflt
A59: Item | B59: f008bec7-e693-4761-a369-3a460debceec | C59: B.8.2.7.6 | E59: 12 mm | F59: t | G59: 1.45 | H59: 0.00 | I59: 0.00 | J59: Dflt
A60: Header2 | B60: 18fe7828-d14a-42a1-be0f-b59f2dad0974 | C60: B.8.2.8 | D60: SANS 1200G 8.4.4 PSG 8.4 | E60: UNFORMED SURFACE FINISHES | J60: Dflt
A61: Label | B61: 02aed71d-0599-4c24-84d1-ec0114e72b3f | D61: 8.1.1.5 PSG 8.4 | E61: Steel-floated finish: | J61: Dflt
A62: Item | B62: 61130073-e4ba-4cee-ade8-759e33e80207 | C62: B.8.2.8.1 | E62: Channel Floor | F62: m² | G62: 70 | H62: 0.00 | I62: =ROUND(G62 * H62,2) -> 0.00 | J62: Dflt
A63: Item | B63: 6f6abfb2-1b0b-4424-8012-2e587e900582 | C63: B.8.2.8.2 | E63: Channel Wall top | F63: m² | G63: 15 | H63: 0.00 | I63: 0.00 | J63: Dflt
A64: Header2 | B64: c5d4593c-290a-4078-a91f-f375e451d1b1 | C64: B.8.2.9 | D64: SANS 1200G 8.5 PSG 8.5 | E64: JOINTS | J64: Dflt
A65: Label | B65: 76ffd576-4cee-48c7-a7a4-c850dc7a6715 | E65: Channel Floor and Wall joints complete as shown on Dwg. No. J40073/010-216: | J65: Dflt
A66: Item | B66: ae8137d6-6f2c-444a-ba60-2afade47487a | C66: B.8.2.9.1 | E66: Construction and Contractions Joints in Channel: Including forming of joint, supply and installation (all inclusive) of Centre bulb waterstop as shown on Dwg. No. J40073/010-216 | F66: m | G66: 25 | H66: 0.00 | I66: =ROUND(G66 * H66,2) -> 0.00 | J66: Dflt
A67: Item | B67: 539076b3-4ff5-40c2-b689-ad54f802230e | C67: B.8.2.9.2 | E67: Construction Joint in Wall: Including forming of joint, supply and installation (all inclusive) of 2mm Galvanised water stop as shown on Dwg. No. J40073/010-216 | F67: m | G67: 70 | H67: 0.00 | I67: 0.00 | J67: Dflt
A68: Item | B68: bd07ebdf-3dc9-4be2-a21b-8ca081c7bbfa | C68: B.8.2.9.3 | E68: Horizontal contraction joint between existing channel floor and new channel floor complete with waterproofing bandage, bond breaker cord, sealant, drilling for dowels, dowels, and epoxy to set dowels to Detail X of Dwg. No. J40073-010-230 | F68: m | G68: 70 | H68: 0.00 | I68: 0.00 | J68: Dflt
A69: Header2 | B69: 1aefbc4d-a4b0-4855-aa63-1003dc1f1748 | C69: B.8.2.10 | E69: ALTERATIONS | J69: Dflt
A70: Label | B70: cd68a4bd-1a98-400e-acb3-bc03b6654cac | E70: Chlorine Contact Tank and existing Pond Inlets: | J70: Dflt
A71: Sum | B71: c12be240-8fcb-4b8e-9814-e976f1c9abaf | C71: B.8.2.10.1 | E71: Alterations to the inlets of the existing Chlorine Contact Tank and the Ponds | F71: Sum | G71: 1 | H71: 0.00 | I71: =ROUND(H71,2) -> 0.00
A72: Label | B72: 47062577-38f7-4a08-a82c-f869e8a0b034 | E72: Demolition:
A73: Sum | B73: 9eecf3f4-c3c9-4933-8532-960cbd986cd4 | C73: B.8.2.10.2 | E73: Break down existing concrete channel wall, smooth and seal exposed concrete and reinforcing. | F73: m | G73: 5 | H73: 0.00 | I73: =ROUND(H73,2) -> 0.00
A74: Header2 | B74: ea72669a-3ef2-46db-80ec-bde6f9d35a5c | C74: B.8.2.11 | E74: SUNDRY
A75: Item | B75: 4b2bbde9-76ff-4852-b281-ffdfbea9de9b | C75: B.8.2.11.1 | E75: Remove and reinstall existing sluice gate. | F75: No | G75: 1 | H75: 0.00 | I75: =ROUND(G75 * H75,2) -> 0.00
A76: Item | B76: cddba482-d32e-4757-b03e-b170e4d8b776 | C76: B.8.2.11.2 | E76: Supply and install complete waterworks sluice gate 600mm high x 1200mm wide. | F76: No | G76: 1 | H76: 0.00 | I76: 0.00

Sheet BILL C
D2: Bid No: | E2: RW10404061/23 | J2: Work Group
D3: Description | E3: TENDER FOR THE UPGRADE OF MEYERTON WASTEWATER TREATMENT WORKS BY 15 ML/DAY AT MEYERTON | J3: Dflt
J4: Dflt
J5: Dflt
J6: Dflt
A7: BillHeader | C7: BILL C | E7: ROADWORKS | J7: Dflt
A8: Item Type | B8: GUID | C8: Item Ref | D8: Payment Refers | E8: Description | F8: Unit | G8: Quantity | H8: Rate | I8: Amount R | J8: Dflt
A9: Section | B9: 24f51acf-24f2-4d45-b9a9-897837c50d0d | C9: C1 | E9: ROADWORKS | J9: Dflt
A10: Label | B10: b3960db5-0a31-4793-8c17-9cbe06ea2e47 | E10: SECTION C1 : ROADWORKS | J10: Dflt
A11: Header2 | B11: a97a0c40-1dda-482c-91dc-5ed5e7edeb4f | C11: C1.1 | D11: SANS 1200DM | E11: EARTHWORK (ROADS, SUBGRADE) | J11: Dflt
A12: Header3 | B12: dcf19018-dfdd-4976-b7f3-37ec0e33ab7d | C12: C1.1.1 | D12: SANS 1200DM PSC 8.2 | E12: SITE CLEARANCE | J12: Dflt
A13: Item | B13: dfb3427f-9f54-495d-8763-3da6e0098e04 | C13: C1.1.1.1 | D13: SANS 1200C 8.2.1 | E13: Clear and grub Site | F13: m² | G13: 2340 | H13: 0.00 | I13: =ROUND(G13 * H13,2) -> 0.00 | J13: Dflt
A14: Item | B14: 14b12112-3ee4-4912-bd76-57a28f6e78c8 | C14: C1.1.1.2 | D14: 8.3.2.(a) PSC 8.2.10 | E14: Remove topsoil to depth of 150 mm, stockpile and maintain for later use | F14: m² | G14: 2340 | H14: 0.00 | I14: 0.00 | J14: Dflt
A15: Header3 | B15: 98e399b3-2bfb-4bdd-a732-f6ee71e00e89 | C15: C1.1.2 | D15: SANS 1200DM | E15: TREATMENT OF ROADBED | J15: Dflt
A16: Label | B16: 2965c2d3-8daa-4c5c-ad5c-c4f32528d638 | D16: 8.3.3(a) | E16: Road-bed preparation and compaction of material to 93 % Mod. AASHTO maximum for: | J16: Dflt
A17: Item | B17: e365e2bc-bc0f-4520-b25f-ffcf79c55cac | C17: C1.1.2.1 | E17: 150 mm thickness in roads | F17: m³ | G17: 355 | H17: 0.00 | I17: =ROUND(G17 * H17,2) -> 0.00 | J17: Dflt
A18: Header3 | B18: 463a514a-59df-4e98-8d6e-1bfe5e02dca4 | C18: C1.1.3 | D18: SANS 1200DM | E18: EARTHWORKS | J18: Dflt
A19: Label | B19: e583c36b-a9e5-4046-b46b-93e428a108a4 | D19: 8.3.4 | E19: Cut to fill: | J19: Dflt
A20: Item | B20: 4bde087c-2b35-4fca-a5d4-faecad1a94a1 | C20: C1.1.3.1 | E20: Compact to 90 % Mod. AASHTO maximum density | F20: m³ | G20: 180 | H20: 0.00 | I20: =ROUND(G20 * H20,2) -> 0.00 | J20: Dflt
A21: Label | B21: 5f5af920-5bea-4ef3-a2f9-dd03a3c6a981 | E21: Borrow to fill: | J21: Dflt
A22: Item | B22: 7e997759-b69c-4555-9bd0-8a69caf80cc5 | C22: C1.1.3.2 | D22: 8.3.4 | E22: Compact to 90 % Mod. AASHTO maximum density | F22: m³ | G22: 175 | H22: 0.00 | I22: =ROUND(G22 * H22,2) -> 0.00 | J22: Dflt
A23: Label | B23: c7e27f95-5e95-4ecc-9f5e-7c7b8f2dafab | D23: 8.3.6 | E23: Extra-over items C1.1.3.1 to C1.1.3.2 inclusive for excavating and breaking down material in: | J23: Dflt
A24: Item | B24: 6afbda9b-dad6-46de-8b21-f6a84dde5bd0 | C24: C1.1.3.3 | E24: Hard excavation | F24: m³ | G24: 5 | H24: 0.00 | I24: =ROUND(G24 * H24,2) -> 0.00 | J24: Dflt
A25: Label | B25: 5f700c6c-8724-4530-be14-853cbfdaca64 | D25: 8.3.7 | E25: Cut to spoil from: | J25: Dflt
A26: Item | B26: 72534988-5671-4a93-b625-ecf4081c10dd | C26: C1.1.3.4 | E26: Soft excavation | F26: m³ | G26: 120 | H26: 0.00 | I26: =ROUND(G26 * H26,2) -> 0.00 | J26: Dflt
A27: Item | B27: b74c25b1-9501-413a-8503-8d0062c14110 | C27: C1.1.3.5 | E27: Hard excavation | F27: m³ | G27: 5 | H27: 0.00 | I27: 0.00 | J27: Dflt
A28: Header3 | B28: ce1aef6c-80ae-41ed-9984-3cf2ae86dddb | C28: C1.1.4 | E28: SURFACE FINISHES | J28: Dflt
A29: Item | B29: 4b8b4360-f261-472d-9c51-ae97c585606c | C29: C1.1.4.1 | D29: 8.3.13(a) | E29: Topsoiling | F29: m² | G29: 540 | H29: 0.00 | I29: =ROUND(G29 * H29,2) -> 0.00 | J29: Dflt
A30: Item | B30: ded142df-e9d9-4025-964b-767ed2a27571 | C30: C1.1.4.2 | D30: 8.3.13(b) | E30: Grassing | F30: m² | G30: 540 | H30: 0.00 | I30: 0.00 | J30: Dflt
A31: Header2 | B31: aac2b61b-96c5-47b2-a960-cd1fc088b236 | C31: C1.2 | D31: SANS 1200ME PSM 8.1 | E31: SUBBASE | J31: Dflt
A32: Label | B32: 96810d5d-7912-4bd6-9bf2-6be5275f9a1e | E32: Construct gravel subbase with G7 material from commercial sources compacted to 95 % Mod. AASHTO maximum density: | J32: Dflt
A33: Item | B33: d65566bc-77b7-40e1-9a33-7f5fb03aaaa8 | C33: C1.2.1 | E33: 150 mm thickness in roads | F33: m³ | G33: 355 | H33: 0.00 | I33: =ROUND(G33 * H33,2) -> 0.00 | J33: Dflt
A34: Label | B34: b210dde7-8a8f-46ae-81c6-eed50687d0ba | D34: 1200ME 8.3.2 | E34: Construct shoulders with G7 material from commercial sources compacted to 93 % Mod. AASHTO maximum density: | J34: Dflt
A35: Item | B35: 078785d4-146e-40a5-9026-e883a3dfbfa7 | C35: C1.2.2 | E35: 150 mm thickness | F35: m³ | G35: 400 | H35: 0.00 | I35: =ROUND(G35 * H35,2) -> 0.00 | J35: Dflt
A36: Header2 | B36: 57e6fdf5-4668-469c-a65b-c8de35dd3c84 | C36: C1.3 | D36: SANS 1200MF PSM 8.1 | E36: BASE | J36: Dflt
A37: Label | B37: 00a26b57-67a8-4e39-a291-00781b321b19 | D37: 8.3.3 | E37: Construct gravel base with G5 material from commercial sources compacted to 97 % Mod. AASHTO maximum density: | J37: Dflt
A38: Item | B38: 107c2f93-1c01-4d26-8a1b-08252dfef188 | C38: C1.3.1 | E38: 150 mm thickness in roads | F38: m³ | G38: 165 | H38: 0.00 | I38: =ROUND(G38 * H38,2) -> 0.00 | J38: Dflt
A39: Label | B39: b3c418b8-648c-4f4e-bb94-250be8c35cfb | D39: 8.3.5 | E39: Process base by means of: | J39: Dflt
A40: Item | B40: d4c6b92d-0eee-4cc4-badc-9f0caf76345e | C40: C1.3.2 | E40: Stabilization | F40: m³ | G40: 165 | H40: 0.00 | I40: =ROUND(G40 * H40,2) -> 0.00 | J40: Dflt
A41: Label | B41: 6189c210-c9e5-46fb-a49e-1d9860265524 | D41: 8.3.8 | E41: Stabilizing agent: | J41: Dflt
A42: Item | B42: 68a0e292-d547-4279-a005-6e0415e42d62 | C42: C1.3.3 | E42: Portland cement | F42: t | G42: 5 | H42: 0.00 | I42: =ROUND(G42 * H42,2) -> 0.00 | J42: Dflt
A43: Item | B43: 714a99f6-6be2-4d09-a600-13be48ba3218 | C43: C1.3.4 | E43: Provision and application of water for curing | F43: kl | G43: 15 | H43: 0.00 | I43: 0.00 | J43: Dflt
A44: Item | B44: 26e29ec9-fa24-4834-bc14-89faf5f14b2e | C44: C1.3.5 | E44: Curing by covering with the subsequent layer | F44: m² | G44: 1070 | H44: 0.00 | I44: 0.00 | J44: Dflt
A45: Header2 | B45: 577855e1-195c-4bfe-b6f7-65f8466d393c | C45: C1.4 | D45: SANS 1200MK PSMK 8.1 | E45: CONCRETE KERBING AND CHANNELLING | J45: Dflt
A46: Label | B46: e7d9e8d9-a97c-4b74-8288-464a2d5f3f4e | D46: 8.2.1 | E46: Supply, lay, grout, joint and backfill for radii exceeding 20 m to straight: | J46: Dflt
A47: Item | B47: 4a200e10-355f-4106-9e10-815728b5e087 | C47: C1.4.1 | E47: (a) Type Figure 7 kerb | F47: m | G47: 25 | H47: 0.00 | I47: =ROUND(G47 * H47,2) -> 0.00 | J47: Dflt
A48: Item | B48: 639ebabd-2d56-442a-8ea8-6ffdbd14722f | C48: C1.4.2 | E48: (b) Type Figure 8C kerb | F48: m | G48: 90 | H48: 0.00 | I48: 0.00 | J48: Dflt
A49: Item | B49: 283d2730-97f3-4757-aab7-a275be282d55 | C49: C1.4.3 | E49: (c) Type Figure 7 kerb and Type C1 channel | F49: m | G49: 25 | H49: 0.00 | I49: 0.00 | J49: Dflt
A50: Item | B50: 02e5c23c-c78c-4247-a33e-aca6f09fc87b | C50: C1.4.4 | E50: (d) Type Figure 8C kerb and Type C1 channel | F50: m | G50: 25 | H50: 0.00 | I50: 0.00 | J50: Dflt
A51: Label | B51: d84a4d48-85fd-447a-9c39-3a1c14a978ff | D51: 8.2.1 | E51: Supply, lay, grout, joint and backfill for radii 5 m to radii 20 m in 300 mm lengths: | J51: Dflt
A52: Item | B52: afb09cc9-5b83-4e1a-8fce-15b323bd680a | C52: C1.4.5 | E52: (a) Type Figure 7 kerb | F52: m | G52: 55 | H52: 0.00 | I52: =ROUND(G52 * H52,2) -> 0.00 | J52: Dflt
A53: Item | B53: fc7cd397-db91-442d-a18f-8ae2e4c0551e | C53: C1.4.6 | E53: (b) Type Figure 8c kerb | F53: m | G53: 55 | H53: 0.00 | I53: 0.00 | J53: Dflt
A54: Item | B54: 4bb93011-48d3-4217-a36b-2b7b333e9ced | C54: C1.4.7 | D54: 8.2.1 | E54: Transition kerbs | F54: No | G54: 8 | H54: 0.00 | I54: 0.00 | J54: Dflt
A55: Header2 | B55: 1a2c33bf-8776-411b-9668-b03d97af6722 | C55: C1.5 | D55: SANS 1200MM | E55: ANCILLARY ROADWORKS | J55: Dflt
A56: Header3 | B56: 376e306b-0733-4b02-87e1-816c56db41ac | C56: C1.5.1 | E56: PERMANENT TRAFFIC SIGNS | J56: Dflt
A57: Label | B57: e4f1e711-6756-4362-bf22-9c10c50db125 | D57: 8.3.1 PSMM 8.3.4 | E57: Supply and erect permanent road signs and posts, including all bolts & nuts, signs and sign posts, excavations, costing in concrete, backfilling etc. | J57: Dflt
A58: Item | B58: 6ade37a6-9de4-4c6b-b43b-c7dbefa131d8 | C58: C1.5.1.1 | E58: Stop sign R1 (600 mm diam.) | F58: No | G58: 2 | H58: 0.00 | I58: =ROUND(G58 * H58,2) -> 0.00 | J58: Dflt
A59: Item | B59: 3145f79f-6723-4f5a-8204-17571fa1c82a | C59: C1.5.1.2 | E59: Warning sign W401 | F59: No | G59: 4 | H59: 0.00 | I59: 0.00 | J59: Dflt
A60: Item | B60: 1c22c679-1bb8-45bd-a028-e8ce35f5b2d1 | C60: C1.5.1.3 | E60: Warning sign W402 | F60: No | G60: 4 | H60: 0.00 | I60: 0.00 | J60: Dflt
A61: Header3 | B61: cf7cf6ea-bfc0-416b-ba94-ee9c6e00d758 | C61: C1.5.2 | E61: ROAD MARKINGS | J61: Dflt
A62: Label | B62: d877c55f-b256-4516-9fb2-7c9522f4938d | D62: 8.4.1 | E62: Non-reflectorized paint applied at nominal rate of 0,42 l/m²: | J62: Dflt
A63: Item | B63: 13cf162c-79c9-40e3-bc67-6281633dd882 | C63: C1.5.2.1 | E63: (a) White lines RM1, 100W | F63: m | G63: 1320 | H63: 0.00 | I63: =ROUND(G63 * H63,2) -> 0.00 | J63: Dflt
A64: Item | B64: e74e568b-915a-4ee0-b6d4-8b4ca6bcf5ba | C64: C1.5.2.2 | E64: (b) White lines RTM1, 300W | F64: m | G64: 10 | H64: 0.00 | I64: 0.00 | J64: Dflt
A65: Item | B65: 2b409fa9-856a-4865-8868-bb5dac650f39 | C65: C1.5.2.3 | E65: (c) White characters and symbols | F65: m² | G65: 5 | H65: 0.00 | I65: 0.00 | J65: Dflt
A66: Label | B66: 44ddbeb3-c337-48bb-b9a0-3a663269206a | D66: 8.4.4 | E66: Setting out and premarking of lines (excluding traffic island markings, characters, and symbols: | J66: Dflt
A67: Item | B67: f0fa37bd-9efb-480c-b879-d4297c80021c | C67: C1.5.2.4 | E67: (a) Stop lines (RTM1) | F67: m | G67: 10 | H67: 0.00 | I67: =ROUND(G67 * H67,2) -> 0.00 | J67: Dflt
A68: Item | B68: 31d80534-4461-4cc9-9d89-f04421c8f3c3 | C68: C1.5.2.5 | E68: (b) Unbroken lines (RM1) | F68: m | G68: 1320 | H68: 0.00 | I68: 0.00 | J68: Dflt
A69: Item | B69: ad123d0c-2650-4969-95e1-396285f9fbf5 | C69: C1.5.2.6 | E69: (c) Symbols | F69: No | G69: 8 | H69: 0.00 | I69: 0.00 | J69: Dflt
A70: Header2 | B70: c36e05af-3b39-47a8-b573-3d859aaa01a4 | C70: C1.6 | D70: SANS 1200MJ | E70: SEGMENTED PAVING | J70: Dflt
A71: Header3 | B71: 62f8a9c1-fa1e-4d9b-98be-0a8ef93f6475 | C71: C1.6.1 | E71: PROVIDE EDGE RESTRAINTS | J71: Dflt
A72: Label | B72: f2a6b911-297c-4868-bbae-79921ff5f4e3 | D72: 8.2.1 | E72: Supply, lay, grout, joint and backfill for edge restraints as shown on Dwg. No. J40073/010-113: | J72: Dflt
A73: Item | B73: bf3ade86-6099-474d-8a76-bd518844da20 | C73: C1.6.1.1 | E73: Admin, Type SA, 80 mm thickness | F73: m | G73: 20 | H73: 0.00 | I73: =ROUND(G73 * H73,2) -> 0.00 | J73: Dflt
A74: Item | B74: 589f1283-8361-4c6a-9893-85a48cf60a6f | C74: C1.6.1.2 | E74: Workshop Buiding, Type SA, 80 mm thickness | F74: m | G74: 15 | H74: 0.00 | I74: 0.00 | J74: Dflt
A75: Item | B75: 95ed5c9c-1889-40ec-b979-0b6d1e4b5f28 | C75: C1.6.1.3 | E75: MCC Buiding, Type SA, 80 mm thickness | F75: m | G75: 15 | H75: 0.00 | I75: 0.00 | J75: Dflt
A76: Item | B76: 0233265c-79f1-4015-9500-2e711f819872 | C76: C1.6.1.4 | E76: Guardhouse, Type SA, 80 mm thickness | F76: m | G76: 10 | H76: 0.00 | I76: 0.00 | J76: Dflt
A77: Item | B77: 93c1a949-6952-4328-a801-704bd8112f18 | C77: C1.6.1.5 | E77: Blower Building, Type SA, 80 mm thickness | F77: m | G77: 50 | H77: 0.00 | I77: 0.00 | J77: Dflt
A78: Label | B78: 1b93518b-dcba-497e-b487-51e4060fbace | D78: 8.2.3 | E78: Cut units to fit edge restraints: | J78: Dflt
A79: Item | B79: f0ffe64e-d324-4f86-80ea-13385061aa37 | C79: C1.6.1.6 | E79: Admin, Type SA, 80 mm thickness | F79: m | G79: 130 | H79: 0.00 | I79: =ROUND(G79 * H79,2) -> 0.00 | J79: Dflt
A80: Item | B80: 83c200d3-5fb8-473b-a37e-9957f571afaa | C80: C1.6.1.7 | E80: Workshop Buiding, Type SA, 80 mm thickness | F80: m | G80: 70 | H80: 0.00 | I80: 0.00 | J80: Dflt
A81: Item | B81: 8b895d9a-2621-453b-ae8a-cbea3f06a395 | C81: C1.6.1.8 | E81: MCC Buiding, Type SA, 80 mm thickness | F81: m | G81: 60 | H81: 0.00 | I81: 0.00 | J81: Dflt
A82: Item | B82: 99da924b-4371-466c-be44-ee2294d2fa51 | C82: C1.6.1.9 | E82: Guardhouse, Type SA, 80 mm thickness | F82: m | G82: 25 | H82: 0.00 | I82: 0.00 | J82: Dflt
A83: Item | B83: 0fe95edc-e376-4a8c-a94c-9663b328d4ac | C83: C1.6.1.10 | E83: Blower Building, Type SA, 80 mm thickness | F83: m | G83: 230 | H83: 0.00 | I83: 0.00 | J83: Dflt
A84: Header3 | B84: 55350a69-0f8d-445c-b984-cc389b3d31eb | C84: C1.6.2 | E84: CONSTRUCT PRECAST CONCRETE SEGMENTED PAVING | J84: Dflt
A85: Label | B85: f5bea7cd-673f-4360-aaa2-8e582e7b59da | D85: 8.2.2 | E85: Supply and Install concrete block paving, including supply, delivery to site, stockpiling, installation, compaction, testing, etc., complete in all areas as shown on Dwg. No. J40073/010-005 and J40073/010-021, pattern to approval: | J85: Dflt
A86: Item | B86: fc73595e-5efe-4c05-89b9-ae0699d58544 | C86: C1.6.2.1 | E86: Road, Type SA, 80 mm thickness | F86: m² | G86: 700 | H86: 0.00 | I86: =ROUND(G86 * H86,2) -> 0.00 | J86: Dflt
A87: Item | B87: 9098bcea-1310-461a-abe5-3d6fe8c2840a | C87: C1.6.2.2 | E87: Admin Parking, Type SA, 80 mm thickness | F87: m² | G87: 370 | H87: 0.00 | I87: 0.00 | J87: Dflt
A88: Item | B88: 4ac9b8aa-8abb-4ab7-8fd3-cecf2f93d506 | C88: C1.6.2.3 | E88: Admin, Type SA, 80 mm thickness | F88: m² | G88: 280 | H88: 0.00 | I88: 0.00 | J88: Dflt
A89: Item | B89: 7bcb5144-b980-40a1-8280-580dc473932f | C89: C1.6.2.4 | E89: Blower Buiding, Type SA, 80 mm thickness | F89: m² | G89: 650 | H89: 0.00 | I89: 0.00 | J89: Dflt
A90: Item | B90: fbaa0f8a-d9dc-454c-bc34-127574af4943 | C90: C1.6.2.5 | E90: Workshop Buiding, Type SA, 80 mm thickness | F90: m² | G90: 170 | H90: 0.00 | I90: 0.00 | J90: Dflt
A91: Item | B91: f27dfab5-97ab-4250-93d5-80cba5f48b00 | C91: C1.6.2.6 | E91: MCC Buiding, Type SA, 80 mm thickness | F91: m² | G91: 140 | H91: 0.00 | I91: 0.00 | J91: Dflt
A92: Item | B92: 450fc139-82ad-486b-bc3f-56dd26d89350 | C92: C1.6.2.7 | E92: Guardhouse, Type SA, 80 mm thickness | F92: m² | G92: 30 | H92: 0.00 | I92: 0.00 | J92: Dflt
A93: Header2 | B93: 51980dc9-f5aa-4766-9014-8d98d34f6d71 | C93: C1.7 | E93: STORMWATER DRAINAGE | J93: Dflt
A94: Header3 | B94: 273d1540-9cce-4c60-96c3-624fc72b4940 | C94: C1.7.1 | D94: SANS 1200DB | E94: SITE CLEARANCE AND EXCAVATION | J94: Dflt
A95: Item | B95: 37da4f5e-e13c-46da-a88d-e51a2fdc0864 | C95: C1.7.1.1 | D95: 8.3.1(a) | E95: Clear Site | F95: m² | G95: 100 | H95: 0.00 | I95: =ROUND(G95 * H95,2) -> 0.00 | J95: Dflt
A96: Item | B96: c76d34ad-9bf9-4190-8f75-283e959be67c | C96: C1.7.1.2 | D96: 8.3.2(a) | E96: Excavate, select materials, backfill and dispose of surplus/unsuitable material | F96: m³ | G96: 5 | H96: 0.00 | I96: 0.00 | J96: Dflt
A97: Header3 | B97: 0ff0928d-a872-442a-bdf4-2ca93b476bd5 | C97: C1.7.2 | D97: SANS 1200LE | E97: CATCHPITS | J97: Dflt
A98: Label | B98: d4ce0550-70cd-46c4-babd-4ac0d5b42326 | E98: Construct complete with grid inlets : | J98: Dflt
A99: Item | B99: 0b7194d1-4040-47a7-815f-eb783c2efdcf | C99: C1.7.2.1 | D99: PSLE 8.2.4 PSLE 8.2.14 | E99: a) Type to be confirmed on site as shown on Dwg. No. J40073/010-111 | F99: No | G99: 3 | H99: 0.00 | I99: =ROUND(G99 * H99,2) -> 0.00 | J99: Dflt
A100: Header3 | B100: 10065088-0de4-4071-92d0-e15dd97bbd8e | C100: C1.7.3 | E100: HEADWALLS | J100: Dflt
A101: Label | B101: 10d75162-9a80-4447-9d5b-9d4e4771ab3e | D101: PSLE 8.2.4 PSLE 8.2.14 | E101: Construct headwall to Dwg. No. J40073/010-111 including excavation, backfilling and compaction to fit pipes: | J101: Dflt
A102: Item | B102: de6f3525-233b-46a7-95d6-04de63e876f8 | C102: C1.7.3.1 | E102: 300 mm NB | F102: No | G102: 6 | H102: 0.00 | I102: =ROUND(G102 * H102,2) -> 0.00
A103: Item | B103: 016ad5d8-6206-4e3b-997b-55ce2ccf451a | C103: C1.7.3.2 | E103: 300 mm NB (Double) | F103: No | G103: 2 | H103: 0.00 | I103: 0.00
A104: Header3 | B104: 9380b736-d9d3-4319-a49b-6059fca8b8f2 | C104: C1.7.4 | E104: MISCELLANEOUS
A105: Label | B105: 8392372c-082e-4b77-91ab-327d9caaf543 | E105: Construct open drains to Dwg. No. J40073/010-114, complete and all inclusive, including excavation, backfilling, concrete, setting out, etc:
A106: Item | B106: 049c5576-2220-485b-9066-e22cf4fdc94b | C106: C1.7.4.1 | E106: Concrete lining: 25 MPa/19 mm, 2,4 m wide and 0,25 m deep | F106: m | G106: 230 | H106: 0.00 | I106: =ROUND(G106 * H106,2) -> 0.00
A107: Item | B107: 9eec731f-5250-47d7-bc4e-02ee2379f7ce | C107: C1.7.4.2 | E107: No lining | F107: m | G107: 100 | H107: 0.00 | I107: 0.00

Sheet BILL D.1.
D2: Bid No: | E2: RW10404061/23 | J2: Work Group
D3: Description | E3: TENDER FOR THE UPGRADE OF MEYERTON WASTEWATER TREATMENT WORKS BY 15 ML/DAY AT MEYERTON | J3: Dflt
J4: Dflt
J5: Dflt
J6: Dflt
A7: BillHeader | C7: BILL D.1. | E7: MCC BUILDING | J7: Dflt
A8: Item Type | B8: GUID | C8: Item Ref | D8: Payment Refers | E8: Description | F8: Unit | G8: Quantity | H8: Rate | I8: Amount R | J8: Dflt
A9: Section | B9: c9cc560b-6fa2-4dc9-a00b-c438df2a845a | C9: D.1.1 | E9: MCC BUILDING | J9: Dflt
A10: Label | B10: 9af9913e-f184-4a3a-af08-1e3fc38cbb81 | D10: JBCC | E10: SECTION D.1.1 : MCC BUILDING | J10: Dflt
A11: Sum | B11: d22f2434-863c-42f0-a46e-44ba29d4fcef | C11: D.1.1.1 | E11: Housekeeping (Includes cleaning and organising working area) | F11: Sum | G11: 1 | H11: 0.00 | I11: =ROUND(H11,2) -> 0.00 | J11: Dflt
A12: Header2 | B12: ab140272-10ac-4607-a21b-ab4018e23b48 | C12: D.1.1.2 | E12: EARTHWORKS (PROVISIONAL) | J12: Dflt
A13: Label | B13: 60bace5d-ff2e-4f89-879f-1c6f36e5ce1e | E13: For preambles see "Model Preambles for Trades" | J13: Dflt
A14: Label | B14: ac18515b-11dc-4a2e-be10-7783adee1a2c | E14: Note: | J14: Dflt
A15: Label | B15: 573b6822-0181-4676-8ce1-61c76e9d19b7 | E15: Wherever a trade name for any product has been described in the Priced Document attention is drawn to the fact that any other product of equal quality may be used subject to the written approval of the principal agent being obtained prior to the closing date for submission of tenders. | J15: Dflt
A16: Label | B16: 6845bf37-8be0-4532-9ea9-1ddaf8c1d272 | E16: if prior written approval for an alternative product is not obtained, the product described shall be deemed to have been tendered for. | J16: Dflt
A17: Label | B17: 11092036-bcf2-49f5-bc7d-712ef56cd35b | E17: SUNDRIES | J17: Dflt
A18: Label | B18: d4253f69-f3b2-4f39-ac77-ca5b2d78f5b9 | E18: Extra over all excavations for carting away: | J18: Dflt
A19: Item | B19: 60d0370f-c9bd-441e-a2e8-639931c9516c | C19: D.1.1.2.1 | E19: Surplus material from excavations and/or stock piles on site to a dumping site to be located by the Contractor | F19: m³ | G19: 14 | H19: 0.00 | I19: =ROUND(G19 * H19,2) -> 0.00 | J19: Dflt
A20: Header2 | B20: 4325156c-d1a5-40fe-accf-867932c14d70 | C20: D.1.1.3 | E20: FILLING, ETC | J20: Dflt
A21: Label | B21: 73110be9-a724-42ad-9e17-226212154d06 | E21: Backfilling with imported G7 material spread in layers not exceeding 150mm thick under floors, etc and compacted to 97% Mod. AASHTO density | J21: Dflt
A22: Item | B22: 4ec52410-a788-4cb1-a851-f77c1d4c3584 | C22: D.1.1.3.1 | E22: Under apron, etc. | F22: m³ | G22: 7 | H22: 0.00 | I22: =ROUND(G22 * H22,2) -> 0.00 | J22: Dflt
A23: Header2 | B23: 90541736-339c-4480-b222-df53670b0986 | C23: D.1.1.4 | E23: CONCRETE, FORMWORK AND REINFORCEMENT | J23: Dflt
A24: Label | B24: 503a3b22-499b-42d9-9941-927c2893ac55 | E24: For preambles see "Model Preambles for Trades" | J24: Dflt
A25: Label | B25: 771d1506-aa1e-422f-b572-8900c48833de | E25: SUPPLEMENTARY PREAMBLES | J25: Dflt
A26: Label | B26: e4f237e3-124a-4d93-87c8-0c5f428e7802 | E26: CONCRETE | J26: Dflt
A27: Label | B27: 6a00edc8-642f-4ceb-b4b9-489b04c59b79 | E27: UNREINFORCED CONCRETE | J27: Dflt
A28: Label | B28: 1407b1cf-2969-4d04-bdc0-66c930fe3105 | E28: Unreinforced concrete 25MPa at 28 days in | J28: Dflt
A29: Item | B29: fd75f202-6da1-46d5-822e-c65b61c67ae6 | C29: D.1.1.4.1 | E29: Surface beds (apron slabs) | F29: m³ | G29: 7 | H29: 0.00 | I29: =ROUND(G29 * H29,2) -> 0.00 | J29: Dflt
A30: Label | B30: 5dafa638-35ee-45c6-9fb9-1e2d1057c9cd | E30: REINFORCED CONCRETE | J30: Dflt
A31: Label | B31: 637a9d9c-049b-44b3-a2b3-161951f455ec | E31: Vibrated reinforced concrete 25MPa at 28 days in | J31: Dflt
A32: Item | B32: 85ef082c-71ba-4eb3-93cf-ab9d4c4e160a | C32: D.1.1.4.2 | E32: Surface beds (ramps) | F32: m³ | G32: 3 | H32: 0.00 | I32: =ROUND(G32 * H32,2) -> 0.00 | J32: Dflt
A33: Label | B33: f6ce1479-04ce-4763-acd3-cbf09f3706f5 | E33: CONCRETE SUNDRIES | J33: Dflt
A34: Label | B34: cb6df4d9-fc8b-422f-b5cf-177da3076879 | E34: Finishing top surfaces of concrete smooth with a wood float | J34: Dflt
A35: Item | B35: 5cde5925-5fe2-45b7-9a6a-e5b6ac9cb46b | C35: D.1.1.4.3 | E35: Surface beds, slabs, etc (apron slabs) | F35: m² | G35: 91 | H35: 0.00 | I35: =ROUND(G35 * H35,2) -> 0.00 | J35: Dflt
A36: Label | B36: 30f15182-9adc-4089-919e-612ee8e6a70d | E36: Finishing top surfaces of concrete to an evenly ribbed non-slip surface (ramps) | J36: Dflt
A37: Item | B37: c8000778-019e-4e00-a460-77f93724a75b | C37: D.1.1.4.4 | E37: Surface beds, slabs, etc (ramps) | F37: m² | G37: 8 | H37: 0.00 | I37: =ROUND(G37 * H37,2) -> 0.00 | J37: Dflt
A38: Label | B38: 722a492c-49bb-49ea-b119-a52ba4dd9035 | E38: FORMWORK | J38: Dflt
A39: Label | B39: 6c4c27a7-a303-4586-9113-700a92c413dd | E39: ROUGH FORMWORK (DEGREE OF ACCURACY III) | J39: Dflt
A40: Label | B40: 3da66755-1784-4048-8347-6e7e5a8a1fb5 | E40: MOVEMENT JOINTS, ETC | J40: Dflt
A41: Label | B41: 0a8880f7-e5e5-4b53-94f1-c42d8d604c0a | E41: Saw cut joints: | J41: Dflt
A42: Item | B42: 0c7dd71f-7353-4059-aaa2-15b4e6043a20 | C42: D.1.1.4.5 | E42: 6 x 30mm Saw cut joints in top of concrete | F42: m | G42: 60 | H42: 0.00 | I42: =ROUND(G42 * H42,2) -> 0.00 | J42: Dflt
A43: Label | B43: c01118a7-385f-4d78-b783-2b47a332963f | E43: STEEL REINFORCEMENT | J43: Dflt
A44: Label | B44: 756d249c-be67-49f3-ac5c-be6d1c8a999f | E44: Fabric reinforcement: | J44: Dflt
A45: Item | B45: 46882287-5cbf-4bf0-a66a-2eacf7ee679f | C45: D.1.1.4.6 | E45: Steel mesh reinforcement reference 311 in concrete slabs, surface beds, etc | F45: m² | G45: 17 | H45: 0.00 | I45: =ROUND(G45 * H45,2) -> 0.00 | J45: Dflt
A46: Header2 | B46: ca7952b4-4f8f-481a-ac76-6c51e20e62b2 | C46: D.1.1.5 | E46: MASONRY | J46: Dflt
A47: Label | B47: 03a6a55f-0279-4e32-bc70-04b10c2b780a | E47: For preambles see "Model Preambles for Trades" | J47: Dflt
A48: Label | B48: dc8e974f-ca10-49af-a24b-6e317ecf5f19 | E48: SUPERSTRUCTURE | J48: Dflt
A49: Label | B49: a4328511-3e64-4186-bc93-c3cd4ed03317 | E49: Brickwork of NFP bricks (7 MPa nominal compressive strength) in class II mortar | J49: Dflt
A50: Item | B50: b4c25e97-40cb-4ce6-bfd1-69f771426cb0 | C50: D.1.1.5.1 | E50: One brick walls | F50: m² | G50: 7 | H50: 0.00 | I50: =ROUND(G50 * H50,2) -> 0.00 | J50: Dflt
A51: Item | B51: 8805308a-5e38-4b0f-83f8-0e00b36b990b | C51: D.1.1.5.2 | E51: 330mm Solid walls | F51: m² | G51: 7 | H51: 0.00 | I51: 0.00 | J51: Dflt
A52: Label | B52: 563a0d42-f18f-47d5-b853-4299276e9bd4 | E52: BRICKWORK SUNDRIES | J52: Dflt
A53: Label | B53: c24b585d-500d-4c11-9277-2440fae0c12d | E53: Joint forming material in movement joints | J53: Dflt
A54: Item | B54: a8fc8e65-3ba1-4d4e-9e0f-a29984f93a4c | C54: D.1.1.5.3 | E54: 10mm "Jointex" Expanded polystyrene with one tear off strip built in horizontal between brick walls and concrete not exceeding 300mm wide | F54: m | G54: 65 | H54: 0.00 | I54: =ROUND(G54 * H54,2) -> 0.00 | J54: Dflt
A55: Item | B55: fb6c752b-9dc4-49ca-8554-40a2921d60d2 | C55: D.1.1.5.4 | E55: 10 x 10mm Polysulphide sealant in joints | F55: m | G55: 65 | H55: 0.00 | I55: 0.00 | J55: Dflt
A56: Header2 | B56: 09d7ed56-871b-44db-8f0a-9e24d7c1359a | C56: D.1.1.6 | E56: WATERPROOFING | J56: Dflt
A57: Label | B57: f1faa789-fe9e-48e7-8a15-77dc796598cb | E57: For preambles see "Model Preambles for Trades" | J57: Dflt
A58: Label | B58: 2ca243cd-0b6b-452d-a22a-bbd5e112029c | E58: WATERPROOFING TO ROOFS, BASEMENTS, ETC | J58: Dflt
A59: Label | B59: 7b8b5a28-4c72-405a-8bc4-2f1d59d95e95 | E59: One layer Derbigum SP4 waterproofing membrane, with 75mm side laps and 100mm end laps, sealed to primed surface to falls and crossfalls by 'torch-fusion' finished with one coat of acrylic primer followed by two coats acrylic paint. Waterproofing to be installed by an Approved Derbigum Contractor under a ten year guarantee. | J59: Dflt
A60: Item | B60: d15965c4-818c-4bdf-9745-43856fc7e76e | C60: D.1.1.6.1 | E60: On walls /cable trenches | F60: m² | G60: 46 | H60: 0.00 | I60: =ROUND(G60 * H60,2) -> 0.00 | J60: Dflt
A61: Header2 | B61: 0412f855-191b-42a1-8128-b741e6d9c135 | C61: D.1.1.7 | E61: ROOF COVERINGS | J61: Dflt
A62: Label | B62: 87e54197-25fe-458b-8b84-7d6c507cdb05 | E62: For preambles see "Model Preambles for Trades" | J62: Dflt
A63: Label | B63: 090f852c-cb49-469c-91b2-b8deaf533185 | E63: PROFILED METAL SHEETING AND ACCESSORIES | J63: Dflt
A64: Label | B64: 5dd64b47-1fd0-4bee-b591-2f5ed3344cde | E64: "Klip-Lok 700" profile roll-formed in continuous lengths from certified Galvanised steel Z200 0.58mm complying with ISQ 550 (3T) (A653) with a Chromadek Colomet finish to one side and standard backing coat, Papyrus white to other and accessories, fixed to timber purlins in strict accordance with manufacturer's specifications. | J64: Dflt
A65: Item | B65: 5f231299-271d-4801-a70f-cfcb3aa4914b | C65: D.1.1.7.1 | E65: Head wall flashings 375mm girth 2 times bent to suit roof profile | F65: m | G65: 10 | H65: 0.00 | I65: =ROUND(G65 * H65,2) -> 0.00 | J65: Dflt
A66: Item | B66: 71a690fb-8ab8-49dc-a93c-2d078e7c6904 | C66: D.1.1.7.2 | E66: Counter flashing 185mm girth 2 times bent | F66: m | G66: 10 | H66: 0.00 | I66: 0.00 | J66: Dflt
A67: Item | B67: b249c484-dc06-49a4-84d3-6af8b1394c8d | C67: D.1.1.7.3 | E67: Insulation boarding in 1200mm widths with longitudinal flap joints, laid over purlins (at approximately 1000mm centres) and fixed concurrent with roof covering, including holes through boards etc | F67: m² | G67: 260 | H67: 0.00 | I67: 0.00 | J67: Dflt
A68: Header2 | B68: 86d0b978-cf80-4ab1-8690-601c2bd25763 | C68: D.1.1.8 | E68: CARPENTRY AND JOINERY | J68: Dflt
A69: Label | B69: 85d2cb27-7ba2-44af-ba3f-d99635095c50 | E69: For preambles see "Model Preambles for Trades" | J69: Dflt
A70: Label | B70: 00b53f49-3786-49fb-b0d5-429af5078da1 | E70: SUPPLEMENTARY PREAMBLES | J70: Dflt
A71: Label | B71: 5cdd35eb-4988-4079-961a-84311e23d748 | E71: Joinery | J71: Dflt
A72: Label | B72: 7494b1f7-30e5-4efb-b62c-be1f422f916e | E72: Descriptions of frames shall be deemed to include frames, transomes, mullions, rails, etc | J72: Dflt
A73: Label | B73: e1a42147-5a3e-46bb-bda9-703d6519c2ff | E73: Descriptions of hardwood joinery shall be deemed to include pelleting of bolt holes | J73: Dflt
A74: Label | B74: 9ec9e533-a31b-4800-8cb8-9a1dbf4845af | E74: Fixing | J74: Dflt
A75: Label | B75: 400218bd-557b-417b-9d77-35ebefe7f00f | E75: Items described as "nailed" shall be deemed to be fixed with hardened steel nails or shot pins to brickwork or concrete | J75: Dflt
A76: Label | B76: 1d7c9739-d75f-46c0-b076-41788a062dda | E76: EAVES, VERGES, ETC | J76: Dflt
A77: Item | B77: 651330ef-70d7-46b6-81c8-2e212fb5b766 | C77: D.1.1.8.1 | E77: Install missing louvres at the two roof sides | F77: m² | G77: 5 | H77: 0.00 | I77: =ROUND(G77 * H77,2) -> 0.00 | J77: Dflt
A78: Header2 | B78: 641f93a9-3b42-457e-a096-c2379bf69e5e | C78: D.1.1.9 | E78: CEILINGS AND PARTITIONS, ETC | J78: Dflt
A79: Label | B79: 069d5225-a47a-44aa-b1a0-2f04d07df11e | E79: For preambles see "Model Preambles for Trades" | J79: Dflt
A80: Label | B80: 739803c9-043b-4592-93b9-23b589779998 | E80: SUPPLEMENTARY PREAMBLES | J80: Dflt
A81: Label | B81: 29763a93-bc9f-4b0b-9c72-ca44e716f8ee | E81: Descriptions | J81: Dflt
A82: Label | B82: 222ca373-56c7-46d7-958c-9d875bb2e477 | E82: Items described as "nailed" shall be deemed to be fixed with hardened steel nails or pins or shot pinned to brickwork or concrete | J82: Dflt
A83: Label | B83: 13f3bcd4-237f-4527-be7a-a21fbbf7b24d | E83: Items described as "plugged" shall be deemed to include screwing to fibre, plastic or metal plugs at not exceeding 600mm centres, and where described as "bolted" the bolts have been given elsewhere | J83: Dflt
A84: Label | B84: 73dc7c07-9e42-4777-abd7-3beae71a04d6 | E84: Electrical light fittings, diffusers, panels, etc generally are "lay in" units of the same dimensions as the suspension grid described and allowance must be made accordingly for their support inclusive of any flexibility insetting out that may be required (ceiling panels have not been deducted and pricing is to take cognisance thereof) | J84: Dflt
A85: Label | B85: cbe443ac-5368-405e-843b-24e939f69b09 | E85: NAILED-UP CEILINGS | J85: Dflt
A86: Label | B86: 47011b78-528c-4669-887e-babb658ae718 | E86: "Everite" or equally approved ceiling panels | J86: Dflt
A87: Item | B87: aae695e7-5f3e-453b-b0e4-2a1ea8aaf0e1 | C87: D.1.1.9.1 | E87: Ceilings of 1200 x 2400 x 6mm thick panels including 38 x 38mm SA Pine brandering at 450mm centres in both directions | F87: m² | G87: 84 | H87: 0.00 | I87: =ROUND(G87 * H87,2) -> 0.00 | J87: Dflt
A88: Label | B88: b4109718-30a3-473a-b485-c95b8ba62ea4 | E88: Gypsum plasterboard cornices | J88: Dflt
A89: Item | B89: d944bae4-c092-4c2e-ac46-2c06f91ff9a0 | C89: D.1.1.9.2 | E89: 75mm Coved cornices | F89: m | G89: 20 | H89: 0.00 | I89: =ROUND(G89 * H89,2) -> 0.00 | J89: Dflt
A90: Header2 | B90: 4501ac2a-9270-487c-a8ea-46ba96ee7615 | C90: D.1.1.10 | E90: PLASTERING | J90: Dflt
A91: Label | B91: 651bf910-48c3-4fb4-84e7-8e9389d5c3f1 | E91: For preambles see "Model Preambles for Trades" | J91: Dflt
A92: Label | B92: 8e8c7927-6c84-4355-990c-3ac108efad81 | E92: INTERNAL PLASTER | J92: Dflt
A93: Item | B93: e2f83119-44f1-40ba-aade-110d89750b91 | C93: D.1.1.10.1 | E93: Repair Cracks on plastered wall by using polyfilla or equivalent product that is approved byEngineer. | F93: m | G93: 10 | H93: 0.00 | I93: =ROUND(G93 * H93,2) -> 0.00 | J93: Dflt
A94: Label | B94: efbc0e74-db6d-43e5-a927-e0c392079b59 | E94: One coat 1:5 cement plaster 15mm thick on brickwork or concrete finished with sponge roller | J94: Dflt
A95: Item | B95: 89eebeaa-4ed0-44ac-86b9-6fa485c9d985 | C95: D.1.1.10.2 | E95: On walls | F95: m² | G95: 10 | H95: 0.00 | I95: =ROUND(G95 * H95,2) -> 0.00 | J95: Dflt
A96: Label | B96: b0857810-b025-4158-8022-480270d81b69 | E96: Gypsum skim plaster | J96: Dflt
A97: Item | B97: 79f4dfb1-802b-4411-a8b4-0f70356a59f9 | C97: D.1.1.10.3 | E97: On ceilings | F97: m² | G97: 245 | H97: 0.00 | I97: =ROUND(G97 * H97,2) -> 0.00 | J97: Dflt
A98: Label | B98: d93982ec-7563-476f-8102-b7122f99128b | E98: EXTERNAL PLASTER | J98: Dflt
A99: Label | B99: 1cf926da-8f15-48af-aac0-6a7715fafe08 | E99: One coat 1:5 cement plaster 12mm thick on brickwork or concrete finished with a wood trowel | J99: Dflt
A100: Item | B100: 1a293faf-37a9-4831-8d51-2c1a46a1e2ac | C100: D.1.1.10.4 | E100: On beams | F100: m² | G100: 45 | H100: 0.00 | I100: =ROUND(G100 * H100,2) -> 0.00 | J100: Dflt
A101: Header2 | B101: 5ecdb4ea-40b2-478e-8edd-2034d53ecbba | C101: D.1.1.11 | E101: PLUMBING AND DRAINAGE | J101: Dflt
A102: Label | B102: a0e5b611-483e-4440-b006-e9a3a4672cc6 | E102: For preambles see "Model Preambles for Trades" | J102: Dflt
A103: Label | B103: 8d3af14a-b37f-4ed2-977b-2ea3f39319f2 | E103: RAINWATER DISPOSAL | J103: Dflt
A104: Label | B104: 88c2db34-3be4-4111-b492-18971d5cda52 | E104: "Watertite" or equally approved | J104: Dflt
A105: Item | B105: 54903a64-1564-4edc-91a7-f6003543680b | C105: D.1.1.11.1 | E105: 140 x 150mm box gutter x 0.9mm brackets fixed at 500mm centres | F105: m | G105: 70 | H105: 0.00 | I105: =ROUND(G105 * H105,2) -> 0.00 | J105: Dflt
A106: Rate Only | B106: c95122d8-ad47-4908-8843-492f6ebac52f | C106: D.1.1.11.2 | E106: Extra over gutter for outlet for 75mm dia. pipe | F106: No. | G106: 0 | H106: 0.00 | I106: Rate Only | J106: Dflt
A107: Item | B107: 1855b673-6f49-47b0-bfde-a3179c5468ab | C107: D.1.1.11.3 | E107: 75 x 1.27mm Diameter rainwater pipes | F107: m | G107: 15 | H107: 0.00 | I107: =ROUND(G107 * H107,2) -> 0.00 | J107: Dflt
A108: Item | B108: 028f62fd-dc27-4b02-ae27-4df9a3d46abc | C108: D.1.1.11.4 | E108: Extra over rainwater pipe for bend | F108: No. | G108: 8 | H108: 0.00 | I108: 0.00 | J108: Dflt
A109: Item | B109: b3061b5b-4b40-4abc-8e5a-629b3c62c542 | C109: D.1.1.11.5 | E109: Extra over rainwater pipe for shoe | F109: No. | G109: 4 | H109: 0.00 | I109: 0.00 | J109: Dflt
A110: Header2 | B110: f5d18833-2a06-4b69-8905-194e134681c8 | C110: D.1.1.12 | E110: PAINTWORK | J110: Dflt
A111: Label | B111: 83ca1342-bb48-4eb5-96d0-c92592ebb37e | E111: For preambles see "Model Preambles for Trades" | J111: Dflt
A112: Label | B112: ef08a7ee-1193-4282-a874-1493ce8558b4 | E112: SUPPLEMENTARY PREAMBLES | J112: Dflt
A113: Label | B113: 41fe5c53-e072-461d-a3b6-997b0146cd8c | E113: All colours to be selected by the Architect | J113: Dflt
A114: Label | B114: 400b6121-cdf5-4e98-b69b-edc1088cfb69 | E114: Only approved brands of paint shall be permitted | J114: Dflt
A115: Label | B115: 49be3a46-e6c8-463a-917e-b86592181367 | E115: All painting measured generally will be in colours with a value of more than 7 on the Munsell system in accordance with the relevant SABS specification. Any painting in colours with a value of 7 or less on the Munsell system shall be given as paintwork in darker colours | J115: Dflt
A116: Label | B116: c8b6055b-f7e9-4002-a882-01598b70a210 | E116: ON INTERNAL FLOATED PLASTER SURFACES | J116: Dflt
A117: Label | B117: 6bf6ce61-51ad-476a-a60d-784cd42b73c7 | E117: Clean off dust, remove loose paint, fix cracks with polyfilla or similar approved product, Prime with one coat of plaster primer all in accordance with Manufacturer's detailed specification and recommendation | J117: Dflt
A118: Item | B118: 3c1fa20e-f2dd-43dc-bba2-d3874cf8d54c | C118: D.1.1.12.1 | E118: On walls | F118: m² | G118: 520 | H118: 0.00 | I118: =ROUND(G118 * H118,2) -> 0.00 | J118: Dflt
A119: Label | B119: 830d61d7-6670-4003-9611-47df830128bf | E119: ON INTERNAL FLOATED PLASTER SURFACES | J119: Dflt
A120: Label | B120: 4a27ab5c-d5de-4339-9e01-758eb83e5b23 | E120: Clean off dust, remove loose paint, fix cracks with polyfilla or similar approved product, Finish with 2 coats of super acrylic PVA paint or similar approved. All in accordance with Manufacturer's detailed specification and recommendation | J120: Dflt
A121: Item | B121: 8cd30082-254e-4e6d-8281-3f141b870d04 | C121: D.1.1.12.2 | E121: On walls | F121: m² | G121: 520 | H121: 0.00 | I121: =ROUND(G121 * H121,2) -> 0.00 | J121: Dflt
A122: Label | B122: 413b2da0-397c-43aa-b861-563311e34c16 | E122: ON EXTERNAL FLOATED PLASTER SURFACES | J122: Dflt
A123: Label | B123: 253d1b7e-ea64-455d-9dad-6b9a3d7114b0 | E123: Primer and finish with two coats "Marmoran Armourbrush" or equally approved, applied in strict accordance to manufacturer's instructions. | J123: Dflt
A124: Item | B124: e2cf4c42-367c-4a37-b167-7149f97a6780 | C124: D.1.1.12.3 | E124: On walls / RC beam | F124: m² | G124: 50 | H124: 0.00 | I124: =ROUND(G124 * H124,2) -> 0.00 | J124: Dflt
A125: Label | B125: 8f64126c-7932-43ce-97f0-a459842a79b8 | E125: ON PLASTERBOARD SURFACES | J125: Dflt
A126: Label | B126: 9875db75-99f7-48bb-8fbb-6cc3bfcb235a | E126: One coat alkali resistant primer and two coats PVA emulsion paint for interior use | J126: Dflt
A127: Item | B127: 263cfa3b-a133-41f1-a3d0-42aa7531db43 | C127: D.1.1.12.4 | E127: Ceilings and cornices | F127: m² | G127: 243 | H127: 0.00 | I127: =ROUND(G127 * H127,2) -> 0.00 | J127: Dflt
A128: Label | B128: af37b922-de81-4b31-8d85-341ea1b11147 | E128: ON METAL SURFACES | J128: Dflt
A129: Label | B129: 92dee1c7-a275-4719-8283-0aa27e78c182 | E129: One coat "Namelcote" zinc chromate primer UC 53, one coat "Plascon Galvogrip" metal primer and two coats "Velvaglo" polyutherane enamel paint (Colour by Architect). All in accordance with Manufacturer's detailed specification and recommendation) | J129: Dflt
A130: Item | B130: 491b88d0-70a9-4912-a7a0-b2d6b6d19e6b | C130: D.1.1.12.5 | E130: On door frames etc | F130: m² | G130: 15 | H130: 0.00 | I130: =ROUND(G130 * H130,2) -> 0.00 | J130: Dflt
A131: Item | B131: 2efc4f2d-7baa-48dc-aff2-d996487e9deb | C131: D.1.1.12.6 | E131: On doors (both sides) | F131: m² | G131: 36 | H131: 0.00 | I131: 0.00 | J131: Dflt
A132: Label | B132: 322ebb9b-f275-4066-b60e-decafa43d497 | E132: ON WOOD SURFACES | J132: Dflt
A133: Label | B133: 1cc82cf5-87a1-431e-a17f-ec6550883955 | E133: One coat "Spick and Span" Oil based wood primer (UCS2), two coats "Velvago Polyurethane enamel paint (VLO). (Colour by Architect). All in accordance with Manufacturer's detailed specification and recommendation) | J133: Dflt
A134: Item | B134: 34564dad-1db9-4ced-a8e8-9667020c8d4e | C134: D.1.1.12.7 | E134: On doors (both sides) | F134: No. | G134: 25 | H134: 0.00 | I134: =ROUND(G134 * H134,2) -> 0.00 | J134: Dflt
A135: Header2 | B135: 06470377-9699-4eff-a660-3570c42badbc | C135: D.1.1.13 | E135: Cable Trench | J135: Dflt
A136: Item | B136: 5d370b64-9935-49b3-8d5d-c4eefb1b49f5 | C136: D.1.1.13.1 | E136: Install the 655mm wide x 6mm VASTRAP with 3 No. 30x8mm plate stiffeners per panel, trench plate panel cover over the cable trench where no MCC and Electrical panels are placed | F136: m | G136: 20 | H136: 0.00 | I136: =ROUND(G136 * H136,2) -> 0.00 | J136: Dflt
A137: Header2 | B137: 7aa44fb6-07ad-4860-bd87-3a85010b24e2 | C137: D.1.1.14 | E137: Concrete Works (Apron) | J137: Dflt
A138: Label | B138: 6d2313f4-c8d7-4dc3-bd57-5dc27de6c206 | D138: SANS1200 GA | E138: Concrete (Small Works) - Formwork | J138: Dflt
A139: Item | B139: 117e71d9-50d4-4c91-9069-27e4253f82a3 | C139: D.1.1.14.1 | D139: 8.2.1 | E139: Formwork - Rough Finish surface | F139: m² | G139: 6 | H139: 0.00 | I139: =ROUND(G139 * H139,2) -> 0.00 | J139: Dflt
A140: Label | B140: 5d6a22ef-219c-4a0a-b189-7070718ac38c | D140: SANS1200 GA | E140: Concrete (Small Works) - Steel | J140: Dflt
A141: Item | B141: 80292010-8364-4044-b05d-9a868baae8e9 | C141: D.1.1.14.2 | D141: 8.3.2 | E141: High Tensile Welded Mesh Ref 245 | F141: m² | G141: 12 | H141: 0.00 | I141: =ROUND(G141 * H141,2) -> 0.00 | J141: Dflt
A142: Label | B142: 32664219-b848-4b24-be77-8ec8015fc5ba | D142: SANS1200 GA | E142: Concrete (Small Works) - Concrete | J142: Dflt
A143: Item | B143: cb7cdc60-051e-4e5e-a48d-01a99ff84571 | C143: D.1.1.14.3 | D143: 8.4.3 | E143: 20 Mpa, 19mm aggregates Concrete | F143: m³ | G143: 8 | H143: 0.00 | I143: =ROUND(G143 * H143,2) -> 0.00 | J143: Dflt
A144: Item | B144: ad799d2e-1422-41e0-9044-15d11c62498c | C144: D.1.1.14.4 | D144: 8.4.4 | E144: Unformed Wooden floated surface finish | F144: m² | G144: 91 | H144: 0.00 | I144: 0.00 | J144: Dflt
A145: Item | B145: 8c040cb5-3abb-4ca5-a627-8d07c5f9d2ba | C145: D.1.1.14.5 | D145: 8.5.0 | E145: 6mm x 30mm deep Saw cut joints from top of concrete | F145: m | G145: 25 | H145: 0.00 | I145: 0.00 | J145: Dflt
A146: Item | B146: d8feb7ba-5b4e-4a3f-b507-3dd40006d408 | C146: D.1.1.14.6 | E146: Install 10mm Jointex Expanded polystyrene | F146: m | G146: 65 | H146: 0.00 | I146: 0.00 | J146: Dflt
A147: Item | B147: 2b47de54-291b-49af-9563-1e41434c60a8 | C147: D.1.1.14.7 | E147: Install 10mm x 10mm polysulphide | F147: m | G147: 65 | H147: 0.00 | I147: 0.00 | J147: Dflt
A148: Item | B148: 84c5e232-401d-4af8-aa87-9e8cef114065 | C148: D.1.1.14.8 | E148: Allow R30,000.00 as provision to fix the existing MCC Room door damaged locking mechanism and make good the cracked frame anchorage brickwork. | F148: Prov.Sum | G148: 1 | H148: 30,000.00 | I148: 30,000.00 | J148: Dflt
A149: Sum | B149: 5aca9631-cdba-4557-a946-5122145f9c39 | C149: D.1.1.14.9 | E149: Supply and Install all complete fire and signage plan in accordance with the Drawing No. J40073/010 - 406F Rev 1 | F149: Sum | G149: 1 | H149: 0.00 | I149: =ROUND(H149,2) -> 0.00 | J149: Dflt
A150: Header2 | B150: 4b15f8e8-7f0e-4e94-b07c-910468a8e98c | C150: D.1.1.15 | E150: TILING | J150: Dflt
A151: Label | B151: 279fdfe0-91cb-4f2b-99ff-f8715e61c844 | E151: For preambles see "Model Preambles for Trades" | J151: Dflt
A152: Label | B152: 977c451e-fb54-4a61-9641-a0f349f0ea52 | E152: "Note All tiling shall be fixed to plaster or screed with an approved adhesive; the adhesive shall be as recommended by the manufacturer of the tiles. " | J152: Dflt
A153: Label | B153: 7a370f92-b391-4bdb-9d9b-ce7eb833efa8 | E153: FLOOR TILING - in accordance with interior finishing schedule Drw. No. 010-406G Rev 0 | J153: Dflt
A154: Item | B154: 60b8f883-e718-4dba-8d6b-2835ee667a72 | C154: D.1.1.15.1 | E154: Supply and install 40mm Untinted grano with 1 cement/1 stone chippings / 1 sand mix finished with steel trowel in bays not to exceed 12m2. Provide ABE or equal SABS approved epoxy paint finish on Grano floors | F154: m² | G154: 230 | H154: 0.00 | I154: =ROUND(G154 * H154,2) -> 0.00 | J154: Dflt
A155: Label | B155: 5f3e98e7-b709-41b5-a400-d31106a1bf19 | E155: Skirting - Grano | J155: Dflt
A156: Item | B156: 5b2b905e-3e6a-484b-b268-43b0734c544e | C156: D.1.1.15.2 | E156: 19mm thick rounded (1:4 cement mix) grano with V Joints 75 mm above finished floor level. Skirting to project 6mm from finished wall fall with arris top edge. | F156: m | G156: 120 | H156: 0.00 | I156: =ROUND(G156 * H156,2) -> 0.00 | J156: Dflt
A157: Header2 | B157: 15c08c08-b1b6-40b2-b70b-80bed8452d36 | C157: D.1.1.16 | E157: PROVISIONAL SUMS | J157: Dflt
A158: Label | B158: 486be2e5-29ed-4c4b-b42a-b57b034eceda | E158: For preambles see "Model Preambles for Trades"
A159: Label | B159: 7f30741f-2797-4877-9f12-5ace67a24328 | E159: BUDGETARY ALLOWANCES (Roof Rust Repair, Electrical connection, Water Connection, etc)
A160: Item | B160: e6f177d3-0372-4e9b-ac53-0ff490d4e87c | C160: D.1.1.16.1 | E160: Provide for Provisional Sum for Additional Work as instructed by Engineer | F160: Prov.Sum | G160: 1 | H160: 400,000.00 | I160: =ROUND(G160 * H160,2) -> 400,000.00
A161: % Previous | B161: 7c24c33f-5b2c-414c-a3ef-d8ccc41c0bea | C161: D.1.1.16.2 | E161: Add for profit and general attendance upon above if required | F161: % | G161: =I160 -> 400 000.00 | H161: 0.0% | I161: 0.00
A162: Label | B162: f0cf3e2d-6993-4d2c-96f6-2cf978bc4832 | E162: Corrective work to structure/building
A163: Sum | B163: 688ab4d7-ae44-4777-82c0-a15e6fcbee8b | C163: D.1.1.16.3 | E163: Corrective works as directed by the Specialist investigations/tests conducted by the Contractor | F163: PSum | G163: 1 | H163: 200,000.00 | I163: =ROUND(H163,2) -> 200,000.00

Sheet BILL D.2.
D2: Bid No: | E2: RW10404061/23 | J2: Work Group
D3: Description | E3: TENDER FOR THE UPGRADE OF MEYERTON WASTEWATER TREATMENT WORKS BY 15 ML/DAY AT MEYERTON | J3: Dflt
J4: Dflt
J5: Dflt
J6: Dflt
A7: BillHeader | C7: BILL D.2. | E7: BLOWER BUILDING | J7: Dflt
A8: Item Type | B8: GUID | C8: Item Ref | D8: Payment Refers | E8: Description | F8: Unit | G8: Quantity | H8: Rate | I8: Amount R | J8: Dflt
A9: Section | B9: 988c4295-cb92-45af-80c9-765241902519 | C9: D.2.1 | E9: BLOWER BUILDING | J9: Dflt
A10: Label | B10: f2a49c96-802f-4ce3-9983-8508de6d090f | D10: JBCC | E10: SECTION D.2.1 : BLOWER BUILDING | J10: Dflt
A11: Sum | B11: 1c56e4cb-b254-4833-bf20-f5632978c1f2 | C11: D.2.1.1 | E11: Housekeeping (Includes cleaning and organising working area) | F11: Sum | G11: 1 | H11: 0.00 | I11: =ROUND(H11,2) -> 0.00 | J11: Dflt
A12: Header2 | B12: fc244e1d-395e-4798-b846-0119c3ad9c18 | C12: D.2.1.2 | E12: EARTHWORKS (PROVISIONAL) | J12: Dflt
A13: Label | B13: 20c966c2-a4ca-4bab-bdd4-a1061335498f | E13: For preambles see "Model Preambles for Trades" | J13: Dflt
A14: Label | B14: 730c712b-621f-41fd-810f-f43384e6a29c | E14: Note: | J14: Dflt
A15: Label | B15: 37548691-5077-4ea6-9587-255a3c4d0820 | E15: Wherever a trade name for any product has been described in the Priced Document attention is drawn to the fact that any other product of equal quality may be used subject to the written approval of the principal agent being obtained prior to the closing date for submission of tenders. | J15: Dflt
A16: Label | B16: 924f8fff-250c-46d7-b26b-a685a43bcbae | E16: if prior written approval for an alternative product is not obtained, the product described shall be deemed to have been tendered for. | J16: Dflt
A17: Label | B17: c7e45230-e394-454f-b734-ac92009b9fa4 | E17: SUNDRIES | J17: Dflt
A18: Label | B18: c7a5abc9-ed6b-4f89-a839-d784f19f5b4b | E18: Extra over all excavations for carting away: | J18: Dflt
A19: Item | B19: c7dcab78-9f15-46e5-ab7b-e2a6487d0d95 | C19: D.2.1.2.1 | E19: Surplus material from excavations and/or stock piles on site to a dumping site to be located by the Contractor | F19: m³ | G19: 20 | H19: 0.00 | I19: =ROUND(G19 * H19,2) -> 0.00 | J19: Dflt
A20: Header2 | B20: 5ca46161-0873-4f91-a4ec-be154e486be3 | C20: D.2.1.3 | E20: FILLING, ETC | J20: Dflt
A21: Label | B21: 51ce2108-f6be-4eb7-8ca8-6db28d6edf4c | E21: Backfilling with imported G7 material spread in layers not exceeding 150mm thick under floors, etc and compacted to 97% Mod. AASHTO density | J21: Dflt
A22: Item | B22: 87db8f83-1cb9-4264-aa95-a15570c4ed33 | C22: D.2.1.3.1 | E22: Under floors, steps, paving, etc. | F22: m³ | G22: 5 | H22: 0.00 | I22: =ROUND(G22 * H22,2) -> 0.00 | J22: Dflt
A23: Header2 | B23: 397cbefc-90fe-4cec-9cc5-579434d4222b | C23: D.2.1.4 | E23: CONCRETE, FORMWORK AND REINFORCEMENT | J23: Dflt
A24: Label | B24: 21f67f3f-a56a-44ce-bbf4-e7016799a845 | E24: For preambles see "Model Preambles for Trades" | J24: Dflt
A25: Label | B25: 1d6054e9-dcdb-41d7-bcea-bbe96d82d45b | E25: SUPPLEMENTARY PREAMBLES | J25: Dflt
A26: Label | B26: 6a55b3b1-77a8-43ca-990e-8e6a5a4cf3ee | E26: CONCRETE | J26: Dflt
A27: Label | B27: d0ff1a23-74d7-4bf3-8691-8f92aa769687 | E27: UNREINFORCED CONCRETE | J27: Dflt
A28: Label | B28: 15b3186f-38b5-4c67-8727-7ed22e40ed3b | E28: Unreinforced concrete 25MPa at 28 days in | J28: Dflt
A29: Item | B29: e5296301-566c-433b-9dda-438617ef56f5 | C29: D.2.1.4.1 | E29: Surface beds (apron slabs) | F29: m³ | G29: 6 | H29: 0.00 | I29: =ROUND(G29 * H29,2) -> 0.00 | J29: Dflt
A30: Label | B30: 160cbee8-e208-4e53-8c63-d52d368de5fb | E30: REINFORCED CONCRETE | J30: Dflt
A31: Label | B31: a26d6744-19a2-4e85-98b1-36863146c7ee | E31: Vibrated reinforced concrete 25MPa at 28 days in | J31: Dflt
A32: Item | B32: 0508eeb1-5b8d-4cd2-b70e-6cd66f41ab8f | C32: D.2.1.4.2 | E32: Surface beds (ramps) | F32: m³ | G32: 3 | H32: 0.00 | I32: =ROUND(G32 * H32,2) -> 0.00 | J32: Dflt
A33: Label | B33: 28c7839a-ee26-4880-aac2-bf81184cd0bd | E33: CONCRETE SUNDRIES | J33: Dflt
A34: Label | B34: 083b6e98-3c3c-46ad-9f2e-4b25db19b2e8 | E34: Finishing top surfaces of concrete smooth with a wood float | J34: Dflt
A35: Item | B35: 55311264-30d7-4e94-a1a4-ee4361d0dbf4 | C35: D.2.1.4.3 | E35: Surface beds, slabs, etc (apron slabs) | F35: m² | G35: 82 | H35: 0.00 | I35: =ROUND(G35 * H35,2) -> 0.00 | J35: Dflt
A36: Label | B36: c1be80b9-a5d3-4aeb-bd08-e6397c499974 | E36: Finishing top surfaces of concrete to an evenly ribbed non-slip surface (ramps) | J36: Dflt
A37: Item | B37: 646522cd-1775-4ed3-858c-a9e8fd750d2e | C37: D.2.1.4.4 | E37: Surface beds, slabs, etc (ramps) | F37: m² | G37: 17 | H37: 0.00 | I37: =ROUND(G37 * H37,2) -> 0.00 | J37: Dflt
A38: Label | B38: e9444047-370b-4ee1-9f6c-40e90e28e09e | E38: FORMWORK | J38: Dflt
A39: Label | B39: 4509427e-bf9a-4509-872a-97e55905c7bc | E39: ROUGH FORMWORK (DEGREE OF ACCURACY III) | J39: Dflt
A40: Label | B40: fa831e10-d7ce-4cca-bac5-ae16848a8a87 | E40: Rough formwork to sides | J40: Dflt
A41: Item | B41: 8e39a39c-2b62-41ea-8cac-e938b435080e | C41: D.2.1.4.5 | E41: Edges, risers, ends and reveals not exceeding 300mm high or wide | F41: m | G41: 75 | H41: 0.00 | I41: =ROUND(G41 * H41,2) -> 0.00 | J41: Dflt
A42: Label | B42: 8df4d0b7-b276-4bde-8784-186707406f66 | E42: MOVEMENT JOINTS, ETC | J42: Dflt
A43: Label | B43: d13ea94e-91c4-4469-b628-9913094dbf6a | E43: Saw cut joints: | J43: Dflt
A44: Item | B44: cdb9bff5-9fe0-4909-aea2-7639851df836 | C44: D.2.1.4.6 | E44: 6 x 30mm Saw cut joints in top of concrete | F44: m | G44: 50 | H44: 0.00 | I44: =ROUND(G44 * H44,2) -> 0.00 | J44: Dflt
A45: Label | B45: b5dcdbe1-07e8-4c50-bc77-bd2656909212 | E45: STEEL REINFORCEMENT | J45: Dflt
A46: Label | B46: 27929559-0130-42f6-8ed6-36d5bc288ad5 | E46: Fabric reinforcement: | J46: Dflt
A47: Item | B47: a83334e4-1585-4c81-a206-d2a9bc0b713e | C47: D.2.1.4.7 | E47: Steel mesh reinforcement reference 311 in concrete slabs, surface beds, etc | F47: m² | G47: 17 | H47: 0.00 | I47: =ROUND(G47 * H47,2) -> 0.00 | J47: Dflt
A48: Header2 | B48: 950d5264-5d07-44bd-81e8-3261c772d769 | C48: D.2.1.5 | E48: MASONRY | J48: Dflt
A49: Label | B49: ff61644f-fb96-4cbc-bad9-23365f692410 | E49: For preambles see "Model Preambles for Trades" | J49: Dflt
A50: Label | B50: 0257ef71-82bb-440b-815e-de34729cff7d | E50: FOUNDATIONS | J50: Dflt
A51: Label | B51: 52b0709b-44f9-4311-a987-2c29a1ea311d | E51: Brickwork of NFX bricks (14 MPa nominal compressive strength) in class I mortar | J51: Dflt
A52: Item | B52: 5ea76eef-8d14-4b80-b7d8-9117a8de0ea5 | C52: D.2.1.5.1 | E52: One brick walls | F52: m² | G52: 20 | H52: 0.00 | I52: =ROUND(G52 * H52,2) -> 0.00 | J52: Dflt
A53: Label | B53: 49abd7d9-9875-4d54-9902-443b0c84279f | E53: SUPERSTRUCTURE | J53: Dflt
A54: Label | B54: 0f6b51b1-38e9-4a28-9323-08d4a10255da | E54: Brickwork of NFP bricks (7 MPa nominal compressive strength) in class II mortar | J54: Dflt
A55: Item | B55: 70e6dc7f-a373-4477-a558-b659bd35b23d | C55: D.2.1.5.2 | E55: Half brick walls | F55: m² | G55: 20 | H55: 0.00 | I55: =ROUND(G55 * H55,2) -> 0.00 | J55: Dflt
A56: Item | B56: 2af8f254-979d-42f6-b02e-e8cd2ff3afd6 | C56: D.2.1.5.3 | E56: One brick walls | F56: m² | G56: 260 | H56: 0.00 | I56: 0.00 | J56: Dflt
A57: Item | B57: 72419496-352f-4cb5-ae73-60e51b7d7815 | C57: D.2.1.5.4 | E57: 330mm Solid walls | F57: m² | G57: 28 | H57: 0.00 | I57: 0.00 | J57: Dflt
A58: Label | B58: ef037f3d-e40e-4610-af3f-0914ed1cc9b7 | E58: BRICKWORK SUNDRIES | J58: Dflt
A59: Label | B59: f221484f-6ac6-4efc-9b65-aee9a14d7124 | E59: Joint forming material in movement joints | J59: Dflt
A60: Item | B60: 45e7b4f0-72b6-4238-ad2d-8385ac43c469 | C60: D.2.1.5.5 | E60: 10mm "Jointex" Expanded polystyrene with one tear off strip built in horizontal between brick walls and concrete not exceeding 300mm wide | F60: m | G60: 130 | H60: 0.00 | I60: =ROUND(G60 * H60,2) -> 0.00 | J60: Dflt
A61: Item | B61: 3f60fc11-e094-470f-a815-1163de307a64 | C61: D.2.1.5.6 | E61: 10 x 10mm Polysulphide sealant in joints | F61: m | G61: 130 | H61: 0.00 | I61: 0.00 | J61: Dflt
A62: Header2 | B62: 7de1d17f-e522-4192-b7df-f7ea837ae4f3 | C62: D.2.1.6 | E62: WATERPROOFING | J62: Dflt
A63: Label | B63: a01699b0-0469-4225-a4f5-3df43e5c4f98 | E63: For preambles see "Model Preambles for Trades" | J63: Dflt
A64: Label | B64: ec288d01-550f-4caa-8621-f535cbf5443e | E64: WATERPROOFING TO ROOFS, BASEMENTS, ETC | J64: Dflt
A65: Label | B65: 8cfc1fa2-e0e3-473b-b6f9-a97cedeb03fa | E65: One layer Derbigum SP4 waterproofing membrane, with 75mm side laps and 100mm end laps, sealed to primed surface to falls and crossfalls by 'torch-fusion' finished with one coat of acrylic primer followed by two coats acrylic paint. Waterproofing to be installed by an Approved Derbigum Contractor under a ten year guarantee. | J65: Dflt
A66: Item | B66: 0d489b0b-072d-4cac-9af6-fe3274b253c3 | C66: D.2.1.6.1 | E66: On walls/Cable Trenches | F66: m² | G66: 46 | H66: 0.00 | I66: =ROUND(G66 * H66,2) -> 0.00 | J66: Dflt
A67: Header2 | B67: f8d11d94-9408-4a3d-ba24-d9c1dd265a35 | C67: D.2.1.7 | E67: ROOF COVERINGS | J67: Dflt
A68: Label | B68: 1ca76970-1b4e-461f-8507-54190ca19a4a | E68: For preambles see "Model Preambles for Trades" | J68: Dflt
A69: Label | B69: 70d7cd33-64d8-4cef-9537-a53ae99e3b3b | E69: PROFILED METAL SHEETING AND ACCESSORIES | J69: Dflt
A70: Label | B70: 85e5abbc-ae5e-41f5-99e3-7e626e4bfeea | E70: "Klip-Lok 700" profile roll-formed in continuous lengths from certified Galvanised steel Z200 0.58mm complying with ISQ 550 (3T) (A653) with a Chromadek Colomet finish to one side and standard backing coat, Papyrus white to other and accessories, fixed to timber purlins in strict accordance with manufacturer's specifications. | J70: Dflt
A71: Item | B71: df5855ca-915e-4647-8345-49cfcb448404 | C71: D.2.1.7.1 | E71: Head wall flashings 375mm girth 2 times bent to suit roof profile | F71: m | G71: 10 | H71: 0.00 | I71: =ROUND(G71 * H71,2) -> 0.00 | J71: Dflt
A72: Item | B72: f9c916e7-65d1-433e-a002-f6912ce5a206 | C72: D.2.1.7.2 | E72: Counter flashing 185mm girth 2 times bent | F72: m | G72: 10 | H72: 0.00 | I72: 0.00 | J72: Dflt
A73: Item | B73: 83cc7fdf-5f2d-4ae5-94ed-e968d95473ba | C73: D.2.1.7.3 | E73: Insulation boarding in 1200mm widths with longitudinal flap joints, laid over purlins (at approximately 1000mm centres) and fixed concurrent with roof covering, including holes through boards etc | F73: m² | G73: 126 | H73: 0.00 | I73: 0.00 | J73: Dflt
A74: Header2 | B74: f8fce5c3-22bd-4e0a-9e1d-d8ea63fdc23e | C74: D.2.1.8 | E74: CARPENTRY AND JOINERY | J74: Dflt
A75: Label | B75: bda88fd9-95cd-427d-9db1-4b18b4ddae5a | E75: For preambles see "Model Preambles for Trades" | J75: Dflt
A76: Label | B76: d200fa24-b5c1-434c-9d55-37419224f546 | E76: SUPPLEMENTARY PREAMBLES | J76: Dflt
A77: Label | B77: 3583915c-e3b6-46f9-ba77-5bee801ece30 | E77: Joinery | J77: Dflt
A78: Label | B78: a7f47eaf-4575-4046-b4dc-a84d8e0b2c3b | E78: Descriptions of frames shall be deemed to include frames, transomes, mullions, rails, etc | J78: Dflt
A79: Label | B79: 6ff1ddd2-090a-47c6-96fb-7eaf3c920a41 | E79: Descriptions of hardwood joinery shall be deemed to include pelleting of bolt holes | J79: Dflt
A80: Label | B80: 46b3eee0-2292-4f9c-96ee-3115912d2ba0 | E80: Fixing | J80: Dflt
A81: Label | B81: 101cf34a-560c-47a5-af01-70e4c3af1ce7 | E81: Items described as "nailed" shall be deemed to be fixed with hardened steel nails or shot pins to brickwork or concrete | J81: Dflt
A82: Label | B82: 12762aa1-0ae1-4e31-8195-6e78e5ca9cc7 | E82: EAVES, VERGES, ETC | J82: Dflt
A83: Label | B83: 880d95dd-87d1-45b4-b857-8260fb41e0c2 | E83: "Everite FC77" pressed fibre-cement | J83: Dflt
A84: Item | B84: c32394ee-5bab-4051-94a1-8b3150db001a | C84: D.2.1.8.1 | E84: 15 x 300mm Fascias and barge boards including galvanised steel H-profile jointing strips | F84: m | G84: 15 | H84: 0.00 | I84: =ROUND(G84 * H84,2) -> 0.00 | J84: Dflt
A85: Item | B85: 770a761d-a2fe-407f-a91b-01cd5a794aa3 | C85: D.2.1.8.2 | E85: Install missing louvres at the two roof sides | F85: m² | G85: 5 | H85: 0.00 | I85: 0.00 | J85: Dflt
A86: Header2 | B86: 11e87d67-dbab-4cde-b89e-c9901543cec2 | C86: D.2.1.9 | E86: CEILINGS AND PARTITIONS, ETC | J86: Dflt
A87: Label | B87: 2ec3235e-2c23-4eb2-9c1e-d07117de7622 | E87: For preambles see "Model Preambles for Trades" | J87: Dflt
A88: Label | B88: ce581029-3d7e-4a39-b51c-42572ecbb6e0 | E88: SUPPLEMENTARY PREAMBLES | J88: Dflt
A89: Label | B89: a84012b3-f4c1-4066-afff-cd7a71fc4b0c | E89: Descriptions | J89: Dflt
A90: Label | B90: 7f6b7088-589a-426a-8474-362d4066c92c | E90: Items described as "nailed" shall be deemed to be fixed with hardened steel nails or pins or shot pinned to brickwork or concrete | J90: Dflt
A91: Label | B91: f2fa3dde-a549-4a0c-a514-34afd34645ed | E91: Items described as "plugged" shall be deemed to include screwing to fibre, plastic or metal plugs at not exceeding 600mm centres, and where described as "bolted" the bolts have been given elsewhere | J91: Dflt
A92: Label | B92: d27ebcb5-96d3-4594-a0ec-499c93b49ee8 | E92: Electrical light fittings, diffusers, panels, etc generally are "lay in" units of the same dimensions as the suspension grid described and allowance must be made accordingly for their support inclusive of any flexibility insetting out that may be required (ceiling panels have not been deducted and pricing is to take cognisance thereof) | J92: Dflt
A93: Label | B93: 0fa9d97d-d341-49cc-b0a7-72ba93c0e68b | E93: NAILED-UP CEILINGS | J93: Dflt
A94: Label | B94: 4fa09100-6415-4c02-b9a5-485c0c6e182f | E94: "Everite" or equally approved ceiling panels | J94: Dflt
A95: Item | B95: abe7d0ce-200c-4424-bc2c-1bd3b497fd4a | C95: D.2.1.9.1 | E95: Ceilings of 1200 x 2400 x 6mm thick panels including 38 x 38mm SA Pine brandering at 450mm centres in both directions | F95: m² | G95: 30 | H95: 0.00 | I95: =ROUND(G95 * H95,2) -> 0.00 | J95: Dflt
A96: Label | B96: a067d6fc-af67-43cf-a60c-ab814c7f06d6 | E96: Gypsum plasterboard cornices | J96: Dflt
A97: Item | B97: e07edd46-1788-4062-812e-d9e2eae34ac6 | C97: D.2.1.9.2 | E97: 75mm Coved cornices | F97: m | G97: 20 | H97: 0.00 | I97: =ROUND(G97 * H97,2) -> 0.00 | J97: Dflt
A98: Header2 | B98: edc44ceb-ecaa-4280-b45a-198d7db4d726 | C98: D.2.1.10 | E98: PLASTERING | J98: Dflt
A99: Label | B99: c7575f54-207d-4564-8f86-7b7cefad5d37 | E99: For preambles see "Model Preambles for Trades" | J99: Dflt
A100: Label | B100: 5a8bda86-a068-4826-80a2-02389f2f00f1 | E100: GRANOLITHIC | J100: Dflt
A101: Label | B101: 8810619e-fa41-498a-a043-89e658d62100 | E101: 30MPa untinted granolithic on concrete | J101: Dflt
A102: Item | B102: 20ccf0f6-5269-489e-a300-756ca5c09477 | C102: D.2.1.10.1 | E102: 30mm thick on floors to falls and crossfalls | F102: m² | G102: 227 | H102: 0.00 | I102: =ROUND(G102 * H102,2) -> 0.00 | J102: Dflt
A103: Label | B103: 605986e5-54e3-4705-964c-4a228815483d | E103: INTERNAL PLASTER | J103: Dflt
A104: Item | B104: 645e3fdb-b86b-4383-b74c-3f46fefef60d | C104: D.2.1.10.2 | E104: Repair about 2.5m x 0.6m cracked section of the wall above the louvre, below the generator exhaust pipe by removing existing brickwork and reinstate the wall to make good. | F104: m² | G104: 2 | H104: 0.00 | I104: =ROUND(G104 * H104,2) -> 0.00 | J104: Dflt
A105: Item | B105: 1009ecb4-5d66-4a04-8455-14016d509887 | C105: D.2.1.10.3 | E105: Repair Cracks on plastered wall by using polyfilla or equivalent product that is approved by Engineer. | F105: m | G105: 10 | H105: 0.00 | I105: 0.00 | J105: Dflt
A106: Label | B106: f33f072c-8b47-49ac-99cf-9e0bf79319ff | E106: One coat 1:5 cement plaster 15mm thick on brickwork or concrete finished with sponge roller | J106: Dflt
A107: Item | B107: d59ab6a6-efb7-49b2-bffe-0c7f5c95d4ce | C107: D.2.1.10.4 | E107: On walls | F107: m² | G107: 12 | H107: 0.00 | I107: =ROUND(G107 * H107,2) -> 0.00 | J107: Dflt
A108: Label | B108: 5f706c56-ee88-456f-8e00-f6050e72f6cf | E108: Gypsum skim plaster on concrete | J108: Dflt
A109: Item | B109: e0e34a92-683c-4b39-950b-7d9851520201 | C109: D.2.1.10.5 | E109: On ceilings | F109: m² | G109: 227 | H109: 0.00 | I109: =ROUND(G109 * H109,2) -> 0.00 | J109: Dflt
A110: Label | B110: 8a9ae2a0-c985-439f-b9da-b8a5bb224b16 | E110: EXTERNAL PLASTER | J110: Dflt
A111: Label | B111: 1ba878f3-4657-45b6-8592-ee0d1b8319cf | E111: One coat 1:5 cement plaster 12mm thick on brickwork or concrete finished with a wood trowel | J111: Dflt
A112: Item | B112: 25b92b11-af67-47cd-8f37-f30f3d8a7dab | C112: D.2.1.10.6 | E112: On beams | F112: m² | G112: 41 | H112: 0.00 | I112: =ROUND(G112 * H112,2) -> 0.00 | J112: Dflt
A113: Header2 | B113: ee4ae5b7-be41-4bf8-bd0e-3a598cae43ad | C113: D.2.1.11 | E113: PLUMBING AND DRAINAGE | J113: Dflt
A114: Label | B114: 0cef2ddc-3033-44a3-9bdf-969bf688b69e | E114: For preambles see "Model Preambles for Trades" | J114: Dflt
A115: Label | B115: 112e7222-2423-4296-a3fe-cf5a95457005 | E115: RAINWATER DISPOSAL | J115: Dflt
A116: Label | B116: 85d33c48-93c9-4ea4-b57f-62bcec4073bb | E116: "Watertite" or equally approved | J116: Dflt
A117: Item | B117: 1da944b5-f2ce-45e4-970d-7ed7b554c710 | C117: D.2.1.11.1 | E117: 140 x 150mm box gutter x 0.9mm brackets fixed at 500mm centres | F117: m | G117: 70 | H117: 0.00 | I117: =ROUND(G117 * H117,2) -> 0.00 | J117: Dflt
A118: Item | B118: 91504d4c-868f-4468-853d-698ac261d8c2 | C118: D.2.1.11.2 | E118: Extra over gutter for outlet for 75mm dia. pipe | F118: No. | G118: 4 | H118: 0.00 | I118: 0.00 | J118: Dflt
A119: Item | B119: 71c8e149-773f-427b-8f76-931b546d0153 | C119: D.2.1.11.3 | E119: 75 x 1.27mm Diameter rainwater pipes | F119: m | G119: 15 | H119: 0.00 | I119: 0.00 | J119: Dflt
A120: Item | B120: bce79ce6-52f3-4c0e-8cf6-7ea772c88c2c | C120: D.2.1.11.4 | E120: Extra over rainwater pipe for bend | F120: No. | G120: 8 | H120: 0.00 | I120: 0.00 | J120: Dflt
A121: Item | B121: d6318fe4-8e88-4e36-b862-33adc67d87b4 | C121: D.2.1.11.5 | E121: Extra over rainwater pipe for shoe | F121: No. | G121: 4 | H121: 0.00 | I121: 0.00 | J121: Dflt
A122: Header2 | B122: 379fdac2-69c6-4f76-a878-8c2785b0976b | C122: D.2.1.12 | E122: PAINTWORK | J122: Dflt
A123: Label | B123: d5aa8d22-44fe-4706-bf0d-ecdeae1c128a | E123: For preambles see "Model Preambles for Trades" | J123: Dflt
A124: Label | B124: 2c61aaba-3bdf-4bd5-94c4-daae0257a944 | E124: SUPPLEMENTARY PREAMBLES | J124: Dflt
A125: Label | B125: 3c597826-2117-4dc6-aed0-66934a72e7e4 | E125: All colours to be selected by the Architect | J125: Dflt
A126: Label | B126: debf417e-420d-4ada-a9fe-3b30ba5f75a9 | E126: Only approved brands of paint shall be permitted | J126: Dflt
A127: Label | B127: cca893db-c81f-4a18-85d1-21da44ebb36b | E127: All painting measured generally will be in colours with a value of more than 7 on the Munsell system in accordance with the relevant SABS specification. Any painting in colours with a value of 7 or less on the Munsell system shall be given as paintwork in darker colours | J127: Dflt
A128: Label | B128: 67611906-5035-45d3-ae3e-d5e0e553555e | E128: ON INTERNAL FLOATED PLASTER SURFACES | J128: Dflt
A129: Label | B129: 76b30efa-dc15-4c01-9927-b700f576dbed | E129: Clean off dust, remove loose paint, fix cracks with polyfilla or similar approved product, Prime with one coat of plaster primer all in accordance with Manufacturer's detailed specification and recommendation | J129: Dflt
A130: Item | B130: 6a3389f9-7db8-4481-ad88-e27c5eafbeea | C130: D.2.1.12.1 | E130: On walls | F130: m² | G130: 255 | H130: 0.00 | I130: =ROUND(G130 * H130,2) -> 0.00 | J130: Dflt
A131: Label | B131: f286534a-3c72-496d-abf0-14c64557468f | E131: ON INTERNAL FLOATED PLASTER SURFACES | J131: Dflt
A132: Label | B132: 3e65a685-a43d-4223-accf-404b76508a3a | E132: Clean off dust, remove loose paint, fix cracks with polyfilla or similar approved product, Finish with 2 coats of super acrylic PVA paint or similar approved. All in accordance with Manufacturer's detailed specification and recommendation | J132: Dflt
A133: Item | B133: 23fd8d38-8711-4a15-a44f-2f24a185b530 | C133: D.2.1.12.2 | E133: On walls | F133: m² | G133: 255 | H133: 0.00 | I133: =ROUND(G133 * H133,2) -> 0.00 | J133: Dflt
A134: Label | B134: 8c162ca0-ea48-45bc-94df-675bf679bd8b | E134: ON EXTERNAL FLOATED PLASTER SURFACES | J134: Dflt
A135: Label | B135: 466fc9de-c102-446b-9caa-f94233282a1a | E135: Primer and finish with two coats "Marmoran Armourbrush" or equally approved, applied in strict accordance to manufacturer's instructions. | J135: Dflt
A136: Item | B136: 772b5eb3-ab12-4257-b130-4669f66d5322 | C136: D.2.1.12.3 | E136: On walls, RC Beam and Door Reveals | F136: m² | G136: 50 | H136: 0.00 | I136: =ROUND(G136 * H136,2) -> 0.00 | J136: Dflt
A137: Label | B137: 78317dfb-d354-4446-bec7-fb9b09b151fa | E137: ON PLASTERBOARD SURFACES | J137: Dflt
A138: Label | B138: 130b588d-87f9-48c1-a4c1-68c396081d97 | E138: One coat alkali resistant primer and two coats PVA emulsion paint for interior use | J138: Dflt
A139: Item | B139: 3765ceb8-a448-4c7d-9153-6a90864abd5c | C139: D.2.1.12.4 | E139: Ceilings and cornices | F139: m² | G139: 120 | H139: 0.00 | I139: =ROUND(G139 * H139,2) -> 0.00 | J139: Dflt
A140: Label | B140: 994c7d00-939e-4b88-baae-f4ec505cbe97 | E140: ON METAL SURFACES | J140: Dflt
A141: Label | B141: bd9e68ba-d666-4b5a-aece-1b425584c0f6 | E141: One coat "Namelcote" zinc chromate primer UC 53, one coat "Plascon Galvogrip" metal primer and two coats "Velvaglo" polyutherane enamel paint (Colour by Architect). All in accordance with Manufacturer's detailed specification and recommendation) | J141: Dflt
A142: Item | B142: a9ca0ae2-d0f8-40c8-839b-629c77b2dc8c | C142: D.2.1.12.5 | E142: On door frames etc | F142: m² | G142: 15 | H142: 0.00 | I142: =ROUND(G142 * H142,2) -> 0.00 | J142: Dflt
A143: Item | B143: 3a23cb98-c924-493c-b627-46aadd5a7e20 | C143: D.2.1.12.6 | E143: On doors (both sides) | F143: m² | G143: 40 | H143: 0.00 | I143: 0.00 | J143: Dflt
A144: Label | B144: 7521b744-0893-4e1c-a602-57ff98e2c484 | E144: ON WOOD SURFACES | J144: Dflt
A145: Label | B145: ec421db9-6bf6-45bc-a100-708b6f81e830 | E145: One coat "Spick and Span" Oil based wood primer (UCS2), two coats "Velvago Polyurethane enamel paint (VLO). (Colour by Architect). All in accordance with Manufacturer's detailed specification and recommendation) | J145: Dflt
A146: Item | B146: c42b208b-a3f9-4b0d-98d5-9328dff43af6 | C146: D.2.1.12.7 | E146: On doors (both sides) | F146: No. | G146: 25 | H146: 0.00 | I146: =ROUND(G146 * H146,2) -> 0.00 | J146: Dflt
A147: Header2 | B147: 9b0f1855-37bc-4103-8f49-f65ebd10f19b | C147: D.2.1.13 | E147: CRAWL BEAMS | J147: Dflt
A148: Item | B148: ed041640-6770-4b92-8f62-9db5673a4511 | C148: D.2.1.13.1 | E148: Supply and Install the 3.5m long Crawl Beam Size 203 x133x25 I Beam. The rate shall include the cost of supply, and complete installation with 210mm Long Cleat Plate made from 102x133x13Kg/m T bolted to RC beam using 2 M16 Hilti HVU which has chemical bolts at each side all in accordance with the details in Drawing No. J40073/010-408/Rev A 1. Material: 3CR12 and System: Multi-purpose epoxy; Minimum DFT (250 micron) | F148: No. | G148: 2 | H148: 0.00 | I148: =ROUND(G148 * H148,2) -> 0.00 | J148: Dflt
A149: Label | B149: c6bd1810-b596-4fe7-8da3-5043bf974edb | C149: D.2.1.13.2 | E149: Cable Trench | J149: Dflt
A150: Item | B150: 47dd7714-5bda-4845-a750-1a75817430db | C150: D.2.1.13.3 | E150: Where the angle iron is missing, trim off faces of the edges of the concrete trench with concrete grinder and Install the 40 x 40 x 3 Angle Iron by drilling and fixing the angle iron fish tail anchors into concrete with suitable product and installing the angle iron to suit the chamfered Edges of cable trench. | F150: m | G150: 30 | H150: 0.00 | I150: =ROUND(G150 * H150,2) -> 0.00 | J150: Dflt
A151: Item | B151: e94c55a2-0ada-4da9-b243-bb9cd37468cd | C151: D.2.1.13.4 | E151: Install the 655mm wide x 6mm VASTRAP with 3 No. 30x8mm plate stiffeners per panel, trench plate panel cover over the cable trench where no MCC and Electrical panels are placed | F151: m | G151: 30 | H151: 0.00 | I151: 0.00 | J151: Dflt
A152: Header2 | B152: 9cf76c32-fec1-4df3-9a57-317c0dd48710 | C152: D.2.1.14 | E152: Concrete Works (Apron) | J152: Dflt
A153: Label | B153: 80a83bb5-f238-4b71-8a27-f203f2615e25 | D153: SANS1200 GA | E153: Concrete (Small Works) - Formwork | J153: Dflt
A154: Item | B154: bf3109b2-9782-4bb5-bd4c-cabea1627a95 | C154: D.2.1.14.1 | D154: 8.2.1 | E154: Formwork - Rough Finish surface | F154: m² | G154: 4 | H154: 0.00 | I154: =ROUND(G154 * H154,2) -> 0.00 | J154: Dflt
A155: Label | B155: 40892fc3-4fc2-4f9a-936d-3236fe12f8dc | D155: SANS1200 GA | E155: Concrete (Small Works) - Steel | J155: Dflt
A156: Item | B156: 8f04b9b5-f22d-471d-a4b8-9ade740c6c39 | C156: D.2.1.14.2 | D156: 8.3.2 | E156: High Tensile Welded Mesh Ref 245 | F156: m² | G156: 12 | H156: 0.00 | I156: =ROUND(G156 * H156,2) -> 0.00 | J156: Dflt
A157: Label | B157: b390dea6-0a3c-40db-ac07-6f4630689673 | D157: SANS1200 GA | E157: Concrete (Small Works) - Concrete | J157: Dflt
A158: Item | B158: 686299fa-e7ec-455f-8f48-85febbadc64d | C158: D.2.1.14.3 | D158: 8.4.3 | E158: 20 Mpa, 19mm aggregates Concrete | F158: m² | G158: 8 | H158: 0.00 | I158: =ROUND(G158 * H158,2) -> 0.00 | J158: Dflt
A159: Item | B159: 7e92048c-c6b8-4961-a9a2-d45d2a4f3c2b | C159: D.2.1.14.4 | D159: 8.4.4 | E159: Unformed Wooden floated surface finish | F159: m² | G159: 64 | H159: 0.00 | I159: 0.00 | J159: Dflt
A160: Item | B160: 39c2ffcf-899b-4bb4-8204-7b9064575a77 | C160: D.2.1.14.5 | D160: 8.5. | E160: 6mm x 30mm deep Saw cut joints from top of concrete | F160: m | G160: 20 | H160: 0.00 | I160: 0.00 | J160: Dflt
A161: Item | B161: 68e5a3a9-d6e0-4de1-a3ab-6dad7ecfda66 | C161: D.2.1.14.6 | E161: Install 10mm Jointex Expanded polystyrene | F161: m | G161: 50 | H161: 0.00 | I161: 0.00 | J161: Dflt
A162: Item | B162: 54272262-545f-410a-886f-2c8554c03d1d | C162: D.2.1.14.7 | E162: Install 10mm x 10mm polysulphide | F162: m | G162: 50 | H162: 0.00 | I162: 0.00 | J162: Dflt
A163: Header2 | B163: 61286c79-c0db-4556-96e4-6934ce8e36e2 | C163: D.2.1.15 | E163: Remove and replace all the corroded exterior doors. The old doors would be the Employer's asset and they would be stored within site at location to be indicated by the Engineer. The replacement doors will be in accordance with the door schedule indicated in Drawing No. J40073/010 - 404A Rev 6. Ironmongery: Vermin Proof backing, with a 1.2mm solid steel slats, cabin hooks, earth strap, shooting bolt housing and 3 point locking system for padlock | J163: Dflt
A164: Item | B164: f90ec267-8b25-4ee0-8fd3-8f068895092e | C164: D.2.1.15.1 | E164: D1 - Door Leaf : Standard 914 x 2440 mm steel frame Transformer door | F164: No. | G164: 2 | H164: 0.00 | I164: =ROUND(G164 * H164,2) -> 0.00 | J164: Dflt
A165: Item | B165: 2894f507-2165-47b6-88dc-1a95643227ef | C165: D.2.1.15.2 | E165: D2 - Door Leaf : Standard 1830 x 2440 mm steel frame Transformer door | F165: No. | G165: 5 | H165: 0.00 | I165: 0.00 | J165: Dflt
A166: Item | B166: a0e00c17-32aa-4603-8a0f-d4320522883b | C166: D.2.1.15.3 | E166: Install 40mm thick semi solid hardwood doors with 3.2mm tempered hardboard facings, and two hardwood edge strips, 1.2mm rebated closing stiles (SABS 545) complete with Ironmongery (NB Only Frames already installed) | F166: No. | G166: 2 | H166: 0.00 | I166: 0.00 | J166: Dflt
A167: Header2 | B167: fb3a4630-d68a-4f32-ad36-ba51c4a39646 | C167: D.2.1.16 | E167: Remove and replace the existing rusted frames and louvres. The old material would be the Employer's asset and they would be stored within site at Location to be indicated by the Engineer. The replacement frames and louvres will be in accordance with the window schedule indicated in Drawing No. J40073/010 - 404A Rev 6. | J167: Dflt
A168: Item | B168: c6998e23-e90c-4468-bf02-b474487f5acd | C168: D.2.1.16.1 | E168: LV 1 - 2400mm x 1000mm | F168: No. | G168: 1 | H168: 0.00 | I168: =ROUND(G168 * H168,2) -> 0.00 | J168: Dflt
A169: Item | B169: e0f57460-25f7-44ba-b06a-27de17bf222d | C169: D.2.1.16.2 | E169: LV 2 - 2400mm x 2000mm | F169: No. | G169: 1 | H169: 0.00 | I169: 0.00 | J169: Dflt
A170: Sum | B170: 9587433d-81cd-4969-a01b-896e1ba4a01f | C170: D.2.1.16.3 | E170: Supply and Install all complete fire and signage plan in accordance with the Drawing No. J40073/010 - 404E Rev 2 | F170: Sum | G170: 1 | H170: 0.00 | I170: =ROUND(H170,2) -> 0.00 | J170: Dflt
A171: Header2 | B171: d8cd5fdd-cf4c-43cd-aa5a-05f022471b1a | C171: D.2.1.17 | E171: Supply and Install Ironmongery | J171: Dflt
A172: Item | B172: 0c1cc9d6-58d3-4420-b4e6-9f048e3736d7 | C172: D.2.1.17.1 | E172: Dorma TH120/BP Stainless Steel Lever handle on 150x150mm back plate with cylinder hole | F172: Set | G172: 2 | H172: 0.00 | I172: =ROUND(G172 * H172,2) -> 0.00 | J172: Dflt
A173: Item | B173: 4bfd8f92-29b4-4818-943c-ea8343f36c83 | C173: D.2.1.17.2 | E173: Dorma D036S Euro-Profile Cylinder SASH lock SS | F173: No. | G173: 2 | H173: 0.00 | I173: 0.00 | J173: Dflt
A174: Item | B174: 4d4975f5-df89-42be-81ad-02590b66f3a3 | C174: D.2.1.17.3 | E174: Dorma DDC106501 Nickel Plated 65mm Ten Pin Euro-Profile Grand Master-Keyed Double Cylinder | F174: No. | G174: 2 | H174: 0.00 | I174: 0.00 | J174: Dflt
A175: Item | B175: 63e67666-eee8-4fc9-ae7e-3daff169b7a4 | C175: D.2.1.17.4 | E175: Dorma DDS-NP-018 Nickel Plated Floor Stop | F175: No. | G175: 2 | H175: 0.00 | I175: 0.00 | J175: Dflt
A176: Item | B176: 6ef9ea0b-a6b4-4e96-a45e-23b30be68372 | C176: D.2.1.17.5 | E176: Stainless Steel Kick Plate 200mm x width of Door, finished size to be checked on site, Grade 304 0.9mm thick drilled and countersunk for screw fixing | F176: No. | G176: 2 | H176: 0.00 | I176: 0.00 | J176: Dflt
A177: Item | B177: 9dedbc7f-a71c-49dc-9e8c-5e712e624ecb | C177: D.2.1.17.6 | E177: Dorma DHC SS 031B Stainless Steel hat and coat hook with rubber buffer | F177: No. | G177: 2 | H177: 0.00 | I177: 0.00 | J177: Dflt
A178: Header2 | B178: e71db5ff-3bc0-4db0-a602-3057adf2fa6d | C178: D.2.1.18 | E178: TILING | J178: Dflt
A179: Label | B179: 02f9dccd-4f57-416d-9118-b1fe3279ffee | E179: For preambles see "Model Preambles for Trades" | J179: Dflt
A180: Label | B180: 6ca4e3af-9ebd-4bae-b9ab-3133fc795072 | E180: "Note All tiling shall be fixed to plaster or screed with an approved adhesive; the adhesive shall be as recommended by the manufacturer of the tiles. " | J180: Dflt
A181: Label | B181: 6a423468-a92a-487f-89fc-cec78398a900 | E181: FLOOR TILING - in accordance with interior finishing schedule Drw. No. 010-404F Rev 0 | J181: Dflt
A182: Item | B182: 1ef474d8-9d9b-4a0a-825a-e4276572041d | C182: D.2.1.18.1 | E182: Supply and install 40mm Untinted grano with 1 cement/1 stone chippings / 1 sand mix finished with steel trowel in bays not to exceed 12m2. Provide ABE or equal SABS approved epoxy paint finish on Grano floors | F182: m² | G182: 101 | H182: 0.00 | I182: =ROUND(G182 * H182,2) -> 0.00 | J182: Dflt
A183: Label | B183: ede89e48-03fd-4daf-9ae3-dcdbf361e090 | E183: Skirting - Grano | J183: Dflt
A184: Item | B184: b48597c0-1d34-4861-8586-329a4ef2b02a | C184: D.2.1.18.2 | E184: 19mm thick rounded (1:4 cement mix) grano with V Joints 75 mm above finished floor level. Skirting to project 6mm from finished wall fall with arris top edge. | F184: m | G184: 77 | H184: 0.00 | I184: =ROUND(G184 * H184,2) -> 0.00 | J184: Dflt
A185: Header2 | B185: 1a84408b-2f0f-44fd-8b63-dee77c7b52d4 | C185: D.2.1.19 | E185: PROVISIONAL SUMS | J185: Dflt
A186: Label | B186: 8e9bb50c-2e9d-4df3-ab22-f68693e7be05 | E186: For preambles see "Model Preambles for Trades"
A187: Label | B187: 0e0ed129-4d0e-4eed-a410-eac8604cab16 | E187: BUDGETARY ALLOWANCES (Roof Rust Repair, Electrical connection, Water Connection)
A188: Item | B188: fa72cf89-466a-446e-892d-c2a278584358 | C188: D.2.1.19.1 | E188: Provide for Provisional Sum of R1,000,000.00 Additional Work as instructed by Engineer | F188: Prov.Sum | G188: 1 | H188: 400,000.00 | I188: =ROUND(G188 * H188,2) -> 400,000.00
A189: % Previous | B189: 6cd09d68-a496-4824-a06c-d7230a1c35d4 | C189: D.2.1.19.2 | E189: Add for profit and general attendance upon above if required | F189: % | G189: =I188 -> 400 000.00 | H189: 0.0% | I189: 0.00
A190: Label | B190: b63fb84b-0e79-4b71-97f0-a248f161d338 | E190: Corrective work to structure/building
A191: Sum | B191: f1d035f0-cf98-4876-9526-d93428d5cb6b | C191: D.2.1.19.3 | E191: Corrective works as directed by the Specialist investigations/tests conducted by the Contractor | F191: PSum | G191: 1 | H191: 200,000.00 | I191: =ROUND(H191,2) -> 200,000.00

Sheet BILL D.3.
D2: Bid No: | E2: RW10404061/23 | J2: Work Group
D3: Description | E3: TENDER FOR THE UPGRADE OF MEYERTON WASTEWATER TREATMENT WORKS BY 15 ML/DAY AT MEYERTON | J3: Dflt
J4: Dflt
J5: Dflt
J6: Dflt
A7: BillHeader | C7: BILL D.3. | E7: WORKSHOP BUILDING | J7: Dflt
A8: Item Type | B8: GUID | C8: Item Ref | D8: Payment Refers | E8: Description | F8: Unit | G8: Quantity | H8: Rate | I8: Amount R | J8: Dflt
A9: Section | B9: 81b39000-658f-4493-afff-041080164ec9 | C9: D.3.1 | E9: WORKSHOP BUILDING | J9: Dflt
A10: Label | B10: 7e069b24-9720-45e3-aaf3-66971cf06745 | D10: JBCC | E10: SECTION D.3.1 : WORKSHOP BUILDING | J10: Dflt
A11: Sum | B11: e7c026d4-7572-425e-be85-8ba395e3f8d2 | C11: D.3.1.1 | E11: Housekeeping (Includes cleaning and organising working area) | F11: Sum | G11: 1 | H11: 0.00 | I11: =ROUND(H11,2) -> 0.00 | J11: Dflt
A12: Header2 | B12: da2ef526-9589-4f99-ad8a-c79ad7857471 | C12: D.3.1.2 | E12: EARTHWORKS | J12: Dflt
A13: Label | B13: 8d7cf87f-0931-4daf-bca6-bd6add2bf727 | E13: For preambles see "Model Preambles for Trades" | J13: Dflt
A14: Label | B14: 728dd2cc-e9a7-4af5-8f1b-408eaf7f89a5 | E14: Note: | J14: Dflt
A15: Label | B15: 914d955e-c798-4527-95ef-2d653af0b7a5 | E15: Wherever a trade name for any product has been described in the Priced Document attention is drawn to the fact that any other product of equal quality may be used subject to the written approval of the principal agent being obtained prior to the closing for submission of tenders. | J15: Dflt
A16: Label | B16: 1c01c262-8504-4bd0-9607-a2a75a29db79 | E16: if prior written approval for an alternative product is not obtained, the product described shall be deemed to have been tendered for. | J16: Dflt
A17: Label | B17: c9ead7ed-c7f5-43a6-82b6-69163fad23e2 | E17: SUNDRIES | J17: Dflt
A18: Label | B18: 5276e592-d4b3-487a-b903-e1c09efa025e | E18: Extra over all excavations for carting away: | J18: Dflt
A19: Item | B19: a576b220-dee3-4ea0-adfe-8a5f862da3f6 | C19: D.3.1.2.1 | E19: Surplus material from excavations and/or stock piles on site to a dumping site to be located by the Contractor | F19: m³ | G19: 20 | H19: 0.00 | I19: =ROUND(G19 * H19,2) -> 0.00 | J19: Dflt
A20: Label | B20: 2d828f91-40ff-4b6f-96b2-b3598198ed1c | E20: FILLING, ETC | J20: Dflt
A21: Label | B21: d7e55d3a-d7cf-489b-9c04-483646ccfb56 | E21: Backfilling with imported G7 material spread in layers not exceeding 150mm thick under floors, etc and compacted to 97% Mod. AASHTO density | J21: Dflt
A22: Item | B22: 69d5711d-6353-4c68-bd4b-c5e5b5414432 | C22: D.3.1.2.2 | E22: Under floors, steps, paving, etc. | F22: m³ | G22: 10 | H22: 0.00 | I22: =ROUND(G22 * H22,2) -> 0.00 | J22: Dflt
A23: Header2 | B23: 46a3782e-24db-4b52-b64d-ffa8b8564dad | C23: D.3.1.3 | E23: CONCRETE, FORMWORK AND REINFORCEMENT | J23: Dflt
A24: Label | B24: d08bdb63-d2af-4443-bbd9-a5b1ccc4a384 | E24: For preambles see "Model Preambles for Trades" | J24: Dflt
A25: Label | B25: 0cb9570f-d043-4c4a-b099-b08a0249afc6 | E25: SUPPLEMENTARY PREAMBLES | J25: Dflt
A26: Label | B26: 0e64ba2a-d568-4273-81b0-cde5dd536748 | E26: CONCRETE | J26: Dflt
A27: Label | B27: df4e9128-3173-4c29-bc55-a413e9d45f5d | E27: UNREINFORCED CONCRETE | J27: Dflt
A28: Label | B28: f91a626e-5d9d-4bac-9d80-bbce8c9177a2 | E28: Unreinforced concrete 25MPa at 28 days in | J28: Dflt
A29: Item | B29: 5daee81b-07ed-4ca4-9ee5-49ff801df80d | C29: D.3.1.3.1 | E29: Surface beds (apron slabs) | F29: m³ | G29: 3 | H29: 0.00 | I29: =ROUND(G29 * H29,2) -> 0.00 | J29: Dflt
A30: Label | B30: 8a9a87a8-732f-4ba2-a824-d2aeded62974 | E30: REINFORCED CONCRETE | J30: Dflt
A31: Label | B31: 69012412-0d2c-4282-87b7-1ae1d7094ac6 | E31: Vibrated reinforced concrete 25MPa at 28 days in | J31: Dflt
A32: Item | B32: 336ba2b0-f0ce-454a-8300-7f6387335bed | C32: D.3.1.3.2 | E32: Surface beds (ramps) | F32: m³ | G32: 3 | H32: 0.00 | I32: =ROUND(G32 * H32,2) -> 0.00 | J32: Dflt
A33: Label | B33: 1a112253-5f61-4445-a1dd-8d5a5b6abec2 | E33: CONCRETE SUNDRIES | J33: Dflt
A34: Label | B34: 47efcd5b-92bb-4380-9212-69f1db2ee78d | E34: Finishing top surfaces of concrete smooth with a wood float | J34: Dflt
A35: Item | B35: fbcb1527-723e-4dea-97d4-c0e81fd1f735 | C35: D.3.1.3.3 | E35: Surface beds, slabs, etc (apron slabs) | F35: m² | G35: 33 | H35: 0.00 | I35: =ROUND(G35 * H35,2) -> 0.00 | J35: Dflt
A36: Label | B36: 84955703-0142-4244-806e-a6bae45c0719 | E36: Finishing top surfaces of concrete to an evenly ribbed non-slip surface | J36: Dflt
A37: Item | B37: 0bc7c1a7-7a6f-40a9-b635-3fa2b481c88d | C37: D.3.1.3.4 | E37: Surface beds, slabs, etc (ramps) | F37: m² | G37: 15 | H37: 0.00 | I37: =ROUND(G37 * H37,2) -> 0.00 | J37: Dflt
A38: Label | B38: 535c600b-d6a6-40a2-b5e4-471e2caf4a13 | E38: FORMWORK | J38: Dflt
A39: Label | B39: 4b413976-d8c0-494b-a1d1-091c5d2d935a | E39: ROUGH FORMWORK (DEGREE OF ACCURACY III) | J39: Dflt
A40: Label | B40: e48323bc-f612-4361-831a-a947c788962d | E40: Rough formwork to sides | J40: Dflt
A41: Item | B41: 5e03b0cb-5f10-427a-877b-e78cccdef474 | C41: D.3.1.3.5 | E41: Edges, risers, ends and reveals not exceeding 300mm high or wide | F41: m | G41: 70 | H41: 0.00 | I41: =ROUND(G41 * H41,2) -> 0.00 | J41: Dflt
A42: Label | B42: d1bf3cfe-8595-4e10-9446-48bb16eae881 | E42: MOVEMENT JOINTS, ETC | J42: Dflt
A43: Label | B43: 97eab2ea-8572-4fb3-b30b-6660e54f76bd | E43: Saw cut joints: | J43: Dflt
A44: Item | B44: f4c09b07-0d1c-4955-a0ee-7cc12d6484b4 | C44: D.3.1.3.6 | E44: 6 x 30mm Saw cut joints in top of concrete | F44: m | G44: 16 | H44: 0.00 | I44: =ROUND(G44 * H44,2) -> 0.00 | J44: Dflt
A45: Label | B45: 4639f452-cdf7-4739-a7cd-50acf9b16119 | E45: STEEL REINFORCEMENT | J45: Dflt
A46: Label | B46: 282ed94e-158c-4f16-87d1-9969a3c213e0 | E46: Fabric reinforcement: | J46: Dflt
A47: Item | B47: 0ee96c51-1fc0-488b-9ebc-168eb66030b0 | C47: D.3.1.3.7 | E47: Steel mesh reinforcement reference 311 in concrete slabs, surface beds, etc | F47: m² | G47: 15 | H47: 0.00 | I47: =ROUND(G47 * H47,2) -> 0.00 | J47: Dflt
A48: Label | B48: 561570ca-5e70-4e30-af3a-afe57b1f65ea | E48: WATERPROOFING | J48: Dflt
A49: Label | B49: 3bc72985-a69b-4615-a0f5-02f4dc6d74f3 | E49: For preambles see "Model Preambles for Trades" | J49: Dflt
A50: Label | B50: f178378f-31d3-4ca2-8638-fe5f19644561 | E50: WATER PROOFING TO SHOWERS | J50: Dflt
A51: Label | B51: 62b2641a-e435-4232-8769-2d9d21c0f4b6 | E51: Apply "Tal Superflex I" or equally approved then reinforce with Tal Superflex membrane, waterproofer and bonding agent applied as per manufacturer's specification | J51: Dflt
A52: Item | B52: 022ebf83-18c9-45d7-9b34-3bab430119fb | C52: D.3.1.3.8 | E52: On shower walls | F52: m² | G52: 11 | H52: 0.00 | I52: =ROUND(G52 * H52,2) -> 0.00 | J52: Dflt
A53: Item | B53: 57c22054-32f3-4d92-997a-2d48a751d28e | C53: D.3.1.3.9 | E53: On shower floors | F53: m² | G53: 2 | H53: 0.00 | I53: 0.00 | J53: Dflt
A54: Label | B54: ebf208a6-969c-4025-98d8-7c47e0abf9ab | E54: JOINT SEALANTS | J54: Dflt
A55: Item | B55: 50843491-4bbd-44e6-94fd-1cdd481c2bee | C55: D.3.1.3.10 | E55: Rake out 10mm softboard 20mm deep, prepare and fill with approved polysulphide sealing compound (colour to be approved by Architect) | F55: m | G55: 80 | H55: 0.00 | I55: =ROUND(G55 * H55,2) -> 0.00 | J55: Dflt
A56: Item | B56: 60fedd9d-7226-44ec-8635-0081726e2cf7 | C56: D.3.1.3.11 | E56: Polysulphide sealant to 3mm wide saw cut joints | F56: m | G56: 16 | H56: 0.00 | I56: 0.00 | J56: Dflt
A57: Header2 | B57: ba527501-2e35-4f84-9778-43096437da3c | C57: D.3.1.4 | E57: ROOF COVERINGS | J57: Dflt
A58: Label | B58: 30031a48-413f-485b-bfa4-ec4f6dfd6a52 | E58: For preambles see "Model Preambles for Trades" | J58: Dflt
A59: Label | B59: 49ea27d1-2c59-480e-ab69-8b23912192a0 | E59: PROFILED METAL SHEETING AND ACCESSORIES | J59: Dflt
A60: Sum | B60: 90f5eab5-2221-4d29-9ec0-1c3102f82249 | C60: D.3.1.4.1 | E60: Remove about 10m² damaged roof sheeting Ridges, Hip cappings and damaged roof trusses and purlins as instructed by Engineer | F60: Sum | G60: 1 | H60: 0.00 | I60: =ROUND(H60,2) -> 0.00 | J60: Dflt
A61: Label | B61: fc7503bf-8664-4bab-883e-27b4c9d97538 | E61: "Klip-Lok 700" profile roll-formed in continuous lengths from certified Galvanised steel Z200 0.58mm complying with ISQ 550 (3T) (A653) with a Chromadek Colomet finish to one side and standard backing coat, Papyrus white to other and accessories, fixed to timber purlins in strict accordance with manufacturer's specifications. | J61: Dflt
A62: Item | B62: 7547d630-6386-45ac-b2c8-0871f3bf95c0 | C62: D.3.1.4.2 | E62: Roof covering with pitches not exceeding 25 degrees | F62: m² | G62: 10 | H62: 0.00 | I62: =ROUND(G62 * H62,2) -> 0.00 | J62: Dflt
A63: Item | B63: 0f0fbc6e-bf3a-4f70-9fcc-a6e1c58b8726 | C63: D.3.1.4.3 | E63: Ridge cappings 550mm girth to suit roof profile | F63: m | G63: 5 | H63: 0.00 | I63: 0.00 | J63: Dflt
A64: Item | B64: 4291f06d-dfa3-474f-ba54-0f9f7a2ca0ce | C64: D.3.1.4.4 | E64: Hip cappings 550mm girth to suit roof profile | F64: m | G64: 5 | H64: 0.00 | I64: 0.00 | J64: Dflt
A65: Item | B65: b65d15b4-f28f-4c15-9a17-96e4c449e1b4 | C65: D.3.1.4.5 | E65: Head wall flashings 375mm girth 2 times bent to suit roof profile | F65: m | G65: 10 | H65: 0.00 | I65: 0.00 | J65: Dflt
A66: Item | B66: d47e54c7-37b3-46bd-b0dd-db113d8d7be1 | C66: D.3.1.4.6 | E66: Counter flashing 185mm girth 2 times bent | F66: m | G66: 10 | H66: 0.00 | I66: 0.00 | J66: Dflt
A67: Label | B67: 89914d92-8bc6-4f84-9627-f5e6efa57081 | E67: ROOF AND WALL INSULATION | J67: Dflt
A68: Label | B68: 7bbba1aa-22ce-424b-b7ce-08c030435c70 | E68: 25mm Thick "Sagex Kulite" rigid laminated expanded polystyrene insulation board with lacquered foil on one side | J68: Dflt
A69: Item | B69: 68683730-ef0d-4370-9daa-7f68e9d71d13 | C69: D.3.1.4.7 | E69: Insulation boarding in 1200mm widths with longitudinal flap joints, laid over purlins (at approximately 1000mm centres) and fixed concurrent with roof covering, including holes through boards etc | F69: m² | G69: 306 | H69: 0.00 | I69: =ROUND(G69 * H69,2) -> 0.00 | J69: Dflt
A70: Header2 | B70: 70fc4bf5-8249-435f-99e8-e4230f82d27f | C70: D.3.1.5 | E70: CARPENTRY AND JOINERY | J70: Dflt
A71: Label | B71: f2bd6c58-dcd6-4789-9b83-885faeb2ab9a | E71: For preambles see "Model Preambles for Trades" | J71: Dflt
A72: Label | B72: 3fc8da6f-8e3f-4538-a145-17d76f054016 | E72: SUPPLEMENTARY PREAMBLES | J72: Dflt
A73: Label | B73: 441df7cc-fdf5-449a-bbfe-662be9b2df37 | E73: Joinery | J73: Dflt
A74: Label | B74: bddc1ea7-7010-4ba9-9f8b-3c2a32b65838 | E74: Descriptions of frames shall be deemed to include frames, trasomes, mullions, rails, etc. | J74: Dflt
A75: Label | B75: 2cf52546-943e-47da-a7e1-b3be5a9b5293 | E75: Description of hardwood joinery shall be deemed to include pelleting of bolt holes | J75: Dflt
A76: Label | B76: be4e0a30-6f7f-4023-8d2c-0a7a8b6d1882 | E76: Fixing | J76: Dflt
A77: Label | B77: d81f2fe3-4815-4854-9a92-0077828937c5 | E77: Items described as "nailed" shall be deemed to be fixed with hardened steel nails or shot pins to brickwork or concrete | J77: Dflt
A78: Label | B78: 87260306-2acd-4196-a6a0-1607e9d16de7 | E78: DOORS, ETC | J78: Dflt
A79: Label | B79: 76b4bbd1-4a03-45f0-9804-6300d0e905d5 | E79: Wrought meranti doors hung to steel frames | J79: Dflt
A80: Item | B80: 8681d3dd-61da-4025-b306-b500c6d09bde | C80: D.3.1.5.1 | E80: 44mm Framed and ledged batten double door 1613 x 2032mm high including 3mm plywood backing on one side and 76 x 32mm weather bars | F80: No. | G80: 2 | H80: 0.00 | I80: =ROUND(G80 * H80,2) -> 0.00 | J80: Dflt
A81: Item | B81: 131853f1-a6f2-4c71-a954-c5a7d5ed1529 | C81: D.3.1.5.2 | E81: Extra for 400 x 400mm opening for metal louvre unit | F81: No. | G81: 8 | H81: 0.00 | I81: 0.00 | J81: Dflt
A82: Label | B82: 9c6cc82b-6c91-483d-ada4-79f1e2716314 | E82: EAVES, VERGES, ETC | J82: Dflt
A83: Label | B83: 4b6faf4c-de2d-4a69-bf76-1be0deaad453 | E83: "Everite FC77" pressed fibre-cement | J83: Dflt
A84: Item | B84: 9b25bac8-272d-4f98-b974-65eee1d5655a | C84: D.3.1.5.3 | E84: 15 x 300mm Fascias and barge boards including galvanised steel H-profile jointing strips | F84: m | G84: 73 | H84: 0.00 | I84: =ROUND(G84 * H84,2) -> 0.00 | J84: Dflt
A85: Label | B85: a76d283d-f263-4cba-a80e-39ecbe60eea0 | E85: JOINERY SUNDRIES | J85: Dflt
A86: Label | B86: d00c9800-420e-42f2-ad18-7d9fb65315df | E86: Seats | J86: Dflt
A87: Item | B87: da420f93-1df6-47b7-9184-25f46a5cf97b | C87: D.3.1.5.4 | E87: 600 x 1000mm long seat, comprising 70 x 22mm meranti timber slats bolted to steel support complete | F87: No. | G87: 2 | H87: 0.00 | I87: =ROUND(G87 * H87,2) -> 0.00 | J87: Dflt
A88: Header2 | B88: 75c5f50c-618d-4302-a0e4-de71d045fa78 | C88: D.3.1.6 | E88: CEILINGS AND PARTITIONS, ETC | J88: Dflt
A89: Label | B89: f00c9ac5-1b50-45ac-8b93-6597c86c732e | E89: For preambles see "Model Preambles for Trades" | J89: Dflt
A90: Label | B90: 0aa1e93d-3d68-48f4-99ed-f6b74f3fb123 | E90: SUPPLEMENTARY PREAMBLES | J90: Dflt
A91: Label | B91: 2348f0e3-8609-46d0-97ae-304ab6ad41b6 | E91: Descriptions | J91: Dflt
A92: Label | B92: 214df369-312f-4950-9472-b90d15a43d5d | E92: Items described as "nailed" shall be deemed to be fixed with hardened steel nails or pins or shot pinned to brickwork or concrete | J92: Dflt
A93: Label | B93: f9502eb0-1b1c-437d-a060-6adfe2d2c745 | E93: Items described as "plugged" shall be deemed to include screwing to fibre, plastic or metal plugs at not exceeding 600mm centres, and where described as "bolted" the bolts have been given elsewhere | J93: Dflt
A94: Label | B94: 0506e95e-f4a4-4c67-ac99-891a4cbd9536 | E94: Electrical light fittings, diffusers, panels, etc generally are "lay in" units of the same dimensions as the suspension grid described and allowance must be made accordingly for their support inclusive of any flexibility insetting out that may be required (ceiling panels have not been deducted and pricing is to take cognisance thereof) | J94: Dflt
A95: Label | B95: 6a24b9cb-0fdf-40a1-857c-ce473fb42770 | E95: NAILED-UP CEILINGS | J95: Dflt
A96: Item | B96: a3f6ea08-e79b-4ab5-a1c3-4d95c8ccbd59 | C96: D.3.1.6.1 | E96: Remove damaged ceiling and brandering | F96: m² | G96: 0 | H96: 0.00 | I96: =ROUND(G96 * H96,2) -> 0.00 | J96: Dflt
A97: Label | B97: 1cef7fa3-6d09-45c3-8488-abc94e92f6e7 | E97: "Everite" or equally approved ceiling panels | J97: Dflt
A98: Item | B98: 024ec0c0-0814-478b-a86c-c358bbb4c539 | C98: D.3.1.6.2 | E98: Install Ceilings of 1200 x 2400 x 6mm thick panels including 38 x 38mm SA Pine brandering at 450mm centres in both directions | F98: m² | G98: 310 | H98: 0.00 | I98: =ROUND(G98 * H98,2) -> 0.00 | J98: Dflt
A99: Label | B99: a2eac2db-c6dd-4356-ac6c-8c6faa784ce3 | E99: Gypsum plasterboard cornices | J99: Dflt
A100: Item | B100: b1089689-1eab-4059-baf4-4b7e5d2429e6 | C100: D.3.1.6.3 | E100: 75mm Coved cornices | F100: m | G100: 200 | H100: 0.00 | I100: =ROUND(G100 * H100,2) -> 0.00 | J100: Dflt
A101: Header2 | B101: 71a4a1c7-b4f2-4300-93b5-e2093e8107a4 | C101: D.3.1.7 | E101: IRONMONGERY | J101: Dflt
A102: Label | B102: f4a79dbc-8791-4259-97e4-e5844355f255 | E102: For preambles see "Model Preambles for Trades" | J102: Dflt
A103: Label | B103: 7491488d-6e12-4582-b608-5eb94c35b36e | E103: LOCKS | J103: Dflt
A104: Label | B104: f11e217d-b741-4e56-88be-5caf9872234d | E104: "Dorma" or equally approved | J104: Dflt
A105: Item | B105: 01c0e68a-9ae2-43b0-aa57-ea3bcaceca39 | C105: D.3.1.7.1 | E105: Stainless steel Euro-profile cylinder sash lock (Code: D036S) | F105: No. | G105: 10 | H105: 0.00 | I105: =ROUND(G105 * H105,2) -> 0.00 | J105: Dflt
A106: Item | B106: 26039da1-6cad-4177-86a4-3224dac50977 | C106: D.3.1.7.2 | E106: Stainless steel Euro-profile cylinder dead lock (Code: D037D) | F106: No. | G106: 2 | H106: 0.00 | I106: 0.00 | J106: Dflt
A107: Item | B107: 01454cba-4dd8-4437-91a9-c6db5be201f3 | C107: D.3.1.7.3 | E107: Stainless steel Euro-profile escutcheon (Code: DCE-002) | F107: No. | G107: 2 | H107: 0.00 | I107: 0.00 | J107: Dflt
A108: Item | B108: 9e05f93e-8ae9-43f6-942b-39df1c338ed4 | C108: D.3.1.7.4 | E108: Nickle plated 65mm bathroom privacy cylinder (Code: DBC0065001) | F108: No. | G108: 6 | H108: 0.00 | I108: 0.00 | J108: Dflt
A109: Item | B109: 2f1e6e3a-20bf-4a32-9940-256d639f8fb7 | C109: D.3.1.7.5 | E109: Nickle plated 65mm ten pin Euro-profile grand master keyed single cylinder (Code: DSC104201) | F109: No. | G109: 2 | H109: 0.00 | I109: 0.00 | J109: Dflt
A110: Item | B110: bee407de-fb04-4713-9df4-2c74f8155d25 | C110: D.3.1.7.6 | E110: Nickle plated 65mm ten pin Euro-profile grand master keyed double cylinder (Code: DDC106501) | F110: No. | G110: 4 | H110: 0.00 | I110: 0.00 | J110: Dflt
A111: Label | B111: 1cc70998-723e-4496-872d-008d050a83e5 | E111: HANDLES | J111: Dflt
A112: Label | B112: 39b21c91-1283-44aa-8d51-e698723486e8 | E112: "Dorma" or equally approved | J112: Dflt
